Workbook

Sheet DATOS
B2: EXPLORE LAS COMPETENCIAS CLASIFICADAS SUYAS Y DE SU CABALLO
B3: *** Pulse (click ) en la figura. Llene el apellido del jinete o nombre del caballo. Pulse en el boton de busqueda y tendra los datos requeridos
B4: CODIGO | H4: CODIGO | K4: A092
B5: NOMBRE DEL CABALLO | H5: NOMBRE DEL JINETE | K5: VITIMILLA SERRANO PABLO
B6: NOMBRE JINETE / PROPIETARIO
B7: HABILITADO A: ESTRELLAS KILOMETRAJE | H7: HABILITADO A: ESTRELLAS KILOMETRAJE
B8: TIEMPO RESIDUAL [ meses ] | H8: TIEMPO
B10: N | C10: AÑO | D10: CHONE | E10: KILOMETRAJE | F10: VELOCIDAD | H10: N | I10: AÑO | J10: CHONE | K10: KILOMETRAJE | L10: VELOCIDAD
B11: TOTAL: | E11: =SUM(E12:E45) -> 0 | F11: Km | H11: TOTAL: | K11: =SUM(K12:K45) -> 707 | L11: Km
B12: 1 | H12: 1 | I12: 2010 | J12: II CHONE | K12: 40 | L12: LIBRE
B13: 2 | H13: 2 | I13: 2010 | J13: IV CHONE | K13: 40 | L13: LIBRE
B14: 3 | H14: 3 | I14: 2011 | J14: II CHONE | K14: 60 | L14: CONTROLADA
B15: 4 | H15: 4 | I15: 2011 | J15: III CHONE | K15: 60 | L15: CONTROLADA
B16: 5 | H16: 5 | I16: 2011 | J16: VI CHONE | K16: 42 | L16: CONTROLADA
B17: 6 | H17: 6 | I17: 2012 | J17: I CUENCA | K17: 80 | L17: CONTROLADA
B18: 7 | H18: 7 | I18: 2012 | J18: IV CHONE | K18: 40 | L18: CONTROLADA
B19: 8 | H19: 8 | I19: 2013 | J19: IV CHONE | K19: 80 | L19: CONTROLADA
B20: 9 | H20: 9 | I20: 2013 | J20: VI CHONE | K20: 83 | L20: CONTROLADA
B21: 10 | H21: 10 | I21: 2013 | J21: VII CHONE | K21: 93 | L21: LIBRE
B22: 11 | H22: 11 | I22: 2014 | J22: II CHONE | K22: 47 | L22: CONTROLADA
B23: 12 | H23: 12 | I23: 2014 | J23: VIII CHONE | K23: 42 | L23: CONTROLADA
B24: 13 | H24: 11
B25: 14 | H25: 14
B26: 15 | H26: 15
B27: 16 | H27: 16
B28: 17 | H28: 17
B29: 18 | H29: 18
B30: 19 | H30: 19
B31: 20 | H31: 20
B32: 21 | H32: 21
B33: 22 | H33: 22
B34: 23 | H34: 23
B35: 24 | H35: 24
B36: 25 | H36: 25
B37: 26 | H37: 26
B38: 27 | H38: 27
B39: 28 | H39: 28
B40: 29 | H40: 29
B41: 30 | H41: 30
B42: 31 | H42: 31
B43: 32 | H43: 32
B44: 33 | H44: 33

Sheet 4 ESTRELLAS
B1: haal | C1: HABILITADOS A COMPETENCIAS FEI 4 ESTRELLAS, CAMPEONATOS INTERNACIONALES
C3: JUVENILES | D3: COMPETENCIA FEI
A4: 1
A5: 2 | B5: J019 | C5: DARQUEA RAFAELA
A6: 3 | B6: J031 | C6: RIBADENEIRA SOFIA
A7: 4
A8: 5
A9: 6
A10: 7
C12: ADULTOS | D12: COPETENCIA FEI
A13: 1
A14: 2
C16: ABIERTA | D16: COMPETENCIA FEI
A17: 1 | B17: A047 | C17: NEUMANN KARINA
A18: 2
A19: 3
A20: 4
A21: 5
A22: 6
A23: 7
A24: 8
C27: CABALLOS | D27: CARACTERISTICA
A28: 1
A29: 2
A30: 3

Sheet 3 ESTRELLAS
B1: haal | C1: HABILITADOS A COMPETENCIAS FEI 3 ESTRELLAS, CHASQUI IV LIBRE
C3: JUVENILES | D3: COMPETENCIA FEI
A5: 1 | B5: J019 | C5: DARQUEA RAFAELA | D5: DE POR VIDA
A6: 2 | B6: J011 | C6: LETORT BERNARDA | D6: DE POR VIDA
A7: 3 | B7: J025 | C7: MORENO CORDOVEZ DANIELA | D7: DE POR VIDA
A8: 4 | B8: J013 | C8: MORILLO SERGIO | D8: DE POR VIDA
A9: 5 | B9: J031 | C9: RIBADENEIRA SOFIA | D9: DE POR VIDA
A10: 6 | B10: J020 | C10: SERRANO FELIPE | D10: DE POR VIDA
A11: 7 | B11: J028 | C11: WRAY VINUEZA MATEO | D11: DE POR VIDA
A12: 8
C14: ADULTOS | D14: COPETENCIA FEI
A15: 1 | B15: A059 | C15: ALMEIDA AYALA HECTOR | D15: DE POR VIDA
A16: 2 | B16: A058 | C16: RIBADENEIRA ARTURO | D16: DE POR VIDA
C18: ABIERTA | D18: COMPETENCIA FEI
A19: 1 | B19: A052 | C19: DARQUEA BERNARDO | D19: DE POR VIDA
A20: 2 | B20: A051 | C20: GUARDERAS BARAHONA SEBASTIAN | D20: DE POR VIDA
A21: 3 | B21: A081 | C21: KOPPEL OSWALDO | D21: DE POR VIDA
A22: 4 | C22: MEDINA FERNANDO | D22: DE POR VIDA
A23: 5 | B23: A056 | C23: MORILLO MAURICIO | D23: DE POR VIDA
A24: 6 | B24: A047 | C24: NEUMANN KARINA | D24: DE POR VIDA
A25: 7 | B25: A055 | C25: WEEMAELS NATHALIE | D25: DE POR VIDA
A26: 8 | C26: WRAY VINUEZA ROBERTO | D26: DE POR VIDA
C29: CABALLOS | D29: PROPIETARIO / JINETE | F29: TIEMPO RESIDUAL [ meses ] | G29: FECHA DE CLASIFICACIÓN / ÚLTIMA COMPETENCIA | H29: FECHA ACTUAL | I29: TIEMPO MÁXIMO ESTABLECIDO
A30: 1 | B30: C096 | C30: AR FAISAN | D30: ARTURO RIBADENEIRA | F30: =IF(C30="","",24-MONTH(H30)+MONTH(G30)+(-YEAR(H30)+YEAR(G30))*12) -> 13 | G30: 2013-11-30 | H30: =+IF(C30="","",TODAY()) -> 2014-10-28 | I30: =+IF(C30="","","24 MESES") -> 24 MESES
A31: 2 | B31: C097 | C31: CENTAURO | D31: ALMEIDA AYALA HECTOR | F31: 13 | G31: 2013-11-30 | H31: 2014-10-28 | I31: 24 MESES
A32: 3 | B32: C093 | C32: CG ALLASKI | D32: NATHALIE WEEMAELS | F32: 19 | G32: 2014-05-17 | H32: 2014-10-28 | I32: 24 MESES
A33: 4 | B33: C136 | C33: FHARA CONEJA | D33: BERNARDO DARQUEA | F33: 19 | G33: 2014-05-17 | H33: 2014-10-28 | I33: 24 MESES
A34: 5 | B34: C188 | C34: FRODO | D34: ARTURO RIBADENEIRA | F34: 19 | G34: 2014-05-17 | H34: 2014-10-28 | I34: 24 MESES
A35: 6 | B35: C114 | C35: KAFIR HA | D35: ALMEIDA AYALA HECTOR | F35: 23 | G35: 2014-09-27 | H35: 2014-10-28 | I35: 24 MESES
A36: 7 | B36: C094 | C36: MISTERIO | D36: MAURICIO MORILLO | F36: 13 | G36: 2013-11-30 | H36: 2014-10-28 | I36: 24 MESES
A37: 8 | B37: C072 | C37: QUITA PENAS | D37: JOSÉ LETORT | F37: 19 | G37: 2014-05-17 | H37: 2014-10-28 | I37: 24 MESES
A38: 9 | B38: C041 | C38: ZUCO | D38: SERRANO FELIPE | F38: 23 | G38: 2014-09-27 | H38: 2014-10-28 | I38: 24 MESES
A39: 10

Sheet 2 ESTRELLAS
B1: haal | C1: HABILITADOS A COMPETENCIAS FEI 2 ESTRELLAS, CHASQUI III LIBRE
C3: JUVENILES | D3: COMPETENCIA FEI
A4: 1 | B4: J021 | C4: CORNEJO MANUEL | D4: =+IF(C4="","","DE POR VIDA") -> DE POR VIDA
A5: 2 | B5: J019 | C5: DARQUEA RAFAELA | D5: DE POR VIDA
A6: 3 | B6: J008 | C6: GOMEZ MICHILENA ROMMEL | D6: DE POR VIDA
A7: 4 | B7: J063 | C7: GONZALEZ BERNARDA | D7: DE POR VIDA
A8: 5 | B8: J014 | C8: GUARDERAS PEDRO JOSE | D8: DE POR VIDA
A9: 6 | B9: J011 | C9: LETORT BERNARDA | D9: DE POR VIDA
A10: 7 | B10: J047 | C10: LETORT JOSE IGNACIO | D10: DE POR VIDA
A11: 8 | B11: J055 | C11: LOYOLA VINTIMILLA MARIA CLAUDIA | D11: DE POR VIDA
A12: 9 | B12: J087 | C12: MALO TORAL DAVID | D12: DE POR VIDA
A13: 10 | B13: J025 | C13: MORENO CORDOVEZ DANIELA | D13: =+IF(C13="","","DE POR VIDA") -> DE POR VIDA
A14: 11 | B14: J043 | C14: MORENO DANIEL | D14: DE POR VIDA
A15: 12 | B15: J013 | C15: MORILLO SERGIO | D15: DE POR VIDA
A16: 13 | B16: J031 | C16: RIBADENEIRA SOFIA | D16: DE POR VIDA
A17: 14 | B17: J020 | C17: SERRANO FELIPE | D17: DE POR VIDA
A18: 15 | B18: J028 | C18: WRAY VINUEZA MATEO | D18: DE POR VIDA
A19: 16
C21: ADULTOS | D21: COMPETENCIA FEI
A22: 1 | B22: A059 | C22: ALMEIDA AYALA HECTOR | D22: DE POR VIDA
A23: 2 | B23: A058 | C23: RIBADENEIRA ARTURO | D23: DE POR VIDA
C25: ABIERTA | D25: COMPETENCIA FEI
A26: 1 | B26: A052 | C26: DARQUEA BERNARDO | D26: DE POR VIDA
A27: 2 | B27: A057 | C27: DAVILA GORDILLO JUAN DIEGO | D27: DE POR VIDA
A28: 3 | B28: A051 | C28: GUARDERAS BARAHONA SEBASTIAN | D28: DE POR VIDA
A29: 4 | B29: A081 | C29: KOPPEL OSWALDO | D29: DE POR VIDA
A30: 5 | C30: MEDINA FERNANDO | D30: DE POR VIDA
A31: 6 | B31: A056 | C31: MORILLO MAURICIO | D31: DE POR VIDA
A32: 7 | B32: A047 | C32: NEUMANN KARINA | D32: DE POR VIDA
A33: 8 | B33: A060 | C33: RECALDE JUAN JOSE | D33: DE POR VIDA
A34: 9 | B34: A023 | C34: SERRANO JUAN CARLOS | D34: DE POR VIDA
A35: 10 | B35: A092 | C35: VINTIMILLA SERRANO PABLO | D35: DE POR VIDA
A36: 11 | B36: A055 | C36: WEEMAELS NATHALIE | D36: DE POR VIDA
A37: 12 | C37: WRAY VINUEZA ROBERTO | D37: DE POR VIDA
C39: CABALLOS | D39: PROPIETARIO / JINETE | F39: TIEMPO RESIDUAL [ meses ] | G39: FECHA DE CLASIFICACIÓN / ÚLTIMA COMPETENCIA | H39: FECHA ACTUAL | I39: TIEMPO MÁXIMO ESTABLECIDO
A40: 1 | B40: C046 | C40: AMARETO | D40: JOSÉ LETORT | F40: =IF(C40="","",24-MONTH(H40)+MONTH(G40)+(-YEAR(H40)+YEAR(G40))*12) -> 13 | G40: 2013-11-30 | H40: =+IF(C40="","",TODAY()) -> 2014-10-28 | I40: =+IF(C40="","","24 MESES") -> 24 MESES
A41: 2 | B41: C096 | C41: AR FAISAN | D41: ARTURO RIBADENEIRA | F41: Superada | H41: =+IF(C41="","",TODAY()) -> 2014-10-28 | I41: =+IF(C41="","","24 MESES") -> 24 MESES
A42: 3 | B42: C208 | C42: ARAGON | D42: MALO SEBATIAN | F42: =IF(C42="","",24-MONTH(H42)+MONTH(G42)+(-YEAR(H42)+YEAR(G42))*12) -> 19 | G42: 2014-05-17 | H42: 2014-10-28 | I42: 24 MESES
A43: 4 | B43: C232 | C43: ASRAEL | D43: BERNARDA GONZALEZ | F43: =IF(C43="","",24-MONTH(H43)+MONTH(G43)+(-YEAR(H43)+YEAR(G43))*12) -> 19 | G43: 2014-05-17 | H43: 2014-10-28 | I43: 24 MESES
A44: 5 | B44: C115 | C44: AVENTURERO | D44: HECTOR ALMEIDA AYALA | F44: =IF(C44="","",24-MONTH(H44)+MONTH(G44)+(-YEAR(H44)+YEAR(G44))*12) -> 19 | G44: 2014-05-17 | H44: 2014-10-28 | I44: 24 MESES
A45: 6 | B45: C098 | C45: BOM BOM | D45: JUAN JOSÉ RECALDE | F45: =IF(C45="","",24-MONTH(H45)+MONTH(G45)+(-YEAR(H45)+YEAR(G45))*12) -> 23 | G45: 2014-09-27 | H45: 2014-10-28 | I45: 24 MESES
A46: 7 | B46: C097 | C46: CENTAURO | D46: HÉCTOR ALMEIDA AYALA | F46: Superada | H46: 2014-10-28 | I46: 24 MESES
A47: 8 | B47: C093 | C47: CG ALLASKI | D47: NATHALIE WEEMAELS | F47: Superada | H47: 2014-10-28 | I47: 24 MESES
A48: 9 | B48: C112 | C48: FELIPE GR | D48: ROMMEL GÓMEZ | F48: =IF(C48="","",24-MONTH(H48)+MONTH(G48)+(-YEAR(H48)+YEAR(G48))*12) -> -6 | G48: 2012-04-01 | H48: 2014-10-28 | I48: 24 MESES
A49: 10 | B49: C136 | C49: FHARA CONEJA | D49: BERNARDO DARQUEA | F49: Superada | H49: 2014-10-28 | I49: 24 MESES
A50: 11 | B50: C188 | C50: FRODO | D50: ARTURO RIBADENEIRA | F50: Superada | H50: 2014-10-28 | I50: 24 MESES
A51: 12 | B51: C148 | C51: FUERTE | D51: ALEXANDER GÓMEZ | F51: =IF(C51="","",24-MONTH(H51)+MONTH(G51)+(-YEAR(H51)+YEAR(G51))*12) -> 19 | G51: 2014-05-17 | H51: 2014-10-28 | I51: 24 MESES
A52: 13 | B52: C189 | C52: HAAKIR | D52: CORNEJO MANUEL | F52: =IF(C52="","",24-MONTH(H52)+MONTH(G52)+(-YEAR(H52)+YEAR(G52))*12) -> 23 | G52: 2014-09-27 | H52: 2014-10-28 | I52: 24 MESES
A53: 14 | B53: C084 | C53: KADAFI | D53: DANIEL MORENO | F53: =IF(C53="","",24-MONTH(H53)+MONTH(G53)+(-YEAR(H53)+YEAR(G53))*12) -> -6 | G53: 2012-04-01 | H53: 2014-10-28 | I53: 24 MESES
A54: 15 | B54: C114 | C54: KAFIR HA | D54: HÉCTOR ALMEIDA AYALA | F54: Superada | G54: 2013-11-30 | H54: 2014-10-28 | I54: 24 MESES
A55: 16 | B55: C120 | C55: MD KABUL | D55: FELIPE ANDRADE | F55: =IF(C55="","",24-MONTH(H55)+MONTH(G55)+(-YEAR(H55)+YEAR(G55))*12) -> 23 | G55: 2014-09-27 | H55: 2014-10-28 | I55: 24 MESES
A56: 17 | B56: C094 | C56: MISTERIO | D56: MAURICIO MORILLO | F56: Superada | H56: 2014-10-28 | I56: 24 MESES
A57: 18 | B57: C197 | C57: PATACON | D57: CLAUDIA LOYOLA | F57: =IF(C57="","",24-MONTH(H57)+MONTH(G57)+(-YEAR(H57)+YEAR(G57))*12) -> 19 | G57: 2014-05-17 | H57: 2014-10-28 | I57: 24 MESES
A58: 19 | B58: C072 | C58: QUITA PENAS | D58: JOSÉ LETORT | F58: Superada | H58: 2014-10-28 | I58: 24 MESES
A59: 20 | B59: C154 | C59: SHAKIRA | D59: LETORT JOSE IGNACIO | F59: =IF(C59="","",24-MONTH(H59)+MONTH(G59)+(-YEAR(H59)+YEAR(G59))*12) -> 23 | G59: 2014-09-27 | H59: 2014-10-28 | I59: 24 MESES
A60: 21 | B60: C074 | C60: WISKY | D60: MAURIICIO NOBOA | F60: =IF(C60="","",24-MONTH(H60)+MONTH(G60)+(-YEAR(H60)+YEAR(G60))*12) -> 19 | G60: 2014-05-17 | H60: 2014-10-28 | I60: 24 MESES
A61: 22 | B61: C041 | C61: ZUCO | D61: CESAR IGNACIO LEON ARAUJO | F61: =IF(C61="","",24-MONTH(H61)+MONTH(G61)+(-YEAR(H61)+YEAR(G61))*12) -> 19 | G61: 2014-05-17 | H61: 2014-10-28 | I61: 24 MESES
A62: 23 | F62: =IF(C62="","",24-MONTH(H62)+MONTH(G62)+(-YEAR(H62)+YEAR(G62))*12) ->  | H62: =+IF(C62="","",TODAY()) ->  | I62: =+IF(C62="","","24 MESES") -> 
A63: 24
A64: 25
F65: =IF(C65="","",24-MONTH(H65)+MONTH(G65)+(-YEAR(H65)+YEAR(G65))*12) ->  | H65: =+IF(C65="","",TODAY()) ->  | I65: =+IF(C65="","","24 MESES") -> 

Sheet 1 ESTRELLA
B1: haal | C1: HABILITADOS A COMPETENCIAS FEI 1 ESTRELLA, CHASQUI II LIBRE
C3: JUVENILES | D3: COMPETENCIA FEI
A4: 1 | B4: J034 | C4: ANDRADE JOSE | D4: =+IF(C4="","","DE POR VIDA") -> DE POR VIDA
A5: 2 | B5: J021 | C5: CORNEJO BURNEO MANUEL | D5: DE POR VIDA
A6: 3 | B6: J024 | C6: DARQUEA RAFAELA | D6: DE POR VIDA
A7: 4 | B7: J019 | C7: DARQUEA RICARDO | D7: DE POR VIDA
A8: 5 | B8: J007 | C8: ESPINOZA TOMAS | D8: DE POR VIDA
A9: 6 | B9: J050 | C9: FRITZ PAULA | D9: DE POR VIDA
A10: 7 | B10: J008 | C10: GOMEZ MICHILENA ROMMEL | D10: DE POR VIDA
A11: 8 | B11: J063 | C11: GONZALEZ BERNARDA | D11: DE POR VIDA
A12: 9 | B12: J014 | C12: GUARDERAS PEDRO JOSE | D12: DE POR VIDA
A13: 10 | B13: J079 | C13: JARAMILLO MANUELA | D13: DE POR VIDA
A14: 11 | B14: J022 | C14: JIJON JUAN ESTEBAN | D14: DE POR VIDA
A15: 12 | B15: J011 | C15: LETORT BERNARDA | D15: DE POR VIDA
A16: 13 | B16: J055 | C16: LOYOLA VINTIMILLA MARIA CLAUDIA | D16: DE POR VIDA
A17: 14 | B17: J087 | C17: MALO TORAL DAVID | D17: DE POR VIDA
A18: 15 | B18: J027 | C18: MIÑO JOSE IGNACIO | D18: DE POR VIDA
A19: 16 | B19: J012 | C19: MIÑO SANTIAGO | D19: DE POR VIDA
A20: 17 | B20: J023 | C20: MOLESTINA NICOLAS | D20: DE POR VIDA
A21: 18 | B21: JO33 | C21: MONROY BAROJA FERNANDA | D21: DE POR VIDA
A22: 19 | B22: J025 | C22: MORENO CORDOVEZ DANIELA | D22: DE POR VIDA
A23: 20 | B23: J043 | C23: MORENO DANIEL | D23: DE POR VIDA
A24: 21 | B24: J026 | C24: MORENO NICOLAS JUAN | D24: DE POR VIDA
A25: 22 | B25: J013 | C25: MORILLO SERGIO | D25: DE POR VIDA
A26: 23 | B26: J031 | C26: RIBADENEIRA SOFIA | D26: DE POR VIDA
A27: 24 | B27: J020 | C27: SERRANO FELIPE | D27: DE POR VIDA
A28: 25 | B28: J054 | C28: VINTIMILLA CORDERO PABLO | D28: DE POR VIDA
A29: 26 | B29: J028 | C29: WRAY VINUEZA MATEO | D29: DE POR VIDA
A30: 27
A31: 28
A32: 29
A33: 30
C35: ADULTOS | D35: COMPETENCIA FEI
A36: 1 | B36: A059 | C36: ALMEIDA AYALA HECTOR | D36: =+IF(C36="","","DE POR VIDA") -> DE POR VIDA
A37: 2 | B37: A058 | C37: RIBADENEIRA ARTURO | D37: =+IF(C37="","","DE POR VIDA") -> DE POR VIDA
C39: ABIERTA | D39: COMPETENCIA FEI
A40: 1 | B40: A050 | C40: ALZAMORA MARIA CECILIA | D40: =+IF(C40="","","DE POR VIDA") -> DE POR VIDA
A41: 2 | B41: A048 | C41: BARAHONA ANDRES | D41: DE POR VIDA
A42: 3 | B42: A049 | C42: BRAUER MARIA FERNANDA | D42: DE POR VIDA
A43: 4 | B43: A067 | C43: CANDO MARIO | D43: DE POR VIDA
A44: 5 | B44: A052 | C44: DARQUEA BERNARDO | D44: DE POR VIDA
A45: 6 | B45: A057 | C45: DAVILA GORDILLO JUAN DIEGO | D45: DE POR VIDA
A46: 7 | B46: A135 | C46: DONOSO LOYOLA SEBASTIAN | D46: DE POR VIDA
A47: 8 | B47: A124 | C47: GONZÁLEZ JUAN SEBASTIÁN | D47: DE POR VIDA
A48: 9 | B48: A051 | C48: GUARDERAS BARAHONA SEBASTIAN | D48: DE POR VIDA
A49: 10 | B49: A081 | C49: KOPPEL OSWALDO | D49: DE POR VIDA
A50: 11 | B50: A113 | C50: LANDAZURI MORA LUIS ENRIQUE | D50: DE POR VIDA
A51: 12 | B51: A026 | C51: LETORT MENA JOSE | D51: DE POR VIDA
A52: 13 | B52: A130 | C52: MALO JAIME | D52: DE POR VIDA
A53: 14 | B53: A053 | C53: MARCEL ROBERTO | D53: DE POR VIDA
A54: 15 | B54: A061 | C54: MIÑO BENALCAZAR ROBERTO | D54: DE POR VIDA
A55: 16 | B55: A068 | C55: MONROY BAROJA FERNANDA | D55: DE POR VIDA
A56: 17 | B56: A066 | C56: MONROY BUITRON LUIS | D56: DE POR VIDA
A57: 18 | B57: A045 | C57: MORABOWEN CESAR | D57: DE POR VIDA
A58: 19 | B58: A056 | C58: MORILLO MAURICIO | D58: DE POR VIDA
A59: 20 | B59: A047 | C59: NEUMANN KARINA | D59: DE POR VIDA
A60: 21 | B60: A046 | C60: NOBOA MAURICIO | D60: DE POR VIDA
A61: 22 | B61: A042 | C61: PINCHAO NOLBERTO | D61: DE POR VIDA
A62: 23 | B62: A060 | C62: RECALDE JUAN JOSE | D62: DE POR VIDA
A63: 24 | B63: A023 | C63: SERRANO JUAN CARLOS | D63: DE POR VIDA
A64: 25 | B64: A019 | C64: TORRES VLADIMIRO | D64: DE POR VIDA
A65: 26 | B65: A171 | C65: VELEZ MENA MARIA CONSUELO | D65: DE POR VIDA
A66: 27 | B66: A092 | C66: VINTIMILLA SERRANO PABLO | D66: DE POR VIDA
A67: 28 | B67: A055 | C67: WEEMAELS NATHALIE | D67: DE POR VIDA
A68: 29 | C68: WRAY VINUEZA ROBERTO | D68: DE POR VIDA
A69: 30 | D69: =+IF(C69="","","DE POR VIDA") -> 
A70: 31
A71: 32
A72: 33
C74: CABALLOS | D74: PROPIETARIO / JINETE | F74: TIEMPO RESIDUAL [ meses ] | G74: FECHA DE CLASIFICACIÓN / ÚLTIMA COMPETENCIA | H74: FECHA ACTUAL | I74: TIEMPO MÁXIMO ESTABLECIDO
A75: 1 | B75: C100 | C75: ALELI MJ | D75: JOSÉ IGNACIO MIÑO | F75: =IF(C75="","",24-MONTH(H75)+MONTH(G75)+(-YEAR(H75)+YEAR(G75))*12) -> 0 | G75: 2012-10-01 | H75: =+IF(C75="","",TODAY()) -> 2014-10-28 | I75: =+IF(C75="","","24 MESES") -> 24 MESES
A76: 2 | B76: C046 | C76: AMARETO | D76: JOSÉ LETORT MENA | F76: Superada | H76: 2014-10-28 | I76: 24 MESES
A77: 3 | B77: C096 | C77: AR FAISAN | D77: ARTURO RIBADENEIRA | F77: Superada | H77: 2014-10-28 | I77: 24 MESES
A78: 4 | B78: C038 | C78: ARABITA | D78: TOMAS ESPINOZA | F78: =IF(C78="","",24-MONTH(H78)+MONTH(G78)+(-YEAR(H78)+YEAR(G78))*12) -> 6 | G78: 2013-04-01 | H78: 2014-10-28 | I78: 24 MESES
A79: 5 | B79: C208 | C79: ARAGON | D79: MALO SEBATIAN | F79: Superada | H79: 2014-10-28 | I79: 24 MESES
A80: 6 | B80: C232 | C80: ASRAEL | D80: BERNARDA GONZALEZ | F80: Superada | H80: 2014-10-28 | I80: 24 MESES
A81: 7 | B81: C115 | C81: AVENTURERO | D81: HECTOR ALMEIDA AYALA | F81: Superada | H81: 2014-10-28 | I81: 24 MESES
A82: 8 | B82: C085 | C82: BLACK FAIR | D82: BERNARDO DARQUEA | F82: =IF(C82="","",24-MONTH(H82)+MONTH(G82)+(-YEAR(H82)+YEAR(G82))*12) -> 6 | G82: 2013-04-20 | H82: 2014-10-28 | I82: 24 MESES
A83: 9 | B83: C098 | C83: BOM BOM | D83: JUAN JOSÉ RECALDE | F83: Superada | H83: 2014-10-28 | I83: 24 MESES
A84: 10 | B84: C142 | C84: BRICHOLA | D84: CARLOS JOSÉ URIBE | F84: =IF(C84="","",24-MONTH(H84)+MONTH(G84)+(-YEAR(H84)+YEAR(G84))*12) -> 6 | G84: 2013-04-01 | H84: 2014-10-28 | I84: 24 MESES
A85: 11 | B85: C126 | C85: BRUMA | D85: MARIO CANDO | F85: =IF(C85="","",24-MONTH(H85)+MONTH(G85)+(-YEAR(H85)+YEAR(G85))*12) -> 18 | G85: 2014-04-05 | H85: 2014-10-28 | I85: 24 MESES
A86: 12 | B86: C350 | C86: BZ RHEEMAH | D86: FELIPE ANDRADE | F86: =IF(C86="","",24-MONTH(H86)+MONTH(G86)+(-YEAR(H86)+YEAR(G86))*12) -> 6 | G86: 2013-04-13 | H86: 2014-10-28 | I86: 24 MESES
A87: 13 | B87: C135 | C87: CARAGUAY CM | D87: PEDRO CORNEJO | F87: Superada | H87: 2014-10-28 | I87: 24 MESES
A88: 14 | B88: C256 | C88: CASTAÑO | D88: PABLO VINTIMILLA | F88: =IF(C88="","",24-MONTH(H88)+MONTH(G88)+(-YEAR(H88)+YEAR(G88))*12) -> 9 | G88: 2013-07-01 | H88: 2014-10-28 | I88: 24 MESES
A89: 15 | B89: C097 | C89: CENTAURO | D89: HÉCTOR ALMEIDA AYALA | F89: Superada | H89: 2014-10-28 | I89: 24 MESES
A90: 16 | B90: C093 | C90: CG ALLASKI | D90: NATHALIE WEEMAELS | F90: Superada | H90: 2014-10-28 | I90: 24 MESES
A91: 17 | B91: C175 | C91: CLAW | D91: ARTURO RIBADENEIRA | F91: =IF(C91="","",24-MONTH(H91)+MONTH(G91)+(-YEAR(H91)+YEAR(G91))*12) -> 18 | G91: 2014-04-05 | H91: 2014-10-28 | I91: 24 MESES
A92: 18 | B92: C092 | C92: DAMASCO | D92: NICOLAS MORENO | F92: =IF(C92="","",24-MONTH(H92)+MONTH(G92)+(-YEAR(H92)+YEAR(G92))*12) -> 6 | G92: 2013-04-02 | H92: 2014-10-28 | I92: 24 MESES
A93: 19 | B93: C234 | C93: EL PADRINO | D93: MALO JAIME | F93: =IF(C93="","",24-MONTH(H93)+MONTH(G93)+(-YEAR(H93)+YEAR(G93))*12) -> 23 | G93: 2014-09-07 | H93: 2014-10-28 | I93: 24 MESES
A94: 20 | B94: C123 | C94: FARAON | D94: WLADIMIRO TORRES | F94: =IF(C94="","",24-MONTH(H94)+MONTH(G94)+(-YEAR(H94)+YEAR(G94))*12) -> 13 | G94: 2013-11-02 | H94: 2014-10-28 | I94: 24 MESES
A95: 21 | B95: C112 | C95: FELIPE GR | D95: ALEXANDER GÓMEZ | F95: Superada | H95: 2014-10-28 | I95: 24 MESES
A96: 22 | B96: C136 | C96: FHARA CONEJA | D96: BERNARDO DARQUEA | F96: Superada | H96: 2014-10-28 | I96: 24 MESES
A97: 23 | B97: C188 | C97: FRODO | D97: ARTURO RIBADENEIRA | F97: Superada | H97: 2014-10-28 | I97: 24 MESES
A98: 24 | B98: C148 | C98: FUERTE | D98: ALEXANDER GÓMEZ | F98: Superada | H98: 2014-10-28 | I98: 24 MESES
A99: 25 | B99: C086 | C99: GHAFIL | D99: ROBERTO MARCEL | F99: =IF(C99="","",24-MONTH(H99)+MONTH(G99)+(-YEAR(H99)+YEAR(G99))*12) -> 21 | G99: 2014-07-19 | H99: 2014-10-28 | I99: 24 MESES
A100: 26 | B100: C111 | C100: GITANILLO | D100: EDUARDO MONROY | F100: 0 | G100: 2012-10-01 | H100: 2014-10-28 | I100: 24 MESES
A101: 27 | B101: C089 | C101: GR COMPADRE PN | D101: MARÍA FERNANDA BRAUER | F101: 6 | G101: 2013-04-01 | H101: 2014-10-28 | I101: 24 MESES
A102: 28 | B102: C070 | C102: GR NURIA | D102: JUAN JOSÉ RECALDE | F102: 8 | G102: 2013-06-15 | H102: 2014-10-28 | I102: 24 MESES
A103: 29 | B103: C189 | C103: HAAKIR | D103: PEDRO CORNEJO | F103: 16 | G103: 2014-02-22 | H103: 2014-10-28 | I103: 24 MESES
A104: 30 | B104: C082 | C104: JEQUE LL | D104: MARÍA FERNANDA BRAUER | F104: -2 | G104: 2012-08-01 | H104: 2014-10-28 | I104: 24 MESES
A105: 31 | B105: C075 | C105: JR NARA | D105: KARINA NEUMAN | F105: 0 | G105: 2012-10-01 | H105: 2014-10-28 | I105: 24 MESES
A106: 32 | B106: C134 | C106: JUPITER | D106: HECTOR ALMEIDA AYALA | F106: 22 | G106: 2014-08-02 | H106: 2014-10-28 | I106: 24 MESES
A107: 33 | B107: C084 | C107: KADAFI | D107: DANIEL MORENO | F107: Superada | H107: =+IF(C107="","",TODAY()) -> 2014-10-28 | I107: =+IF(C107="","","24 MESES") -> 24 MESES
A108: 34 | B108: C114 | C108: KAFIR HA | D108: HÉCTOR ALMEIDA AYALA | F108: Superada | H108: 2014-10-28 | I108: 24 MESES
A109: 35 | B109: C120 | C109: MD KABUL | D109: FELIPE ANDRADE | F109: =IF(C109="","",24-MONTH(H109)+MONTH(G109)+(-YEAR(H109)+YEAR(G109))*12) -> 22 | G109: 2014-08-02 | H109: 2014-10-28 | I109: 24 MESES
A110: 36 | B110: C094 | C110: MISTERIO | D110: MAURICIO MORILLO | F110: Superada | H110: 2014-10-28 | I110: 24 MESES
A111: 37 | B111: C281 | C111: MK KAROK | D111: GONZALEZ RENATO | F111: =IF(C111="","",24-MONTH(H111)+MONTH(G111)+(-YEAR(H111)+YEAR(G111))*12) -> 22 | G111: 2014-08-02 | H111: 2014-10-28 | I111: 24 MESES
A112: 38 | B112: C091 | C112: MOCACHINO MA | D112: DANIELA MORENO | F112: =IF(C112="","",24-MONTH(H112)+MONTH(G112)+(-YEAR(H112)+YEAR(G112))*12) -> -6 | G112: 2012-04-01 | H112: 2014-10-28 | I112: 24 MESES
A113: 39 | B113: C019 | C113: NICOLAS | D113: MANUELA JARAMILLO | F113: =IF(C113="","",24-MONTH(H113)+MONTH(G113)+(-YEAR(H113)+YEAR(G113))*12) -> 18 | G113: 2014-04-05 | H113: 2014-10-28 | I113: 24 MESES
A114: 40 | B114: C197 | C114: PATACON | D114: CLAUDIA LOYOLA | F114: Superada | H114: 2014-10-28 | I114: 24 MESES
A115: 41 | B115: C072 | C115: QUITA PENAS | D115: JOSÉ LETORT MENA | F115: Superada | H115: 2014-10-28 | I115: 24 MESES
A116: 42 | B116: C071 | C116: SARA | D116: WLADIMIRO TORRES | F116: =IF(C116="","",24-MONTH(H116)+MONTH(G116)+(-YEAR(H116)+YEAR(G116))*12) -> 16 | G116: 2014-02-22 | H116: 2014-10-28 | I116: 24 MESES
A117: 43 | B117: C140 | C117: SC SADIQ | D117: HÉCTOR ALMEIDA | F117: 21 | G117: 2014-07-19 | H117: 2014-10-28 | I117: 24 MESES
A118: 44 | B118: C329 | C118: SERENATA CMB | D118: MORABOWEN CESAR | F118: 22 | G118: 2014-08-02 | H118: 2014-10-28 | I118: 24 MESES
A119: 45 | B119: C154 | C119: SHAKIRA | D119: JOSÉ LETORT MENA | F119: 13 | G119: 2013-11-01 | H119: 2014-10-28 | I119: 24 MESES
A120: 46 | B120: C090 | C120: SHALEA | D120: BERNARDO DARQUEA | F120: -2 | G120: 2012-08-01 | H120: 2014-10-28 | I120: 24 MESES
A121: 47 | B121: C322 | C121: SUCO | D121: PABLO VINTIMILLA | F121: -2 | G121: 2012-08-01 | H121: 2014-10-28 | I121: 24 MESES
A122: 48 | B122: C081 | C122: SUE | D122: ANDRES BARAHONA VACA | F122: -2 | G122: 2012-08-01 | H122: 2014-10-28 | I122: 24 MESES
A123: 49 | B123: C341 | C123: TENGRI | D123: VELEZ MENA MARIA CONSUELO | F123: 23 | G123: 2014-09-07 | H123: 2014-10-28 | I123: 24 MESES
A124: 50 | B124: C312 | C124: TORDILLO | D124: BERNARDO GONZÁLEZ | F124: 6 | G124: 2013-04-01 | H124: 2014-10-28 | I124: 24 MESES
A125: 51 | B125: C099 | C125: TRUENO | D125: BERNARDO DARQUEA | F125: 6 | G125: 2013-04-01 | H125: =+IF(C125="","",TODAY()) -> 2014-10-28 | I125: =+IF(C125="","","24 MESES") -> 24 MESES
A126: 52 | B126: C074 | C126: WISKY | D126: MAURIICIO NOBOA | F126: Superada | H126: 2014-10-28 | I126: 24 MESES
A127: 53 | B127: C106 | C127: ZEUS LL | D127: LUIS ENRIQUE LANDAZURI | F127: =IF(C127="","",24-MONTH(H127)+MONTH(G127)+(-YEAR(H127)+YEAR(G127))*12) -> 21 | G127: 2014-07-19 | H127: 2014-10-28 | I127: 24 MESES
A128: 54 | B128: C041 | C128: ZUCO | D128: CESAR IGNACIO LEON ARAUJO | F128: Superada | H128: 2014-10-28 | I128: 24 MESES
A129: 55 | F129: =IF(C129="","",24-MONTH(H129)+MONTH(G129)+(-YEAR(H129)+YEAR(G129))*12) -> 
A130: 56
A131: 57
A132: 58
A133: 59
A134: 60
A135: 61
A136: 62
A137: 63

Sheet 80 Km libre
B1: haal | C1: HABILITADOS A COMPETENCIAS CHASQUI II LIBRE
C3: JUVENILES | D3: COMPETENCIA NACIONAL
A4: 1 | B4: =IF('1 ESTRELLA'!B4="","",'1 ESTRELLA'!B4) -> J034 | C4: =IF('1 ESTRELLA'!C4="","",'1 ESTRELLA'!C4) -> ANDRADE JOSE | D4: =+IF(C4="","","DE POR VIDA") -> DE POR VIDA
A5: 2 | B5: =IF('1 ESTRELLA'!B5="","",'1 ESTRELLA'!B5) -> J021 | C5: =IF('1 ESTRELLA'!C5="","",'1 ESTRELLA'!C5) -> CORNEJO BURNEO MANUEL | D5: =+IF(C5="","","DE POR VIDA") -> DE POR VIDA
A6: 3 | B6: =IF('1 ESTRELLA'!B6="","",'1 ESTRELLA'!B6) -> J024 | C6: =IF('1 ESTRELLA'!C6="","",'1 ESTRELLA'!C6) -> DARQUEA RAFAELA | D6: DE POR VIDA
A7: 4 | B7: =IF('1 ESTRELLA'!B7="","",'1 ESTRELLA'!B7) -> J019 | C7: =IF('1 ESTRELLA'!C7="","",'1 ESTRELLA'!C7) -> DARQUEA RICARDO | D7: DE POR VIDA
A8: 5 | B8: =IF('1 ESTRELLA'!B8="","",'1 ESTRELLA'!B8) -> J007 | C8: =IF('1 ESTRELLA'!C8="","",'1 ESTRELLA'!C8) -> ESPINOZA TOMAS | D8: DE POR VIDA
A9: 6 | B9: =IF('1 ESTRELLA'!B9="","",'1 ESTRELLA'!B9) -> J050 | C9: =IF('1 ESTRELLA'!C9="","",'1 ESTRELLA'!C9) -> FRITZ PAULA | D9: DE POR VIDA
A10: 7 | B10: =IF('1 ESTRELLA'!B10="","",'1 ESTRELLA'!B10) -> J008 | C10: =IF('1 ESTRELLA'!C10="","",'1 ESTRELLA'!C10) -> GOMEZ MICHILENA ROMMEL | D10: DE POR VIDA
A11: 8 | B11: =IF('1 ESTRELLA'!B11="","",'1 ESTRELLA'!B11) -> J063 | C11: =IF('1 ESTRELLA'!C11="","",'1 ESTRELLA'!C11) -> GONZALEZ BERNARDA | D11: DE POR VIDA
A12: 9 | B12: =IF('1 ESTRELLA'!B12="","",'1 ESTRELLA'!B12) -> J014 | C12: =IF('1 ESTRELLA'!C12="","",'1 ESTRELLA'!C12) -> GUARDERAS PEDRO JOSE | D12: DE POR VIDA
A13: 10 | B13: =IF('1 ESTRELLA'!B13="","",'1 ESTRELLA'!B13) -> J079 | C13: =IF('1 ESTRELLA'!C13="","",'1 ESTRELLA'!C13) -> JARAMILLO MANUELA | D13: DE POR VIDA
A14: 11 | B14: =IF('1 ESTRELLA'!B14="","",'1 ESTRELLA'!B14) -> J022 | C14: =IF('1 ESTRELLA'!C14="","",'1 ESTRELLA'!C14) -> JIJON JUAN ESTEBAN | D14: DE POR VIDA
A15: 12 | B15: =IF('1 ESTRELLA'!B15="","",'1 ESTRELLA'!B15) -> J011 | C15: =IF('1 ESTRELLA'!C15="","",'1 ESTRELLA'!C15) -> LETORT BERNARDA | D15: DE POR VIDA
A16: 13 | B16: =IF('1 ESTRELLA'!B16="","",'1 ESTRELLA'!B16) -> J055 | C16: =IF('1 ESTRELLA'!C16="","",'1 ESTRELLA'!C16) -> LOYOLA VINTIMILLA MARIA CLAUDIA | D16: DE POR VIDA
A17: 14 | B17: =IF('1 ESTRELLA'!B17="","",'1 ESTRELLA'!B17) -> J087 | C17: =IF('1 ESTRELLA'!C17="","",'1 ESTRELLA'!C17) -> MALO TORAL DAVID | D17: DE POR VIDA
A18: 15 | B18: =IF('1 ESTRELLA'!B18="","",'1 ESTRELLA'!B18) -> J027 | C18: =IF('1 ESTRELLA'!C18="","",'1 ESTRELLA'!C18) -> MIÑO JOSE IGNACIO | D18: DE POR VIDA
A19: 16 | B19: =IF('1 ESTRELLA'!B19="","",'1 ESTRELLA'!B19) -> J012 | C19: =IF('1 ESTRELLA'!C19="","",'1 ESTRELLA'!C19) -> MIÑO SANTIAGO | D19: DE POR VIDA
A20: 17 | B20: =IF('1 ESTRELLA'!B20="","",'1 ESTRELLA'!B20) -> J023 | C20: =IF('1 ESTRELLA'!C20="","",'1 ESTRELLA'!C20) -> MOLESTINA NICOLAS | D20: DE POR VIDA
A21: 18 | B21: =IF('1 ESTRELLA'!B21="","",'1 ESTRELLA'!B21) -> JO33 | C21: =IF('1 ESTRELLA'!C21="","",'1 ESTRELLA'!C21) -> MONROY BAROJA FERNANDA | D21: DE POR VIDA
A22: 19 | B22: =IF('1 ESTRELLA'!B22="","",'1 ESTRELLA'!B22) -> J025 | C22: =IF('1 ESTRELLA'!C22="","",'1 ESTRELLA'!C22) -> MORENO CORDOVEZ DANIELA | D22: DE POR VIDA
A23: 20 | B23: =IF('1 ESTRELLA'!B23="","",'1 ESTRELLA'!B23) -> J043 | C23: =IF('1 ESTRELLA'!C23="","",'1 ESTRELLA'!C23) -> MORENO DANIEL | D23: DE POR VIDA
A24: 21 | B24: =IF('1 ESTRELLA'!B24="","",'1 ESTRELLA'!B24) -> J026 | C24: =IF('1 ESTRELLA'!C24="","",'1 ESTRELLA'!C24) -> MORENO NICOLAS JUAN | D24: DE POR VIDA
A25: 22 | B25: =IF('1 ESTRELLA'!B25="","",'1 ESTRELLA'!B25) -> J013 | C25: =IF('1 ESTRELLA'!C25="","",'1 ESTRELLA'!C25) -> MORILLO SERGIO | D25: DE POR VIDA
A26: 23 | B26: =IF('1 ESTRELLA'!B26="","",'1 ESTRELLA'!B26) -> J031 | C26: =IF('1 ESTRELLA'!C26="","",'1 ESTRELLA'!C26) -> RIBADENEIRA SOFIA | D26: DE POR VIDA
A27: 24 | B27: =IF('1 ESTRELLA'!B27="","",'1 ESTRELLA'!B27) -> J020 | C27: =IF('1 ESTRELLA'!C27="","",'1 ESTRELLA'!C27) -> SERRANO FELIPE | D27: DE POR VIDA
A28: 25 | B28: =IF('1 ESTRELLA'!B28="","",'1 ESTRELLA'!B28) -> J054 | C28: =IF('1 ESTRELLA'!C28="","",'1 ESTRELLA'!C28) -> VINTIMILLA CORDERO PABLO | D28: DE POR VIDA
A29: 26 | B29: =IF('1 ESTRELLA'!B29="","",'1 ESTRELLA'!B29) -> J028 | C29: =IF('1 ESTRELLA'!C29="","",'1 ESTRELLA'!C29) -> WRAY VINUEZA MATEO | D29: DE POR VIDA
A30: 27 | B30: =IF('1 ESTRELLA'!B30="","",'1 ESTRELLA'!B30) ->  | C30: =IF('1 ESTRELLA'!C30="","",'1 ESTRELLA'!C30) -> 
A31: 28 | B31: =IF('1 ESTRELLA'!B31="","",'1 ESTRELLA'!B31) ->  | C31: =IF('1 ESTRELLA'!C31="","",'1 ESTRELLA'!C31) -> 
A32: 29 | B32: =IF('1 ESTRELLA'!B32="","",'1 ESTRELLA'!B32) ->  | C32: =IF('1 ESTRELLA'!C32="","",'1 ESTRELLA'!C32) -> 
A33: 30 | B33: =IF('1 ESTRELLA'!B33="","",'1 ESTRELLA'!B33) ->  | C33: =IF('1 ESTRELLA'!C33="","",'1 ESTRELLA'!C33) -> 
B34: =IF('1 ESTRELLA'!B34="","",'1 ESTRELLA'!B34) ->  | C34: =IF('1 ESTRELLA'!C34="","",'1 ESTRELLA'!C34) -> 
B35: =IF('1 ESTRELLA'!B35="","",'1 ESTRELLA'!B35) ->  | C35: =IF('1 ESTRELLA'!C35="","",'1 ESTRELLA'!C35) -> ADULTOS | D35: DE POR VIDA
A36: 1 | B36: =IF('1 ESTRELLA'!B36="","",'1 ESTRELLA'!B36) -> A059 | C36: =IF('1 ESTRELLA'!C36="","",'1 ESTRELLA'!C36) -> ALMEIDA AYALA HECTOR | D36: DE POR VIDA
A37: 2 | B37: =IF('1 ESTRELLA'!B37="","",'1 ESTRELLA'!B37) -> A058 | C37: =IF('1 ESTRELLA'!C37="","",'1 ESTRELLA'!C37) -> RIBADENEIRA ARTURO | D37: DE POR VIDA
B38: =IF('1 ESTRELLA'!B38="","",'1 ESTRELLA'!B38) ->  | C38: =IF('1 ESTRELLA'!C38="","",'1 ESTRELLA'!C38) -> 
B39: =IF('1 ESTRELLA'!B39="","",'1 ESTRELLA'!B39) ->  | C39: =IF('1 ESTRELLA'!C39="","",'1 ESTRELLA'!C39) -> ABIERTA | D39: DE POR VIDA
A40: 1 | B40: =IF('1 ESTRELLA'!B40="","",'1 ESTRELLA'!B40) -> A050 | C40: =IF('1 ESTRELLA'!C40="","",'1 ESTRELLA'!C40) -> ALZAMORA MARIA CECILIA | D40: DE POR VIDA
A41: 2 | B41: =IF('1 ESTRELLA'!B41="","",'1 ESTRELLA'!B41) -> A048 | C41: =IF('1 ESTRELLA'!C41="","",'1 ESTRELLA'!C41) -> BARAHONA ANDRES | D41: DE POR VIDA
A42: 3 | B42: =IF('1 ESTRELLA'!B42="","",'1 ESTRELLA'!B42) -> A049 | C42: =IF('1 ESTRELLA'!C42="","",'1 ESTRELLA'!C42) -> BRAUER MARIA FERNANDA | D42: DE POR VIDA
A43: 4 | B43: =IF('1 ESTRELLA'!B43="","",'1 ESTRELLA'!B43) -> A067 | C43: =IF('1 ESTRELLA'!C43="","",'1 ESTRELLA'!C43) -> CANDO MARIO | D43: DE POR VIDA
A44: 5 | B44: =IF('1 ESTRELLA'!B44="","",'1 ESTRELLA'!B44) -> A052 | C44: =IF('1 ESTRELLA'!C44="","",'1 ESTRELLA'!C44) -> DARQUEA BERNARDO | D44: DE POR VIDA
A45: 6 | B45: =IF('1 ESTRELLA'!B45="","",'1 ESTRELLA'!B45) -> A057 | C45: =IF('1 ESTRELLA'!C45="","",'1 ESTRELLA'!C45) -> DAVILA GORDILLO JUAN DIEGO | D45: DE POR VIDA
A46: 7 | B46: =IF('1 ESTRELLA'!B46="","",'1 ESTRELLA'!B46) -> A135 | C46: =IF('1 ESTRELLA'!C46="","",'1 ESTRELLA'!C46) -> DONOSO LOYOLA SEBASTIAN | D46: DE POR VIDA
A47: 8 | B47: =IF('1 ESTRELLA'!B47="","",'1 ESTRELLA'!B47) -> A124 | C47: =IF('1 ESTRELLA'!C47="","",'1 ESTRELLA'!C47) -> GONZÁLEZ JUAN SEBASTIÁN | D47: DE POR VIDA
A48: 9 | B48: =IF('1 ESTRELLA'!B48="","",'1 ESTRELLA'!B48) -> A051 | C48: =IF('1 ESTRELLA'!C48="","",'1 ESTRELLA'!C48) -> GUARDERAS BARAHONA SEBASTIAN | D48: DE POR VIDA
A49: 10 | B49: =IF('1 ESTRELLA'!B49="","",'1 ESTRELLA'!B49) -> A081 | C49: =IF('1 ESTRELLA'!C49="","",'1 ESTRELLA'!C49) -> KOPPEL OSWALDO | D49: DE POR VIDA
A50: 11 | B50: =IF('1 ESTRELLA'!B50="","",'1 ESTRELLA'!B50) -> A113 | C50: =IF('1 ESTRELLA'!C50="","",'1 ESTRELLA'!C50) -> LANDAZURI MORA LUIS ENRIQUE | D50: DE POR VIDA
A51: 12 | B51: =IF('1 ESTRELLA'!B51="","",'1 ESTRELLA'!B51) -> A026 | C51: =IF('1 ESTRELLA'!C51="","",'1 ESTRELLA'!C51) -> LETORT MENA JOSE | D51: DE POR VIDA
A52: 13 | B52: =IF('1 ESTRELLA'!B52="","",'1 ESTRELLA'!B52) -> A130 | C52: =IF('1 ESTRELLA'!C52="","",'1 ESTRELLA'!C52) -> MALO JAIME | D52: DE POR VIDA
A53: 14 | B53: =IF('1 ESTRELLA'!B53="","",'1 ESTRELLA'!B53) -> A053 | C53: =IF('1 ESTRELLA'!C53="","",'1 ESTRELLA'!C53) -> MARCEL ROBERTO | D53: DE POR VIDA
A54: 15 | B54: =IF('1 ESTRELLA'!B54="","",'1 ESTRELLA'!B54) -> A061 | C54: =IF('1 ESTRELLA'!C54="","",'1 ESTRELLA'!C54) -> MIÑO BENALCAZAR ROBERTO | D54: DE POR VIDA
A55: 16 | B55: =IF('1 ESTRELLA'!B55="","",'1 ESTRELLA'!B55) -> A068 | C55: =IF('1 ESTRELLA'!C55="","",'1 ESTRELLA'!C55) -> MONROY BAROJA FERNANDA | D55: DE POR VIDA
A56: 17 | B56: =IF('1 ESTRELLA'!B56="","",'1 ESTRELLA'!B56) -> A066 | C56: =IF('1 ESTRELLA'!C56="","",'1 ESTRELLA'!C56) -> MONROY BUITRON LUIS | D56: DE POR VIDA
A57: 18 | B57: =IF('1 ESTRELLA'!B57="","",'1 ESTRELLA'!B57) -> A045 | C57: MORILLO MAURICIO | D57: DE POR VIDA
A58: 19 | B58: =IF('1 ESTRELLA'!B58="","",'1 ESTRELLA'!B58) -> A056 | C58: NEUMANN KARINA | D58: DE POR VIDA
A59: 20 | B59: =IF('1 ESTRELLA'!B59="","",'1 ESTRELLA'!B59) -> A047 | C59: NOBOA MAURICIO | D59: DE POR VIDA
A60: 21 | B60: =IF('1 ESTRELLA'!B60="","",'1 ESTRELLA'!B60) -> A046 | C60: PINCHAO NOLBERTO | D60: DE POR VIDA
A61: 22 | B61: =IF('1 ESTRELLA'!B61="","",'1 ESTRELLA'!B61) -> A042 | C61: RECALDE JUAN JOSE | D61: DE POR VIDA
A62: 23 | B62: =IF('1 ESTRELLA'!B62="","",'1 ESTRELLA'!B62) -> A060 | C62: SERRANO JUAN CARLOS | D62: DE POR VIDA
A63: 24 | B63: =IF('1 ESTRELLA'!B63="","",'1 ESTRELLA'!B63) -> A023 | C63: TORRES VLADIMIRO | D63: DE POR VIDA
A64: 25 | B64: A171 | C64: VELEZ MENA MARIA CONSUELO | D64: DE POR VIDA
A65: 26 | B65: =IF('1 ESTRELLA'!B64="","",'1 ESTRELLA'!B64) -> A019 | C65: VINTIMILLA SERRANO PABLO | D65: DE POR VIDA
A66: 27 | B66: =IF('1 ESTRELLA'!B65="","",'1 ESTRELLA'!B65) -> A171 | C66: WEEMAELS NATHALIE | D66: DE POR VIDA
A67: 28 | B67: =IF('1 ESTRELLA'!B66="","",'1 ESTRELLA'!B66) -> A092 | C67: WRAY VINUEZA ROBERTO | D67: DE POR VIDA
A68: 29
A69: 30 | B69: =IF('1 ESTRELLA'!B69="","",'1 ESTRELLA'!B69) ->  | C69: =IF('1 ESTRELLA'!C69="","",'1 ESTRELLA'!C69) -> 
A70: 31 | B70: =IF('1 ESTRELLA'!B70="","",'1 ESTRELLA'!B70) ->  | C70: =IF('1 ESTRELLA'!C70="","",'1 ESTRELLA'!C70) -> 
A71: 32 | B71: =IF('1 ESTRELLA'!B71="","",'1 ESTRELLA'!B71) ->  | C71: =IF('1 ESTRELLA'!C71="","",'1 ESTRELLA'!C71) ->  | D71: =+IF(C71="","","DE POR VIDA") -> 
A72: 33 | B72: =IF('1 ESTRELLA'!B72="","",'1 ESTRELLA'!B72) ->  | C72: =IF('1 ESTRELLA'!C72="","",'1 ESTRELLA'!C72) ->  | D72: =+IF(C72="","","DE POR VIDA") -> 
C74: CABALLOS | D74: PROPIETARIO / JINETE | F74: TIEMPO RESIDUAL [ meses ] | G74: FECHA DE CLASIFICACIÓN / ÚLTIMA COMPETENCIA | H74: FECHA ACTUAL | I74: TIEMPO MÁXIMO ESTABLECIDO
A75: 1 | B75: C100 | C75: ALELI MJ | D75: JOSÉ IGNACIO MIÑO | F75: =IF(C75="","",24-MONTH(H75)+MONTH(G75)+(-YEAR(H75)+YEAR(G75))*12) -> 0 | G75: 2012-10-01 | H75: =+IF(C75="","",TODAY()) -> 2014-10-28 | I75: =+IF(C75="","","24 MESES") -> 24 MESES
A76: 2 | B76: C046 | C76: AMARETO | D76: JOSÉ LETORT MENA | F76: Superada | H76: 2014-10-28 | I76: 24 MESES
A77: 3 | B77: C096 | C77: AR FAISAN | D77: ARTURO RIBADENEIRA | F77: Superada | H77: 2014-10-28 | I77: 24 MESES
A78: 4 | B78: C038 | C78: ARABITA | D78: TOMAS ESPINOZA | F78: =IF(C78="","",24-MONTH(H78)+MONTH(G78)+(-YEAR(H78)+YEAR(G78))*12) -> 8 | G78: 2013-06-01 | H78: 2014-10-28 | I78: 24 MESES
A79: 5 | B79: C208 | C79: ARAGON | D79: MALO SEBATIAN | F79: =IF(C79="","",24-MONTH(H79)+MONTH(G79)+(-YEAR(H79)+YEAR(G79))*12) -> 16 | G79: 2014-02-22 | H79: 2014-10-28 | I79: 24 MESES
A80: 6 | B80: C232 | C80: ASRAEL | D80: BERNARDA GONZALEZ | F80: Superada | H80: 2014-10-28 | I80: 24 MESES
A81: 7 | B81: C115 | C81: AVENTURERO | D81: HECTOR ALMEIDA AYALA | F81: Superada | H81: 2014-10-28 | I81: 24 MESES
A82: 8 | B82: C085 | C82: BLACK FAIR | D82: BERNARDO DARQUEA | F82: =IF(C82="","",24-MONTH(H82)+MONTH(G82)+(-YEAR(H82)+YEAR(G82))*12) -> 6 | G82: 2013-04-20 | H82: 2014-10-28 | I82: 24 MESES
A83: 9 | B83: C098 | C83: BOM BOM | D83: JUAN JOSÉ RECALDE | F83: Superada | H83: 2014-10-28 | I83: 24 MESES
A84: 10 | B84: C142 | C84: BRICHOLA | D84: CARLOS JOSÉ URIBE | F84: =IF(C84="","",24-MONTH(H84)+MONTH(G84)+(-YEAR(H84)+YEAR(G84))*12) -> 8 | G84: 2013-06-01 | H84: 2014-10-28 | I84: 24 MESES
A85: 11 | B85: C126 | C85: BRUMA | D85: MARIO CANDO | F85: =IF(C85="","",24-MONTH(H85)+MONTH(G85)+(-YEAR(H85)+YEAR(G85))*12) -> 8 | G85: 2013-06-01 | H85: 2014-10-28 | I85: 24 MESES
A86: 12 | B86: C350 | C86: BZ RHEEMAH | D86: FELIPE ANDRADE | F86: =IF(C86="","",24-MONTH(H86)+MONTH(G86)+(-YEAR(H86)+YEAR(G86))*12) -> 6 | G86: 2013-04-13 | H86: 2014-10-28 | I86: 24 MESES
A87: 13 | B87: C135 | C87: CARAGUAY CM | D87: PEDRO CORNEJO | F87: 24 | H87: 2014-10-28 | I87: 24 MESES
A88: 14 | B88: C256 | C88: CASTAÑO | D88: PABLO VINTIMILLA | F88: =IF(C88="","",24-MONTH(H88)+MONTH(G88)+(-YEAR(H88)+YEAR(G88))*12) -> 9 | G88: 2013-07-01 | H88: 2014-10-28 | I88: 24 MESES
A89: 15 | B89: C097 | C89: CENTAURO | D89: HÉCTOR ALMEIDA AYALA | F89: Superada | H89: 2014-10-28 | I89: 24 MESES
A90: 16 | B90: C093 | C90: CG ALLASKI | D90: NATHALIE WEEMAELS | F90: Superada | H90: 2014-10-28 | I90: 24 MESES
A91: 17 | B91: C175 | C91: CLAW | D91: ARTURO RIBADENEIRA | F91: =IF(C91="","",24-MONTH(H91)+MONTH(G91)+(-YEAR(H91)+YEAR(G91))*12) -> 18 | G91: 2014-04-05 | H91: 2014-10-28 | I91: 24 MESES
A92: 18 | B92: C092 | C92: DAMASCO | D92: NICOLAS MORENO | F92: =IF(C92="","",24-MONTH(H92)+MONTH(G92)+(-YEAR(H92)+YEAR(G92))*12) -> 4 | G92: 2013-02-01 | H92: 2014-10-28 | I92: 24 MESES
A93: 19 | B93: C234 | C93: EL PADRINO | D93: MALO JAIME | F93: =IF(C93="","",24-MONTH(H93)+MONTH(G93)+(-YEAR(H93)+YEAR(G93))*12) -> 23 | G93: 2014-09-07 | H93: 2014-10-28 | I93: 24 MESES
A94: 20 | B94: C123 | C94: FARAON | D94: WLADIMIRO TORRES | F94: =IF(C94="","",24-MONTH(H94)+MONTH(G94)+(-YEAR(H94)+YEAR(G94))*12) -> 13 | G94: 2013-11-02 | H94: 2014-10-28 | I94: 24 MESES
A95: 21 | B95: C112 | C95: FELIPE GR | D95: ALEXANDER GÓMEZ | F95: Superada | H95: 2014-10-28 | I95: 24 MESES
A96: 22 | B96: C136 | C96: FHARA CONEJA | D96: BERNARDO DARQUEA | F96: Superada | H96: 2014-10-28 | I96: 24 MESES
A97: 23 | B97: C188 | C97: FRODO | D97: ARTURO RIBADENEIRA | F97: Superada | H97: 2014-10-28 | I97: 24 MESES
A98: 24 | B98: C148 | C98: FUERTE | D98: ALEXANDER GÓMEZ | F98: =IF(C98="","",24-MONTH(H98)+MONTH(G98)+(-YEAR(H98)+YEAR(G98))*12) -> 13 | G98: 2013-11-01 | H98: 2014-10-28 | I98: 24 MESES
A99: 25 | B99: C086 | C99: GHAFIL | D99: ROBERTO MARCEL | F99: 21 | G99: 2014-07-19 | H99: 2014-10-28 | I99: 24 MESES
A100: 26 | B100: C111 | C100: GITANILLO | D100: EDUARDO MONROY | F100: 14 | G100: 2013-12-01 | H100: 2014-10-28 | I100: 24 MESES
A101: 27 | B101: C089 | C101: GR COMPADRE PN | D101: MARÍA FERNANDA BRAUER | F101: 6 | G101: 2013-04-01 | H101: 2014-10-28 | I101: 24 MESES
A102: 28 | B102: C070 | C102: GR NURIA | D102: JUAN JOSÉ RECALDE | F102: 8 | G102: 2013-06-01 | H102: 2014-10-28 | I102: 24 MESES
A103: 29 | B103: C189 | C103: HAAKIR | D103: PEDRO CORNEJO | F103: 16 | G103: 2014-02-22 | H103: 2014-10-28 | I103: 24 MESES
A104: 30 | B104: C082 | C104: JEQUE LL | D104: MARÍA FERNANDA BRAUER | F104: -2 | G104: 2012-08-01 | H104: 2014-10-28 | I104: 24 MESES
A105: 31 | B105: C075 | C105: JR NARA | D105: KARINA NEUMAN | F105: 14 | G105: 2013-06-01 | H105: 2014-04-10 | I105: 24 MESES
A106: 32 | B106: C134 | C106: JUPITER | D106: HECTOR ALMEIDA AYALA | F106: Superada | H106: =+IF(C106="","",TODAY()) -> 2014-10-28 | I106: 24 MESES
A107: 33 | B107: C084 | C107: KADAFI | D107: DANIEL MORENO | F107: Superada | H107: 2014-10-28 | I107: =+IF(C107="","","24 MESES") -> 24 MESES
A108: 34 | B108: C114 | C108: KAFIR HA | D108: HÉCTOR ALMEIDA AYALA | F108: Superada | H108: 2014-10-28 | I108: 24 MESES
A109: 35 | B109: C120 | C109: MD KABUL | D109: FELIPE ANDRADE | F109: Superada | H109: 2014-10-28 | I109: 24 MESES
A110: 36 | B110: C094 | C110: MISTERIO | D110: MAURICIO MORILLO | F110: Superada | H110: 2014-10-28 | I110: 24 MESES
A111: 37 | B111: C281 | C111: MK KAROK | D111: GONZALEZ RENATO | F111: =IF(C111="","",24-MONTH(H111)+MONTH(G111)+(-YEAR(H111)+YEAR(G111))*12) -> 22 | G111: 2014-08-02 | H111: 2014-10-28 | I111: 24 MESES
A112: 38 | B112: C091 | C112: MOCACHINO MA | D112: DANIELA MORENO | F112: =IF(C112="","",24-MONTH(H112)+MONTH(G112)+(-YEAR(H112)+YEAR(G112))*12) -> -6 | G112: 2012-04-01 | H112: 2014-10-28 | I112: 24 MESES
A113: 39 | B113: C019 | C113: NICOLAS | D113: MANUELA JARAMILLO | F113: =IF(C113="","",24-MONTH(H113)+MONTH(G113)+(-YEAR(H113)+YEAR(G113))*12) -> 18 | G113: 2014-04-05 | H113: 2014-10-28 | I113: 24 MESES
A114: 40 | B114: C197 | C114: PATACON | D114: CLAUDIA LOYOLA | F114: Superada | H114: 2014-10-28 | I114: 24 MESES
A115: 41 | B115: C072 | C115: QUITA PENAS | D115: JOSÉ LETORT MENA | F115: Superada | H115: 2014-10-28 | I115: 24 MESES
A116: 42 | B116: C294 | C116: REMOLACHA | D116: MALO DIANA | F116: =IF(C116="","",24-MONTH(H116)+MONTH(G116)+(-YEAR(H116)+YEAR(G116))*12) -> 23 | G116: 2014-09-27 | H116: 2014-10-28 | I116: 24 MESES
A117: 43 | B117: C071 | C117: SARA | D117: WLADIMIRO TORRES | F117: 16 | G117: 2014-02-22 | H117: 2014-10-28 | I117: 24 MESES
A118: 44 | B118: C140 | C118: SC SADIQ | D118: HÉCTOR ALMEIDA | F118: 21 | G118: 2014-07-19 | H118: 2014-10-28 | I118: 24 MESES
A119: 45 | B119: C329 | C119: SERENATA CMB | D119: MORABOWEN CESAR | F119: 22 | G119: 2014-08-02 | H119: 2014-10-28 | I119: 24 MESES
A120: 46 | B120: C154 | C120: SHAKIRA | D120: JOSÉ LETORT MENA | F120: 13 | G120: 2013-11-01 | H120: 2014-10-28 | I120: 24 MESES
A121: 47 | B121: C090 | C121: SHALEA | D121: BERNARDO DARQUEA | F121: -2 | G121: 2012-08-01 | H121: 2014-10-28 | I121: 24 MESES
A122: 48 | B122: C322 | C122: SUCO | D122: PABLO VINTIMILLA | F122: 9 | G122: 2013-07-01 | H122: 2014-10-28 | I122: 24 MESES
A123: 49 | B123: C081 | C123: SUE | D123: ANDRES BARAHONA VACA | F123: -2 | G123: 2012-08-01 | H123: 2014-10-28 | I123: 24 MESES
A124: 50 | B124: C341 | C124: TENGRI | D124: VELEZ MENA MARIA CONSUELO | F124: 23 | G124: 2014-09-07 | H124: 2014-10-28 | I124: 24 MESES
A125: 51 | B125: C312 | C125: TORDILLO | D125: BERNARDO GONZÁLEZ | F125: 6 | G125: 2013-04-01 | H125: 2014-10-28 | I125: 24 MESES
A126: 52 | B126: C099 | C126: TRUENO | D126: BERNARDO DARQUEA | F126: 8 | G126: 2013-06-01 | H126: 2014-10-28 | I126: 24 MESES
A127: 53 | B127: C074 | C127: WISKY | D127: MAURIICIO NOBOA | F127: Superada | G127: 2012-08-01 | H127: 2014-10-28 | I127: 24 MESES
A128: 54 | B128: C106 | C128: ZEUS LL | D128: LUIS ENRIQUE LANDAZURI | F128: =IF(C128="","",24-MONTH(H128)+MONTH(G128)+(-YEAR(H128)+YEAR(G128))*12) -> 21 | G128: 2014-07-19 | H128: 2014-10-28 | I128: 24 MESES
A129: 55 | B129: C041 | C129: ZUCO | D129: CESAR IGNACIO LEON ARAUJO | F129: =IF(C129="","",24-MONTH(H129)+MONTH(G129)+(-YEAR(H129)+YEAR(G129))*12) -> 16 | G129: 2014-02-22 | H129: 2014-10-28 | I129: 24 MESES
A130: 56 | F130: =IF(C130="","",24-MONTH(H130)+MONTH(G130)+(-YEAR(H130)+YEAR(G130))*12) ->  | H130: =+IF(C130="","",TODAY()) ->  | I130: =+IF(C130="","","24 MESES") -> 
A131: 57
A132: 58
A133: 59
A134: 60
A135: 61
A136: 62
A137: 63
A138: 64
A139: 65
A140: 66 | I140: =+IF(C140="","","24 MESES") -> 
A141: 67
A142: 68
A143: 69
A144: 70
A145: 71
A146: 72
A147: 73
A148: 74
A149: 75
A150: 76
A151: 77
A152: 78
A153: 79
A154: 80
A155: 81
A156: 82
A157: 83
A158: 84
A159: 85
A160: 86
A161: 87
A162: 88
A163: 89
A164: 90
A165: 91
A166: 92
A167: 93
A168: 94
A169: 95
A170: 96
A171: 97
A172: 98
A173: 99
A174: 100
A175: 101
A176: 102
A177: 103
A178: 104
A179: 105
A180: 106
A181: 107
A182: 108
A183: 109 | F183: =IF(C183="","",24-MONTH(H183)+MONTH(G183)+(-YEAR(H183)+YEAR(G183))*12) ->  | H183: =+IF(C183="","",TODAY()) -> 
A184: 110 | F184: =IF(C184="","",24-MONTH(H184)+MONTH(G184)+(-YEAR(H184)+YEAR(G184))*12) ->  | H184: =+IF(C184="","",TODAY()) -> 
A185: 111 | F185: =IF(C185="","",24-MONTH(H185)+MONTH(G185)+(-YEAR(H185)+YEAR(G185))*12) ->  | H185: =+IF(C185="","",TODAY()) -> 

Sheet Km clasificados
A2: KILOMETROS CLASIFICADOS | K2: KILOMETROS CLASIFICADOS | U2: KILOMETROS CLASIFICADOS
B4: CODIGO | E4: KILOMETROS | L4: CODIGO | P4: KILOMETROS | V4: CODIGO | AA4: KILOMETROS
B5: ANTERIOR | C5: NUEVO | D5: JINETES | E5: CONTROLADA | F5: LIBRE | G5: OTRAS FN | H5: FEI | I5: TOTAL | L5: ANTERIOR | M5: NUEVO | N5: CABALLOS | O5: DUEÑO/JINETE | P5: CONTROLADA | Q5: LIBRE | R5: FEI | S5: TOTAL | V5: JINETE | W5: CABALLO | X5: BINOMIIOS | Z5: FEI | AA5: TOTAL
E6: =IF(C6="","",IF(MID(C6,1,1)="A",VLOOKUP(D6,'V C AB'!$C$7:$AY$457,39,FALSE),VLOOKUP(D6,'V C JUV'!$C$7:$AY$435,39,FALSE))) ->  | F6: =IF(C6="","",IF(MID(C6,1,1)="A",VLOOKUP(D6,'V L AB'!$C$7:$AY$455,38,FALSE),VLOOKUP(D6,'V L JUV'!$C$7:$AY$438,38,FALSE))) ->  | I6: =IF(C6="","",+F6+E6) ->  | X6: JINETE | Y6: CABALLO
A7: 1 | B7: J001 | C7: J031 | D7: RIBADENEIRA SOFIA | E7: =IF(C7="","",IF(MID(C7,1,1)="A",VLOOKUP(D7,'V C AB'!$C$7:$AY$457,49,FALSE),VLOOKUP(D7,'V C JUV'!$C$7:$AY$435,49,FALSE))) -> 244 | F7: =IF(C7="","",IF(MID(C7,1,1)="A",VLOOKUP(D7,'V L AB'!$C$7:$AY$455,48,FALSE),VLOOKUP(D7,'V L JUV'!$C$7:$AY$438,48,FALSE))) -> 957 | H7: =IF(D7="","",IFERROR(VLOOKUP(D7,'J FEI'!$C$7:$AG$454,30,FALSE),0)) -> 1160 | I7: =IF(C7="","",+F7+E7+H7+G7) -> 2361 | K7: 1 | M7: C136 | N7: FHARA CONEJA | O7: DARQUEA BERNARDO | P7: =IF(M7="","",VLOOKUP(N7,'V C CAB'!$C$7:$AZ$518,50,FALSE)) -> 329 | Q7: =IF(M7="","",VLOOKUP(N7,'V L CAB'!$C$7:$AY$524,49,FALSE)) -> 1078 | R7: =IF(N7="","",IFERROR(VLOOKUP(N7,'C FEI'!$C$7:$AG$456,28,FALSE),0)) -> 320 | S7: =IF(M7="","",+Q7+P7+R7) -> 1727 | U7: 1 | V7: A059 | W7: C097 | X7: HECTOR ALMEIDA | Y7: CENTAURO | Z7: =IF(Y7="","",IFERROR(VLOOKUP(Y7,'BINO FEI'!$D$7:$AG$456,27,FALSE),0)) -> 320 | AA7: =IF(W7="","",VLOOKUP(Y7,'BINOMIOS N'!$D$7:$AZ$400,46,FALSE)+Z7) -> 1546
A8: 2 | B8: A099 | C8: A047 | D8: NEUMANN KARINA | E8: =IF(C8="","",IF(MID(C8,1,1)="A",VLOOKUP(D8,'V C AB'!$C$7:$AY$457,49,FALSE),VLOOKUP(D8,'V C JUV'!$C$7:$AY$435,49,FALSE))) -> 485 | F8: =IF(C8="","",IF(MID(C8,1,1)="A",VLOOKUP(D8,'V L AB'!$C$7:$AY$455,48,FALSE),VLOOKUP(D8,'V L JUV'!$C$7:$AY$438,48,FALSE))) -> 363 | H8: =IF(D8="","",IFERROR(VLOOKUP(D8,'J FEI'!$C$7:$AG$454,30,FALSE),0)) -> 1260 | I8: 2108 | K8: 2 | L8: C003 | M8: C096 | N8: AR FAISAN | O8: ARTURO RIBADENEIRA | P8: =IF(M8="","",VLOOKUP(N8,'V C CAB'!$C$7:$AZ$518,50,FALSE)) -> 324 | Q8: =IF(M8="","",VLOOKUP(N8,'V L CAB'!$C$7:$AY$524,49,FALSE)) -> 1145 | R8: =IF(N8="","",IFERROR(VLOOKUP(N8,'C FEI'!$C$7:$AG$456,28,FALSE),0)) -> 200 | S8: 1669 | U8: 2 | V8: A052 | W8: C136 | X8: DARQUEA BERNARDO | Y8: FHARA CONEJA | Z8: =IF(Y8="","",IFERROR(VLOOKUP(Y8,'BINO FEI'!$D$7:$AG$456,27,FALSE),0)) -> 320 | AA8: =IF(W8="","",VLOOKUP(Y8,'BINOMIOS N'!$D$7:$AZ$400,46,FALSE)+Z8) -> 1362
A9: 3 | B9: J003 | C9: J024 | D9: DARQUEA RAFAELA | E9: =IF(C9="","",IF(MID(C9,1,1)="A",VLOOKUP(D9,'V C AB'!$C$7:$AY$457,49,FALSE),VLOOKUP(D9,'V C JUV'!$C$7:$AY$435,49,FALSE))) -> 450 | F9: =IF(C9="","",IF(MID(C9,1,1)="A",VLOOKUP(D9,'V L AB'!$C$7:$AY$455,48,FALSE),VLOOKUP(D9,'V L JUV'!$C$7:$AY$438,48,FALSE))) -> 370 | H9: =IF(D9="","",IFERROR(VLOOKUP(D9,'J FEI'!$C$7:$AG$454,30,FALSE),0)) -> 1160 | I9: 1980 | K9: 3 | L9: C100 | M9: C097 | N9: CENTAURO | O9: HECTOR ALMEIDA | P9: =IF(M9="","",VLOOKUP(N9,'V C CAB'!$C$7:$AZ$518,50,FALSE)) -> 312 | Q9: =IF(M9="","",VLOOKUP(N9,'V L CAB'!$C$7:$AY$524,49,FALSE)) -> 914 | R9: =IF(N9="","",IFERROR(VLOOKUP(N9,'C FEI'!$C$7:$AG$456,28,FALSE),0)) -> 320 | S9: 1546 | U9: 3 | V9: A056 | W9: C094 | X9: MORILLO MAURICIO | Y9: MISTERIO | Z9: =IF(Y9="","",IFERROR(VLOOKUP(Y9,'BINO FEI'!$D$7:$AG$456,27,FALSE),0)) -> 320 | AA9: =IF(W9="","",VLOOKUP(Y9,'BINOMIOS N'!$D$7:$AZ$400,46,FALSE)+Z9) -> 1315
A10: 4 | B10: A135 | C10: A055 | D10: WEEMAELS NATHALIE | E10: =IF(C10="","",IF(MID(C10,1,1)="A",VLOOKUP(D10,'V C AB'!$C$7:$AY$457,49,FALSE),VLOOKUP(D10,'V C JUV'!$C$7:$AY$435,49,FALSE))) -> 353 | F10: =IF(C10="","",IF(MID(C10,1,1)="A",VLOOKUP(D10,'V L AB'!$C$7:$AY$455,48,FALSE),VLOOKUP(D10,'V L JUV'!$C$7:$AY$438,48,FALSE))) -> 571 | G10: 160 | H10: =IF(D10="","",IFERROR(VLOOKUP(D10,'J FEI'!$C$7:$AG$454,30,FALSE),0)) -> 880 | I10: 1964 | K10: 4 | M10: C094 | N10: MISTERIO | O10: MORILLO MAURICIO | P10: =IF(M10="","",VLOOKUP(N10,'V C CAB'!$C$7:$AZ$518,50,FALSE)) -> 353 | Q10: =IF(M10="","",VLOOKUP(N10,'V L CAB'!$C$7:$AY$524,49,FALSE)) -> 758 | R10: =IF(N10="","",IFERROR(VLOOKUP(N10,'C FEI'!$C$7:$AG$456,28,FALSE),0)) -> 320 | S10: 1431 | U10: 4 | V10: J031 | W10: C096 | X10: RIBADENEIRA SOFIA | Y10: AR FAISAN | Z10: =IF(Y10="","",IFERROR(VLOOKUP(Y10,'BINO FEI'!$D$7:$AG$456,27,FALSE),0)) -> 200 | AA10: =IF(W10="","",VLOOKUP(Y10,'BINOMIOS N'!$D$7:$AZ$400,46,FALSE)+Z10) -> 1181
A11: 5 | B11: M001 | C11: A059 | D11: ALMEIDA AYALA HECTOR | E11: =IF(C11="","",IF(MID(C11,1,1)="A",VLOOKUP(D11,'V C AB'!$C$7:$AY$457,49,FALSE),VLOOKUP(D11,'V C JUV'!$C$7:$AY$435,49,FALSE))) -> 477 | F11: =IF(C11="","",IF(MID(C11,1,1)="A",VLOOKUP(D11,'V L AB'!$C$7:$AY$455,48,FALSE),VLOOKUP(D11,'V L JUV'!$C$7:$AY$438,48,FALSE))) -> 1076 | H11: =IF(D11="","",IFERROR(VLOOKUP(D11,'J FEI'!$C$7:$AG$454,30,FALSE),0)) -> 320 | I11: 1873 | K11: 5 | L11: C143 | M11: C098 | N11: BOM BOM | O11: JUAN JOSE RECALDE | P11: =IF(M11="","",VLOOKUP(N11,'V C CAB'!$C$7:$AZ$518,50,FALSE)) -> 461 | Q11: =IF(M11="","",VLOOKUP(N11,'V L CAB'!$C$7:$AY$524,49,FALSE)) -> 628 | R11: =IF(N11="","",IFERROR(VLOOKUP(N11,'C FEI'!$C$7:$AG$456,28,FALSE),0)) -> 160 | S11: 1249 | U11: 5 | V11: A055 | W11: C093 | X11: WEEMAELS NATHALIE | Y11: CG ALLASKI | Z11: =IF(Y11="","",IFERROR(VLOOKUP(Y11,'BINO FEI'!$D$7:$AG$456,27,FALSE),0)) -> 200 | AA11: =IF(W11="","",VLOOKUP(Y11,'BINOMIOS N'!$D$7:$AZ$400,46,FALSE)+Z11) -> 1124
A12: 6 | B12: A017 | C12: A051 | D12: GUARDERAS BARAHONA SEBASTIAN | E12: =IF(C12="","",IF(MID(C12,1,1)="A",VLOOKUP(D12,'V C AB'!$C$7:$AY$457,49,FALSE),VLOOKUP(D12,'V C JUV'!$C$7:$AY$435,49,FALSE))) -> 832 | F12: =IF(C12="","",IF(MID(C12,1,1)="A",VLOOKUP(D12,'V L AB'!$C$7:$AY$455,48,FALSE),VLOOKUP(D12,'V L JUV'!$C$7:$AY$438,48,FALSE))) -> 624 | H12: =IF(D12="","",IFERROR(VLOOKUP(D12,'J FEI'!$C$7:$AG$454,30,FALSE),0)) -> 400 | I12: 1856 | K12: 6 | L12: C023 | M12: C093 | N12: CG ALLASKI | O12: WEEMAELS NATHALIE | P12: =IF(M12="","",VLOOKUP(N12,'V C CAB'!$C$7:$AZ$518,50,FALSE)) -> 353 | Q12: =IF(M12="","",VLOOKUP(N12,'V L CAB'!$C$7:$AY$524,49,FALSE)) -> 571 | R12: =IF(N12="","",IFERROR(VLOOKUP(N12,'C FEI'!$C$7:$AG$456,28,FALSE),0)) -> 200 | S12: 1124 | U12: 6 | V12: A046 | W12: C074 | X12: NOBOA MAURICIO | Y12: WISKY | Z12: =IF(Y12="","",IFERROR(VLOOKUP(Y12,'BINO FEI'!$D$7:$AG$456,27,FALSE),0)) -> 80 | AA12: =IF(W12="","",VLOOKUP(Y12,'BINOMIOS N'!$D$7:$AZ$400,46,FALSE)+Z12) -> 876
A13: 7 | B13: J039 | C13: J047 | D13: LETORT DUEÑAS BERNARDA | E13: =IF(C13="","",IF(MID(C13,1,1)="A",VLOOKUP(D13,'V C AB'!$C$7:$AY$457,49,FALSE),VLOOKUP(D13,'V C JUV'!$C$7:$AY$435,49,FALSE))) -> 675 | F13: =IF(C13="","",IF(MID(C13,1,1)="A",VLOOKUP(D13,'V L AB'!$C$7:$AY$455,48,FALSE),VLOOKUP(D13,'V L JUV'!$C$7:$AY$438,48,FALSE))) -> 261 | H13: =IF(D13="","",IFERROR(VLOOKUP(D13,'J FEI'!$C$7:$AG$454,30,FALSE),0)) -> 680 | I13: 1616 | K13: 7 | L13: C002 | M13: C099 | N13: TRUENO | O13: DARQUEA BERNARDO | P13: =IF(M13="","",VLOOKUP(N13,'V C CAB'!$C$7:$AZ$518,50,FALSE)) -> 550 | Q13: =IF(M13="","",VLOOKUP(N13,'V L CAB'!$C$7:$AY$524,49,FALSE)) -> 461 | R13: =IF(N13="","",IFERROR(VLOOKUP(N13,'C FEI'!$C$7:$AG$456,28,FALSE),0)) -> 0 | S13: 1011 | U13: 7 | V13: A068 | W13: C095 | X13: MONROY BAROJA MARIA FERNANDA | Y13: CANELO | Z13: =IF(Y13="","",IFERROR(VLOOKUP(Y13,'BINO FEI'!$D$7:$AG$456,27,FALSE),0)) -> 0 | AA13: =IF(W13="","",VLOOKUP(Y13,'BINOMIOS N'!$D$7:$AZ$400,46,FALSE)+Z13) -> 865
A14: 8 | B14: A106 | C14: A060 | D14: RECALDE JUAN JOSE | E14: =IF(C14="","",IF(MID(C14,1,1)="A",VLOOKUP(D14,'V C AB'!$C$7:$AY$457,49,FALSE),VLOOKUP(D14,'V C JUV'!$C$7:$AY$435,49,FALSE))) -> 440 | F14: =IF(C14="","",IF(MID(C14,1,1)="A",VLOOKUP(D14,'V L AB'!$C$7:$AY$455,48,FALSE),VLOOKUP(D14,'V L JUV'!$C$7:$AY$438,48,FALSE))) -> 847 | H14: =IF(D14="","",IFERROR(VLOOKUP(D14,'J FEI'!$C$7:$AG$454,30,FALSE),0)) -> 240 | I14: 1527 | K14: 8 | M14: C072 | N14: QUITA PENAS | O14: ILIANA RUIZ | P14: =IF(M14="","",VLOOKUP(N14,'V C CAB'!$C$7:$AZ$518,50,FALSE)) -> 353 | Q14: =IF(M14="","",VLOOKUP(N14,'V L CAB'!$C$7:$AY$524,49,FALSE)) -> 306 | R14: =IF(N14="","",IFERROR(VLOOKUP(N14,'C FEI'!$C$7:$AG$456,28,FALSE),0)) -> 320 | S14: 979 | U14: 8 | V14: A060 | W14: C098 | X14: JUAN JOSE RECALDE | Y14: BOM BOM | Z14: =IF(Y14="","",IFERROR(VLOOKUP(Y14,'BINO FEI'!$D$7:$AG$456,27,FALSE),0)) -> 160 | AA14: =IF(W14="","",VLOOKUP(Y14,'BINOMIOS N'!$D$7:$AZ$400,46,FALSE)+Z14) -> 818
A15: 9 | B15: J002 | C15: J025 | D15: MORENO CORDOVEZ DANIELA | E15: =IF(C15="","",IF(MID(C15,1,1)="A",VLOOKUP(D15,'V C AB'!$C$7:$AY$457,49,FALSE),VLOOKUP(D15,'V C JUV'!$C$7:$AY$435,49,FALSE))) -> 350 | F15: =IF(C15="","",IF(MID(C15,1,1)="A",VLOOKUP(D15,'V L AB'!$C$7:$AY$455,48,FALSE),VLOOKUP(D15,'V L JUV'!$C$7:$AY$438,48,FALSE))) -> 346 | H15: =IF(D15="","",IFERROR(VLOOKUP(D15,'J FEI'!$C$7:$AG$454,30,FALSE),0)) -> 800 | I15: 1496 | K15: 9 | L15: C007 | M15: C111 | N15: GITANILLO | O15: MONROY BAROJA MARIA | P15: =IF(M15="","",VLOOKUP(N15,'V C CAB'!$C$7:$AZ$518,50,FALSE)) -> 234 | Q15: =IF(M15="","",VLOOKUP(N15,'V L CAB'!$C$7:$AY$524,49,FALSE)) -> 683 | R15: =IF(N15="","",IFERROR(VLOOKUP(N15,'C FEI'!$C$7:$AG$456,28,FALSE),0)) -> 0 | S15: 917 | U15: 9 | V15: A067 | W15: C126 | X15: CANDO MARIO | Y15: BRUMA | Z15: =IF(Y15="","",IFERROR(VLOOKUP(Y15,'BINO FEI'!$D$7:$AG$456,27,FALSE),0)) -> 0 | AA15: =IF(W15="","",VLOOKUP(Y15,'BINOMIOS N'!$D$7:$AZ$400,46,FALSE)+Z15) -> 720
A16: 10 | B16: A121 | C16: A056 | D16: MORILLO MAURICIO | E16: =IF(C16="","",IF(MID(C16,1,1)="A",VLOOKUP(D16,'V C AB'!$C$7:$AY$457,49,FALSE),VLOOKUP(D16,'V C JUV'!$C$7:$AY$435,49,FALSE))) -> 291 | F16: =IF(C16="","",IF(MID(C16,1,1)="A",VLOOKUP(D16,'V L AB'!$C$7:$AY$455,48,FALSE),VLOOKUP(D16,'V L JUV'!$C$7:$AY$438,48,FALSE))) -> 868 | H16: =IF(D16="","",IFERROR(VLOOKUP(D16,'J FEI'!$C$7:$AG$454,30,FALSE),0)) -> 320 | I16: 1479 | K16: 10 | M16: C126 | N16: BRUMA | O16: CANDO MARIO | P16: =IF(M16="","",VLOOKUP(N16,'V C CAB'!$C$7:$AZ$518,50,FALSE)) -> 505 | Q16: =IF(M16="","",VLOOKUP(N16,'V L CAB'!$C$7:$AY$524,49,FALSE)) -> 387 | R16: =IF(N16="","",IFERROR(VLOOKUP(N16,'C FEI'!$C$7:$AG$456,28,FALSE),0)) -> 0 | S16: 892 | U16: 10 | V16: J008 | W16: C112 | X16: GOMEZ MICHILENA ROMMEL | Y16: FELIPE | Z16: =IF(Y16="","",IFERROR(VLOOKUP(Y16,'BINO FEI'!$D$7:$AG$456,27,FALSE),0)) -> 0 | AA16: =IF(W16="","",VLOOKUP(Y16,'BINOMIOS N'!$D$7:$AZ$400,46,FALSE)+Z16) -> 711
A17: 11 | B17: A004 | C17: J028 | D17: WRAY VINUEZA MATEO | E17: =IF(C17="","",IF(MID(C17,1,1)="A",VLOOKUP(D17,'V C AB'!$C$7:$AY$457,49,FALSE),VLOOKUP(D17,'V C JUV'!$C$7:$AY$435,49,FALSE))) -> 226 | F17: =IF(C17="","",IF(MID(C17,1,1)="A",VLOOKUP(D17,'V L AB'!$C$7:$AY$455,48,FALSE),VLOOKUP(D17,'V L JUV'!$C$7:$AY$438,48,FALSE))) -> 368 | H17: =IF(D17="","",IFERROR(VLOOKUP(D17,'J FEI'!$C$7:$AG$454,30,FALSE),0)) -> 880 | I17: 1474 | K17: 11 | L17: C005 | M17: C074 | N17: WISKY | O17: MAURICIO NOBOA | P17: =IF(M17="","",VLOOKUP(N17,'V C CAB'!$C$7:$AZ$518,50,FALSE)) -> 275 | Q17: =IF(M17="","",VLOOKUP(N17,'V L CAB'!$C$7:$AY$524,49,FALSE)) -> 521 | R17: =IF(N17="","",IFERROR(VLOOKUP(N17,'C FEI'!$C$7:$AG$456,28,FALSE),0)) -> 80 | S17: 876 | U17: 11 | V17: J055 | W17: C197 | X17: LOYOLA VINTIMILLA MARIA CLAUDIA | Y17: PATACON | Z17: =IF(Y17="","",IFERROR(VLOOKUP(Y17,'BINO FEI'!$D$7:$AG$456,27,FALSE),0)) -> 80 | AA17: =IF(W17="","",VLOOKUP(Y17,'BINOMIOS N'!$D$7:$AZ$400,46,FALSE)+Z17) -> 673
A18: 12 | B18: A119 | C18: A068 | D18: MONROY BAROJA MARIA FERNANDA | E18: =IF(C18="","",IF(MID(C18,1,1)="A",VLOOKUP(D18,'V C AB'!$C$7:$AY$457,49,FALSE),VLOOKUP(D18,'V C JUV'!$C$7:$AY$435,49,FALSE))) -> 542 | F18: =IF(C18="","",IF(MID(C18,1,1)="A",VLOOKUP(D18,'V L AB'!$C$7:$AY$455,48,FALSE),VLOOKUP(D18,'V L JUV'!$C$7:$AY$438,48,FALSE))) -> 902 | H18: =IF(D18="","",IFERROR(VLOOKUP(D18,'J FEI'!$C$7:$AG$454,30,FALSE),0)) -> 0 | I18: 1444 | K18: 12 | M18: C095 | N18: CANELO | O18: FERNANDA MONROY | P18: =IF(M18="","",VLOOKUP(N18,'V C CAB'!$C$7:$AZ$518,50,FALSE)) -> 371 | Q18: =IF(M18="","",VLOOKUP(N18,'V L CAB'!$C$7:$AY$524,49,FALSE)) -> 494 | R18: =IF(N18="","",IFERROR(VLOOKUP(N18,'C FEI'!$C$7:$AG$456,28,FALSE),0)) -> 0 | S18: 865 | U18: 12 | V18: J026 | W18: C092 | X18: NICOLAS MORENO | Y18: DAMASCO | Z18: =IF(Y18="","",IFERROR(VLOOKUP(Y18,'BINO FEI'!$D$7:$AG$456,27,FALSE),0)) -> 0 | AA18: =IF(W18="","",VLOOKUP(Y18,'BINOMIOS N'!$D$7:$AZ$400,46,FALSE)+Z18) -> 662
A19: 13 | B19: A010 | C19: A052 | D19: DARQUEA BERNARDO | E19: =IF(C19="","",IF(MID(C19,1,1)="A",VLOOKUP(D19,'V C AB'!$C$7:$AY$457,49,FALSE),VLOOKUP(D19,'V C JUV'!$C$7:$AY$435,49,FALSE))) -> 330 | F19: =IF(C19="","",IF(MID(C19,1,1)="A",VLOOKUP(D19,'V L AB'!$C$7:$AY$455,48,FALSE),VLOOKUP(D19,'V L JUV'!$C$7:$AY$438,48,FALSE))) -> 793 | H19: =IF(D19="","",IFERROR(VLOOKUP(D19,'J FEI'!$C$7:$AG$454,30,FALSE),0)) -> 320 | I19: 1443 | K19: 13 | M19: C | N19: ZEUS LL | O19: MAURICIO MORILLO | P19: =IF(M19="","",VLOOKUP(N19,'V C CAB'!$C$7:$AZ$518,50,FALSE)) -> 334 | Q19: =IF(M19="","",VLOOKUP(N19,'V L CAB'!$C$7:$AY$524,49,FALSE)) -> 447 | R19: =IF(N19="","",IFERROR(VLOOKUP(N19,'C FEI'!$C$7:$AG$456,28,FALSE),0)) -> 0 | S19: 781 | U19: 13 | V19: J021 | W19: C135 | X19: CORNEJO BURNEO MANUEL | Y19: CARAGUAY CM | Z19: =IF(Y19="","",IFERROR(VLOOKUP(Y19,'BINO FEI'!$D$7:$AG$456,27,FALSE),0)) -> 0 | AA19: =IF(W19="","",VLOOKUP(Y19,'BINOMIOS N'!$D$7:$AZ$400,46,FALSE)+Z19) -> 567
A20: 14 | B20: A013 | C20: A058 | D20: RIBADENEIRA ARTURO | E20: =IF(C20="","",IF(MID(C20,1,1)="A",VLOOKUP(D20,'V C AB'!$C$7:$AY$457,49,FALSE),VLOOKUP(D20,'V C JUV'!$C$7:$AY$435,49,FALSE))) -> 321 | F20: =IF(C20="","",IF(MID(C20,1,1)="A",VLOOKUP(D20,'V L AB'!$C$7:$AY$455,48,FALSE),VLOOKUP(D20,'V L JUV'!$C$7:$AY$438,48,FALSE))) -> 904 | H20: =IF(D20="","",IFERROR(VLOOKUP(D20,'J FEI'!$C$7:$AG$454,30,FALSE),0)) -> 200 | I20: 1425 | K20: 14 | M20: C197 | N20: PATACON | O20: LOYOLA VINTIMILLA MARIA CLAUDIA | P20: =IF(M20="","",VLOOKUP(N20,'V C CAB'!$C$7:$AZ$518,50,FALSE)) -> 240 | Q20: =IF(M20="","",VLOOKUP(N20,'V L CAB'!$C$7:$AY$524,49,FALSE)) -> 435 | R20: =IF(N20="","",IFERROR(VLOOKUP(N20,'C FEI'!$C$7:$AG$456,28,FALSE),0)) -> 80 | S20: 755 | U20: 14 | V20: A019 | W20: C071 | X20: WLADIMIRO TORRES | Y20: SARA | Z20: =IF(Y20="","",IFERROR(VLOOKUP(Y20,'BINO FEI'!$D$7:$AG$456,27,FALSE),0)) -> 0 | AA20: =IF(W20="","",VLOOKUP(Y20,'BINOMIOS N'!$D$7:$AZ$400,46,FALSE)+Z20) -> 506
A21: 15 | B21: J038 | C21: J008 | D21: GOMEZ MICHILENA ALEXANDER | E21: =IF(C21="","",IF(MID(C21,1,1)="A",VLOOKUP(D21,'V C AB'!$C$7:$AY$457,49,FALSE),VLOOKUP(D21,'V C JUV'!$C$7:$AY$435,49,FALSE))) -> 789 | F21: =IF(C21="","",IF(MID(C21,1,1)="A",VLOOKUP(D21,'V L AB'!$C$7:$AY$455,48,FALSE),VLOOKUP(D21,'V L JUV'!$C$7:$AY$438,48,FALSE))) -> 408 | H21: =IF(D21="","",IFERROR(VLOOKUP(D21,'J FEI'!$C$7:$AG$454,30,FALSE),0)) -> 160 | I21: 1357 | K21: 15 | M21: C082 | N21: JEQUE LL | O21: MARÍA FERNANDA BRAUER | P21: =IF(M21="","",VLOOKUP(N21,'V C CAB'!$C$7:$AZ$518,50,FALSE)) -> 537 | Q21: =IF(M21="","",VLOOKUP(N21,'V L CAB'!$C$7:$AY$524,49,FALSE)) -> 212 | R21: =IF(N21="","",IFERROR(VLOOKUP(N21,'C FEI'!$C$7:$AG$456,28,FALSE),0)) -> 0 | S21: 749 | U21: 15 | V21: J027 | W21: C100 | X21: MIÑO JOSE IGNACIO | Y21: ALELI | Z21: =IF(Y21="","",IFERROR(VLOOKUP(Y21,'BINO FEI'!$D$7:$AG$456,27,FALSE),0)) -> 0 | AA21: =IF(W21="","",VLOOKUP(Y21,'BINOMIOS N'!$D$7:$AZ$400,46,FALSE)+Z21) -> 419
A22: 16 | B22: A039 | C22: A046 | D22: NOBOA MAURICIO | E22: =IF(C22="","",IF(MID(C22,1,1)="A",VLOOKUP(D22,'V C AB'!$C$7:$AY$457,49,FALSE),VLOOKUP(D22,'V C JUV'!$C$7:$AY$435,49,FALSE))) -> 551 | F22: =IF(C22="","",IF(MID(C22,1,1)="A",VLOOKUP(D22,'V L AB'!$C$7:$AY$455,48,FALSE),VLOOKUP(D22,'V L JUV'!$C$7:$AY$438,48,FALSE))) -> 625 | H22: =IF(D22="","",IFERROR(VLOOKUP(D22,'J FEI'!$C$7:$AG$454,30,FALSE),0)) -> 0 | I22: 1176 | K22: 16 | L22: C111 | M22: C100 | N22: ALELI | O22: JOSE IGNACIO MIÑOI | P22: =IF(M22="","",VLOOKUP(N22,'V C CAB'!$C$7:$AZ$518,50,FALSE)) -> 418 | Q22: =IF(M22="","",VLOOKUP(N22,'V L CAB'!$C$7:$AY$524,49,FALSE)) -> 315 | R22: =IF(N22="","",IFERROR(VLOOKUP(N22,'C FEI'!$C$7:$AG$456,28,FALSE),0)) -> 0 | S22: 733 | U22: 16 | V22: A068 | W22: C111 | X22: MONROY BAROJA MARIA FERNANDA | Y22: GITANILLO | Z22: =IF(Y22="","",IFERROR(VLOOKUP(Y22,'BINO FEI'!$D$7:$AG$456,27,FALSE),0)) -> 0 | AA22: =IF(W22="","",VLOOKUP(Y22,'BINOMIOS N'!$D$7:$AZ$400,46,FALSE)+Z22) -> 417
A23: 17 | B23: C | C23: J063 | D23: GONZALEZ BERNARDA | E23: =IF(C23="","",IF(MID(C23,1,1)="A",VLOOKUP(D23,'V C AB'!$C$7:$AY$457,49,FALSE),VLOOKUP(D23,'V C JUV'!$C$7:$AY$435,49,FALSE))) -> 701 | F23: =IF(C23="","",IF(MID(C23,1,1)="A",VLOOKUP(D23,'V L AB'!$C$7:$AY$455,48,FALSE),VLOOKUP(D23,'V L JUV'!$C$7:$AY$438,48,FALSE))) -> 228 | H23: =IF(D23="","",IFERROR(VLOOKUP(D23,'J FEI'!$C$7:$AG$454,30,FALSE),0)) -> 160 | I23: 1089 | K23: 17 | M23: C112 | N23: FELIPE GR | O23: GOMEZ MICHILENA ROMMEL | P23: =IF(M23="","",VLOOKUP(N23,'V C CAB'!$C$7:$AZ$518,50,FALSE)) -> 351 | Q23: =IF(M23="","",VLOOKUP(N23,'V L CAB'!$C$7:$AY$524,49,FALSE)) -> 280 | R23: =IF(N23="","",IFERROR(VLOOKUP(N23,'C FEI'!$C$7:$AG$456,28,FALSE),0)) -> 80 | S23: 711 | U23: 17 | Z23: 0 | AA23: =IF(W23="","",VLOOKUP(Y23,'BINOMIOS N'!$D$7:$AZ$400,46,FALSE)+Z23) -> 
A24: 18 | B24: J026 | C24: J021 | D24: CORNEJO BURNEO MANUEL | E24: =IF(C24="","",IF(MID(C24,1,1)="A",VLOOKUP(D24,'V C AB'!$C$7:$AY$457,49,FALSE),VLOOKUP(D24,'V C JUV'!$C$7:$AY$435,49,FALSE))) -> 594 | F24: =IF(C24="","",IF(MID(C24,1,1)="A",VLOOKUP(D24,'V L AB'!$C$7:$AY$455,48,FALSE),VLOOKUP(D24,'V L JUV'!$C$7:$AY$438,48,FALSE))) -> 434 | H24: =IF(D24="","",IFERROR(VLOOKUP(D24,'J FEI'!$C$7:$AG$454,30,FALSE),0)) -> 0 | I24: 1028 | K24: 18 | L24: C171 | M24: C086 | N24: GHAFIL | O24: MARCEL ROBERTO | P24: =IF(M24="","",VLOOKUP(N24,'V C CAB'!$C$7:$AZ$518,50,FALSE)) -> 286 | Q24: =IF(M24="","",VLOOKUP(N24,'V L CAB'!$C$7:$AY$524,49,FALSE)) -> 424 | R24: =IF(N24="","",IFERROR(VLOOKUP(N24,'C FEI'!$C$7:$AG$456,28,FALSE),0)) -> 0 | S24: 710 | U24: 18 | Z24: =IF(Y24="","",IFERROR(VLOOKUP(Y24,'BINO FEI'!$D$7:$AG$456,27,FALSE),0)) ->  | AA24: =IF(W24="","",VLOOKUP(Y24,'BINOMIOS N'!$D$7:$AZ$400,46,FALSE)+Z24) -> 
A25: 19 | B25: C | C25: A081 | D25: KOPPEL OSWALDO | E25: =IF(C25="","",IF(MID(C25,1,1)="A",VLOOKUP(D25,'V C AB'!$C$7:$AY$457,49,FALSE),VLOOKUP(D25,'V C JUV'!$C$7:$AY$435,49,FALSE))) -> 543 | F25: =IF(C25="","",IF(MID(C25,1,1)="A",VLOOKUP(D25,'V L AB'!$C$7:$AY$455,48,FALSE),VLOOKUP(D25,'V L JUV'!$C$7:$AY$438,48,FALSE))) -> 242 | G25: 40 | H25: =IF(D25="","",IFERROR(VLOOKUP(D25,'J FEI'!$C$7:$AG$454,30,FALSE),0)) -> 200 | I25: 1025 | K25: 19 | L25: C051 | M25: C103 | N25: AR AMIRA | O25: ARTURO RIBADENEIRA | P25: =IF(M25="","",VLOOKUP(N25,'V C CAB'!$C$7:$AZ$518,50,FALSE)) -> 353 | Q25: =IF(M25="","",VLOOKUP(N25,'V L CAB'!$C$7:$AY$524,49,FALSE)) -> 346 | R25: =IF(N25="","",IFERROR(VLOOKUP(N25,'C FEI'!$C$7:$AG$456,28,FALSE),0)) -> 0 | S25: 699 | U25: 19 | Z25: =IF(Y25="","",IFERROR(VLOOKUP(Y25,'BINO FEI'!$D$7:$AG$456,27,FALSE),0)) ->  | AA25: =IF(W25="","",VLOOKUP(Y25,'BINOMIOS N'!$D$7:$AZ$400,46,FALSE)+Z25) -> 
A26: 20 | B26: I043 | C26: J034 | D26: ANDRADE JOSE DANIEL | E26: =IF(C26="","",IF(MID(C26,1,1)="A",VLOOKUP(D26,'V C AB'!$C$7:$AY$457,49,FALSE),VLOOKUP(D26,'V C JUV'!$C$7:$AY$435,49,FALSE))) -> 502 | F26: =IF(C26="","",IF(MID(C26,1,1)="A",VLOOKUP(D26,'V L AB'!$C$7:$AY$455,48,FALSE),VLOOKUP(D26,'V L JUV'!$C$7:$AY$438,48,FALSE))) -> 493 | H26: =IF(D26="","",IFERROR(VLOOKUP(D26,'J FEI'!$C$7:$AG$454,30,FALSE),0)) -> 0 | I26: 995 | K26: 20 | M26: C070 | N26: GR NURIA | O26: JUAN JOSE RECALDE | P26: =IF(M26="","",VLOOKUP(N26,'V C CAB'!$C$7:$AZ$518,50,FALSE)) -> 373 | Q26: =IF(M26="","",VLOOKUP(N26,'V L CAB'!$C$7:$AY$524,49,FALSE)) -> 313 | R26: =IF(N26="","",IFERROR(VLOOKUP(N26,'C FEI'!$C$7:$AG$456,28,FALSE),0)) -> 0 | S26: 686 | U26: 20 | Z26: =IF(Y26="","",IFERROR(VLOOKUP(Y26,'BINO FEI'!$D$7:$AG$456,27,FALSE),0)) ->  | AA26: =IF(W26="","",VLOOKUP(Y26,'BINOMIOS N'!$D$7:$AZ$400,46,FALSE)+Z26) -> 
A27: 21 | B27: A004 | C27: A | D27: WRAY VINUEZA ROBERTO | E27: =IF(C27="","",IF(MID(C27,1,1)="A",VLOOKUP(D27,'V C AB'!$C$7:$AY$457,49,FALSE),VLOOKUP(D27,'V C JUV'!$C$7:$AY$435,49,FALSE))) -> 292 | F27: =IF(C27="","",IF(MID(C27,1,1)="A",VLOOKUP(D27,'V L AB'!$C$7:$AY$455,48,FALSE),VLOOKUP(D27,'V L JUV'!$C$7:$AY$438,48,FALSE))) -> 320 | H27: =IF(D27="","",IFERROR(VLOOKUP(D27,'J FEI'!$C$7:$AG$454,30,FALSE),0)) -> 320 | I27: 932 | K27: 21 | M27: C071 | N27: SARA | O27: WLADIMIRO TORRES | P27: =IF(M27="","",VLOOKUP(N27,'V C CAB'!$C$7:$AZ$518,50,FALSE)) -> 367 | Q27: =IF(M27="","",VLOOKUP(N27,'V L CAB'!$C$7:$AY$524,49,FALSE)) -> 304 | R27: =IF(N27="","",IFERROR(VLOOKUP(N27,'C FEI'!$C$7:$AG$456,28,FALSE),0)) -> 0 | S27: 671
A28: 22 | B28: J046 | C28: J013 | D28: MORILLO SERGIO | E28: =IF(C28="","",IF(MID(C28,1,1)="A",VLOOKUP(D28,'V C AB'!$C$7:$AY$457,49,FALSE),VLOOKUP(D28,'V C JUV'!$C$7:$AY$435,49,FALSE))) -> 389 | F28: =IF(C28="","",IF(MID(C28,1,1)="A",VLOOKUP(D28,'V L AB'!$C$7:$AY$455,48,FALSE),VLOOKUP(D28,'V L JUV'!$C$7:$AY$438,48,FALSE))) -> 218 | H28: =IF(D28="","",IFERROR(VLOOKUP(D28,'J FEI'!$C$7:$AG$454,30,FALSE),0)) -> 320 | I28: 927 | K28: 22 | M28: C092 | N28: DAMASCO | O28: NICOLAS MORENO | P28: =IF(M28="","",VLOOKUP(N28,'V C CAB'!$C$7:$AZ$518,50,FALSE)) -> 286 | Q28: =IF(M28="","",VLOOKUP(N28,'V L CAB'!$C$7:$AY$524,49,FALSE)) -> 376 | R28: =IF(N28="","",IFERROR(VLOOKUP(N28,'C FEI'!$C$7:$AG$456,28,FALSE),0)) -> 0 | S28: 662
A29: 23 | B29: A113 | C29: A066 | D29: MONROY BUITRON LUIS EDUARDO | E29: =IF(C29="","",IF(MID(C29,1,1)="A",VLOOKUP(D29,'V C AB'!$C$7:$AY$457,49,FALSE),VLOOKUP(D29,'V C JUV'!$C$7:$AY$435,49,FALSE))) -> 540 | F29: =IF(C29="","",IF(MID(C29,1,1)="A",VLOOKUP(D29,'V L AB'!$C$7:$AY$455,48,FALSE),VLOOKUP(D29,'V L JUV'!$C$7:$AY$438,48,FALSE))) -> 353 | H29: =IF(D29="","",IFERROR(VLOOKUP(D29,'J FEI'!$C$7:$AG$454,30,FALSE),0)) -> 0 | I29: 893 | K29: 23 | M29: C083 | N29: ALI BABA | O29: MARIA CECILIA ALZAMORA | P29: =IF(M29="","",VLOOKUP(N29,'V C CAB'!$C$7:$AZ$518,50,FALSE)) -> 411 | Q29: =IF(M29="","",VLOOKUP(N29,'V L CAB'!$C$7:$AY$524,49,FALSE)) -> 216 | R29: =IF(N29="","",IFERROR(VLOOKUP(N29,'C FEI'!$C$7:$AG$456,28,FALSE),0)) -> 0 | S29: 627
A30: 24 | B30: A021 | C30: A045 | D30: MORABOWEN CESAR | E30: =IF(C30="","",IF(MID(C30,1,1)="A",VLOOKUP(D30,'V C AB'!$C$7:$AY$457,49,FALSE),VLOOKUP(D30,'V C JUV'!$C$7:$AY$435,49,FALSE))) -> 694 | F30: =IF(C30="","",IF(MID(C30,1,1)="A",VLOOKUP(D30,'V L AB'!$C$7:$AY$455,48,FALSE),VLOOKUP(D30,'V L JUV'!$C$7:$AY$438,48,FALSE))) -> 162 | H30: =IF(D30="","",IFERROR(VLOOKUP(D30,'J FEI'!$C$7:$AG$454,30,FALSE),0)) -> 0 | I30: 856 | K30: 24 | M30: C084 | N30: KADAFI | P30: =IF(M30="","",VLOOKUP(N30,'V C CAB'!$C$7:$AZ$518,50,FALSE)) -> 478 | Q30: =IF(M30="","",VLOOKUP(N30,'V L CAB'!$C$7:$AY$524,49,FALSE)) -> 59 | R30: =IF(N30="","",IFERROR(VLOOKUP(N30,'C FEI'!$C$7:$AG$456,28,FALSE),0)) -> 80 | S30: 617
A31: 25 | B31: A023 | C31: A024 | D31: LANDAZURI MORA LUIS ENRIQUE | E31: =IF(C31="","",IF(MID(C31,1,1)="A",VLOOKUP(D31,'V C AB'!$C$7:$AY$457,49,FALSE),VLOOKUP(D31,'V C JUV'!$C$7:$AY$435,49,FALSE))) -> 602 | F31: =IF(C31="","",IF(MID(C31,1,1)="A",VLOOKUP(D31,'V L AB'!$C$7:$AY$455,48,FALSE),VLOOKUP(D31,'V L JUV'!$C$7:$AY$438,48,FALSE))) -> 247 | H31: =IF(D31="","",IFERROR(VLOOKUP(D31,'J FEI'!$C$7:$AG$454,30,FALSE),0)) -> 0 | I31: 849 | K31: 25 | M31: C135 | N31: CARAGUAY CM | O31: MANUEL CORNEJO | P31: =IF(M31="","",VLOOKUP(N31,'V C CAB'!$C$7:$AZ$518,50,FALSE)) -> 311 | Q31: =IF(M31="","",VLOOKUP(N31,'V L CAB'!$C$7:$AY$524,49,FALSE)) -> 305 | R31: =IF(N31="","",IFERROR(VLOOKUP(N31,'C FEI'!$C$7:$AG$456,28,FALSE),0)) -> 0 | S31: 616
A32: 26 | B32: A046 | C32: A067 | D32: CANDO MARIO | E32: =IF(C32="","",IF(MID(C32,1,1)="A",VLOOKUP(D32,'V C AB'!$C$7:$AY$457,49,FALSE),VLOOKUP(D32,'V C JUV'!$C$7:$AY$435,49,FALSE))) -> 333 | F32: =IF(C32="","",IF(MID(C32,1,1)="A",VLOOKUP(D32,'V L AB'!$C$7:$AY$455,48,FALSE),VLOOKUP(D32,'V L JUV'!$C$7:$AY$438,48,FALSE))) -> 508 | H32: =IF(D32="","",IFERROR(VLOOKUP(D32,'J FEI'!$C$7:$AG$454,30,FALSE),0)) -> 0 | I32: 841 | K32: 26 | M32: C090 | N32: SHALEA | O32: RAFAELA DARQUEA | P32: =IF(M32="","",VLOOKUP(N32,'V C CAB'!$C$7:$AZ$518,50,FALSE)) -> 290 | Q32: =IF(M32="","",VLOOKUP(N32,'V L CAB'!$C$7:$AY$524,49,FALSE)) -> 291 | R32: =IF(N32="","",IFERROR(VLOOKUP(N32,'C FEI'!$C$7:$AG$456,28,FALSE),0)) -> 0 | S32: 581
A33: 27 | B33: A104 | C33: A057 | D33: DAVILA GORDILLO JUAN DIEGO | E33: =IF(C33="","",IF(MID(C33,1,1)="A",VLOOKUP(D33,'V C AB'!$C$7:$AY$457,49,FALSE),VLOOKUP(D33,'V C JUV'!$C$7:$AY$435,49,FALSE))) -> 501 | F33: =IF(C33="","",IF(MID(C33,1,1)="A",VLOOKUP(D33,'V L AB'!$C$7:$AY$455,48,FALSE),VLOOKUP(D33,'V L JUV'!$C$7:$AY$438,48,FALSE))) -> 244 | H33: =IF(D33="","",IFERROR(VLOOKUP(D33,'J FEI'!$C$7:$AG$454,30,FALSE),0)) -> 80 | I33: 825 | K33: 27 | M33: C232 | N33: ASRAEL | O33: BERNARDA GONZALEZ | P33: =IF(M33="","",VLOOKUP(N33,'V C CAB'!$C$7:$AZ$518,50,FALSE)) -> 292 | Q33: =IF(M33="","",VLOOKUP(N33,'V L CAB'!$C$7:$AY$524,49,FALSE)) -> 168 | R33: =IF(N33="","",IFERROR(VLOOKUP(N33,'C FEI'!$C$7:$AG$456,28,FALSE),0)) -> 80 | S33: 540
A34: 28 | B34: J032 | C34: J020 | D34: SERRANO VALLEJO FELIPE | E34: =IF(C34="","",IF(MID(C34,1,1)="A",VLOOKUP(D34,'V C AB'!$C$7:$AY$457,49,FALSE),VLOOKUP(D34,'V C JUV'!$C$7:$AY$435,49,FALSE))) -> 415 | F34: =IF(C34="","",IF(MID(C34,1,1)="A",VLOOKUP(D34,'V L AB'!$C$7:$AY$455,48,FALSE),VLOOKUP(D34,'V L JUV'!$C$7:$AY$438,48,FALSE))) -> 122 | H34: =IF(D34="","",IFERROR(VLOOKUP(D34,'J FEI'!$C$7:$AG$454,30,FALSE),0)) -> 280 | I34: 817 | K34: 28 | M34: C089 | N34: GR COMPADRE PN | O34: MARÍA FERNANDA BRAUER | P34: =IF(M34="","",VLOOKUP(N34,'V C CAB'!$C$7:$AZ$518,50,FALSE)) -> 333 | Q34: =IF(M34="","",VLOOKUP(N34,'V L CAB'!$C$7:$AY$524,49,FALSE)) -> 203 | R34: =IF(N34="","",IFERROR(VLOOKUP(N34,'C FEI'!$C$7:$AG$456,28,FALSE),0)) -> 0 | S34: 536
A35: 29 | B35: A117 | C35: A061 | D35: MIÑO BENALCAZAR ROBERTO | E35: =IF(C35="","",IF(MID(C35,1,1)="A",VLOOKUP(D35,'V C AB'!$C$7:$AY$457,49,FALSE),VLOOKUP(D35,'V C JUV'!$C$7:$AY$435,49,FALSE))) -> 355 | F35: =IF(C35="","",IF(MID(C35,1,1)="A",VLOOKUP(D35,'V L AB'!$C$7:$AY$455,48,FALSE),VLOOKUP(D35,'V L JUV'!$C$7:$AY$438,48,FALSE))) -> 445 | H35: =IF(D35="","",IFERROR(VLOOKUP(D35,'J FEI'!$C$7:$AG$454,30,FALSE),0)) -> 0 | I35: 800 | K35: 29 | M35: C | N35: ISIS | O35: DAVILA GORDILLO JUAN DIEGO | P35: =IF(M35="","",VLOOKUP(N35,'V C CAB'!$C$7:$AZ$518,50,FALSE)) -> 415 | Q35: =IF(M35="","",VLOOKUP(N35,'V L CAB'!$C$7:$AY$524,49,FALSE)) -> 120 | R35: =IF(N35="","",IFERROR(VLOOKUP(N35,'C FEI'!$C$7:$AG$456,28,FALSE),0)) -> 0 | S35: 535
A36: 30 | B36: J009 | C36: J019 | D36: DARQUEA RICARDO | E36: =IF(C36="","",IF(MID(C36,1,1)="A",VLOOKUP(D36,'V C AB'!$C$7:$AY$457,49,FALSE),VLOOKUP(D36,'V C JUV'!$C$7:$AY$435,49,FALSE))) -> 670 | F36: =IF(C36="","",IF(MID(C36,1,1)="A",VLOOKUP(D36,'V L AB'!$C$7:$AY$455,48,FALSE),VLOOKUP(D36,'V L JUV'!$C$7:$AY$438,48,FALSE))) -> 85 | H36: =IF(D36="","",IFERROR(VLOOKUP(D36,'J FEI'!$C$7:$AG$454,30,FALSE),0)) -> 0 | I36: 755 | K36: 30 | L36: C114 | M36: C319 | N36: SUCO | P36: =IF(M36="","",VLOOKUP(N36,'V C CAB'!$C$7:$AZ$518,50,FALSE)) -> 325 | Q36: =IF(M36="","",VLOOKUP(N36,'V L CAB'!$C$7:$AY$524,49,FALSE)) -> 189 | R36: =IF(N36="","",IFERROR(VLOOKUP(N36,'C FEI'!$C$7:$AG$456,28,FALSE),0)) -> 0 | S36: 514
A37: 31 | B37: J052 | C37: J054 | D37: VINTIMILLA CORDERO PABLO | E37: =IF(C37="","",IF(MID(C37,1,1)="A",VLOOKUP(D37,'V C AB'!$C$7:$AY$457,49,FALSE),VLOOKUP(D37,'V C JUV'!$C$7:$AY$435,49,FALSE))) -> 479 | F37: =IF(C37="","",IF(MID(C37,1,1)="A",VLOOKUP(D37,'V L AB'!$C$7:$AY$455,48,FALSE),VLOOKUP(D37,'V L JUV'!$C$7:$AY$438,48,FALSE))) -> 269 | H37: =IF(D37="","",IFERROR(VLOOKUP(D37,'J FEI'!$C$7:$AG$454,30,FALSE),0)) -> 0 | I37: 748 | K37: 31 | L37: CC | M37: C | N37: LLUVIA CMB | O37: CESAR MORABOWEN | P37: =IF(M37="","",VLOOKUP(N37,'V C CAB'!$C$7:$AZ$518,50,FALSE)) -> 231 | Q37: =IF(M37="","",VLOOKUP(N37,'V L CAB'!$C$7:$AY$524,49,FALSE)) -> 254 | R37: =IF(N37="","",IFERROR(VLOOKUP(N37,'C FEI'!$C$7:$AG$456,28,FALSE),0)) -> 0 | S37: 485
A38: 32 | B38: A110 | C38: A026 | D38: LETORT MENA JOSÉ | E38: =IF(C38="","",IF(MID(C38,1,1)="A",VLOOKUP(D38,'V C AB'!$C$7:$AY$457,49,FALSE),VLOOKUP(D38,'V C JUV'!$C$7:$AY$435,49,FALSE))) -> 403 | F38: =IF(C38="","",IF(MID(C38,1,1)="A",VLOOKUP(D38,'V L AB'!$C$7:$AY$455,48,FALSE),VLOOKUP(D38,'V L JUV'!$C$7:$AY$438,48,FALSE))) -> 331 | H38: =IF(D38="","",IFERROR(VLOOKUP(D38,'J FEI'!$C$7:$AG$454,30,FALSE),0)) -> 0 | I38: 734 | K38: 32 | L38: C251 | M38: C079 | N38: SHAMIR SOLIN | O38: JUAN CARLOS SERRANO | P38: =IF(M38="","",VLOOKUP(N38,'V C CAB'!$C$7:$AZ$518,50,FALSE)) -> 164 | Q38: =IF(M38="","",VLOOKUP(N38,'V L CAB'!$C$7:$AY$524,49,FALSE)) -> 300 | R38: =IF(N38="","",IFERROR(VLOOKUP(N38,'C FEI'!$C$7:$AG$456,28,FALSE),0)) -> 0 | S38: 464
A39: 33 | B39: C | C39: A092 | D39: VITIMILLA SERRANO PABLO | E39: =IF(C39="","",IF(MID(C39,1,1)="A",VLOOKUP(D39,'V C AB'!$C$7:$AY$457,49,FALSE),VLOOKUP(D39,'V C JUV'!$C$7:$AY$435,49,FALSE))) -> 534 | F39: =IF(C39="","",IF(MID(C39,1,1)="A",VLOOKUP(D39,'V L AB'!$C$7:$AY$455,48,FALSE),VLOOKUP(D39,'V L JUV'!$C$7:$AY$438,48,FALSE))) -> 173 | H39: =IF(D39="","",IFERROR(VLOOKUP(D39,'J FEI'!$C$7:$AG$454,30,FALSE),0)) -> 0 | I39: =IF(C39="","",+F39+E39+H39+G39) -> 707 | K39: 33 | L39: CC | M39: C | N39: MANOLO | P39: =IF(M39="","",VLOOKUP(N39,'V C CAB'!$C$7:$AZ$518,50,FALSE)) -> 395 | Q39: =IF(M39="","",VLOOKUP(N39,'V L CAB'!$C$7:$AY$524,49,FALSE)) -> 42 | R39: =IF(N39="","",IFERROR(VLOOKUP(N39,'C FEI'!$C$7:$AG$456,28,FALSE),0)) -> 0 | S39: 437
A40: 45 | B40: J036 | C40: J027 | D40: MIÑO JOSE IGNACIO | E40: =IF(C40="","",IF(MID(C40,1,1)="A",VLOOKUP(D40,'V C AB'!$C$7:$AY$457,49,FALSE),VLOOKUP(D40,'V C JUV'!$C$7:$AY$435,49,FALSE))) -> 422 | F40: =IF(C40="","",IF(MID(C40,1,1)="A",VLOOKUP(D40,'V L AB'!$C$7:$AY$455,48,FALSE),VLOOKUP(D40,'V L JUV'!$C$7:$AY$438,48,FALSE))) -> 276 | H40: =IF(D40="","",IFERROR(VLOOKUP(D40,'J FEI'!$C$7:$AG$454,30,FALSE),0)) -> 0 | I40: 698 | K40: 34 | L40: C043 | M40: C075 | N40: JR NARA | O40: KARINA NEUMAN | P40: =IF(M40="","",VLOOKUP(N40,'V C CAB'!$C$7:$AZ$518,50,FALSE)) -> 232 | Q40: =IF(M40="","",VLOOKUP(N40,'V L CAB'!$C$7:$AY$524,49,FALSE)) -> 162 | R40: =IF(N40="","",IFERROR(VLOOKUP(N40,'C FEI'!$C$7:$AG$456,28,FALSE),0)) -> 0 | S40: 394
A41: 34 | B41: C | C41: A135 | D41: DONOSO LOYOLA SEBASTIAN FERNANDO | E41: =IF(C41="","",IF(MID(C41,1,1)="A",VLOOKUP(D41,'V C AB'!$C$7:$AY$457,49,FALSE),VLOOKUP(D41,'V C JUV'!$C$7:$AY$435,49,FALSE))) -> 444 | F41: =IF(C41="","",IF(MID(C41,1,1)="A",VLOOKUP(D41,'V L AB'!$C$7:$AY$455,48,FALSE),VLOOKUP(D41,'V L JUV'!$C$7:$AY$438,48,FALSE))) -> 240 | H41: =IF(D41="","",IFERROR(VLOOKUP(D41,'J FEI'!$C$7:$AG$454,30,FALSE),0)) -> 0 | I41: 684 | K41: 35 | P41: =IF(M41="","",VLOOKUP(N41,'V C CAB'!$C$7:$AZ$518,50,FALSE)) ->  | Q41: =IF(M41="","",VLOOKUP(N41,'V L CAB'!$C$7:$AY$524,49,FALSE)) ->  | R41: =IF(N41="","",IFERROR(VLOOKUP(N41,'C FEI'!$C$7:$AG$456,28,FALSE),0)) ->  | S41: =IF(M41="","",+Q41+P41+R41) -> 
A42: 35 | B42: C | C42: J055 | D42: LOYOLA VINTIMILLA MARIA CLAUDIA | E42: =IF(C42="","",IF(MID(C42,1,1)="A",VLOOKUP(D42,'V C AB'!$C$7:$AY$457,49,FALSE),VLOOKUP(D42,'V C JUV'!$C$7:$AY$435,49,FALSE))) -> 240 | F42: =IF(C42="","",IF(MID(C42,1,1)="A",VLOOKUP(D42,'V L AB'!$C$7:$AY$455,48,FALSE),VLOOKUP(D42,'V L JUV'!$C$7:$AY$438,48,FALSE))) -> 435 | H42: =IF(D42="","",IFERROR(VLOOKUP(D42,'J FEI'!$C$7:$AG$454,30,FALSE),0)) -> 0 | I42: 675 | K42: 36 | P42: =IF(M42="","",VLOOKUP(N42,'V C CAB'!$C$7:$AZ$518,50,FALSE)) ->  | Q42: =IF(M42="","",VLOOKUP(N42,'V L CAB'!$C$7:$AY$524,49,FALSE)) ->  | R42: =IF(N42="","",IFERROR(VLOOKUP(N42,'C FEI'!$C$7:$AG$456,28,FALSE),0)) -> 
A43: 36 | B43: J041 | C43: J026 | D43: MORENO NICOLAS JUAN | E43: =IF(C43="","",IF(MID(C43,1,1)="A",VLOOKUP(D43,'V C AB'!$C$7:$AY$457,49,FALSE),VLOOKUP(D43,'V C JUV'!$C$7:$AY$435,49,FALSE))) -> 286 | F43: =IF(C43="","",IF(MID(C43,1,1)="A",VLOOKUP(D43,'V L AB'!$C$7:$AY$455,48,FALSE),VLOOKUP(D43,'V L JUV'!$C$7:$AY$438,48,FALSE))) -> 376 | H43: =IF(D43="","",IFERROR(VLOOKUP(D43,'J FEI'!$C$7:$AG$454,30,FALSE),0)) -> 0 | I43: 662 | K43: 37 | P43: =IF(M43="","",VLOOKUP(N43,'V C CAB'!$C$7:$AZ$518,50,FALSE)) ->  | Q43: =IF(M43="","",VLOOKUP(N43,'V L CAB'!$C$7:$AY$524,49,FALSE)) ->  | R43: =IF(N43="","",IFERROR(VLOOKUP(N43,'C FEI'!$C$7:$AG$456,28,FALSE),0)) -> 
A44: 37 | B44: M004 | C44: A021 | D44: ALVEAR JUAN CARLOS | E44: =IF(C44="","",IF(MID(C44,1,1)="A",VLOOKUP(D44,'V C AB'!$C$7:$AY$457,49,FALSE),VLOOKUP(D44,'V C JUV'!$C$7:$AY$435,49,FALSE))) -> 533 | F44: =IF(C44="","",IF(MID(C44,1,1)="A",VLOOKUP(D44,'V L AB'!$C$7:$AY$455,48,FALSE),VLOOKUP(D44,'V L JUV'!$C$7:$AY$438,48,FALSE))) -> 86 | H44: =IF(D44="","",IFERROR(VLOOKUP(D44,'J FEI'!$C$7:$AG$454,30,FALSE),0)) -> 0 | I44: 619 | K44: 38 | R44: =IF(N44="","",IFERROR(VLOOKUP(N44,'C FEI'!$C$7:$AG$456,28,FALSE),0)) -> 
A45: 38 | C45: J014 | D45: GUARDERAS PEDRO JOSE | E45: =IF(C45="","",IF(MID(C45,1,1)="A",VLOOKUP(D45,'V C AB'!$C$7:$AY$457,49,FALSE),VLOOKUP(D45,'V C JUV'!$C$7:$AY$435,49,FALSE))) -> 391 | F45: =IF(C45="","",IF(MID(C45,1,1)="A",VLOOKUP(D45,'V L AB'!$C$7:$AY$455,48,FALSE),VLOOKUP(D45,'V L JUV'!$C$7:$AY$438,48,FALSE))) -> 136 | H45: =IF(D45="","",IFERROR(VLOOKUP(D45,'J FEI'!$C$7:$AG$454,30,FALSE),0)) -> 80 | I45: 607 | K45: 39 | R45: =IF(N45="","",IFERROR(VLOOKUP(N45,'C FEI'!$C$7:$AG$456,28,FALSE),0)) -> 
A46: 39 | C46: J056 | D46: MATUTE PEDRO FERMIN | E46: =IF(C46="","",IF(MID(C46,1,1)="A",VLOOKUP(D46,'V C AB'!$C$7:$AY$457,49,FALSE),VLOOKUP(D46,'V C JUV'!$C$7:$AY$435,49,FALSE))) -> 315 | F46: =IF(C46="","",IF(MID(C46,1,1)="A",VLOOKUP(D46,'V L AB'!$C$7:$AY$455,48,FALSE),VLOOKUP(D46,'V L JUV'!$C$7:$AY$438,48,FALSE))) -> 289 | H46: =IF(D46="","",IFERROR(VLOOKUP(D46,'J FEI'!$C$7:$AG$454,30,FALSE),0)) -> 0 | I46: 604 | K46: 40 | R46: =IF(N46="","",IFERROR(VLOOKUP(N46,'C FEI'!$C$7:$AG$456,28,FALSE),0)) -> 
A47: 40 | B47: A003 | C47: A092 | D47: SERRANO JUAN CARLOS | E47: =IF(C47="","",IF(MID(C47,1,1)="A",VLOOKUP(D47,'V C AB'!$C$7:$AY$457,49,FALSE),VLOOKUP(D47,'V C JUV'!$C$7:$AY$435,49,FALSE))) -> 277 | F47: =IF(C47="","",IF(MID(C47,1,1)="A",VLOOKUP(D47,'V L AB'!$C$7:$AY$455,48,FALSE),VLOOKUP(D47,'V L JUV'!$C$7:$AY$438,48,FALSE))) -> 240 | H47: =IF(D47="","",IFERROR(VLOOKUP(D47,'J FEI'!$C$7:$AG$454,30,FALSE),0)) -> 80 | I47: 597 | K47: 41 | R47: =IF(N47="","",IFERROR(VLOOKUP(N47,'C FEI'!$C$7:$AG$456,28,FALSE),0)) -> 
A48: 41 | B48: A041 | C48: A053 | D48: MARCEL ROBERTO | E48: =IF(C48="","",IF(MID(C48,1,1)="A",VLOOKUP(D48,'V C AB'!$C$7:$AY$457,49,FALSE),VLOOKUP(D48,'V C JUV'!$C$7:$AY$435,49,FALSE))) -> 432 | F48: =IF(C48="","",IF(MID(C48,1,1)="A",VLOOKUP(D48,'V L AB'!$C$7:$AY$455,48,FALSE),VLOOKUP(D48,'V L JUV'!$C$7:$AY$438,48,FALSE))) -> 160 | H48: =IF(D48="","",IFERROR(VLOOKUP(D48,'J FEI'!$C$7:$AG$454,30,FALSE),0)) -> 0 | I48: 592 | K48: 42 | R48: =IF(N48="","",IFERROR(VLOOKUP(N48,'C FEI'!$C$7:$AG$456,28,FALSE),0)) -> 
A49: 42 | B49: A016 | C49: A019 | D49: TORRES VLADIMIRO | E49: =IF(C49="","",IF(MID(C49,1,1)="A",VLOOKUP(D49,'V C AB'!$C$7:$AY$457,49,FALSE),VLOOKUP(D49,'V C JUV'!$C$7:$AY$435,49,FALSE))) -> 366 | F49: =IF(C49="","",IF(MID(C49,1,1)="A",VLOOKUP(D49,'V L AB'!$C$7:$AY$455,48,FALSE),VLOOKUP(D49,'V L JUV'!$C$7:$AY$438,48,FALSE))) -> 223 | H49: =IF(D49="","",IFERROR(VLOOKUP(D49,'J FEI'!$C$7:$AG$454,30,FALSE),0)) -> 0 | I49: 589 | K49: 43 | P49: =IF(M49="","",VLOOKUP(N49,'V C CAB'!$C$7:$AZ$518,50,FALSE)) ->  | Q49: =IF(M49="","",VLOOKUP(N49,'V L CAB'!$C$7:$AY$524,49,FALSE)) ->  | R49: =IF(N49="","",IFERROR(VLOOKUP(N49,'C FEI'!$C$7:$AG$456,28,FALSE),0)) ->  | S49: =IF(M49="","",+Q49+P49) -> 
A50: 43 | B50: A006 | C50: A073 | D50: PÉREZ CARMEN ALICIA | E50: =IF(C50="","",IF(MID(C50,1,1)="A",VLOOKUP(D50,'V C AB'!$C$7:$AY$457,49,FALSE),VLOOKUP(D50,'V C JUV'!$C$7:$AY$435,49,FALSE))) -> 376 | F50: =IF(C50="","",IF(MID(C50,1,1)="A",VLOOKUP(D50,'V L AB'!$C$7:$AY$455,48,FALSE),VLOOKUP(D50,'V L JUV'!$C$7:$AY$438,48,FALSE))) -> 202 | H50: =IF(D50="","",IFERROR(VLOOKUP(D50,'J FEI'!$C$7:$AG$454,30,FALSE),0)) -> 0 | I50: 578 | K50: 44 | P50: =IF(M50="","",VLOOKUP(N50,'V C CAB'!$C$7:$AZ$518,50,FALSE)) ->  | Q50: =IF(M50="","",VLOOKUP(N50,'V L CAB'!$C$7:$AY$524,49,FALSE)) ->  | R50: =IF(N50="","",IFERROR(VLOOKUP(N50,'C FEI'!$C$7:$AG$456,28,FALSE),0)) ->  | S50: =IF(M50="","",+Q50+P50) -> 
A51: 44 | B51: J013 | C51: J007 | D51: ESPINOZA TOMAS | E51: =IF(C51="","",IF(MID(C51,1,1)="A",VLOOKUP(D51,'V C AB'!$C$7:$AY$457,49,FALSE),VLOOKUP(D51,'V C JUV'!$C$7:$AY$435,49,FALSE))) -> 484 | F51: =IF(C51="","",IF(MID(C51,1,1)="A",VLOOKUP(D51,'V L AB'!$C$7:$AY$455,48,FALSE),VLOOKUP(D51,'V L JUV'!$C$7:$AY$438,48,FALSE))) -> 88 | H51: =IF(D51="","",IFERROR(VLOOKUP(D51,'J FEI'!$C$7:$AG$454,30,FALSE),0)) -> 0 | I51: 572
A52: 46 | B52: J004 | C52: J012 | D52: MIÑO SANTIAGO | E52: =IF(C52="","",IF(MID(C52,1,1)="A",VLOOKUP(D52,'V C AB'!$C$7:$AY$457,49,FALSE),VLOOKUP(D52,'V C JUV'!$C$7:$AY$435,49,FALSE))) -> 223 | F52: =IF(C52="","",IF(MID(C52,1,1)="A",VLOOKUP(D52,'V L AB'!$C$7:$AY$455,48,FALSE),VLOOKUP(D52,'V L JUV'!$C$7:$AY$438,48,FALSE))) -> 262 | H52: =IF(D52="","",IFERROR(VLOOKUP(D52,'J FEI'!$C$7:$AG$454,30,FALSE),0)) -> 80 | I52: 565
A53: 47 | C53: A149 | D53: MUÑOZ CALDERON RAUL ALBERTO | E53: =IF(C53="","",IF(MID(C53,1,1)="A",VLOOKUP(D53,'V C AB'!$C$7:$AY$457,49,FALSE),VLOOKUP(D53,'V C JUV'!$C$7:$AY$435,49,FALSE))) -> 303 | F53: =IF(C53="","",IF(MID(C53,1,1)="A",VLOOKUP(D53,'V L AB'!$C$7:$AY$455,48,FALSE),VLOOKUP(D53,'V L JUV'!$C$7:$AY$438,48,FALSE))) -> 260 | H53: =IF(D53="","",IFERROR(VLOOKUP(D53,'J FEI'!$C$7:$AG$454,30,FALSE),0)) -> 0 | I53: 563
A54: 48 | B54: J034 | C54: J047 | D54: LETORT DUEÑAS JOSE | E54: =IF(C54="","",IF(MID(C54,1,1)="A",VLOOKUP(D54,'V C AB'!$C$7:$AY$457,49,FALSE),VLOOKUP(D54,'V C JUV'!$C$7:$AY$435,49,FALSE))) -> 298 | F54: =IF(C54="","",IF(MID(C54,1,1)="A",VLOOKUP(D54,'V L AB'!$C$7:$AY$455,48,FALSE),VLOOKUP(D54,'V L JUV'!$C$7:$AY$438,48,FALSE))) -> 253 | H54: =IF(D54="","",IFERROR(VLOOKUP(D54,'J FEI'!$C$7:$AG$454,30,FALSE),0)) -> 0 | I54: 551
A55: 49 | B55: A112 | C55: A048 | D55: BARAHONA ANDRES | E55: =IF(C55="","",IF(MID(C55,1,1)="A",VLOOKUP(D55,'V C AB'!$C$7:$AY$457,49,FALSE),VLOOKUP(D55,'V C JUV'!$C$7:$AY$435,49,FALSE))) -> 333 | F55: =IF(C55="","",IF(MID(C55,1,1)="A",VLOOKUP(D55,'V L AB'!$C$7:$AY$455,48,FALSE),VLOOKUP(D55,'V L JUV'!$C$7:$AY$438,48,FALSE))) -> 160 | H55: =IF(D55="","",IFERROR(VLOOKUP(D55,'J FEI'!$C$7:$AG$454,30,FALSE),0)) -> 0 | I55: 493
A56: 50 | C56: A146 | D56: MALO MARIBEL | E56: =IF(C56="","",IF(MID(C56,1,1)="A",VLOOKUP(D56,'V C AB'!$C$7:$AY$457,49,FALSE),VLOOKUP(D56,'V C JUV'!$C$7:$AY$435,49,FALSE))) -> 80 | F56: =IF(C56="","",IF(MID(C56,1,1)="A",VLOOKUP(D56,'V L AB'!$C$7:$AY$455,48,FALSE),VLOOKUP(D56,'V L JUV'!$C$7:$AY$438,48,FALSE))) -> 411 | H56: =IF(D56="","",IFERROR(VLOOKUP(D56,'J FEI'!$C$7:$AG$454,30,FALSE),0)) -> 0 | I56: 491
A57: 51 | B57: A013 | C57: A063 | D57: QUIROZ ORLANDO | E57: =IF(C57="","",IF(MID(C57,1,1)="A",VLOOKUP(D57,'V C AB'!$C$7:$AY$457,49,FALSE),VLOOKUP(D57,'V C JUV'!$C$7:$AY$435,49,FALSE))) -> 293 | F57: =IF(C57="","",IF(MID(C57,1,1)="A",VLOOKUP(D57,'V L AB'!$C$7:$AY$455,48,FALSE),VLOOKUP(D57,'V L JUV'!$C$7:$AY$438,48,FALSE))) -> 184 | H57: =IF(D57="","",IFERROR(VLOOKUP(D57,'J FEI'!$C$7:$AG$454,30,FALSE),0)) -> 0 | I57: 477
A58: 52 | B58: A0159 | C58: A049 | D58: BRAUER MARIA FERNANDA | E58: =IF(C58="","",IF(MID(C58,1,1)="A",VLOOKUP(D58,'V C AB'!$C$7:$AY$457,49,FALSE),VLOOKUP(D58,'V C JUV'!$C$7:$AY$435,49,FALSE))) -> 296 | F58: =IF(C58="","",IF(MID(C58,1,1)="A",VLOOKUP(D58,'V L AB'!$C$7:$AY$455,48,FALSE),VLOOKUP(D58,'V L JUV'!$C$7:$AY$438,48,FALSE))) -> 164 | H58: =IF(D58="","",IFERROR(VLOOKUP(D58,'J FEI'!$C$7:$AG$454,30,FALSE),0)) -> 0 | I58: 460
A59: 53 | B59: J012 | C59: J023 | D59: MOLESTINA NICOLAS | E59: =IF(C59="","",IF(MID(C59,1,1)="A",VLOOKUP(D59,'V C AB'!$C$7:$AY$457,49,FALSE),VLOOKUP(D59,'V C JUV'!$C$7:$AY$435,49,FALSE))) -> 325 | F59: =IF(C59="","",IF(MID(C59,1,1)="A",VLOOKUP(D59,'V L AB'!$C$7:$AY$455,48,FALSE),VLOOKUP(D59,'V L JUV'!$C$7:$AY$438,48,FALSE))) -> 134 | H59: =IF(D59="","",IFERROR(VLOOKUP(D59,'J FEI'!$C$7:$AG$454,30,FALSE),0)) -> 0 | I59: 459
A60: 54 | B60: C | C60: J069 | D60: DONOSO CARRASCO MARIA DANIELA | E60: =IF(C60="","",IF(MID(C60,1,1)="A",VLOOKUP(D60,'V C AB'!$C$7:$AY$457,49,FALSE),VLOOKUP(D60,'V C JUV'!$C$7:$AY$435,49,FALSE))) -> 160 | F60: =IF(C60="","",IF(MID(C60,1,1)="A",VLOOKUP(D60,'V L AB'!$C$7:$AY$455,48,FALSE),VLOOKUP(D60,'V L JUV'!$C$7:$AY$438,48,FALSE))) -> 288 | H60: =IF(D60="","",IFERROR(VLOOKUP(D60,'J FEI'!$C$7:$AG$454,30,FALSE),0)) -> 0 | I60: 448
A61: 62 | C61: J043 | D61: MORENO DANIEL | E61: =IF(C61="","",IF(MID(C61,1,1)="A",VLOOKUP(D61,'V C AB'!$C$7:$AY$457,49,FALSE),VLOOKUP(D61,'V C JUV'!$C$7:$AY$435,49,FALSE))) -> 302 | F61: =IF(C61="","",IF(MID(C61,1,1)="A",VLOOKUP(D61,'V L AB'!$C$7:$AY$455,48,FALSE),VLOOKUP(D61,'V L JUV'!$C$7:$AY$438,48,FALSE))) -> 59 | H61: =IF(D61="","",IFERROR(VLOOKUP(D61,'J FEI'!$C$7:$AG$454,30,FALSE),0)) -> 80 | I61: 441
A62: 55 | B62: J032 | C62: A044 | D62: RUIZ ILIANA | E62: =IF(C62="","",IF(MID(C62,1,1)="A",VLOOKUP(D62,'V C AB'!$C$7:$AY$457,49,FALSE),VLOOKUP(D62,'V C JUV'!$C$7:$AY$435,49,FALSE))) -> 190 | F62: =IF(C62="","",IF(MID(C62,1,1)="A",VLOOKUP(D62,'V L AB'!$C$7:$AY$455,48,FALSE),VLOOKUP(D62,'V L JUV'!$C$7:$AY$438,48,FALSE))) -> 245 | H62: =IF(D62="","",IFERROR(VLOOKUP(D62,'J FEI'!$C$7:$AG$454,30,FALSE),0)) -> 0 | I62: 435
A63: 56 | B63: A069 | C63: A064 | D63: CASTILLO DIEGO | E63: =IF(C63="","",IF(MID(C63,1,1)="A",VLOOKUP(D63,'V C AB'!$C$7:$AY$457,49,FALSE),VLOOKUP(D63,'V C JUV'!$C$7:$AY$435,49,FALSE))) -> 168 | F63: =IF(C63="","",IF(MID(C63,1,1)="A",VLOOKUP(D63,'V L AB'!$C$7:$AY$455,48,FALSE),VLOOKUP(D63,'V L JUV'!$C$7:$AY$438,48,FALSE))) -> 264 | H63: =IF(D63="","",IFERROR(VLOOKUP(D63,'J FEI'!$C$7:$AG$454,30,FALSE),0)) -> 0 | I63: 432
A64: 57 | B64: A060 | C64: A024 | D64: RECALDE GALO | E64: =IF(C64="","",IF(MID(C64,1,1)="A",VLOOKUP(D64,'V C AB'!$C$7:$AY$457,49,FALSE),VLOOKUP(D64,'V C JUV'!$C$7:$AY$435,49,FALSE))) -> 170 | F64: =IF(C64="","",IF(MID(C64,1,1)="A",VLOOKUP(D64,'V L AB'!$C$7:$AY$455,48,FALSE),VLOOKUP(D64,'V L JUV'!$C$7:$AY$438,48,FALSE))) -> 255 | H64: =IF(D64="","",IFERROR(VLOOKUP(D64,'J FEI'!$C$7:$AG$454,30,FALSE),0)) -> 0 | I64: 425
A65: 58 | B65: A042 | C65: A025 | D65: JARAMILLO BENITO | E65: =IF(C65="","",IF(MID(C65,1,1)="A",VLOOKUP(D65,'V C AB'!$C$7:$AY$457,49,FALSE),VLOOKUP(D65,'V C JUV'!$C$7:$AY$435,49,FALSE))) -> 173 | F65: =IF(C65="","",IF(MID(C65,1,1)="A",VLOOKUP(D65,'V L AB'!$C$7:$AY$455,48,FALSE),VLOOKUP(D65,'V L JUV'!$C$7:$AY$438,48,FALSE))) -> 224 | H65: =IF(D65="","",IFERROR(VLOOKUP(D65,'J FEI'!$C$7:$AG$454,30,FALSE),0)) -> 0 | I65: 397
A66: 59 | C66: A085 | D66: URIBE CARLOS JOSE | E66: =IF(C66="","",IF(MID(C66,1,1)="A",VLOOKUP(D66,'V C AB'!$C$7:$AY$457,49,FALSE),VLOOKUP(D66,'V C JUV'!$C$7:$AY$435,49,FALSE))) -> 270 | F66: =IF(C66="","",IF(MID(C66,1,1)="A",VLOOKUP(D66,'V L AB'!$C$7:$AY$455,48,FALSE),VLOOKUP(D66,'V L JUV'!$C$7:$AY$438,48,FALSE))) -> 81 | H66: =IF(D66="","",IFERROR(VLOOKUP(D66,'J FEI'!$C$7:$AG$454,30,FALSE),0)) -> 0 | I66: 351
A67: 60 | B67: J049 | C67: J022 | D67: JIJON JUAN ESTEBAN | E67: =IF(C67="","",IF(MID(C67,1,1)="A",VLOOKUP(D67,'V C AB'!$C$7:$AY$457,49,FALSE),VLOOKUP(D67,'V C JUV'!$C$7:$AY$435,49,FALSE))) -> 302 | F67: =IF(C67="","",IF(MID(C67,1,1)="A",VLOOKUP(D67,'V L AB'!$C$7:$AY$455,48,FALSE),VLOOKUP(D67,'V L JUV'!$C$7:$AY$438,48,FALSE))) -> 44 | H67: =IF(D67="","",IFERROR(VLOOKUP(D67,'J FEI'!$C$7:$AG$454,30,FALSE),0)) -> 0 | I67: 346
A68: 61 | C68: A005 | D68: MALDONADO JOSE | E68: =IF(C68="","",IF(MID(C68,1,1)="A",VLOOKUP(D68,'V C AB'!$C$7:$AY$457,49,FALSE),VLOOKUP(D68,'V C JUV'!$C$7:$AY$435,49,FALSE))) -> 180 | F68: =IF(C68="","",IF(MID(C68,1,1)="A",VLOOKUP(D68,'V L AB'!$C$7:$AY$455,48,FALSE),VLOOKUP(D68,'V L JUV'!$C$7:$AY$438,48,FALSE))) -> 127 | H68: =IF(D68="","",IFERROR(VLOOKUP(D68,'J FEI'!$C$7:$AG$454,30,FALSE),0)) -> 0 | I68: 307
A69: 63 | E69: =IF(C69="","",IF(MID(C69,1,1)="A",VLOOKUP(D69,'V C AB'!$C$7:$AY$457,49,FALSE),VLOOKUP(D69,'V C JUV'!$C$7:$AY$435,49,FALSE))) ->  | F69: =IF(C69="","",IF(MID(C69,1,1)="A",VLOOKUP(D69,'V L AB'!$C$7:$AY$455,48,FALSE),VLOOKUP(D69,'V L JUV'!$C$7:$AY$438,48,FALSE))) ->  | H69: =IF(D69="","",IFERROR(VLOOKUP(D69,'J FEI'!$C$7:$AG$454,30,FALSE),0)) ->  | I69: =IF(C69="","",+F69+E69+H69+G69) -> 
A70: 64 | E70: =IF(C70="","",IF(MID(C70,1,1)="A",VLOOKUP(D70,'V C AB'!$C$7:$AY$457,49,FALSE),VLOOKUP(D70,'V C JUV'!$C$7:$AY$435,49,FALSE))) ->  | F70: =IF(C70="","",IF(MID(C70,1,1)="A",VLOOKUP(D70,'V L AB'!$C$7:$AY$455,48,FALSE),VLOOKUP(D70,'V L JUV'!$C$7:$AY$438,48,FALSE))) ->  | H70: =IF(D70="","",IFERROR(VLOOKUP(D70,'J FEI'!$C$7:$AG$454,30,FALSE),0)) -> 
A71: 65 | E71: =IF(C71="","",IF(MID(C71,1,1)="A",VLOOKUP(D71,'V C AB'!$C$7:$AY$457,49,FALSE),VLOOKUP(D71,'V C JUV'!$C$7:$AY$435,49,FALSE))) ->  | F71: =IF(C71="","",IF(MID(C71,1,1)="A",VLOOKUP(D71,'V L AB'!$C$7:$AY$455,48,FALSE),VLOOKUP(D71,'V L JUV'!$C$7:$AY$438,48,FALSE))) ->  | H71: =IF(D71="","",IFERROR(VLOOKUP(D71,'J FEI'!$C$7:$AG$454,30,FALSE),0)) ->  | I71: =IF(C71="","",+F71+E71+H71+G71) -> 
A72: 66 | E72: =IF(C72="","",IF(MID(C72,1,1)="A",VLOOKUP(D72,'V C AB'!$C$7:$AY$457,49,FALSE),VLOOKUP(D72,'V C JUV'!$C$7:$AY$435,49,FALSE))) ->  | F72: =IF(C72="","",IF(MID(C72,1,1)="A",VLOOKUP(D72,'V L AB'!$C$7:$AY$455,48,FALSE),VLOOKUP(D72,'V L JUV'!$C$7:$AY$438,48,FALSE))) ->  | H72: =IF(D72="","",IFERROR(VLOOKUP(D72,'J FEI'!$C$7:$AG$454,30,FALSE),0)) ->  | I72: =IF(C72="","",+F72+E72+H72+G72) -> 
A73: 67 | E73: =IF(C73="","",IF(MID(C73,1,1)="A",VLOOKUP(D73,'V C AB'!$C$7:$AY$457,49,FALSE),VLOOKUP(D73,'V C JUV'!$C$7:$AY$435,49,FALSE))) ->  | F73: =IF(C73="","",IF(MID(C73,1,1)="A",VLOOKUP(D73,'V L AB'!$C$7:$AY$455,48,FALSE),VLOOKUP(D73,'V L JUV'!$C$7:$AY$438,48,FALSE))) ->  | H73: =IF(D73="","",IFERROR(VLOOKUP(D73,'J FEI'!$C$7:$AG$454,30,FALSE),0)) -> 
A74: 68 | E74: =IF(C74="","",IF(MID(C74,1,1)="A",VLOOKUP(D74,'V C AB'!$C$7:$AY$457,49,FALSE),VLOOKUP(D74,'V C JUV'!$C$7:$AY$435,49,FALSE))) ->  | F74: =IF(C74="","",IF(MID(C74,1,1)="A",VLOOKUP(D74,'V L AB'!$C$7:$AY$455,48,FALSE),VLOOKUP(D74,'V L JUV'!$C$7:$AY$438,48,FALSE))) ->  | H74: =IF(D74="","",IFERROR(VLOOKUP(D74,'J FEI'!$C$7:$AG$454,30,FALSE),0)) -> 
A75: 69 | E75: =IF(C75="","",IF(MID(C75,1,1)="A",VLOOKUP(D75,'V C AB'!$C$7:$AY$457,49,FALSE),VLOOKUP(D75,'V C JUV'!$C$7:$AY$435,49,FALSE))) ->  | F75: =IF(C75="","",IF(MID(C75,1,1)="A",VLOOKUP(D75,'V L AB'!$C$7:$AY$455,48,FALSE),VLOOKUP(D75,'V L JUV'!$C$7:$AY$438,48,FALSE))) ->  | H75: =IF(D75="","",IFERROR(VLOOKUP(D75,'J FEI'!$C$7:$AG$454,30,FALSE),0)) -> 
A76: 70 | E76: =IF(C76="","",IF(MID(C76,1,1)="A",VLOOKUP(D76,'V C AB'!$C$7:$AY$457,49,FALSE),VLOOKUP(D76,'V C JUV'!$C$7:$AY$435,49,FALSE))) ->  | F76: =IF(C76="","",IF(MID(C76,1,1)="A",VLOOKUP(D76,'V L AB'!$C$7:$AY$455,48,FALSE),VLOOKUP(D76,'V L JUV'!$C$7:$AY$438,48,FALSE))) ->  | H76: =IF(D76="","",IFERROR(VLOOKUP(D76,'J FEI'!$C$7:$AG$454,30,FALSE),0)) -> 
A77: 71 | E77: =IF(C77="","",IF(MID(C77,1,1)="A",VLOOKUP(D77,'V C AB'!$C$7:$AY$457,49,FALSE),VLOOKUP(D77,'V C JUV'!$C$7:$AY$435,49,FALSE))) ->  | F77: =IF(C77="","",IF(MID(C77,1,1)="A",VLOOKUP(D77,'V L AB'!$C$7:$AY$455,48,FALSE),VLOOKUP(D77,'V L JUV'!$C$7:$AY$438,48,FALSE))) ->  | H77: =IF(D77="","",IFERROR(VLOOKUP(D77,'J FEI'!$C$7:$AG$454,30,FALSE),0)) -> 
A78: 72 | E78: =IF(C78="","",IF(MID(C78,1,1)="A",VLOOKUP(D78,'V C AB'!$C$7:$AY$457,49,FALSE),VLOOKUP(D78,'V C JUV'!$C$7:$AY$435,49,FALSE))) ->  | F78: =IF(C78="","",IF(MID(C78,1,1)="A",VLOOKUP(D78,'V L AB'!$C$7:$AY$455,48,FALSE),VLOOKUP(D78,'V L JUV'!$C$7:$AY$438,48,FALSE))) ->  | H78: =IF(D78="","",IFERROR(VLOOKUP(D78,'J FEI'!$C$7:$AG$454,30,FALSE),0)) -> 
A79: 73 | E79: =IF(C79="","",IF(MID(C79,1,1)="A",VLOOKUP(D79,'V C AB'!$C$7:$AY$457,49,FALSE),VLOOKUP(D79,'V C JUV'!$C$7:$AY$435,49,FALSE))) ->  | F79: =IF(C79="","",IF(MID(C79,1,1)="A",VLOOKUP(D79,'V L AB'!$C$7:$AY$455,48,FALSE),VLOOKUP(D79,'V L JUV'!$C$7:$AY$438,48,FALSE))) ->  | H79: =IF(D79="","",IFERROR(VLOOKUP(D79,'J FEI'!$C$7:$AG$454,30,FALSE),0)) -> 
A80: 74 | E80: =IF(C80="","",IF(MID(C80,1,1)="A",VLOOKUP(D80,'V C AB'!$C$7:$AY$457,49,FALSE),VLOOKUP(D80,'V C JUV'!$C$7:$AY$435,49,FALSE))) ->  | F80: =IF(C80="","",IF(MID(C80,1,1)="A",VLOOKUP(D80,'V L AB'!$C$7:$AY$455,48,FALSE),VLOOKUP(D80,'V L JUV'!$C$7:$AY$438,48,FALSE))) ->  | H80: =IF(D80="","",IFERROR(VLOOKUP(D80,'J FEI'!$C$7:$AG$454,30,FALSE),0)) -> 
A81: 75 | E81: =IF(C81="","",IF(MID(C81,1,1)="A",VLOOKUP(D81,'V C AB'!$C$7:$AY$457,49,FALSE),VLOOKUP(D81,'V C JUV'!$C$7:$AY$435,49,FALSE))) ->  | F81: =IF(C81="","",IF(MID(C81,1,1)="A",VLOOKUP(D81,'V L AB'!$C$7:$AY$455,48,FALSE),VLOOKUP(D81,'V L JUV'!$C$7:$AY$438,48,FALSE))) ->  | H81: =IF(D81="","",IFERROR(VLOOKUP(D81,'J FEI'!$C$7:$AG$454,30,FALSE),0)) -> 
A82: 76 | E82: =IF(C82="","",IF(MID(C82,1,1)="A",VLOOKUP(D82,'V C AB'!$C$7:$AY$457,49,FALSE),VLOOKUP(D82,'V C JUV'!$C$7:$AY$435,49,FALSE))) ->  | F82: =IF(C82="","",IF(MID(C82,1,1)="A",VLOOKUP(D82,'V L AB'!$C$7:$AY$455,48,FALSE),VLOOKUP(D82,'V L JUV'!$C$7:$AY$438,48,FALSE))) ->  | H82: =IF(D82="","",IFERROR(VLOOKUP(D82,'J FEI'!$C$7:$AG$454,30,FALSE),0)) -> 

Sheet J FEI
A2: JINETES, COMPETENCIAS INTERNACIONALES FEI
C4: JINETES
A5: CODIGO | D5: 2009 | F5: 2010 | L5: 2011 | P5: 2012 | R5: 2013 | U5: 2014
A6: INTERNACIONAL | B6: LOCAL | C6: JINETE | AB6: >80<120 | AC6: >120<140 | AD6: >140>160 | AE6: >160 | AF6: ACUMULADO
C7: =+C8 -> MEDINA FERNANDO | F7: 2010-04-24 | G7: 2010-05-29 | H7: 2010-08-07 | I7: 2010-10-23 | J7: 2010-11-20 | K7: 2010-12-11 | L7: 2011-03-26 | M7: 2011-05-06 | N7: 2011-07-02 | O7: 2011-09-03 | R7: 2013-04-19 | AF7: =+AF8 -> 1280
A8: 10067213 | C8: MEDINA FERNANDO | F8: 80 | G8: 120 | H8: 80 | I8: 120 | J8: 120 | K8: 120 | L8: 120 | M8: 120 | N8: 120 | O8: 120 | R8: 160 | AB8: =COUNTIF(F8:AA8,"<120") -> 2 | AC8: =COUNTIF(F8:AA8,"<140")-AB8 -> 8 | AD8: =COUNTIF(F8:AA8,"<160")-AB8-AC8 -> 0 | AE8: =COUNTIF(F8:AA8,">159") -> 1 | AF8: =SUM(F8:AA8) -> 1280
C9: =+C10 -> NEUMANN KARINA | F9: 2010-04-24 | G9: 2010-08-07 | H9: 2010-10-23 | I9: 2010-11-20 | J9: 2010-12-18 | L9: 2011-04-30 | P9: 2012-03-10 | Q9: 2012-08-25 | R9: 2013-07-05 | Y9: 2014-06-15 | AF9: =+AF10 -> 1260
A10: 10066919 | B10: A047 | C10: NEUMANN KARINA | F10: 80 | G10: 120 | H10: 120 | I10: 120 | J10: 120 | L10: 120 | P10: 160 | Q10: 140 | R10: 120 | Y10: 160 | AB10: =COUNTIF(F10:AA10,"<120") -> 1 | AC10: =COUNTIF(F10:AA10,"<140")-AB10 -> 6 | AD10: =COUNTIF(F10:AA10,"<160")-AB10-AC10 -> 1 | AE10: =COUNTIF(F10:AA10,">159") -> 2 | AF10: =SUM(F10:AA10) -> 1260
C11: =+C12 -> DARQUEA RAFAELA | F11: 2010-10-23 | G11: 2010-12-03 | H11: 2010-12-18 | L11: 2011-06-04 | M11: 2011-12-10 | P11: 2012-06-23 | Q11: 2012-12-15 | R11: 2013-11-08 | U11: 2014-05-03 | AF11: =+AF12 -> 1160
A12: 10071903 | B12: J024 | C12: DARQUEA RAFAELA | F12: 80 | G12: 120 | H12: 120 | L12: 120 | M12: 120 | P12: 160 | Q12: 120 | R12: 160 | U12: 160 | AB12: =COUNTIF(F12:AA12,"<120") -> 1 | AC12: =COUNTIF(F12:AA12,"<140")-AB12 -> 5 | AD12: =COUNTIF(F12:AA12,"<160")-AB12-AC12 -> 0 | AE12: =COUNTIF(F12:AA12,">159") -> 3 | AF12: =SUM(F12:AA12) -> 1160
C13: =+C14 -> RIBADENEIRA SOFIA | F13: 2010-12-03 | L13: 2011-03-26 | M13: 2011-04-30 | N13: 2011-07-02 | O13: 2011-10-22 | P13: 2012-04-13 | Q13: 2012-06-23 | R13: 2013-05-17 | S13: 2013-11-09 | T13: 2014-05-03 | AF13: =+AF14 -> 1160
A14: 10040096 | B14: J031 | C14: RIBADENEIRA SOFIA | F14: 80 | L14: 120 | M14: 120 | N14: 120 | O14: 120 | P14: 80 | Q14: 120 | R14: 120 | S14: 120 | T14: 160 | AB14: =COUNTIF(F14:AA14,"<120") -> 2 | AC14: =COUNTIF(F14:AA14,"<140")-AB14 -> 7 | AD14: =COUNTIF(F14:AA14,"<160")-AB14-AC14 -> 0 | AE14: =COUNTIF(F14:AA14,">159") -> 1 | AF14: =SUM(F14:AA14) -> 1160
C15: =+C16 -> WEEMAELS NATHALIE | P15: 2012-04-28 | Q15: 2012-07-28 | R15: 2013-05-25 | S15: 2013-11-09 | U15: 2014-03-14 | V15: 2014-04-12 | W15: 2014-05-02 | X15: 2014-05-03 | Y15: 2014-05-17 | AF15: =+AF16 -> 880
A16: 10067665 | B16: A055 | C16: WEEMAELS NATHALIE | P16: 80 | Q16: 120 | R16: 120 | S16: 80 | U16: 80 | V16: 80 | W16: 120 | X16: 80 | Y16: 120 | AB16: =COUNTIF(F16:AA16,"<120") -> 5 | AC16: =COUNTIF(F16:AA16,"<140")-AB16 -> 4 | AD16: =COUNTIF(F16:AA16,"<160")-AB16-AC16 -> 0 | AE16: =COUNTIF(F16:AA16,">159") -> 0 | AF16: =SUM(F16:AA16) -> 880
C17: =+C18 -> WRAY VINUEZA MATEO | F17: 2010-08-07 | G17: 2010-10-23 | H17: 2010-11-20 | I17: 2010-12-03 | L17: 2011-04-30 | M17: 2011-07-02 | N17: 2011-10-22 | R17: 2013-11-09 | AF17: =+AF18 -> 880
A18: 10066918 | B18: J028 | C18: WRAY VINUEZA MATEO | F18: 80 | G18: 120 | H18: 120 | I18: 120 | L18: 120 | M18: 120 | N18: 120 | R18: 80 | AB18: =COUNTIF(F18:AA18,"<120") -> 2 | AC18: =COUNTIF(F18:AA18,"<140")-AB18 -> 6 | AD18: =COUNTIF(F18:AA18,"<160")-AB18-AC18 -> 0 | AE18: =COUNTIF(F18:AA18,">159") -> 0 | AF18: =SUM(F18:AA18) -> 880
C19: =+C20 -> MORENO CORDOVEZ DANIELA | F19: 2010-10-23 | L19: 2011-03-26 | M19: 2011-04-30 | N19: 2011-07-02 | O19: 2011-10-22 | P19: 2012-08-11 | Q19: 2012-10-19 | AF19: =+AF20 -> 800
A20: 10066922 | B20: J025 | C20: MORENO CORDOVEZ DANIELA | F20: 80 | L20: 120 | M20: 120 | N20: 120 | O20: 120 | P20: 120 | Q20: 120 | AB20: =COUNTIF(F20:AA20,"<120") -> 1 | AC20: =COUNTIF(F20:AA20,"<140")-AB20 -> 6 | AD20: =COUNTIF(F20:AA20,"<160")-AB20-AC20 -> 0 | AE20: =COUNTIF(F20:AA20,">159") -> 0 | AF20: =SUM(F20:AA20) -> 800
C21: =+C22 -> LETORT DUEÑAS BERNARDA | F21: 2010-12-03 | L21: 2011-03-26 | M21: 2011-04-30 | N21: 2011-06-04 | P21: 2012-06-23 | Q21: 2012-10-19 | AF21: =+AF22 -> 680
A22: 10071904 | B22: J011 | C22: LETORT DUEÑAS BERNARDA | F22: 80 | L22: 120 | M22: 120 | N22: 120 | P22: 120 | Q22: 120 | AB22: =COUNTIF(F22:AA22,"<120") -> 1 | AC22: =COUNTIF(F22:AA22,"<140")-AB22 -> 5 | AD22: =COUNTIF(F22:AA22,"<160")-AB22-AC22 -> 0 | AE22: =COUNTIF(F22:AA22,">159") -> 0 | AF22: =SUM(F22:AA22) -> 680
C23: =+C24 -> GUARDERAS BARAHONA SEBASTIAN | F23: 2010-04-24 | G23: 2010-10-23 | H23: 2010-12-18 | P23: 41012 | AF23: =+AF24 -> 400
A24: 10066920 | B24: A051 | C24: GUARDERAS BARAHONA SEBASTIAN | F24: 80 | G24: 120 | H24: 120 | P24: 80 | AB24: =COUNTIF(F24:AA24,"<120") -> 2 | AC24: =COUNTIF(F24:AA24,"<140")-AB24 -> 2 | AD24: =COUNTIF(F24:AA24,"<160")-AB24-AC24 -> 0 | AE24: =COUNTIF(F24:AA24,">159") -> 0 | AF24: =SUM(F24:AA24) -> 400
C25: =+C26 -> WRAY VINUEZA ROBERTO | F25: 2010-04-24 | G25: 2010-11-20 | L25: 2011-04-30 | AF25: =+AF26 -> 320
A26: 10066917 | B26: A | C26: WRAY VINUEZA ROBERTO | F26: 80 | G26: 120 | L26: 120 | AB26: =COUNTIF(F26:AA26,"<120") -> 1 | AC26: =COUNTIF(F26:AA26,"<140")-AB26 -> 2 | AD26: =COUNTIF(F26:AA26,"<160")-AB26-AC26 -> 0 | AE26: =COUNTIF(F26:AA26,">159") -> 0 | AF26: =SUM(F26:AA26) -> 320
C27: =+C28 -> ALMEIDA AYALA HECTOR | P27: 2012-04-13 | R27: 2013-11-09 | Z27: 2014-09-27 | AF27: =+AF28 -> 320
A28: 10085864 | B28: A059 | C28: ALMEIDA AYALA HECTOR | P28: 80 | R28: 120 | Z28: 120 | AB28: =COUNTIF(F28:AA28,"<120") -> 1 | AC28: =COUNTIF(F28:AA28,"<140")-AB28 -> 2 | AD28: =COUNTIF(F28:AA28,"<160")-AB28-AC28 -> 0 | AE28: =COUNTIF(F28:AA28,">159") -> 0 | AF28: =SUM(F28:AA28) -> 320
C29: =+C30 -> DARQUEA BERNARDO | R29: 2013-11-09 | Y29: 2014-05-17 | Z29: 2014-09-27 | AF29: =+AF30 -> 320
A30: 10071902 | B30: A052 | C30: DARQUEA BERNARDO | R30: 80 | Y30: 120 | Z30: 120 | AB30: =COUNTIF(F30:AA30,"<120") -> 1 | AC30: =COUNTIF(F30:AA30,"<140")-AB30 -> 2 | AD30: =COUNTIF(F30:AA30,"<160")-AB30-AC30 -> 0 | AE30: =COUNTIF(F30:AA30,">159") -> 0 | AF30: =SUM(F30:AA30) -> 320
C31: =+C32 -> MORILLO MAURICIO | P31: 2012-04-13 | R31: 2013-11-09 | Z31: 2014-09-27 | AF31: =+AF32 -> 320
A32: 10082085 | B32: A056 | C32: MORILLO MAURICIO | P32: 80 | R32: 120 | Z32: 120 | AB32: =COUNTIF(F32:AA32,"<120") -> 1 | AC32: =COUNTIF(F32:AA32,"<140")-AB32 -> 2 | AD32: =COUNTIF(F32:AA32,"<160")-AB32-AC32 -> 0 | AE32: =COUNTIF(F32:AA32,">159") -> 0 | AF32: =SUM(F32:AA32) -> 320
C33: =+C34 -> MORILLO SERGIO | R33: 2013-11-09 | Y33: 2014-05-17 | Z33: 2014-09-27 | AF33: =+AF34 -> 320
A34: 10102301 | B34: J013 | C34: MORILLO SERGIO | R34: 80 | Y34: 120 | Z34: 120 | AB34: =COUNTIF(F34:AA34,"<120") -> 1 | AC34: =COUNTIF(F34:AA34,"<140")-AB34 -> 2 | AD34: =COUNTIF(F34:AA34,"<160")-AB34-AC34 -> 0 | AE34: =COUNTIF(F34:AA34,">159") -> 0 | AF34: =SUM(F34:AA34) -> 320
C35: =+C36 -> RIBADENEIRA ARTURO | R35: 2013-11-09 | Y35: 2014-05-17 | AF35: =+AF36 -> 200
A36: 10040095 | B36: A058 | C36: RIBADENEIRA ARTURO | R36: 80 | Y36: 120 | AB36: =COUNTIF(F36:AA36,"<120") -> 1 | AC36: =COUNTIF(F36:AA36,"<140")-AB36 -> 1 | AD36: =COUNTIF(F36:AA36,"<160")-AB36-AC36 -> 0 | AE36: =COUNTIF(F36:AA36,">159") -> 0 | AF36: =SUM(F36:AA36) -> 200
C37: =+C38 -> GOMEZ MICHILENA ALEXANDER | P37: 2012-04-13 | Y37: 2014-05-17 | AF37: =+AF38 -> 160
A38: 10085862 | B38: J008 | C38: GOMEZ MICHILENA ALEXANDER | P38: 80 | Y38: 80 | AB38: =COUNTIF(F38:AA38,"<120") -> 2 | AC38: =COUNTIF(F38:AA38,"<140")-AB38 -> 0 | AD38: =COUNTIF(F38:AA38,"<160")-AB38-AC38 -> 0 | AE38: =COUNTIF(F38:AA38,">159") -> 0 | AF38: =SUM(F38:AA38) -> 160
C39: =+C40 -> GONZALEZ BERNARDA | R39: 2013-11-09 | Y39: 2014-05-17 | AF39: =+AF40 -> 160
A40: 10102303 | B40: J063 | C40: GONZALEZ BERNARDA | R40: 80 | Y40: 80 | AB40: =COUNTIF(F40:AA40,"<120") -> 2 | AC40: =COUNTIF(F40:AA40,"<140")-AB40 -> 0 | AD40: =COUNTIF(F40:AA40,"<160")-AB40-AC40 -> 0 | AE40: =COUNTIF(F40:AA40,">159") -> 0 | AF40: =SUM(F40:AA40) -> 160
C41: =+C42 -> RECALDE JUAN JOSE | L41: 2011-07-02 | R41: 2013-11-09 | Z41: 2014-09-27 | AF41: =+AF42 -> 240
A42: 10079020 | B42: A060 | C42: RECALDE JUAN JOSE | L42: 80 | R42: 80 | Z42: 80 | AB42: =COUNTIF(F42:AA42,"<120") -> 3 | AC42: =COUNTIF(F42:AA42,"<140")-AB42 -> 0 | AD42: =COUNTIF(F42:AA42,"<160")-AB42-AC42 -> 0 | AE42: =COUNTIF(F42:AA42,">159") -> 0 | AF42: =SUM(F42:AA42) -> 240
C43: =+C44 -> SERRANO VALLEJO FELIPE | U43: 2014-05-04 | Y43: 2014-05-17 | Z43: 2014-09-27 | AF43: =+AF44 -> 280
A44: 10102306 | B44: J020 | C44: SERRANO VALLEJO FELIPE | U44: 80 | Y44: 80 | Z44: 120 | AB44: =COUNTIF(F44:AA44,"<120") -> 2 | AC44: =COUNTIF(F44:AA44,"<140")-AB44 -> 1 | AD44: =COUNTIF(F44:AA44,"<160")-AB44-AC44 -> 0 | AE44: =COUNTIF(F44:AA44,">159") -> 0 | AF44: =SUM(F44:AA44) -> 280
C45: =+C46 -> DAVILA GORDILLO JUAN DIEGO | R45: 2013-03-09 | AF45: =+AF46 -> 80
A46: 10085953 | B46: A057 | C46: DAVILA GORDILLO JUAN DIEGO | R46: 80 | AB46: =COUNTIF(F46:AA46,"<120") -> 1 | AC46: =COUNTIF(F46:AA46,"<140")-AB46 -> 0 | AD46: =COUNTIF(F46:AA46,"<160")-AB46-AC46 -> 0 | AE46: =COUNTIF(F46:AA46,">159") -> 0 | AF46: =SUM(F46:AA46) -> 80
C47: =+C48 -> GUARDERAS PEDRO JOSE | R47: 2013-07-05 | AF47: =+AF48 -> 80
A48: 10099388 | B48: J014 | C48: GUARDERAS PEDRO JOSE | R48: 80 | AB48: =COUNTIF(F48:AA48,"<120") -> 1 | AC48: =COUNTIF(F48:AA48,"<140")-AB48 -> 0 | AD48: =COUNTIF(F48:AA48,"<160")-AB48-AC48 -> 0 | AE48: =COUNTIF(F48:AA48,">159") -> 0 | AF48: =SUM(F48:AA48) -> 80
C49: =+C50 -> KOPPEL OSWALDO | Y49: 2014-05-17 | Z49: 2014-09-27 | AF49: =+AF50 -> 200
A50: 10108280 | B50: A081 | C50: KOPPEL OSWALDO | Y50: 80 | Z50: 120 | AB50: =COUNTIF(F50:AA50,"<120") -> 1 | AC50: =COUNTIF(F50:AA50,"<140")-AB50 -> 1 | AD50: =COUNTIF(F50:AA50,"<160")-AB50-AC50 -> 0 | AE50: =COUNTIF(F50:AA50,">159") -> 0 | AF50: =SUM(F50:AA50) -> 200
C51: =+C52 -> LOYOLA CLAUDIA MARIA | Y51: 2014-05-17 | AF51: =+AF52 -> 80
A52: 10108276 | B52: J055 | C52: LOYOLA CLAUDIA MARIA | Y52: 80 | AB52: =COUNTIF(F52:AA52,"<120") -> 1 | AC52: =COUNTIF(F52:AA52,"<140")-AB52 -> 0 | AD52: =COUNTIF(F52:AA52,"<160")-AB52-AC52 -> 0 | AE52: =COUNTIF(F52:AA52,">159") -> 0 | AF52: =SUM(F52:AA52) -> 80
C53: =+C54 -> MALO TORAL DAVID | Y53: 2014-05-17 | Z53: 2014-09-27 | AF53: =+AF54 -> 160
A54: 10108275 | B54: J087 | C54: MALO TORAL DAVID | Y54: 80 | Z54: 80 | AB54: =COUNTIF(F54:AA54,"<120") -> 2 | AC54: =COUNTIF(F54:AA54,"<140")-AB54 -> 0 | AD54: =COUNTIF(F54:AA54,"<160")-AB54-AC54 -> 0 | AE54: =COUNTIF(F54:AA54,">159") -> 0 | AF54: =SUM(F54:AA54) -> 160
C55: =+C56 -> MIÑO SANTIAGO | F55: 2010-12-03 | AF55: =+AF56 -> 80
A56: 10072559 | B56: J012 | C56: MIÑO SANTIAGO | F56: 80 | AB56: =COUNTIF(F56:AA56,"<120") -> 1 | AC56: =COUNTIF(F56:AA56,"<140")-AB56 -> 0 | AD56: =COUNTIF(F56:AA56,"<160")-AB56-AC56 -> 0 | AE56: =COUNTIF(F56:AA56,">159") -> 0 | AF56: =SUM(F56:AA56) -> 80
C57: =+C58 -> MORENO DANIEL | U57: 2014-05-04 | AF57: =+AF58 -> 80
A58: 10107818 | B58: J043 | C58: MORENO DANIEL | U58: 80 | AB58: =COUNTIF(F58:AA58,"<120") -> 1 | AC58: =COUNTIF(F58:AA58,"<140")-AB58 -> 0 | AD58: =COUNTIF(F58:AA58,"<160")-AB58-AC58 -> 0 | AE58: =COUNTIF(F58:AA58,">159") -> 0 | AF58: =SUM(F58:AA58) -> 80
C59: =+C60 -> SERRANO JUAN CARLOS | F59: 2010-10-23 | AF59: =+AF60 -> 80
A60: 10071901 | B60: A023 | C60: SERRANO JUAN CARLOS | F60: 80 | AB60: =COUNTIF(F60:AA60,"<120") -> 1 | AC60: =COUNTIF(F60:AA60,"<140")-AB60 -> 0 | AD60: =COUNTIF(F60:AA60,"<160")-AB60-AC60 -> 0 | AE60: =COUNTIF(F60:AA60,">159") -> 0 | AF60: =SUM(F60:AA60) -> 80
C61: =+C62 -> VINTIMILLA CORDERO PABLO JOSÉ | Y61: 2014-06-22 | AF61: =+AF62 -> 80
A62: 10109308 | B62: J054 | C62: VINTIMILLA CORDERO PABLO JOSÉ | Y62: 80 | AB62: =COUNTIF(F62:AA62,"<120") -> 1 | AC62: =COUNTIF(F62:AA62,"<140")-AB62 -> 0 | AD62: =COUNTIF(F62:AA62,"<160")-AB62-AC62 -> 0 | AE62: =COUNTIF(F62:AA62,">159") -> 0 | AF62: =SUM(F62:AA62) -> 80
C63: =+C64 -> VINTIMILLA PABLO XAVIER | Y63: 2014-05-17 | AF63: =+AF64 -> 80
A64: 10108279 | B64: A092 | C64: VINTIMILLA PABLO XAVIER | Y64: 80 | AB64: =COUNTIF(F64:AA64,"<120") -> 1 | AC64: =COUNTIF(F64:AA64,"<140")-AB64 -> 0 | AD64: =COUNTIF(F64:AA64,"<160")-AB64-AC64 -> 0 | AE64: =COUNTIF(F64:AA64,">159") -> 0 | AF64: =SUM(F64:AA64) -> 80
C65: =+C66 -> CORNEJO MANUEL | Z65: 2014-09-27 | AF65: =+AF66 -> 80
A66: 10054515 | B66: J021 | C66: CORNEJO MANUEL | Z66: 80 | AB66: =COUNTIF(F66:AA66,"<120") -> 1 | AC66: =COUNTIF(F66:AA66,"<140")-AB66 -> 0 | AD66: =COUNTIF(F66:AA66,"<160")-AB66-AC66 -> 0 | AE66: =COUNTIF(F66:AA66,">159") -> 0 | AF66: =SUM(F66:AA66) -> 80
C67: =+C68 -> LETORT JOSE IGNACIO | Z67: 2014-09-27 | AF67: =+AF68 -> 80
A68: 10108281 | B68: J047 | C68: LETORT JOSE IGNACIO | Z68: 80 | AB68: =COUNTIF(F68:AA68,"<120") -> 1 | AC68: =COUNTIF(F68:AA68,"<140")-AB68 -> 0 | AD68: =COUNTIF(F68:AA68,"<160")-AB68-AC68 -> 0 | AE68: =COUNTIF(F68:AA68,">159") -> 0 | AF68: =SUM(F68:AA68) -> 80
C69: =+C70 -> 0 | AF69: =+AF70 -> 0
AB70: =COUNTIF(F70:AA70,"<120") -> 0 | AC70: =COUNTIF(F70:AA70,"<140")-AB70 -> 0 | AD70: =COUNTIF(F70:AA70,"<160")-AB70-AC70 -> 0 | AE70: =COUNTIF(F70:AA70,">159") -> 0 | AF70: =SUM(F70:AA70) -> 0
C71: =+C72 -> 0 | AF71: =+AF72 -> 0
AB72: =COUNTIF(F72:AA72,"<120") -> 0 | AC72: =COUNTIF(F72:AA72,"<140")-AB72 -> 0 | AD72: =COUNTIF(F72:AA72,"<160")-AB72-AC72 -> 0 | AE72: =COUNTIF(F72:AA72,">159") -> 0 | AF72: =SUM(F72:AA72) -> 0
C73: =+C74 -> 0 | AF73: =+AF74 -> 0
AB74: =COUNTIF(F74:AA74,"<120") -> 0 | AC74: =COUNTIF(F74:AA74,"<140")-AB74 -> 0 | AD74: =COUNTIF(F74:AA74,"<160")-AB74-AC74 -> 0 | AE74: =COUNTIF(F74:AA74,">159") -> 0 | AF74: =SUM(F74:AA74) -> 0
C75: =+C76 -> 0 | AF75: =+AF76 -> 0
AB76: =COUNTIF(F76:AA76,"<120") -> 0 | AC76: =COUNTIF(F76:AA76,"<140")-AB76 -> 0 | AD76: =COUNTIF(F76:AA76,"<160")-AB76-AC76 -> 0 | AE76: =COUNTIF(F76:AA76,">159") -> 0 | AF76: =SUM(F76:AA76) -> 0
C77: =+C78 -> 0 | AF77: =+AF78 -> 0
AB78: =COUNTIF(F78:AA78,"<120") -> 0 | AC78: =COUNTIF(F78:AA78,"<140")-AB78 -> 0 | AD78: =COUNTIF(F78:AA78,"<160")-AB78-AC78 -> 0 | AE78: =COUNTIF(F78:AA78,">159") -> 0 | AF78: =SUM(F78:AA78) -> 0
C79: =+C80 -> 0 | AF79: =+AF80 -> 0
AB80: =COUNTIF(F80:AA80,"<120") -> 0 | AC80: =COUNTIF(F80:AA80,"<140")-AB80 -> 0 | AD80: =COUNTIF(F80:AA80,"<160")-AB80-AC80 -> 0 | AE80: =COUNTIF(F80:AA80,">159") -> 0 | AF80: =SUM(F80:AA80) -> 0
C81: =+C82 -> ZZZZZZZ
A82: 1000 | B82: 1000 | C82: ZZZZZZZ | L82: =IFERROR(#REF!,"") ->  | S82: =IFERROR(#REF!,"") -> 
S83: =IFERROR(#REF!,"") -> 

Sheet C FEI
B2: CABALLOS, COMPETENCIAS INTERNACIONALES FEI
C4: CABALLOS
A5: CODIGO | E5: 2009 | F5: 2010 | L5: 2011 | P5: 2012 | R5: 2013 | T5: 2014
A6: INTERNACIONAL | B6: LOCAL | C6: CABALLO | D6: PROPIETARI/JINETE | Z6: >80<120 | AA6: >120<140 | AB6: >140>160 | AC6: >160 | AD6: ACUMULADO
C7: FRODO | E7: 2009-12-19 | F7: 2010-04-24 | G7: 2010-10-23 | L7: 2011-04-30 | M7: 2011-07-02 | N7: 2011-10-22 | R7: 2013-11-09 | T7: 2014-05-17 | AD7: =+AD8 -> 840
A8: 102UE17 | B8: C188 | C8: FRODO | D8: RIBADENEIRA ARTURO | E8: 80 | F8: 80 | G8: 120 | L8: 120 | M8: 120 | N8: 120 | R8: 80 | T8: 120 | Z8: =COUNTIF(E8:Y8,"<120") -> 3 | AA8: =COUNTIF(E8:Y8,"<140")-Z8 -> 5 | AB8: =COUNTIF(E8:Y8,"<160")-Z8-AA8 -> 0 | AC8: =COUNTIF(E8:Y8,">160") -> 0 | AD8: =SUM(E8:Y8) -> 840
C9: AR FAISAN &"A" | P9: 2012-04-13 | R9: 2013-11-09 | AD9: =+AD10 -> 200
A10: 103OQ69 | B10: C096 | C10: AR FAISAN | D10: ARTURO RIBADENEIRA | P10: 80 | R10: 120 | Z10: =COUNTIF(E10:Y10,"<120") -> 1 | AA10: =COUNTIF(E10:Y10,"<140")-Z10 -> 1 | AB10: =COUNTIF(E10:Y10,"<160")-Z10-AA10 -> 0 | AC10: =COUNTIF(E10:Y10,">160") -> 0 | AD10: =SUM(E10:Y10) -> 200
C11: CENTAURO | P11: 2012-04-13 | R11: 2013-11-09 | X11: 2014-09-27 | AD11: =+AD12 -> 320
A12: 103OQ90 | B12: C097 | C12: CENTAURO | D12: HECTOR ALMEIDA | P12: 80 | R12: 120 | X12: 120 | Z12: =COUNTIF(E12:Y12,"<120") -> 1 | AA12: =COUNTIF(E12:Y12,"<140")-Z12 -> 2 | AB12: =COUNTIF(E12:Y12,"<160")-Z12-AA12 -> 0 | AC12: =COUNTIF(E12:Y12,">160") -> 0 | AD12: =SUM(E12:Y12) -> 320
C13: CG ALLASKI | R13: 2013-11-09 | T13: 2014-05-17 | AD13: =+AD14 -> 200
A14: 104DT56 | B14: C093 | C14: CG ALLASKI | D14: WEEMAELS NATHALIE | R14: 80 | T14: 120 | Z14: =COUNTIF(E14:Y14,"<120") -> 1 | AA14: =COUNTIF(E14:Y14,"<140")-Z14 -> 1 | AB14: =COUNTIF(E14:Y14,"<160")-Z14-AA14 -> 0 | AC14: =COUNTIF(E14:Y14,">160") -> 0 | AD14: =SUM(E14:Y14) -> 200
C15: FHARA CONEJA | R15: 2013-11-09 | T15: 2014-05-17 | X15: 2014-09-27 | AD15: =+AD16 -> 320
A16: 104DQ52 | B16: C136 | C16: FHARA CONEJA | D16: DARQUEA BERNARDO | R16: 80 | T16: 120 | X16: 120 | Z16: =COUNTIF(E16:Y16,"<120") -> 1 | AA16: =COUNTIF(E16:Y16,"<140")-Z16 -> 2 | AB16: =COUNTIF(E16:Y16,"<160")-Z16-AA16 -> 0 | AC16: =COUNTIF(E16:Y16,">160") -> 0 | AD16: =SUM(E16:Y16) -> 320
C17: MISTERIO | P17: 2012-04-13 | R17: 2013-11-09 | X17: 2014-09-27 | AD17: =+AD18 -> 320
A18: 103OK01 | B18: C094 | C18: MISTERIO | D18: MAURICIO MORILLO | P18: 80 | R18: 120 | X18: 120 | Z18: =COUNTIF(E18:Y18,"<120") -> 1 | AA18: =COUNTIF(E18:Y18,"<140")-Z18 -> 2 | AB18: =COUNTIF(E18:Y18,"<160")-Z18-AA18 -> 0 | AC18: =COUNTIF(E18:Y18,">160") -> 0 | AD18: =SUM(E18:Y18) -> 320
C19: QUITA PENAS | R19: 2013-11-09 | T19: 2014-05-17 | X19: 2014-09-27 | AD19: =+AD20 -> 320
A20: 104DT55 | B20: C072 | C20: QUITA PENAS | D20: MAURICIO MORILLO | R20: 80 | T20: 120 | X20: 120 | Z20: =COUNTIF(E20:Y20,"<120") -> 1 | AA20: =COUNTIF(E20:Y20,"<140")-Z20 -> 2 | AB20: =COUNTIF(E20:Y20,"<160")-Z20-AA20 -> 0 | AC20: =COUNTIF(E20:Y20,">160") -> 0 | AD20: =SUM(E20:Y20) -> 320
C21: AMARETO | R21: 2013-11-09 | AD21: =+AD22 -> 80
A22: 104DU88 | B22: C046 | C22: AMARETO | D22: JOSE LETORT | R22: 80 | Z22: =COUNTIF(E22:Y22,"<120") -> 1 | AA22: =COUNTIF(E22:Y22,"<140")-Z22 -> 0 | AB22: =COUNTIF(E22:Y22,"<160")-Z22-AA22 -> 0 | AC22: =COUNTIF(E22:Y22,">160") -> 0 | AD22: =SUM(E22:Y22) -> 80
C23: ARAGON | T23: 2014-05-17 | AD23: =+AD24 -> 80
A24: 104JS66 | B24: C208 | C24: ARAGON | D24: MALO TORAL DAVID | T24: 80 | Z24: =COUNTIF(E24:Y24,"<120") -> 1 | AA24: =COUNTIF(E24:Y24,"<140")-Z24 -> 0 | AB24: =COUNTIF(E24:Y24,"<160")-Z24-AA24 -> 0 | AC24: =COUNTIF(E24:Y24,">160") -> 0 | AD24: =SUM(E24:Y24) -> 80
C25: ASRAEL | T25: 2014-05-17 | AD25: =+AD26 -> 80
A26: 104JS91 | B26: C232 | C26: ASRAEL | D26: GONZALEZ BERNARDA | T26: 80 | Z26: =COUNTIF(E26:Y26,"<120") -> 1 | AA26: =COUNTIF(E26:Y26,"<140")-Z26 -> 0 | AB26: =COUNTIF(E26:Y26,"<160")-Z26-AA26 -> 0 | AC26: =COUNTIF(E26:Y26,">160") -> 0 | AD26: =SUM(E26:Y26) -> 80
C27: AVENTURERO | T27: 2014-05-17 | AD27: =+AD28 -> 80
A28: 104JS72 | B28: C115 | C28: AVENTURERO | D28: HECTOR ALMEIDA | T28: 80 | Z28: =COUNTIF(E28:Y28,"<120") -> 1 | AA28: =COUNTIF(E28:Y28,"<140")-Z28 -> 0 | AB28: =COUNTIF(E28:Y28,"<160")-Z28-AA28 -> 0 | AC28: =COUNTIF(E28:Y28,">160") -> 0 | AD28: =SUM(E28:Y28) -> 80
C29: BOM BOM | P29: 2012-04-13 | X29: 2014-09-27 | AD29: =+AD30 -> 160
A30: 103OQ85 | B30: C098 | C30: BOM BOM | D30: JUAN JOSE RECALDE | P30: 80 | X30: 80 | Z30: =COUNTIF(E30:Y30,"<120") -> 2 | AA30: =COUNTIF(E30:Y30,"<140")-Z30 -> 0 | AB30: =COUNTIF(E30:Y30,"<160")-Z30-AA30 -> 0 | AC30: =COUNTIF(E30:Y30,">160") -> 0 | AD30: =SUM(E30:Y30) -> 160
C31: FELIPE GR | P31: 2012-04-13 | AD31: =+AD32 -> 80
A32: 103OQ70 | B32: C112 | C32: FELIPE GR | D32: GOMEZ MICHILENA ROMMEL | P32: 80 | Z32: =COUNTIF(E32:Y32,"<120") -> 1 | AA32: =COUNTIF(E32:Y32,"<140")-Z32 -> 0 | AB32: =COUNTIF(E32:Y32,"<160")-Z32-AA32 -> 0 | AC32: =COUNTIF(E32:Y32,">160") -> 0 | AD32: =SUM(E32:Y32) -> 80
C33: FUERTE CSJ | T33: 2014-05-17 | AD33: =+AD34 -> 80
A34: 104JV09 | B34: C148 | C34: FUERTE CSJ | D34: GOMEZ ALEXANDER | T34: 80 | Z34: =COUNTIF(E34:Y34,"<120") -> 1 | AA34: =COUNTIF(E34:Y34,"<140")-Z34 -> 0 | AB34: =COUNTIF(E34:Y34,"<160")-Z34-AA34 -> 0 | AC34: =COUNTIF(E34:Y34,">160") -> 0 | AD34: =SUM(E34:Y34) -> 80
C35: KADAFI | P35: 2012-04-13 | AD35: =+AD36 -> 80
A36: 103OG09 | B36: C084 | C36: KADAFI | D36: DANIEL MORENO | P36: 80 | Z36: =COUNTIF(E36:Y36,"<120") -> 1 | AA36: =COUNTIF(E36:Y36,"<140")-Z36 -> 0 | AB36: =COUNTIF(E36:Y36,"<160")-Z36-AA36 -> 0 | AC36: =COUNTIF(E36:Y36,">160") -> 0 | AD36: =SUM(E36:Y36) -> 80
C37: KAFIR HA | R37: 2013-11-09 | X37: 2014-09-27 | AD37: =+AD38 -> 200
A38: 104DT58 | B38: C114 | C38: KAFIR HA | D38: HECTOR ALMEIDA | R38: 80 | X38: 120 | Z38: =COUNTIF(E38:Y38,"<120") -> 1 | AA38: =COUNTIF(E38:Y38,"<140")-Z38 -> 1 | AB38: =COUNTIF(E38:Y38,"<160")-Z38-AA38 -> 0 | AC38: =COUNTIF(E38:Y38,">160") -> 0 | AD38: =SUM(E38:Y38) -> 200
C39: PATACON | T39: 2014-05-17 | AD39: =+AD40 -> 80
A40: 104JS67 | B40: C197 | C40: PATACON | D40: LOYOLA CLAUDIA MARIA | T40: 80 | Z40: =COUNTIF(E40:Y40,"<120") -> 1 | AA40: =COUNTIF(E40:Y40,"<140")-Z40 -> 0 | AB40: =COUNTIF(E40:Y40,"<160")-Z40-AA40 -> 0 | AC40: =COUNTIF(E40:Y40,">160") -> 0 | AD40: =SUM(E40:Y40) -> 80
C41: WISKY | T41: 2014-05-17 | AD41: =+AD42 -> 80
A42: 104JS71 | B42: C074 | C42: WISKY | D42: VINTIMILLA PABLO | T42: 80 | Z42: =COUNTIF(E42:Y42,"<120") -> 1 | AA42: =COUNTIF(E42:Y42,"<140")-Z42 -> 0 | AB42: =COUNTIF(E42:Y42,"<160")-Z42-AA42 -> 0 | AC42: =COUNTIF(E42:Y42,">160") -> 0 | AD42: =SUM(E42:Y42) -> 80
C43: =+C44 -> ZUCO | T43: 2014-05-17 | X43: 2014-09-27 | AD43: =+AD44 -> 200
A44: 104DU87 | B44: C041 | C44: ZUCO | D44: SERRANO FELIPE | T44: 80 | X44: 120 | Z44: =COUNTIF(E44:Y44,"<120") -> 1 | AA44: =COUNTIF(E44:Y44,"<140")-Z44 -> 1 | AB44: =COUNTIF(E44:Y44,"<160")-Z44-AA44 -> 0 | AC44: =COUNTIF(E44:Y44,">160") -> 0 | AD44: =SUM(E44:Y44) -> 200
C45: =+C46 -> MD KABUL | X45: 2014-09-27 | AD45: =+AD46 -> 80
A46: 104JS69 | B46: C120 | C46: MD KABUL | D46: FELIPE ANDRADE | X46: 80 | Z46: =COUNTIF(E46:Y46,"<120") -> 1 | AA46: =COUNTIF(E46:Y46,"<140")-Z46 -> 0 | AB46: =COUNTIF(E46:Y46,"<160")-Z46-AA46 -> 0 | AC46: =COUNTIF(E46:Y46,">160") -> 0 | AD46: =SUM(E46:Y46) -> 80
C47: =+C48 -> GS HAAKIM | X47: 2014-09-27 | AD47: =+AD48 -> 80
A48: 104JW31 | B48: C189 | C48: GS HAAKIM | D48: CORNEJO MANUEL | X48: 80 | Z48: =COUNTIF(E48:Y48,"<120") -> 1 | AA48: =COUNTIF(E48:Y48,"<140")-Z48 -> 0 | AB48: =COUNTIF(E48:Y48,"<160")-Z48-AA48 -> 0 | AC48: =COUNTIF(E48:Y48,">160") -> 0 | AD48: 80
C49: =+C50 -> SHAKIRA | X49: 2014-09-27 | AD49: =+AD50 -> 80
A50: 104JW32 | B50: C154 | C50: SHAKIRA | D50: LETORT JOSE IGNACIO | X50: 80 | Z50: =COUNTIF(E50:Y50,"<120") -> 1 | AA50: =COUNTIF(E50:Y50,"<140")-Z50 -> 0 | AB50: =COUNTIF(E50:Y50,"<160")-Z50-AA50 -> 0 | AC50: =COUNTIF(E50:Y50,">160") -> 0 | AD50: 80
C51: =+C52 -> 0 | AD51: =+AD52 -> 0
Z52: =COUNTIF(E52:Y52,"<120") -> 0 | AA52: =COUNTIF(E52:Y52,"<140")-Z52 -> 0 | AB52: =COUNTIF(E52:Y52,"<160")-Z52-AA52 -> 0 | AC52: =COUNTIF(E52:Y52,">160") -> 0 | AD52: 0
C53: =+C54 -> 0 | AD53: =+AD54 -> 0
Z54: =COUNTIF(E54:Y54,"<120") -> 0 | AA54: =COUNTIF(E54:Y54,"<140")-Z54 -> 0 | AB54: =COUNTIF(E54:Y54,"<160")-Z54-AA54 -> 0 | AC54: =COUNTIF(E54:Y54,">160") -> 0 | AD54: 0
C55: =+C56 -> 0 | AD55: =+AD56 -> 0
Z56: =COUNTIF(E56:Y56,"<120") -> 0 | AA56: =COUNTIF(E56:Y56,"<140")-Z56 -> 0 | AB56: =COUNTIF(E56:Y56,"<160")-Z56-AA56 -> 0 | AC56: =COUNTIF(E56:Y56,">160") -> 0 | AD56: 0
C57: =+C58 -> 0 | AD57: =+AD58 -> 0
Z58: =COUNTIF(E58:Y58,"<120") -> 0 | AA58: =COUNTIF(E58:Y58,"<140")-Z58 -> 0 | AB58: =COUNTIF(E58:Y58,"<160")-Z58-AA58 -> 0 | AC58: =COUNTIF(E58:Y58,">160") -> 0 | AD58: 0
C59: =+C60 -> 0 | AD59: =+AD60 -> 0
Z60: =COUNTIF(E60:Y60,"<120") -> 0 | AA60: =COUNTIF(E60:Y60,"<140")-Z60 -> 0 | AB60: =COUNTIF(E60:Y60,"<160")-Z60-AA60 -> 0 | AC60: =COUNTIF(E60:Y60,">160") -> 0 | AD60: 0
C61: =+C62 -> 0 | AD61: =+AD62 -> 0
Z62: =COUNTIF(E62:Y62,"<120") -> 0 | AA62: =COUNTIF(E62:Y62,"<140")-Z62 -> 0 | AB62: =COUNTIF(E62:Y62,"<160")-Z62-AA62 -> 0 | AC62: =COUNTIF(E62:Y62,">160") -> 0 | AD62: 0
C63: =+C64 -> 0 | AD63: =+AD64 -> 0
Z64: =COUNTIF(E64:Y64,"<120") -> 0 | AA64: =COUNTIF(E64:Y64,"<140")-Z64 -> 0 | AB64: =COUNTIF(E64:Y64,"<160")-Z64-AA64 -> 0 | AC64: =COUNTIF(E64:Y64,">160") -> 0 | AD64: 0
C65: =+C66 -> 0 | AD65: =+AD66 -> 0
Z66: =COUNTIF(E66:Y66,"<120") -> 0 | AA66: =COUNTIF(E66:Y66,"<140")-Z66 -> 0 | AB66: =COUNTIF(E66:Y66,"<160")-Z66-AA66 -> 0 | AC66: =COUNTIF(E66:Y66,">160") -> 0 | AD66: 0
C67: =+C68 -> 0 | AD67: =+AD68 -> 0
Z68: =COUNTIF(E68:Y68,"<120") -> 0 | AA68: =COUNTIF(E68:Y68,"<140")-Z68 -> 0 | AB68: =COUNTIF(E68:Y68,"<160")-Z68-AA68 -> 0 | AC68: =COUNTIF(E68:Y68,">160") -> 0 | AD68: 0
C69: =+C70 -> 0 | AD69: =+AD70 -> 0
Z70: =COUNTIF(E70:Y70,"<120") -> 0 | AA70: =COUNTIF(E70:Y70,"<140")-Z70 -> 0 | AB70: =COUNTIF(E70:Y70,"<160")-Z70-AA70 -> 0 | AC70: =COUNTIF(E70:Y70,">160") -> 0 | AD70: 0
C71: =+C72 -> 0 | AD71: =+AD72 -> 0
Z72: =COUNTIF(E72:Y72,"<120") -> 0 | AA72: =COUNTIF(E72:Y72,"<140")-Z72 -> 0 | AB72: =COUNTIF(E72:Y72,"<160")-Z72-AA72 -> 0 | AC72: =COUNTIF(E72:Y72,">160") -> 0 | AD72: 0
C73: =+C74 -> 0 | AD73: =+AD74 -> 0
Z74: =COUNTIF(E74:Y74,"<120") -> 0 | AA74: =COUNTIF(E74:Y74,"<140")-Z74 -> 0 | AB74: =COUNTIF(E74:Y74,"<160")-Z74-AA74 -> 0 | AC74: =COUNTIF(E74:Y74,">160") -> 0 | AD74: 0
C75: =+C76 -> 0 | AD75: =+AD76 -> 0
Z76: =COUNTIF(E76:Y76,"<120") -> 0 | AA76: =COUNTIF(E76:Y76,"<140")-Z76 -> 0 | AB76: =COUNTIF(E76:Y76,"<160")-Z76-AA76 -> 0 | AC76: =COUNTIF(E76:Y76,">160") -> 0 | AD76: 0
C77: =+C78 -> 0 | AD77: =+AD78 -> 0
Z78: =COUNTIF(E78:Y78,"<120") -> 0 | AA78: =COUNTIF(E78:Y78,"<140")-Z78 -> 0 | AB78: =COUNTIF(E78:Y78,"<160")-Z78-AA78 -> 0 | AC78: =COUNTIF(E78:Y78,">160") -> 0 | AD78: 0
C79: =+C80 -> 0 | AD79: =+AD80 -> 0
Z80: =COUNTIF(E80:Y80,"<120") -> 0 | AA80: =COUNTIF(E80:Y80,"<140")-Z80 -> 0 | AB80: =COUNTIF(E80:Y80,"<160")-Z80-AA80 -> 0 | AC80: =COUNTIF(E80:Y80,">160") -> 0 | AD80: 0
C81: =+C82 -> ZZZZZZZ | AD81: =+AD82 -> 0
A82: 1000 | B82: 1000 | C82: ZZZZZZZ | L82: =IFERROR(#REF!,"") ->  | S82: =IFERROR(#REF!,"") ->  | Z82: =COUNTIF(E82:Y82,"<120") -> 0 | AA82: =COUNTIF(E82:Y82,"<140")-Z82 -> 0 | AB82: =COUNTIF(E82:Y82,"<160")-Z82-AA82 -> 0 | AC82: =COUNTIF(E82:Y82,">160") -> 0 | AD82: 0
S83: =IFERROR(#REF!,"") -> 

Sheet BINO FEI
B2: BINOMIOS, COMPETENCIAS INTERNACIONALES FEI
C4: BINOMIOS
A5: CODIGO | E5: 2009 | F5: 2010 | L5: 2011 | P5: 2012 | R5: 2013 | T5: 2014
A6: JINETE | B6: CABALLO | C6: JINETE | D6: CABALLO | Z6: >80<120 | AA6: >120<140 | AB6: >140>160 | AC6: >160 | AD6: ACUMULADO
C7: =+C8 -> RIBADENEIRA SOFIA | L7: 2011-04-30 | M7: 2011-07-02 | N7: 2011-10-22 | AD7: =+AD8 -> 360
A8: 10040096 | B8: 102UE17 | C8: RIBADENEIRA SOFIA | D8: FRODO | L8: 120 | M8: 120 | N8: 120 | Z8: =COUNTIF(E8:Y8,"<120") -> 0 | AA8: =COUNTIF(E8:Y8,"<140")-Z8 -> 3 | AB8: =COUNTIF(E8:Y8,"<160")-Z8-AA8 -> 0 | AC8: =COUNTIF(E8:Y8,">160") -> 0 | AD8: =SUM(E8:Y8) -> 360
C9: =+C10 -> RIBADENEIRA SOFIA | P9: 2012-04-13 | R9: 2013-11-09 | AD9: =+AD10 -> 200
A10: 10040096 | B10: 103OQ69 | C10: RIBADENEIRA SOFIA | D10: AR FAISAN | P10: 80 | R10: 120 | Z10: =COUNTIF(E10:Y10,"<120") -> 1 | AA10: =COUNTIF(E10:Y10,"<140")-Z10 -> 1 | AB10: =COUNTIF(E10:Y10,"<160")-Z10-AA10 -> 0 | AC10: =COUNTIF(E10:Y10,">160") -> 0 | AD10: =SUM(E10:Y10) -> 200
C11: =+C12 -> ALMEIDA AYALA HECTOR | P11: 2012-04-13 | R11: 2013-11-09 | X11: 2014-09-27 | AD11: =+AD12 -> 320
A12: 10085864 | B12: 103OQ90 | C12: ALMEIDA AYALA HECTOR | D12: CENTAURO | P12: 80 | R12: 120 | X12: 120 | Z12: =COUNTIF(E12:Y12,"<120") -> 1 | AA12: =COUNTIF(E12:Y12,"<140")-Z12 -> 2 | AB12: =COUNTIF(E12:Y12,"<160")-Z12-AA12 -> 0 | AC12: =COUNTIF(E12:Y12,">160") -> 0 | AD12: =SUM(E12:Y12) -> 320
C13: =+C14 -> WEEMAELS NATHALIE | R13: 2013-11-09 | T13: 2014-05-17 | AD13: =+AD14 -> 200
A14: 10067665 | B14: 104DT56 | C14: WEEMAELS NATHALIE | D14: CG ALLASKI | R14: 80 | T14: 120 | Z14: =COUNTIF(E14:Y14,"<120") -> 1 | AA14: =COUNTIF(E14:Y14,"<140")-Z14 -> 1 | AB14: =COUNTIF(E14:Y14,"<160")-Z14-AA14 -> 0 | AC14: =COUNTIF(E14:Y14,">160") -> 0 | AD14: =SUM(E14:Y14) -> 200
C15: =+C16 -> DARQUEA BERNARDO | R15: 2013-11-09 | T15: 2014-05-17 | X15: 2014-09-27 | AD15: =+AD16 -> 320
A16: 10071902 | B16: 104DQ52 | C16: DARQUEA BERNARDO | D16: FHARA CONEJA | R16: 80 | T16: 120 | X16: 120 | Z16: =COUNTIF(E16:Y16,"<120") -> 1 | AA16: =COUNTIF(E16:Y16,"<140")-Z16 -> 2 | AB16: =COUNTIF(E16:Y16,"<160")-Z16-AA16 -> 0 | AC16: =COUNTIF(E16:Y16,">160") -> 0 | AD16: =SUM(E16:Y16) -> 320
C17: =+C18 -> MORILLO MAURICIO | P17: 2012-04-13 | R17: 2013-11-09 | X17: 2014-09-27 | AD17: =+AD18 -> 320
A18: 10082085 | B18: 103OK01 | C18: MORILLO MAURICIO | D18: MISTERIO | P18: 80 | R18: 120 | X18: 120 | Z18: =COUNTIF(E18:Y18,"<120") -> 1 | AA18: =COUNTIF(E18:Y18,"<140")-Z18 -> 2 | AB18: =COUNTIF(E18:Y18,"<160")-Z18-AA18 -> 0 | AC18: =COUNTIF(E18:Y18,">160") -> 0 | AD18: =SUM(E18:Y18) -> 320
C19: =+C20 -> MORILLO SERGIO | R19: 2013-11-09 | T19: 2014-05-17 | X19: 2014-09-27 | AD19: =+AD20 -> 320
A20: 10102301 | B20: 104DT55 | C20: MORILLO SERGIO | D20: QUITA PENAS | R20: 80 | T20: 120 | X20: 120 | Z20: =COUNTIF(E20:Y20,"<120") -> 1 | AA20: =COUNTIF(E20:Y20,"<140")-Z20 -> 2 | AB20: =COUNTIF(E20:Y20,"<160")-Z20-AA20 -> 0 | AC20: =COUNTIF(E20:Y20,">160") -> 0 | AD20: =SUM(E20:Y20) -> 320
C21: =+C22 -> RIBADENEIRA ARTURO | R21: 2013-11-09 | T21: 2014-05-17 | AD21: =+AD22 -> 200
A22: 10040095 | B22: 102UE17 | C22: RIBADENEIRA ARTURO | D22: FRODO | R22: 80 | T22: 120 | Z22: =COUNTIF(E22:Y22,"<120") -> 1 | AA22: =COUNTIF(E22:Y22,"<140")-Z22 -> 1 | AB22: =COUNTIF(E22:Y22,"<160")-Z22-AA22 -> 0 | AC22: =COUNTIF(E22:Y22,">160") -> 0 | AD22: =SUM(E22:Y22) -> 200
C23: =+C24 -> WRAY MATEO | R23: 2013-11-09 | AD23: =+AD24 -> 80
A24: 10066918 | B24: 104DU88 | C24: WRAY MATEO | D24: AMARETO | R24: 80 | Z24: =COUNTIF(E24:Y24,"<120") -> 1 | AA24: =COUNTIF(E24:Y24,"<140")-Z24 -> 0 | AB24: =COUNTIF(E24:Y24,"<160")-Z24-AA24 -> 0 | AC24: =COUNTIF(E24:Y24,">160") -> 0 | AD24: =SUM(E24:Y24) -> 80
C25: =+C26 -> JUAN JOSE RECALDE | P25: 2012-04-13 | X25: 2014-09-27 | AD25: =+AD26 -> 160
A26: 10079020 | B26: 103OQ85 | C26: JUAN JOSE RECALDE | D26: BOM BOM | P26: 80 | X26: 80 | Z26: =COUNTIF(E26:Y26,"<120") -> 2 | AA26: =COUNTIF(E26:Y26,"<140")-Z26 -> 0 | AB26: =COUNTIF(E26:Y26,"<160")-Z26-AA26 -> 0 | AC26: =COUNTIF(E26:Y26,">160") -> 0 | AD26: =SUM(E26:Y26) -> 160
C27: =+C28 -> GOMEZ MICHILENA ROMMEL | P27: 2012-04-13 | AD27: =+AD28 -> 80
A28: 10085862 | B28: 103OQ70 | C28: GOMEZ MICHILENA ROMMEL | D28: FELIPE GR | P28: 80 | Z28: =COUNTIF(E28:Y28,"<120") -> 1 | AA28: =COUNTIF(E28:Y28,"<140")-Z28 -> 0 | AB28: =COUNTIF(E28:Y28,"<160")-Z28-AA28 -> 0 | AC28: =COUNTIF(E28:Y28,">160") -> 0 | AD28: =SUM(E28:Y28) -> 80
C29: =+C30 -> GUARDERAS BARAHONA SEBASTIAN | P29: 2012-04-13 | AD29: =+AD30 -> 80
A30: 10066920 | B30: 103OG09 | C30: GUARDERAS BARAHONA SEBASTIAN | D30: KADAFI | P30: 80 | Z30: =COUNTIF(E30:Y30,"<120") -> 1 | AA30: =COUNTIF(E30:Y30,"<140")-Z30 -> 0 | AB30: =COUNTIF(E30:Y30,"<160")-Z30-AA30 -> 0 | AC30: =COUNTIF(E30:Y30,">160") -> 0 | AD30: =SUM(E30:Y30) -> 80
C31: =+C32 -> GONZALEZ BERNARDA | R31: 2013-11-09 | AD31: =+AD32 -> 80
A32: 10102303 | B32: 104DT58 | C32: GONZALEZ BERNARDA | D32: KAFIR HA | R32: 80 | Z32: =COUNTIF(E32:Y32,"<120") -> 1 | AA32: =COUNTIF(E32:Y32,"<140")-Z32 -> 0 | AB32: =COUNTIF(E32:Y32,"<160")-Z32-AA32 -> 0 | AC32: =COUNTIF(E32:Y32,">160") -> 0 | AD32: =SUM(E32:Y32) -> 80
C33: =+C34 -> KOPPEL OSWALDO | T33: 2014-05-17 | AD33: =+AD34 -> 80
A34: 10108280 | B34: 104JS72 | C34: KOPPEL OSWALDO | D34: AVENTURERO | T34: 80 | Z34: =COUNTIF(E34:Y34,"<120") -> 1 | AA34: =COUNTIF(E34:Y34,"<140")-Z34 -> 0 | AB34: =COUNTIF(E34:Y34,"<160")-Z34-AA34 -> 0 | AC34: =COUNTIF(E34:Y34,">160") -> 0 | AD34: =SUM(E34:Y34) -> 80
C35: =+C36 -> VINTIMILLA PABLO | T35: 2014-05-17 | AD35: =+AD36 -> 80
A36: 10108279 | B36: 104JS71 | C36: VINTIMILLA PABLO | D36: WISKY | T36: 80 | Z36: =COUNTIF(E36:Y36,"<120") -> 1 | AA36: =COUNTIF(E36:Y36,"<140")-Z36 -> 0 | AB36: =COUNTIF(E36:Y36,"<160")-Z36-AA36 -> 0 | AC36: =COUNTIF(E36:Y36,">160") -> 0 | AD36: =SUM(E36:Y36) -> 80
C37: =+C38 -> GONZALEZ BERNARDA | T37: 2014-05-17 | AD37: =+AD38 -> 80
A38: 10102303 | B38: 104JS91 | C38: GONZALEZ BERNARDA | D38: ASRAEL | T38: 80 | Z38: =COUNTIF(E38:Y38,"<120") -> 1 | AA38: =COUNTIF(E38:Y38,"<140")-Z38 -> 0 | AB38: =COUNTIF(E38:Y38,"<160")-Z38-AA38 -> 0 | AC38: =COUNTIF(E38:Y38,">160") -> 0 | AD38: =SUM(E38:Y38) -> 80
C39: =+C40 -> LOYOLA CLAUDIA MARIA | T39: 2014-05-17 | AD39: =+AD40 -> 80
A40: 10108276 | B40: 104JS67 | C40: LOYOLA CLAUDIA MARIA | D40: PATACON | T40: 80 | Z40: =COUNTIF(E40:Y40,"<120") -> 1 | AA40: =COUNTIF(E40:Y40,"<140")-Z40 -> 0 | AB40: =COUNTIF(E40:Y40,"<160")-Z40-AA40 -> 0 | AC40: =COUNTIF(E40:Y40,">160") -> 0 | AD40: =SUM(E40:Y40) -> 80
C41: =+C42 -> SERRANO FELIPE | T41: 2014-05-17 | X41: 2014-09-27 | AD41: =+AD42 -> 200
A42: 10102306 | B42: 104DU87 | C42: SERRANO FELIPE | D42: ZUCO | T42: 80 | X42: 120 | Z42: =COUNTIF(E42:Y42,"<120") -> 1 | AA42: =COUNTIF(E42:Y42,"<140")-Z42 -> 1 | AB42: =COUNTIF(E42:Y42,"<160")-Z42-AA42 -> 0 | AC42: =COUNTIF(E42:Y42,">160") -> 0 | AD42: =SUM(E42:Y42) -> 200
C43: =+C44 -> MALO TORAL DAVID | T43: 2014-05-17 | AD43: =+AD44 -> 80
A44: 10108275 | B44: 104JS66 | C44: MALO TORAL DAVID | D44: ARAGON | T44: 80 | Z44: =COUNTIF(E44:Y44,"<120") -> 1 | AA44: =COUNTIF(E44:Y44,"<140")-Z44 -> 0 | AB44: =COUNTIF(E44:Y44,"<160")-Z44-AA44 -> 0 | AC44: =COUNTIF(E44:Y44,">160") -> 0 | AD44: =SUM(E44:Y44) -> 80
C45: =+C46 -> GOMEZ ALEXANDER | T45: 2014-05-17 | AD45: =+AD46 -> 80
A46: 10085862 | B46: 104JV09 | C46: GOMEZ ALEXANDER | D46: FUERTE | T46: 80 | Z46: =COUNTIF(E46:Y46,"<120") -> 1 | AA46: =COUNTIF(E46:Y46,"<140")-Z46 -> 0 | AB46: =COUNTIF(E46:Y46,"<160")-Z46-AA46 -> 0 | AC46: =COUNTIF(E46:Y46,">160") -> 0 | AD46: =SUM(E46:Y46) -> 80
C47: =+C48 -> KOPPEL OSWALDO | X47: 2014-09-27 | AD47: =+AD48 -> 120
A48: 10108280 | B48: 104DT58 | C48: KOPPEL OSWALDO | D48: KAFIR HA | X48: 120 | Z48: =COUNTIF(E48:Y48,"<120") -> 0 | AA48: =COUNTIF(E48:Y48,"<140")-Z48 -> 1 | AB48: =COUNTIF(E48:Y48,"<160")-Z48-AA48 -> 0 | AC48: =COUNTIF(E48:Y48,">160") -> 0 | AD48: =SUM(E48:Y48) -> 120
C49: =+C50 -> MALO TORAL DAVID | X49: 2014-09-27 | AD49: =+AD50 -> 80
A50: 10108275 | B50: 104JS69 | C50: MALO TORAL DAVID | D50: MD KABUL | X50: 80 | Z50: =COUNTIF(E50:Y50,"<120") -> 1 | AA50: =COUNTIF(E50:Y50,"<140")-Z50 -> 0 | AB50: =COUNTIF(E50:Y50,"<160")-Z50-AA50 -> 0 | AC50: =COUNTIF(E50:Y50,">160") -> 0 | AD50: 80
C51: =+C52 -> CORNEJO MANUEL | X51: 2014-09-27 | AD51: =+AD52 -> 80
A52: 10054515 | B52: 104JW31 | C52: CORNEJO MANUEL | D52: GS HAAKIM | X52: 80 | Z52: =COUNTIF(E52:Y52,"<120") -> 1 | AA52: =COUNTIF(E52:Y52,"<140")-Z52 -> 0 | AB52: =COUNTIF(E52:Y52,"<160")-Z52-AA52 -> 0 | AC52: =COUNTIF(E52:Y52,">160") -> 0 | AD52: 80
C53: =+C54 -> LETORT JOSE IGNACIO | X53: 2014-09-27 | AD53: =+AD54 -> 80
A54: 10108281 | B54: 104JW32 | C54: LETORT JOSE IGNACIO | D54: SHAKIRA | X54: 80 | Z54: =COUNTIF(E54:Y54,"<120") -> 1 | AA54: =COUNTIF(E54:Y54,"<140")-Z54 -> 0 | AB54: =COUNTIF(E54:Y54,"<160")-Z54-AA54 -> 0 | AC54: =COUNTIF(E54:Y54,">160") -> 0 | AD54: 80
C55: =+C56 -> 0 | AD55: =+AD56 -> 0
Z56: =COUNTIF(E56:Y56,"<120") -> 0 | AA56: =COUNTIF(E56:Y56,"<140")-Z56 -> 0 | AB56: =COUNTIF(E56:Y56,"<160")-Z56-AA56 -> 0 | AC56: =COUNTIF(E56:Y56,">160") -> 0 | AD56: 0
C57: =+C58 -> 0 | AD57: =+AD58 -> 0
Z58: =COUNTIF(E58:Y58,"<120") -> 0 | AA58: =COUNTIF(E58:Y58,"<140")-Z58 -> 0 | AB58: =COUNTIF(E58:Y58,"<160")-Z58-AA58 -> 0 | AC58: =COUNTIF(E58:Y58,">160") -> 0 | AD58: 0
C59: =+C60 -> 0 | AD59: =+AD60 -> 0
Z60: =COUNTIF(E60:Y60,"<120") -> 0 | AA60: =COUNTIF(E60:Y60,"<140")-Z60 -> 0 | AB60: =COUNTIF(E60:Y60,"<160")-Z60-AA60 -> 0 | AC60: =COUNTIF(E60:Y60,">160") -> 0 | AD60: 0
C61: =+C62 -> 0 | AD61: =+AD62 -> 0
Z62: =COUNTIF(E62:Y62,"<120") -> 0 | AA62: =COUNTIF(E62:Y62,"<140")-Z62 -> 0 | AB62: =COUNTIF(E62:Y62,"<160")-Z62-AA62 -> 0 | AC62: =COUNTIF(E62:Y62,">160") -> 0 | AD62: 0
C63: =+C64 -> 0 | AD63: =+AD64 -> 0
Z64: =COUNTIF(E64:Y64,"<120") -> 0 | AA64: =COUNTIF(E64:Y64,"<140")-Z64 -> 0 | AB64: =COUNTIF(E64:Y64,"<160")-Z64-AA64 -> 0 | AC64: =COUNTIF(E64:Y64,">160") -> 0 | AD64: 0
C65: =+C66 -> 0 | AD65: =+AD66 -> 0
Z66: =COUNTIF(E66:Y66,"<120") -> 0 | AA66: =COUNTIF(E66:Y66,"<140")-Z66 -> 0 | AB66: =COUNTIF(E66:Y66,"<160")-Z66-AA66 -> 0 | AC66: =COUNTIF(E66:Y66,">160") -> 0 | AD66: 0
C67: =+C68 -> 0 | AD67: =+AD68 -> 0
Z68: =COUNTIF(E68:Y68,"<120") -> 0 | AA68: =COUNTIF(E68:Y68,"<140")-Z68 -> 0 | AB68: =COUNTIF(E68:Y68,"<160")-Z68-AA68 -> 0 | AC68: =COUNTIF(E68:Y68,">160") -> 0 | AD68: 0
C69: =+C70 -> 0 | AD69: =+AD70 -> 0
Z70: =COUNTIF(E70:Y70,"<120") -> 0 | AA70: =COUNTIF(E70:Y70,"<140")-Z70 -> 0 | AB70: =COUNTIF(E70:Y70,"<160")-Z70-AA70 -> 0 | AC70: =COUNTIF(E70:Y70,">160") -> 0 | AD70: 0
C71: =+C72 -> 0 | AD71: =+AD72 -> 0
Z72: =COUNTIF(E72:Y72,"<120") -> 0 | AA72: =COUNTIF(E72:Y72,"<140")-Z72 -> 0 | AB72: =COUNTIF(E72:Y72,"<160")-Z72-AA72 -> 0 | AC72: =COUNTIF(E72:Y72,">160") -> 0 | AD72: 0
C73: =+C74 -> 0 | AD73: =+AD74 -> 0
Z74: =COUNTIF(E74:Y74,"<120") -> 0 | AA74: =COUNTIF(E74:Y74,"<140")-Z74 -> 0 | AB74: =COUNTIF(E74:Y74,"<160")-Z74-AA74 -> 0 | AC74: =COUNTIF(E74:Y74,">160") -> 0 | AD74: 0
C75: =+C76 -> 0 | AD75: =+AD76 -> 0
Z76: =COUNTIF(E76:Y76,"<120") -> 0 | AA76: =COUNTIF(E76:Y76,"<140")-Z76 -> 0 | AB76: =COUNTIF(E76:Y76,"<160")-Z76-AA76 -> 0 | AC76: =COUNTIF(E76:Y76,">160") -> 0 | AD76: 0
C77: =+C78 -> 0 | AD77: =+AD78 -> 0
Z78: =COUNTIF(E78:Y78,"<120") -> 0 | AA78: =COUNTIF(E78:Y78,"<140")-Z78 -> 0 | AB78: =COUNTIF(E78:Y78,"<160")-Z78-AA78 -> 0 | AC78: =COUNTIF(E78:Y78,">160") -> 0 | AD78: 0
C79: =+C80 -> 0 | AD79: =+AD80 -> 0
Z80: =COUNTIF(E80:Y80,"<120") -> 0 | AA80: =COUNTIF(E80:Y80,"<140")-Z80 -> 0 | AB80: =COUNTIF(E80:Y80,"<160")-Z80-AA80 -> 0 | AC80: =COUNTIF(E80:Y80,">160") -> 0 | AD80: 0
C81: =+C82 -> ZZZZZZZ | AD81: =+AD82 -> 0
A82: 1000 | B82: 1000 | C82: ZZZZZZZ | L82: =IFERROR(#REF!,"") ->  | S82: =IFERROR(#REF!,"") ->  | Z82: =COUNTIF(E82:Y82,"<120") -> 0 | AA82: =COUNTIF(E82:Y82,"<140")-Z82 -> 0 | AB82: =COUNTIF(E82:Y82,"<160")-Z82-AA82 -> 0 | AC82: =COUNTIF(E82:Y82,">160") -> 0 | AD82: 0
S83: =IFERROR(#REF!,"") -> 

Sheet BINOMIOS N
B2: BINOMIOS CON MAYOR KILOMETRAJE CLASIFICADO
V3: =IFERROR(#REF!,"") ->  | X3: =IFERROR(#REF!,"") ->  | Y3: =IFERROR(#REF!,"") ->  | Z3: =IFERROR(#REF!,"") ->  | AA3: =IFERROR(#REF!,"") ->  | AB3: =IFERROR(#REF!,"") -> 
C4: JUVENIL | E4: KILOMETRAJE
A5: CODIGO | E5: 2009 | K5: 2010 | P5: 2011 | V5: 2012 | AC5: 2013 | AM5: 2014
A6: JINETE | B6: CABALLO | C6: JINETE | D6: CABALLO | E6: I CHONE | F6: II CHONE | G6: III CHONE | H6: IV CHONE | I6: V CHONE | J6: VI CHONE | K6: I CHONE | L6: II CHONE | M6: III CHONE | N6: IV CHONE | O6: V CHONE | P6: I CHONE | Q6: II CHONE | R6: III CHONE | S6: IV CHONE | T6: V CHONE | U6: VI CHONE | V6: I CHONE | W6: CUENCA | X6: II CHONE | Y6: III CHONE | Z6: IV CHONE | AA6: V CHONE | AB6: VI CHONE | AC6: I CHONE | AD6: II CHONE | AE6: III CHONE | AF6: IV CHONE | AG6: V CHONE | AH6: VI CHONE | AI6: VII CHONE | AJ6: VIII CHONE | AK6: IX CHONE | AL6: X CHONE | AM6: I CHONE | AN6: II CHONE | AO6: III CHONE | AP6: IV CHONE | AQ6: V CHONE | AR6: VI CHONE | AS6: VII CHONE | AT6: VIII CHONE | AU6: IX CHONE | AV6: X CHONE | AW6: ACUMULADO
A7: A059 | B7: C097 | C7: HECTOR ALMEIDA | D7: CENTAURO | F7: 40 | G7: 40 | H7: 60 | I7: 60 | J7: 40 | M7: 66 | O7: 83 | P7: 81 | Q7: 82 | R7: 87 | T7: 80 | V7: 81 | Z7: 80 | AC7: 80 | AE7: 99 | AH7: 83 | AO7: 84 | AW7: =SUM(E7:AV7) -> 1226
A8: A052 | B8: C136 | C8: DARQUEA BERNARDO | D8: FHARA CONEJA | E8: 40 | G8: 40 | H8: 60 | I8: 60 | L8: 80 | M8: 88 | P8: 81 | Q8: 82 | S8: 87 | T8: 80 | Z8: 80 | AB8: 52 | AE8: 82 | AG8: 81 | AO8: 49 | AW8: =SUM(E8:AV8) -> 1042
A9: A055 | B9: C093 | C9: WEEMAELS NATHALIE | D9: CG ALLASKI | Q9: 41 | R9: 44 | S9: 44 | T9: 62 | U9: 63 | V9: 81 | X9: 81 | Y9: 81 | Z9: 80 | AB9: 82 | AE9: 99 | AL9: 82 | AO9: 84 | AW9: 924
A10: A056 | B10: C094 | C10: MORILLO MAURICIO | D10: MISTERIO | P10: 62 | Q10: 62 | R10: 87 | T10: 80 | U10: 84 | V10: 81 | Z10: 80 | AA10: 90 | AB10: 82 | AC10: 80 | AE10: 82 | AL10: 82 | AM10: 43 | AW10: 995
A11: J031 | B11: C096 | C11: RIBADENEIRA SOFIA | D11: AR FAISAN | G11: 60 | N11: 80 | O11: 83 | P11: 81 | Q11: 82 | S11: 87 | U11: 84 | Z11: 80 | AB11: 82 | AE11: 99 | AG11: 81 | AL11: 82 | AW11: 981
A12: A068 | B12: C095 | C12: MONROY BAROJA MARIA FERNANDA | D12: CANELO | G12: 40 | H12: 60 | I12: 60 | J12: 60 | K12: 81 | N12: 80 | O12: 83 | P12: 62 | Q12: 62 | R12: 87 | S12: 65 | T12: 62 | U12: 63 | AW12: 865
A13: A046 | B13: C074 | C13: NOBOA MAURICIO | D13: WISKY | P13: 44 | Q13: 41 | R13: 44 | S13: 44 | T13: 43 | U13: 42 | V13: 62 | X13: 81 | Z13: 80 | AB13: 52 | AC13: 80 | AE13: 62 | AJ13: 68 | AK13: 53 | AW13: 796
A14: A067 | B14: C126 | C14: CANDO MARIO | D14: BRUMA | O14: 42 | P14: 44 | R14: 65 | T14: 62 | V14: 81 | X14: 81 | AB14: 82 | AC14: 80 | AE14: 99 | AO14: 84 | AW14: 720
A15: J008 | B15: C112 | C15: GOMEZ MICHILENA ROMMEL | D15: FELIPE | K15: 54 | L15: 40 | M15: 66 | N15: 60 | O15: 62 | P15: 81 | Q15: 82 | S15: 87 | X15: 80 | AE15: 99 | AW15: 711
A16: J055 | B16: C197 | C16: LOYOLA VINTIMILLA MARIA CLAUDIA | D16: PATACON | P16: 40 | Q16: 40 | R16: 40 | S16: 40 | W16: 80 | AD16: 58 | AF16: 63 | AJ16: 68 | AM16: 80 | AO16: 84 | AW16: 593
A17: J026 | B17: C092 | C17: NICOLAS MORENO | D17: DAMASCO | L17: 40 | M17: 44 | O17: 42 | Q17: 62 | T17: 62 | V17: 81 | X17: 81 | Z17: 80 | AA17: 90 | AC17: 80 | AW17: 662
A18: A060 | B18: C098 | C18: JUAN JOSE RECALDE | D18: BOM BOM | K18: 54 | L18: 40 | N18: 60 | S18: 87 | U18: 84 | V18: 81 | Z18: 80 | AA18: 90 | AB18: 82 | AW18: 658
A19: J021 | B19: C135 | C19: CORNEJO BURNEO MANUEL | D19: CARAGUAY CM | L19: 40 | M19: 44 | N19: 40 | O19: 42 | P19: 44 | Q19: 41 | R19: 65 | Y19: 81 | Z19: 80 | AK19: 90 | AW19: 567
A20: A019 | B20: C071 | C20: WLADIMIRO TORRES | D20: SARA | E20: 40 | H20: 40 | I20: 40 | J20: 40 | N20: 60 | P20: 81 | T20: 80 | U20: 63 | V20: 62 | AW20: 506
A21: J027 | B21: C100 | C21: MIÑO JOSE IGNACIO | D21: ALELI | L21: 40 | O21: 42 | Q21: 82 | R21: 87 | S21: 87 | V21: 81 | AW21: 419
A22: A068 | B22: C111 | C22: MONROY BAROJA MARIA FERNANDA | D22: GITANILLO | AA22: 90 | AB22: 82 | AC22: 80 | AH22: 83 | AL22: 82 | AW22: 417
AW23: =SUM(E23:AV23) -> 0
AW24: =SUM(E24:AV24) -> 0
E25: =IF(AND('V L AB'!D133>0,'V L CAB'!E161>0,'V L AB'!D133='V L CAB'!E161),'V L AB'!D133,IF(AND('V C AB'!D133>0,'V C CAB'!E161>0,'V C CAB'!E161='V C AB'!D133),'V C AB'!D133,"")) ->  | AW25: =SUM(E25:AV25) -> 0
E26: =IF(AND('V L AB'!D134>0,'V L CAB'!E162>0,'V L AB'!D134='V L CAB'!E162),'V L AB'!D134,IF(AND('V C AB'!D134>0,'V C CAB'!E162>0,'V C CAB'!E162='V C AB'!D134),'V C AB'!D134,"")) ->  | AW26: 0
E27: =IF(AND('V L AB'!D135>0,'V L CAB'!E163>0,'V L AB'!D135='V L CAB'!E163),'V L AB'!D135,IF(AND('V C AB'!D135>0,'V C CAB'!E163>0,'V C CAB'!E163='V C AB'!D135),'V C AB'!D135,"")) ->  | AW27: 0
E28: =IF(AND('V L AB'!D136>0,'V L CAB'!E164>0,'V L AB'!D136='V L CAB'!E164),'V L AB'!D136,IF(AND('V C AB'!D136>0,'V C CAB'!E164>0,'V C CAB'!E164='V C AB'!D136),'V C AB'!D136,"")) ->  | AW28: 0
E29: =IF('V L AB'!D207="",IF(AND('V C AB'!D207>0,'V C CAB'!E324>0,'V C CAB'!E324='V C AB'!D207),'V C AB'!D207,""),IF(AND('V L CAB'!E324>0,'V L AB'!D207='V L CAB'!E324),'V L AB'!D207,"")) ->  | AW29: 0
E30: =IF('V L JUV'!D86="",IF(AND('V C JUV'!D86>0,'V C CAB'!E301>0,'V C CAB'!E301='V C JUV'!D86),'V C JUV'!D86,""),IF(AND('V L CAB'!E301>0,'V L JUV'!D86='V L CAB'!E301),'V L JUV'!D86,"")) ->  | AW30: 0
A31: 1000 | B31: 1000 | C31: ZZZZZZZ | E31: =IF(AND('V L AB'!D140>0,'V L CAB'!E168>0),'V L AB'!D140,IF(AND('V C AB'!D140>0,'V C CAB'!E168>0),'V C AB'!D140,"")) ->  | P31: =IFERROR(#REF!,"") ->  | T31: =IFERROR(#REF!,"") ->  | U31: =IFERROR(#REF!,"") ->  | Y31: =IFERROR(#REF!,"") ->  | AB31: =IFERROR(#REF!,"") ->  | AD31: =IFERROR(#REF!,"") ->  | AF31: =IFERROR(#REF!,"") ->  | AG31: =IFERROR(#REF!,"") ->  | AH31: =IFERROR(#REF!,"") ->  | AI31: =IFERROR(#REF!,"") ->  | AJ31: =IFERROR(#REF!,"") ->  | AK31: =IFERROR(#REF!,"") ->  | AL31: =IFERROR(#REF!,"") ->  | AW31: 0
E32: =IF(AND('V L AB'!D141>0,'V L CAB'!E169>0),'V L AB'!D141,IF(AND('V C AB'!D141>0,'V C CAB'!E169>0),'V C AB'!D141,"")) ->  | AD32: =IFERROR(#REF!,"") ->  | AF32: =IFERROR(#REF!,"") ->  | AG32: =IFERROR(#REF!,"") ->  | AH32: =IFERROR(#REF!,"") ->  | AI32: =IFERROR(#REF!,"") ->  | AJ32: =IFERROR(#REF!,"") ->  | AK32: =IFERROR(#REF!,"") ->  | AL32: =IFERROR(#REF!,"") ->  | AW32: 0

Sheet CLAS JUV
B1: DERECHO ADQUIRIDO
E2: COPETENCIAS FEI
C4: JUVENIL | E4: ESTADO DE CLASIFICIÓN | F4: HABILITADO 24 MESES
C5: KILOMETROS | D5: NOVICIOS
A6: ANTERIOR | B6: NUEVO | C6: JINETE
A7: =IF('V C JUV'!A7="","",'V C JUV'!A7) -> J021 | B7: =IF('V C JUV'!B7="","",'V C JUV'!B7) -> J | C7: =IF('V C JUV'!C7="","",'V C JUV'!C7) -> ALARCON MONCA ESTEBAN ANDRES | D7: =IF(OR('V C JUV'!AV93+'V C JUV'!AW93>=2,AND('V C JUV'!AV93+'V C JUV'!AW93>=1,'V L JUV'!AW93>=40),'V C JUV'!AX93>1),"CLASIFICADO A 80 Km NOVICIOS","") ->  | E7: =IF(C7='V C JUV'!C7,IF(OR('V C JUV'!AZ7="",'V C JUV'!AZ7="HABILITADO TEMPORALMENTE A COMPETENCIAS FEI"),"",+'V C JUV'!AZ7),"ERROR") -> NO INICIA SU CLASIFICACIÓN | F7: =IF(B7='V C JUV'!B7,IF(+'V C JUV'!AZ7="HABILITADO TEMPORALMENTE A COMPETENCIAS FEI","HABILITADO TEMPORALMENTE A COMPETENCIAS FEI",""),"ERROR") -> 
A8: =IF('V C JUV'!A8="","",'V C JUV'!A8) ->  | B8: =IF('V C JUV'!B8="","",'V C JUV'!B8) -> I012 | C8: =IF('V C JUV'!C8="","",'V C JUV'!C8) -> ALZAMORA CAROLINA | D8: =IF(OR('V C JUV'!AV94+'V C JUV'!AW94>=2,AND('V C JUV'!AV94+'V C JUV'!AW94>=1,'V L JUV'!AW94>=40),'V C JUV'!AX94>1),"CLASIFICADO A 80 Km NOVICIOS","") ->  | E8: =IF(C8='V C JUV'!C8,IF(OR('V C JUV'!AZ8="",'V C JUV'!AZ8="HABILITADO TEMPORALMENTE A COMPETENCIAS FEI"),"",+'V C JUV'!AZ8),"ERROR") -> INICIO SU CLASIFICACIÓN | F8: =IF(B8='V C JUV'!B8,IF(+'V C JUV'!AZ8="HABILITADO TEMPORALMENTE A COMPETENCIAS FEI","HABILITADO TEMPORALMENTE A COMPETENCIAS FEI",""),"ERROR") -> 
A9: =IF('V C JUV'!A9="","",'V C JUV'!A9) ->  | B9: =IF('V C JUV'!B9="","",'V C JUV'!B9) -> J082 | C9: =IF('V C JUV'!C9="","",'V C JUV'!C9) -> ANDRADE ANDRADE EMILIA | D9: =IF(OR('V C JUV'!AV95+'V C JUV'!AW95>=2,AND('V C JUV'!AV95+'V C JUV'!AW95>=1,'V L JUV'!AW95>=40),'V C JUV'!AX95>1),"CLASIFICADO A 80 Km NOVICIOS","") ->  | E9: =IF(C9='V C JUV'!C9,IF(OR('V C JUV'!AZ9="",'V C JUV'!AZ9="HABILITADO TEMPORALMENTE A COMPETENCIAS FEI"),"",+'V C JUV'!AZ9),"ERROR") -> HABILITADO A 80KM VELOCIDAD CONTROLADA | F9: =IF(B9='V C JUV'!B9,IF(+'V C JUV'!AZ9="HABILITADO TEMPORALMENTE A COMPETENCIAS FEI","HABILITADO TEMPORALMENTE A COMPETENCIAS FEI",""),"ERROR") -> 
A10: =IF('V C JUV'!A10="","",'V C JUV'!A10) ->  | B10: =IF('V C JUV'!B10="","",'V C JUV'!B10) -> J083 | C10: =IF('V C JUV'!C10="","",'V C JUV'!C10) -> ANDRADE ANDRADE PAULA | D10: =IF(OR('V C JUV'!AV96+'V C JUV'!AW96>=2,AND('V C JUV'!AV96+'V C JUV'!AW96>=1,'V L JUV'!AW96>=40),'V C JUV'!AX96>1),"CLASIFICADO A 80 Km NOVICIOS","") ->  | E10: =IF(C10='V C JUV'!C10,IF(OR('V C JUV'!AZ10="",'V C JUV'!AZ10="HABILITADO TEMPORALMENTE A COMPETENCIAS FEI"),"",+'V C JUV'!AZ10),"ERROR") -> INICIO SU CLASIFICACIÓN | F10: =IF(B10='V C JUV'!B10,IF(+'V C JUV'!AZ10="HABILITADO TEMPORALMENTE A COMPETENCIAS FEI","HABILITADO TEMPORALMENTE A COMPETENCIAS FEI",""),"ERROR") -> 
A11: =IF('V C JUV'!A11="","",'V C JUV'!A11) -> I043 | B11: =IF('V C JUV'!B11="","",'V C JUV'!B11) -> J034 | C11: =IF('V C JUV'!C11="","",'V C JUV'!C11) -> ANDRADE JOSE DANIEL | D11: =IF(OR('V C JUV'!AV97+'V C JUV'!AW97>=2,AND('V C JUV'!AV97+'V C JUV'!AW97>=1,'V L JUV'!AW97>=40),'V C JUV'!AX97>1),"CLASIFICADO A 80 Km NOVICIOS","") -> CLASIFICADO A 80 Km NOVICIOS | E11: =IF(C11='V C JUV'!C11,IF(OR('V C JUV'!AZ11="",'V C JUV'!AZ11="HABILITADO TEMPORALMENTE A COMPETENCIAS FEI"),"",+'V C JUV'!AZ11),"ERROR") ->  | F11: =IF(B11='V C JUV'!B11,IF(+'V C JUV'!AZ11="HABILITADO TEMPORALMENTE A COMPETENCIAS FEI","HABILITADO TEMPORALMENTE A COMPETENCIAS FEI",""),"ERROR") -> HABILITADO TEMPORALMENTE A COMPETENCIAS FEI
A12: =IF('V C JUV'!A12="","",'V C JUV'!A12) -> J008 | B12: =IF('V C JUV'!B12="","",'V C JUV'!B12) -> J | C12: =IF('V C JUV'!C12="","",'V C JUV'!C12) -> ASTUDILLO ESTALIN | D12: =IF(OR('V C JUV'!AV98+'V C JUV'!AW98>=2,AND('V C JUV'!AV98+'V C JUV'!AW98>=1,'V L JUV'!AW98>=40),'V C JUV'!AX98>1),"CLASIFICADO A 80 Km NOVICIOS","") ->  | E12: =IF(C12='V C JUV'!C12,IF(OR('V C JUV'!AZ12="",'V C JUV'!AZ12="HABILITADO TEMPORALMENTE A COMPETENCIAS FEI"),"",+'V C JUV'!AZ12),"ERROR") -> NO INICIA SU CLASIFICACIÓN | F12: =IF(B12='V C JUV'!B12,IF(+'V C JUV'!AZ12="HABILITADO TEMPORALMENTE A COMPETENCIAS FEI","HABILITADO TEMPORALMENTE A COMPETENCIAS FEI",""),"ERROR") -> 
A13: =IF('V C JUV'!A13="","",'V C JUV'!A13) -> I054 | B13: =IF('V C JUV'!B13="","",'V C JUV'!B13) -> J018 | C13: =IF('V C JUV'!C13="","",'V C JUV'!C13) -> BACA PEDRO JOSE | D13: =IF(OR('V C JUV'!AV99+'V C JUV'!AW99>=2,AND('V C JUV'!AV99+'V C JUV'!AW99>=1,'V L JUV'!AW99>=40),'V C JUV'!AX99>1),"CLASIFICADO A 80 Km NOVICIOS","") -> CLASIFICADO A 80 Km NOVICIOS | E13: =IF(C13='V C JUV'!C13,IF(OR('V C JUV'!AZ13="",'V C JUV'!AZ13="HABILITADO TEMPORALMENTE A COMPETENCIAS FEI"),"",+'V C JUV'!AZ13),"ERROR") -> HABILITADO A 80KM VELOCIDAD CONTROLADA | F13: =IF(B13='V C JUV'!B13,IF(+'V C JUV'!AZ13="HABILITADO TEMPORALMENTE A COMPETENCIAS FEI","HABILITADO TEMPORALMENTE A COMPETENCIAS FEI",""),"ERROR") -> 
A14: =IF('V C JUV'!A14="","",'V C JUV'!A14) -> C | B14: =IF('V C JUV'!B14="","",'V C JUV'!B14) -> J058 | C14: =IF('V C JUV'!C14="","",'V C JUV'!C14) -> BERNAL MARTIN | D14: =IF(OR('V C JUV'!AV100+'V C JUV'!AW100>=2,AND('V C JUV'!AV100+'V C JUV'!AW100>=1,'V L JUV'!AW100>=40),'V C JUV'!AX100>1),"CLASIFICADO A 80 Km NOVICIOS","") ->  | E14: =IF(C14='V C JUV'!C14,IF(OR('V C JUV'!AZ14="",'V C JUV'!AZ14="HABILITADO TEMPORALMENTE A COMPETENCIAS FEI"),"",+'V C JUV'!AZ14),"ERROR") -> INICIO SU CLASIFICACIÓN | F14: =IF(B14='V C JUV'!B14,IF(+'V C JUV'!AZ14="HABILITADO TEMPORALMENTE A COMPETENCIAS FEI","HABILITADO TEMPORALMENTE A COMPETENCIAS FEI",""),"ERROR") -> 
A15: =IF('V C JUV'!A15="","",'V C JUV'!A15) ->  | B15: =IF('V C JUV'!B15="","",'V C JUV'!B15) -> J091 | C15: =IF('V C JUV'!C15="","",'V C JUV'!C15) -> BERREZUETA DELGADO PABLO SANTI | D15: =IF(OR('V C JUV'!AV101+'V C JUV'!AW101>=2,AND('V C JUV'!AV101+'V C JUV'!AW101>=1,'V L JUV'!AW101>=40),'V C JUV'!AX101>1),"CLASIFICADO A 80 Km NOVICIOS","") -> CLASIFICADO A 80 Km NOVICIOS | E15: =IF(C15='V C JUV'!C15,IF(OR('V C JUV'!AZ15="",'V C JUV'!AZ15="HABILITADO TEMPORALMENTE A COMPETENCIAS FEI"),"",+'V C JUV'!AZ15),"ERROR") -> HABILITADO A 80KM VELOCIDAD CONTROLADA | F15: =IF(B15='V C JUV'!B15,IF(+'V C JUV'!AZ15="HABILITADO TEMPORALMENTE A COMPETENCIAS FEI","HABILITADO TEMPORALMENTE A COMPETENCIAS FEI",""),"ERROR") -> 
A16: =IF('V C JUV'!A16="","",'V C JUV'!A16) ->  | B16: =IF('V C JUV'!B16="","",'V C JUV'!B16) -> C | C16: =IF('V C JUV'!C16="","",'V C JUV'!C16) -> BOADA ABAD DOMENICA | D16: =IF(OR('V C JUV'!AV102+'V C JUV'!AW102>=2,AND('V C JUV'!AV102+'V C JUV'!AW102>=1,'V L JUV'!AW102>=40),'V C JUV'!AX102>1),"CLASIFICADO A 80 Km NOVICIOS","") -> CLASIFICADO A 80 Km NOVICIOS | E16: =IF(C16='V C JUV'!C16,IF(OR('V C JUV'!AZ16="",'V C JUV'!AZ16="HABILITADO TEMPORALMENTE A COMPETENCIAS FEI"),"",+'V C JUV'!AZ16),"ERROR") -> HABILITADO A 80KM VELOCIDAD CONTROLADA | F16: =IF(B16='V C JUV'!B16,IF(+'V C JUV'!AZ16="HABILITADO TEMPORALMENTE A COMPETENCIAS FEI","HABILITADO TEMPORALMENTE A COMPETENCIAS FEI",""),"ERROR") -> 
A17: =IF('V C JUV'!A17="","",'V C JUV'!A17) -> J016 | B17: =IF('V C JUV'!B17="","",'V C JUV'!B17) -> J | C17: =IF('V C JUV'!C17="","",'V C JUV'!C17) -> BUITRON DANIEL | D17: =IF(OR('V C JUV'!AV103+'V C JUV'!AW103>=2,AND('V C JUV'!AV103+'V C JUV'!AW103>=1,'V L JUV'!AW103>=40),'V C JUV'!AX103>1),"CLASIFICADO A 80 Km NOVICIOS","") -> CLASIFICADO A 80 Km NOVICIOS | E17: =IF(C17='V C JUV'!C17,IF(OR('V C JUV'!AZ17="",'V C JUV'!AZ17="HABILITADO TEMPORALMENTE A COMPETENCIAS FEI"),"",+'V C JUV'!AZ17),"ERROR") -> NO INICIA SU CLASIFICACIÓN | F17: =IF(B17='V C JUV'!B17,IF(+'V C JUV'!AZ17="HABILITADO TEMPORALMENTE A COMPETENCIAS FEI","HABILITADO TEMPORALMENTE A COMPETENCIAS FEI",""),"ERROR") -> 
A18: =IF('V C JUV'!A18="","",'V C JUV'!A18) -> C | B18: =IF('V C JUV'!B18="","",'V C JUV'!B18) -> C | C18: =IF('V C JUV'!C18="","",'V C JUV'!C18) -> BURBANO PEZANTES PEDRO JOSE | D18: =IF(OR('V C JUV'!AV104+'V C JUV'!AW104>=2,AND('V C JUV'!AV104+'V C JUV'!AW104>=1,'V L JUV'!AW104>=40),'V C JUV'!AX104>1),"CLASIFICADO A 80 Km NOVICIOS","") -> CLASIFICADO A 80 Km NOVICIOS | E18: =IF(C18='V C JUV'!C18,IF(OR('V C JUV'!AZ18="",'V C JUV'!AZ18="HABILITADO TEMPORALMENTE A COMPETENCIAS FEI"),"",+'V C JUV'!AZ18),"ERROR") -> NO INICIA SU CLASIFICACIÓN | F18: =IF(B18='V C JUV'!B18,IF(+'V C JUV'!AZ18="HABILITADO TEMPORALMENTE A COMPETENCIAS FEI","HABILITADO TEMPORALMENTE A COMPETENCIAS FEI",""),"ERROR") -> 
A19: =IF('V C JUV'!A19="","",'V C JUV'!A19) -> C | B19: =IF('V C JUV'!B19="","",'V C JUV'!B19) -> C | C19: =IF('V C JUV'!C19="","",'V C JUV'!C19) -> BURBANO SERRANO JAIME SEBASTIAN | D19: =IF(OR('V C JUV'!AV105+'V C JUV'!AW105>=2,AND('V C JUV'!AV105+'V C JUV'!AW105>=1,'V L JUV'!AW105>=40),'V C JUV'!AX105>1),"CLASIFICADO A 80 Km NOVICIOS","") -> CLASIFICADO A 80 Km NOVICIOS | E19: =IF(C19='V C JUV'!C19,IF(OR('V C JUV'!AZ19="",'V C JUV'!AZ19="HABILITADO TEMPORALMENTE A COMPETENCIAS FEI"),"",+'V C JUV'!AZ19),"ERROR") -> HABILITADO A 80KM VELOCIDAD CONTROLADA | F19: =IF(B19='V C JUV'!B19,IF(+'V C JUV'!AZ19="HABILITADO TEMPORALMENTE A COMPETENCIAS FEI","HABILITADO TEMPORALMENTE A COMPETENCIAS FEI",""),"ERROR") -> 
A20: =IF('V C JUV'!A20="","",'V C JUV'!A20) -> C | B20: =IF('V C JUV'!B20="","",'V C JUV'!B20) -> J067 | C20: =IF('V C JUV'!C20="","",'V C JUV'!C20) -> BURBANO VILLAVICENCIO JAIME SEBASTIAN | D20: =IF(OR('V C JUV'!AV106+'V C JUV'!AW106>=2,AND('V C JUV'!AV106+'V C JUV'!AW106>=1,'V L JUV'!AW106>=40),'V C JUV'!AX106>1),"CLASIFICADO A 80 Km NOVICIOS","") ->  | E20: =IF(C20='V C JUV'!C20,IF(OR('V C JUV'!AZ20="",'V C JUV'!AZ20="HABILITADO TEMPORALMENTE A COMPETENCIAS FEI"),"",+'V C JUV'!AZ20),"ERROR") -> HABILITADO A 80KM VELOCIDAD CONTROLADA | F20: =IF(B20='V C JUV'!B20,IF(+'V C JUV'!AZ20="HABILITADO TEMPORALMENTE A COMPETENCIAS FEI","HABILITADO TEMPORALMENTE A COMPETENCIAS FEI",""),"ERROR") -> 
A21: =IF('V C JUV'!A21="","",'V C JUV'!A21) ->  | B21: =IF('V C JUV'!B21="","",'V C JUV'!B21) -> I007 | C21: =IF('V C JUV'!C21="","",'V C JUV'!C21) -> CHIRIBOGA ALFREDO | D21: =IF(OR('V C JUV'!AV107+'V C JUV'!AW107>=2,AND('V C JUV'!AV107+'V C JUV'!AW107>=1,'V L JUV'!AW107>=40),'V C JUV'!AX107>1),"CLASIFICADO A 80 Km NOVICIOS","") ->  | E21: =IF(C21='V C JUV'!C21,IF(OR('V C JUV'!AZ21="",'V C JUV'!AZ21="HABILITADO TEMPORALMENTE A COMPETENCIAS FEI"),"",+'V C JUV'!AZ21),"ERROR") -> INICIO SU CLASIFICACIÓN | F21: =IF(B21='V C JUV'!B21,IF(+'V C JUV'!AZ21="HABILITADO TEMPORALMENTE A COMPETENCIAS FEI","HABILITADO TEMPORALMENTE A COMPETENCIAS FEI",""),"ERROR") -> 
A22: =IF('V C JUV'!A22="","",'V C JUV'!A22) -> I049 | B22: =IF('V C JUV'!B22="","",'V C JUV'!B22) -> J | C22: =IF('V C JUV'!C22="","",'V C JUV'!C22) -> CHIRIBOGA DANIEL | D22: =IF(OR('V C JUV'!AV108+'V C JUV'!AW108>=2,AND('V C JUV'!AV108+'V C JUV'!AW108>=1,'V L JUV'!AW108>=40),'V C JUV'!AX108>1),"CLASIFICADO A 80 Km NOVICIOS","") ->  | E22: =IF(C22='V C JUV'!C22,IF(OR('V C JUV'!AZ22="",'V C JUV'!AZ22="HABILITADO TEMPORALMENTE A COMPETENCIAS FEI"),"",+'V C JUV'!AZ22),"ERROR") -> INICIO SU CLASIFICACIÓN | F22: =IF(B22='V C JUV'!B22,IF(+'V C JUV'!AZ22="HABILITADO TEMPORALMENTE A COMPETENCIAS FEI","HABILITADO TEMPORALMENTE A COMPETENCIAS FEI",""),"ERROR") -> 
A23: =IF('V C JUV'!A23="","",'V C JUV'!A23) -> I031 | B23: =IF('V C JUV'!B23="","",'V C JUV'!B23) -> J048 | C23: =IF('V C JUV'!C23="","",'V C JUV'!C23) -> CONTRERAS MARIA ALICIA | D23: =IF(OR('V C JUV'!AV109+'V C JUV'!AW109>=2,AND('V C JUV'!AV109+'V C JUV'!AW109>=1,'V L JUV'!AW109>=40),'V C JUV'!AX109>1),"CLASIFICADO A 80 Km NOVICIOS","") ->  | E23: =IF(C23='V C JUV'!C23,IF(OR('V C JUV'!AZ23="",'V C JUV'!AZ23="HABILITADO TEMPORALMENTE A COMPETENCIAS FEI"),"",+'V C JUV'!AZ23),"ERROR") -> HABILITADO A 80KM VELOCIDAD CONTROLADA | F23: =IF(B23='V C JUV'!B23,IF(+'V C JUV'!AZ23="HABILITADO TEMPORALMENTE A COMPETENCIAS FEI","HABILITADO TEMPORALMENTE A COMPETENCIAS FEI",""),"ERROR") -> 
A24: =IF('V C JUV'!A24="","",'V C JUV'!A24) ->  | B24: =IF('V C JUV'!B24="","",'V C JUV'!B24) -> J084 | C24: =IF('V C JUV'!C24="","",'V C JUV'!C24) -> CORDOVA MUÑOZ SUSANA MICHELLE | D24: =IF(OR('V C JUV'!AV110+'V C JUV'!AW110>=2,AND('V C JUV'!AV110+'V C JUV'!AW110>=1,'V L JUV'!AW110>=40),'V C JUV'!AX110>1),"CLASIFICADO A 80 Km NOVICIOS","") ->  | E24: =IF(C24='V C JUV'!C24,IF(OR('V C JUV'!AZ24="",'V C JUV'!AZ24="HABILITADO TEMPORALMENTE A COMPETENCIAS FEI"),"",+'V C JUV'!AZ24),"ERROR") -> INICIO SU CLASIFICACIÓN | F24: =IF(B24='V C JUV'!B24,IF(+'V C JUV'!AZ24="HABILITADO TEMPORALMENTE A COMPETENCIAS FEI","HABILITADO TEMPORALMENTE A COMPETENCIAS FEI",""),"ERROR") -> 
A25: =IF('V C JUV'!A25="","",'V C JUV'!A25) -> J026 | B25: =IF('V C JUV'!B25="","",'V C JUV'!B25) -> J021 | C25: =IF('V C JUV'!C25="","",'V C JUV'!C25) -> CORNEJO BURNEO MANUEL | D25: =IF(OR('V C JUV'!AV116+'V C JUV'!AW116>=2,AND('V C JUV'!AV116+'V C JUV'!AW116>=1,'V L JUV'!AW116>=40),'V C JUV'!AX116>1),"CLASIFICADO A 80 Km NOVICIOS","") ->  | E25: =IF(C25='V C JUV'!C25,IF(OR('V C JUV'!AZ25="",'V C JUV'!AZ25="HABILITADO TEMPORALMENTE A COMPETENCIAS FEI"),"",+'V C JUV'!AZ25),"ERROR") ->  | F25: =IF(B25='V C JUV'!B25,IF(+'V C JUV'!AZ25="HABILITADO TEMPORALMENTE A COMPETENCIAS FEI","HABILITADO TEMPORALMENTE A COMPETENCIAS FEI",""),"ERROR") -> HABILITADO TEMPORALMENTE A COMPETENCIAS FEI
A26: =IF('V C JUV'!A26="","",'V C JUV'!A26) -> J019 | B26: =IF('V C JUV'!B26="","",'V C JUV'!B26) -> J015 | C26: =IF('V C JUV'!C26="","",'V C JUV'!C26) -> DARQUEA ANDRES | D26: =IF(OR('V C JUV'!AV117+'V C JUV'!AW117>=2,AND('V C JUV'!AV117+'V C JUV'!AW117>=1,'V L JUV'!AW117>=40),'V C JUV'!AX117>1),"CLASIFICADO A 80 Km NOVICIOS","") ->  | E26: =IF(C26='V C JUV'!C26,IF(OR('V C JUV'!AZ26="",'V C JUV'!AZ26="HABILITADO TEMPORALMENTE A COMPETENCIAS FEI"),"",+'V C JUV'!AZ26),"ERROR") -> HABILITADO A 80KM VELOCIDAD CONTROLADA | F26: =IF(B26='V C JUV'!B26,IF(+'V C JUV'!AZ26="HABILITADO TEMPORALMENTE A COMPETENCIAS FEI","HABILITADO TEMPORALMENTE A COMPETENCIAS FEI",""),"ERROR") -> 
A27: =IF('V C JUV'!A27="","",'V C JUV'!A27) ->  | B27: =IF('V C JUV'!B27="","",'V C JUV'!B27) -> J089 | C27: =IF('V C JUV'!C27="","",'V C JUV'!C27) -> DARQUEA DAVALOS ANA MARIA | D27: =IF(OR('V C JUV'!AV118+'V C JUV'!AW118>=2,AND('V C JUV'!AV118+'V C JUV'!AW118>=1,'V L JUV'!AW118>=40),'V C JUV'!AX118>1),"CLASIFICADO A 80 Km NOVICIOS","") ->  | E27: =IF(C27='V C JUV'!C27,IF(OR('V C JUV'!AZ27="",'V C JUV'!AZ27="HABILITADO TEMPORALMENTE A COMPETENCIAS FEI"),"",+'V C JUV'!AZ27),"ERROR") -> HABILITADO A 80KM VELOCIDAD CONTROLADA | F27: =IF(B27='V C JUV'!B27,IF(+'V C JUV'!AZ27="HABILITADO TEMPORALMENTE A COMPETENCIAS FEI","HABILITADO TEMPORALMENTE A COMPETENCIAS FEI",""),"ERROR") -> 
A28: =IF('V C JUV'!A28="","",'V C JUV'!A28) ->  | B28: =IF('V C JUV'!B28="","",'V C JUV'!B28) -> J040 | C28: =IF('V C JUV'!C28="","",'V C JUV'!C28) -> DARQUEA GABRIEL IGNACIO | D28: =IF(OR('V C JUV'!AV119+'V C JUV'!AW119>=2,AND('V C JUV'!AV119+'V C JUV'!AW119>=1,'V L JUV'!AW119>=40),'V C JUV'!AX119>1),"CLASIFICADO A 80 Km NOVICIOS","") ->  | E28: =IF(C28='V C JUV'!C28,IF(OR('V C JUV'!AZ28="",'V C JUV'!AZ28="HABILITADO TEMPORALMENTE A COMPETENCIAS FEI"),"",+'V C JUV'!AZ28),"ERROR") -> INICIO SU CLASIFICACIÓN | F28: =IF(B28='V C JUV'!B28,IF(+'V C JUV'!AZ28="HABILITADO TEMPORALMENTE A COMPETENCIAS FEI","HABILITADO TEMPORALMENTE A COMPETENCIAS FEI",""),"ERROR") -> 
A29: =IF('V C JUV'!A29="","",'V C JUV'!A29) -> J031 | B29: =IF('V C JUV'!B29="","",'V C JUV'!B29) -> J | C29: =IF('V C JUV'!C29="","",'V C JUV'!C29) -> DARQUEA JIJON ANDRES | D29: =IF(OR('V C JUV'!AV120+'V C JUV'!AW120>=2,AND('V C JUV'!AV120+'V C JUV'!AW120>=1,'V L JUV'!AW120>=40),'V C JUV'!AX120>1),"CLASIFICADO A 80 Km NOVICIOS","") ->  | E29: =IF(C29='V C JUV'!C29,IF(OR('V C JUV'!AZ29="",'V C JUV'!AZ29="HABILITADO TEMPORALMENTE A COMPETENCIAS FEI"),"",+'V C JUV'!AZ29),"ERROR") -> NO INICIA SU CLASIFICACIÓN | F29: =IF(B29='V C JUV'!B29,IF(+'V C JUV'!AZ29="HABILITADO TEMPORALMENTE A COMPETENCIAS FEI","HABILITADO TEMPORALMENTE A COMPETENCIAS FEI",""),"ERROR") -> 
A30: =IF('V C JUV'!A30="","",'V C JUV'!A30) -> J003 | B30: =IF('V C JUV'!B30="","",'V C JUV'!B30) -> J024 | C30: =IF('V C JUV'!C30="","",'V C JUV'!C30) -> DARQUEA RAFAELA | D30: =IF(OR('V C JUV'!AV121+'V C JUV'!AW121>=2,AND('V C JUV'!AV121+'V C JUV'!AW121>=1,'V L JUV'!AW121>=40),'V C JUV'!AX121>1),"CLASIFICADO A 80 Km NOVICIOS","") ->  | E30: =IF(C30='V C JUV'!C30,IF(OR('V C JUV'!AZ30="",'V C JUV'!AZ30="HABILITADO TEMPORALMENTE A COMPETENCIAS FEI"),"",+'V C JUV'!AZ30),"ERROR") ->  | F30: =IF(B30='V C JUV'!B30,IF(+'V C JUV'!AZ30="HABILITADO TEMPORALMENTE A COMPETENCIAS FEI","HABILITADO TEMPORALMENTE A COMPETENCIAS FEI",""),"ERROR") -> HABILITADO TEMPORALMENTE A COMPETENCIAS FEI
A31: =IF('V C JUV'!A31="","",'V C JUV'!A31) -> J009 | B31: =IF('V C JUV'!B31="","",'V C JUV'!B31) -> J019 | C31: =IF('V C JUV'!C31="","",'V C JUV'!C31) -> DARQUEA RICARDO | D31: =IF(OR('V C JUV'!AV122+'V C JUV'!AW122>=2,AND('V C JUV'!AV122+'V C JUV'!AW122>=1,'V L JUV'!AW122>=40),'V C JUV'!AX122>1),"CLASIFICADO A 80 Km NOVICIOS","") ->  | E31: =IF(C31='V C JUV'!C31,IF(OR('V C JUV'!AZ31="",'V C JUV'!AZ31="HABILITADO TEMPORALMENTE A COMPETENCIAS FEI"),"",+'V C JUV'!AZ31),"ERROR") ->  | F31: =IF(B31='V C JUV'!B31,IF(+'V C JUV'!AZ31="HABILITADO TEMPORALMENTE A COMPETENCIAS FEI","HABILITADO TEMPORALMENTE A COMPETENCIAS FEI",""),"ERROR") -> HABILITADO TEMPORALMENTE A COMPETENCIAS FEI
A32: =IF('V C JUV'!A32="","",'V C JUV'!A32) -> C | B32: =IF('V C JUV'!B32="","",'V C JUV'!B32) -> J068 | C32: =IF('V C JUV'!C32="","",'V C JUV'!C32) -> DAVALOS LARIVA MARIA EMILIA | D32: =IF(OR('V C JUV'!AV123+'V C JUV'!AW123>=2,AND('V C JUV'!AV123+'V C JUV'!AW123>=1,'V L JUV'!AW123>=40),'V C JUV'!AX123>1),"CLASIFICADO A 80 Km NOVICIOS","") ->  | E32: =IF(C32='V C JUV'!C32,IF(OR('V C JUV'!AZ32="",'V C JUV'!AZ32="HABILITADO TEMPORALMENTE A COMPETENCIAS FEI"),"",+'V C JUV'!AZ32),"ERROR") -> HABILITADO A 80KM VELOCIDAD CONTROLADA | F32: =IF(B32='V C JUV'!B32,IF(+'V C JUV'!AZ32="HABILITADO TEMPORALMENTE A COMPETENCIAS FEI","HABILITADO TEMPORALMENTE A COMPETENCIAS FEI",""),"ERROR") -> 
A33: =IF('V C JUV'!A33="","",'V C JUV'!A33) ->  | B33: =IF('V C JUV'!B33="","",'V C JUV'!B33) -> J009 | C33: =IF('V C JUV'!C33="","",'V C JUV'!C33) -> DEL POZO MARTINA | D33: =IF(OR('V C JUV'!AV124+'V C JUV'!AW124>=2,AND('V C JUV'!AV124+'V C JUV'!AW124>=1,'V L JUV'!AW124>=40),'V C JUV'!AX124>1),"CLASIFICADO A 80 Km NOVICIOS","") ->  | E33: =IF(C33='V C JUV'!C33,IF(OR('V C JUV'!AZ33="",'V C JUV'!AZ33="HABILITADO TEMPORALMENTE A COMPETENCIAS FEI"),"",+'V C JUV'!AZ33),"ERROR") -> HABILITADO A 80KM VELOCIDAD CONTROLADA | F33: =IF(B33='V C JUV'!B33,IF(+'V C JUV'!AZ33="HABILITADO TEMPORALMENTE A COMPETENCIAS FEI","HABILITADO TEMPORALMENTE A COMPETENCIAS FEI",""),"ERROR") -> 
A34: =IF('V C JUV'!A34="","",'V C JUV'!A34) -> J017 | B34: =IF('V C JUV'!B34="","",'V C JUV'!B34) -> J032 | C34: =IF('V C JUV'!C34="","",'V C JUV'!C34) -> DELGADO JUAN | D34: =IF(OR('V C JUV'!AV125+'V C JUV'!AW125>=2,AND('V C JUV'!AV125+'V C JUV'!AW125>=1,'V L JUV'!AW125>=40),'V C JUV'!AX125>1),"CLASIFICADO A 80 Km NOVICIOS","") ->  | E34: =IF(C34='V C JUV'!C34,IF(OR('V C JUV'!AZ34="",'V C JUV'!AZ34="HABILITADO TEMPORALMENTE A COMPETENCIAS FEI"),"",+'V C JUV'!AZ34),"ERROR") -> INICIO SU CLASIFICACIÓN | F34: =IF(B34='V C JUV'!B34,IF(+'V C JUV'!AZ34="HABILITADO TEMPORALMENTE A COMPETENCIAS FEI","HABILITADO TEMPORALMENTE A COMPETENCIAS FEI",""),"ERROR") -> 
A35: =IF('V C JUV'!A35="","",'V C JUV'!A35) -> C | B35: =IF('V C JUV'!B35="","",'V C JUV'!B35) -> J069 | C35: =IF('V C JUV'!C35="","",'V C JUV'!C35) -> DONOSO CARRASCO MARIA DANIELA | D35: =IF(OR('V C JUV'!AV126+'V C JUV'!AW126>=2,AND('V C JUV'!AV126+'V C JUV'!AW126>=1,'V L JUV'!AW126>=40),'V C JUV'!AX126>1),"CLASIFICADO A 80 Km NOVICIOS","") ->  | E35: =IF(C35='V C JUV'!C35,IF(OR('V C JUV'!AZ35="",'V C JUV'!AZ35="HABILITADO TEMPORALMENTE A COMPETENCIAS FEI"),"",+'V C JUV'!AZ35),"ERROR") -> HABILITADO A 80KM VELOCIDAD CONTROLADA | F35: =IF(B35='V C JUV'!B35,IF(+'V C JUV'!AZ35="HABILITADO TEMPORALMENTE A COMPETENCIAS FEI","HABILITADO TEMPORALMENTE A COMPETENCIAS FEI",""),"ERROR") -> 
A36: =IF('V C JUV'!A36="","",'V C JUV'!A36) ->  | B36: =IF('V C JUV'!B36="","",'V C JUV'!B36) -> J059 | C36: =IF('V C JUV'!C36="","",'V C JUV'!C36) -> DUBACH CAROLINA | D36: =IF(OR('V C JUV'!AV127+'V C JUV'!AW127>=2,AND('V C JUV'!AV127+'V C JUV'!AW127>=1,'V L JUV'!AW127>=40),'V C JUV'!AX127>1),"CLASIFICADO A 80 Km NOVICIOS","") ->  | E36: =IF(C36='V C JUV'!C36,IF(OR('V C JUV'!AZ36="",'V C JUV'!AZ36="HABILITADO TEMPORALMENTE A COMPETENCIAS FEI"),"",+'V C JUV'!AZ36),"ERROR") -> HABILITADO A 80KM VELOCIDAD CONTROLADA | F36: =IF(B36='V C JUV'!B36,IF(+'V C JUV'!AZ36="HABILITADO TEMPORALMENTE A COMPETENCIAS FEI","HABILITADO TEMPORALMENTE A COMPETENCIAS FEI",""),"ERROR") -> 
A37: =IF('V C JUV'!A37="","",'V C JUV'!A37) ->  | B37: =IF('V C JUV'!B37="","",'V C JUV'!B37) -> J042 | C37: =IF('V C JUV'!C37="","",'V C JUV'!C37) -> DUEÑAS GONZALO | D37: =IF(OR('V C JUV'!AV128+'V C JUV'!AW128>=2,AND('V C JUV'!AV128+'V C JUV'!AW128>=1,'V L JUV'!AW128>=40),'V C JUV'!AX128>1),"CLASIFICADO A 80 Km NOVICIOS","") ->  | E37: =IF(C37='V C JUV'!C37,IF(OR('V C JUV'!AZ37="",'V C JUV'!AZ37="HABILITADO TEMPORALMENTE A COMPETENCIAS FEI"),"",+'V C JUV'!AZ37),"ERROR") -> INICIO SU CLASIFICACIÓN | F37: =IF(B37='V C JUV'!B37,IF(+'V C JUV'!AZ37="HABILITADO TEMPORALMENTE A COMPETENCIAS FEI","HABILITADO TEMPORALMENTE A COMPETENCIAS FEI",""),"ERROR") -> 
A38: =IF('V C JUV'!A38="","",'V C JUV'!A38) -> C | B38: =IF('V C JUV'!B38="","",'V C JUV'!B38) -> J070 | C38: =IF('V C JUV'!C38="","",'V C JUV'!C38) -> ESPINOZA ALVARADO JUAN SEBASTIAN | D38: =IF(OR('V C JUV'!AV129+'V C JUV'!AW129>=2,AND('V C JUV'!AV129+'V C JUV'!AW129>=1,'V L JUV'!AW129>=40),'V C JUV'!AX129>1),"CLASIFICADO A 80 Km NOVICIOS","") ->  | E38: =IF(C38='V C JUV'!C38,IF(OR('V C JUV'!AZ38="",'V C JUV'!AZ38="HABILITADO TEMPORALMENTE A COMPETENCIAS FEI"),"",+'V C JUV'!AZ38),"ERROR") -> HABILITADO A 80KM VELOCIDAD CONTROLADA | F38: =IF(B38='V C JUV'!B38,IF(+'V C JUV'!AZ38="HABILITADO TEMPORALMENTE A COMPETENCIAS FEI","HABILITADO TEMPORALMENTE A COMPETENCIAS FEI",""),"ERROR") -> 
A39: =IF('V C JUV'!A39="","",'V C JUV'!A39) ->  | B39: =IF('V C JUV'!B39="","",'V C JUV'!B39) -> J065 | C39: =IF('V C JUV'!C39="","",'V C JUV'!C39) -> ESPINOZA BARBARA | D39: =IF(OR('V C JUV'!AV130+'V C JUV'!AW130>=2,AND('V C JUV'!AV130+'V C JUV'!AW130>=1,'V L JUV'!AW130>=40),'V C JUV'!AX130>1),"CLASIFICADO A 80 Km NOVICIOS","") -> CLASIFICADO A 80 Km NOVICIOS | E39: =IF(C39='V C JUV'!C39,IF(OR('V C JUV'!AZ39="",'V C JUV'!AZ39="HABILITADO TEMPORALMENTE A COMPETENCIAS FEI"),"",+'V C JUV'!AZ39),"ERROR") -> LE FALTA UNA DE 80 A 90 CONTROLADA | F39: =IF(B39='V C JUV'!B39,IF(+'V C JUV'!AZ39="HABILITADO TEMPORALMENTE A COMPETENCIAS FEI","HABILITADO TEMPORALMENTE A COMPETENCIAS FEI",""),"ERROR") -> 
A40: =IF('V C JUV'!A40="","",'V C JUV'!A40) -> J005 | B40: =IF('V C JUV'!B40="","",'V C JUV'!B40) -> J | C40: =IF('V C JUV'!C40="","",'V C JUV'!C40) -> ESPINOZA JUAN FERNANDO | D40: =IF(OR('V C JUV'!AV131+'V C JUV'!AW131>=2,AND('V C JUV'!AV131+'V C JUV'!AW131>=1,'V L JUV'!AW131>=40),'V C JUV'!AX131>1),"CLASIFICADO A 80 Km NOVICIOS","") ->  | E40: =IF(C40='V C JUV'!C40,IF(OR('V C JUV'!AZ40="",'V C JUV'!AZ40="HABILITADO TEMPORALMENTE A COMPETENCIAS FEI"),"",+'V C JUV'!AZ40),"ERROR") -> HABILITADO A 80KM VELOCIDAD CONTROLADA | F40: =IF(B40='V C JUV'!B40,IF(+'V C JUV'!AZ40="HABILITADO TEMPORALMENTE A COMPETENCIAS FEI","HABILITADO TEMPORALMENTE A COMPETENCIAS FEI",""),"ERROR") -> 
A41: =IF('V C JUV'!A41="","",'V C JUV'!A41) -> J013 | B41: =IF('V C JUV'!B41="","",'V C JUV'!B41) -> J007 | C41: =IF('V C JUV'!C41="","",'V C JUV'!C41) -> ESPINOZA TOMAS | D41: =IF(OR('V C JUV'!AV132+'V C JUV'!AW132>=2,AND('V C JUV'!AV132+'V C JUV'!AW132>=1,'V L JUV'!AW132>=40),'V C JUV'!AX132>1),"CLASIFICADO A 80 Km NOVICIOS","") ->  | E41: =IF(C41='V C JUV'!C41,IF(OR('V C JUV'!AZ41="",'V C JUV'!AZ41="HABILITADO TEMPORALMENTE A COMPETENCIAS FEI"),"",+'V C JUV'!AZ41),"ERROR") ->  | F41: =IF(B41='V C JUV'!B41,IF(+'V C JUV'!AZ41="HABILITADO TEMPORALMENTE A COMPETENCIAS FEI","HABILITADO TEMPORALMENTE A COMPETENCIAS FEI",""),"ERROR") -> HABILITADO TEMPORALMENTE A COMPETENCIAS FEI
A42: =IF('V C JUV'!A42="","",'V C JUV'!A42) ->  | B42: =IF('V C JUV'!B42="","",'V C JUV'!B42) -> M010 | C42: =IF('V C JUV'!C42="","",'V C JUV'!C42) -> FRITZ JULIANA | D42: =IF(OR('V C JUV'!AV133+'V C JUV'!AW133>=2,AND('V C JUV'!AV133+'V C JUV'!AW133>=1,'V L JUV'!AW133>=40),'V C JUV'!AX133>1),"CLASIFICADO A 80 Km NOVICIOS","") ->  | E42: =IF(C42='V C JUV'!C42,IF(OR('V C JUV'!AZ42="",'V C JUV'!AZ42="HABILITADO TEMPORALMENTE A COMPETENCIAS FEI"),"",+'V C JUV'!AZ42),"ERROR") -> INICIO SU CLASIFICACIÓN | F42: =IF(B42='V C JUV'!B42,IF(+'V C JUV'!AZ42="HABILITADO TEMPORALMENTE A COMPETENCIAS FEI","HABILITADO TEMPORALMENTE A COMPETENCIAS FEI",""),"ERROR") -> 
A43: =IF('V C JUV'!A43="","",'V C JUV'!A43) ->  | B43: =IF('V C JUV'!B43="","",'V C JUV'!B43) -> J050 | C43: =IF('V C JUV'!C43="","",'V C JUV'!C43) -> FRITZ PAULA | D43: =IF(OR('V C JUV'!AV134+'V C JUV'!AW134>=2,AND('V C JUV'!AV134+'V C JUV'!AW134>=1,'V L JUV'!AW134>=40),'V C JUV'!AX134>1),"CLASIFICADO A 80 Km NOVICIOS","") ->  | E43: =IF(C43='V C JUV'!C43,IF(OR('V C JUV'!AZ43="",'V C JUV'!AZ43="HABILITADO TEMPORALMENTE A COMPETENCIAS FEI"),"",+'V C JUV'!AZ43),"ERROR") ->  | F43: =IF(B43='V C JUV'!B43,IF(+'V C JUV'!AZ43="HABILITADO TEMPORALMENTE A COMPETENCIAS FEI","HABILITADO TEMPORALMENTE A COMPETENCIAS FEI",""),"ERROR") -> HABILITADO TEMPORALMENTE A COMPETENCIAS FEI
A44: =IF('V C JUV'!A44="","",'V C JUV'!A44) ->  | B44: =IF('V C JUV'!B44="","",'V C JUV'!B44) -> J049 | C44: =IF('V C JUV'!C44="","",'V C JUV'!C44) -> FRITZ SEBASTIAN | D44: =IF(OR('V C JUV'!AV135+'V C JUV'!AW135>=2,AND('V C JUV'!AV135+'V C JUV'!AW135>=1,'V L JUV'!AW135>=40),'V C JUV'!AX135>1),"CLASIFICADO A 80 Km NOVICIOS","") ->  | E44: =IF(C44='V C JUV'!C44,IF(OR('V C JUV'!AZ44="",'V C JUV'!AZ44="HABILITADO TEMPORALMENTE A COMPETENCIAS FEI"),"",+'V C JUV'!AZ44),"ERROR") -> LE FALTA UNA DE 80 A 90 CONTROLADA | F44: =IF(B44='V C JUV'!B44,IF(+'V C JUV'!AZ44="HABILITADO TEMPORALMENTE A COMPETENCIAS FEI","HABILITADO TEMPORALMENTE A COMPETENCIAS FEI",""),"ERROR") -> 
A45: =IF('V C JUV'!A45="","",'V C JUV'!A45) -> J038 | B45: =IF('V C JUV'!B45="","",'V C JUV'!B45) -> J008 | C45: =IF('V C JUV'!C45="","",'V C JUV'!C45) -> GOMEZ MICHILENA ALEXANDER | D45: =IF(OR('V C JUV'!AV136+'V C JUV'!AW136>=2,AND('V C JUV'!AV136+'V C JUV'!AW136>=1,'V L JUV'!AW136>=40),'V C JUV'!AX136>1),"CLASIFICADO A 80 Km NOVICIOS","") ->  | E45: =IF(C45='V C JUV'!C45,IF(OR('V C JUV'!AZ45="",'V C JUV'!AZ45="HABILITADO TEMPORALMENTE A COMPETENCIAS FEI"),"",+'V C JUV'!AZ45),"ERROR") ->  | F45: =IF(B45='V C JUV'!B45,IF(+'V C JUV'!AZ45="HABILITADO TEMPORALMENTE A COMPETENCIAS FEI","HABILITADO TEMPORALMENTE A COMPETENCIAS FEI",""),"ERROR") -> HABILITADO TEMPORALMENTE A COMPETENCIAS FEI
A46: =IF('V C JUV'!A46="","",'V C JUV'!A46) ->  | B46: =IF('V C JUV'!B46="","",'V C JUV'!B46) -> J063 | C46: =IF('V C JUV'!C46="","",'V C JUV'!C46) -> GONZALEZ BERNARDA | D46: =IF(OR('V C JUV'!AV137+'V C JUV'!AW137>=2,AND('V C JUV'!AV137+'V C JUV'!AW137>=1,'V L JUV'!AW137>=40),'V C JUV'!AX137>1),"CLASIFICADO A 80 Km NOVICIOS","") ->  | E46: =IF(C46='V C JUV'!C46,IF(OR('V C JUV'!AZ46="",'V C JUV'!AZ46="HABILITADO TEMPORALMENTE A COMPETENCIAS FEI"),"",+'V C JUV'!AZ46),"ERROR") ->  | F46: =IF(B46='V C JUV'!B46,IF(+'V C JUV'!AZ46="HABILITADO TEMPORALMENTE A COMPETENCIAS FEI","HABILITADO TEMPORALMENTE A COMPETENCIAS FEI",""),"ERROR") -> HABILITADO TEMPORALMENTE A COMPETENCIAS FEI
A47: =IF('V C JUV'!A47="","",'V C JUV'!A47) ->  | B47: =IF('V C JUV'!B47="","",'V C JUV'!B47) -> J002 | C47: =IF('V C JUV'!C47="","",'V C JUV'!C47) -> GUARDERAS BELEN | D47: =IF(OR('V C JUV'!AV138+'V C JUV'!AW138>=2,AND('V C JUV'!AV138+'V C JUV'!AW138>=1,'V L JUV'!AW138>=40),'V C JUV'!AX138>1),"CLASIFICADO A 80 Km NOVICIOS","") ->  | E47: =IF(C47='V C JUV'!C47,IF(OR('V C JUV'!AZ47="",'V C JUV'!AZ47="HABILITADO TEMPORALMENTE A COMPETENCIAS FEI"),"",+'V C JUV'!AZ47),"ERROR") -> INICIO SU CLASIFICACIÓN | F47: =IF(B47='V C JUV'!B47,IF(+'V C JUV'!AZ47="HABILITADO TEMPORALMENTE A COMPETENCIAS FEI","HABILITADO TEMPORALMENTE A COMPETENCIAS FEI",""),"ERROR") -> 
A48: =IF('V C JUV'!A48="","",'V C JUV'!A48) ->  | B48: =IF('V C JUV'!B48="","",'V C JUV'!B48) -> J057 | C48: =IF('V C JUV'!C48="","",'V C JUV'!C48) -> GUARDERAS JOSE GABRIEL | D48: =IF(OR('V C JUV'!AV139+'V C JUV'!AW139>=2,AND('V C JUV'!AV139+'V C JUV'!AW139>=1,'V L JUV'!AW139>=40),'V C JUV'!AX139>1),"CLASIFICADO A 80 Km NOVICIOS","") ->  | E48: =IF(C48='V C JUV'!C48,IF(OR('V C JUV'!AZ48="",'V C JUV'!AZ48="HABILITADO TEMPORALMENTE A COMPETENCIAS FEI"),"",+'V C JUV'!AZ48),"ERROR") -> LE FALTA UNA DE 80 A 90 CONTROLADA | F48: =IF(B48='V C JUV'!B48,IF(+'V C JUV'!AZ48="HABILITADO TEMPORALMENTE A COMPETENCIAS FEI","HABILITADO TEMPORALMENTE A COMPETENCIAS FEI",""),"ERROR") -> 
A49: =IF('V C JUV'!A49="","",'V C JUV'!A49) ->  | B49: =IF('V C JUV'!B49="","",'V C JUV'!B49) -> J014 | C49: =IF('V C JUV'!C49="","",'V C JUV'!C49) -> GUARDERAS PEDRO JOSE | D49: =IF(OR('V C JUV'!AV140+'V C JUV'!AW140>=2,AND('V C JUV'!AV140+'V C JUV'!AW140>=1,'V L JUV'!AW140>=40),'V C JUV'!AX140>1),"CLASIFICADO A 80 Km NOVICIOS","") ->  | E49: =IF(C49='V C JUV'!C49,IF(OR('V C JUV'!AZ49="",'V C JUV'!AZ49="HABILITADO TEMPORALMENTE A COMPETENCIAS FEI"),"",+'V C JUV'!AZ49),"ERROR") ->  | F49: =IF(B49='V C JUV'!B49,IF(+'V C JUV'!AZ49="HABILITADO TEMPORALMENTE A COMPETENCIAS FEI","HABILITADO TEMPORALMENTE A COMPETENCIAS FEI",""),"ERROR") -> HABILITADO TEMPORALMENTE A COMPETENCIAS FEI
A50: =IF('V C JUV'!A50="","",'V C JUV'!A50) ->  | B50: =IF('V C JUV'!B50="","",'V C JUV'!B50) -> J003 | C50: =IF('V C JUV'!C50="","",'V C JUV'!C50) -> GUARDERAS SANTIAGO | D50: =IF(OR('V C JUV'!AV141+'V C JUV'!AW141>=2,AND('V C JUV'!AV141+'V C JUV'!AW141>=1,'V L JUV'!AW141>=40),'V C JUV'!AX141>1),"CLASIFICADO A 80 Km NOVICIOS","") ->  | E50: =IF(C50='V C JUV'!C50,IF(OR('V C JUV'!AZ50="",'V C JUV'!AZ50="HABILITADO TEMPORALMENTE A COMPETENCIAS FEI"),"",+'V C JUV'!AZ50),"ERROR") -> HABILITADO A 80KM VELOCIDAD CONTROLADA | F50: =IF(B50='V C JUV'!B50,IF(+'V C JUV'!AZ50="HABILITADO TEMPORALMENTE A COMPETENCIAS FEI","HABILITADO TEMPORALMENTE A COMPETENCIAS FEI",""),"ERROR") -> 
A51: =IF('V C JUV'!A51="","",'V C JUV'!A51) -> I005 | B51: =IF('V C JUV'!B51="","",'V C JUV'!B51) -> I006 | C51: =IF('V C JUV'!C51="","",'V C JUV'!C51) -> HERRERA JUAN DIEGO | D51: =IF(OR('V C JUV'!AV142+'V C JUV'!AW142>=2,AND('V C JUV'!AV142+'V C JUV'!AW142>=1,'V L JUV'!AW142>=40),'V C JUV'!AX142>1),"CLASIFICADO A 80 Km NOVICIOS","") ->  | E51: =IF(C51='V C JUV'!C51,IF(OR('V C JUV'!AZ51="",'V C JUV'!AZ51="HABILITADO TEMPORALMENTE A COMPETENCIAS FEI"),"",+'V C JUV'!AZ51),"ERROR") -> HABILITADO A 80KM VELOCIDAD CONTROLADA | F51: =IF(B51='V C JUV'!B51,IF(+'V C JUV'!AZ51="HABILITADO TEMPORALMENTE A COMPETENCIAS FEI","HABILITADO TEMPORALMENTE A COMPETENCIAS FEI",""),"ERROR") -> 
A52: =IF('V C JUV'!A52="","",'V C JUV'!A52) ->  | B52: =IF('V C JUV'!B52="","",'V C JUV'!B52) -> J053 | C52: =IF('V C JUV'!C52="","",'V C JUV'!C52) -> INGUILLAY LUIS FERNANDO | D52: =IF(OR('V C JUV'!AV143+'V C JUV'!AW143>=2,AND('V C JUV'!AV143+'V C JUV'!AW143>=1,'V L JUV'!AW143>=40),'V C JUV'!AX143>1),"CLASIFICADO A 80 Km NOVICIOS","") ->  | E52: =IF(C52='V C JUV'!C52,IF(OR('V C JUV'!AZ52="",'V C JUV'!AZ52="HABILITADO TEMPORALMENTE A COMPETENCIAS FEI"),"",+'V C JUV'!AZ52),"ERROR") -> HABILITADO A 80KM VELOCIDAD CONTROLADA | F52: =IF(B52='V C JUV'!B52,IF(+'V C JUV'!AZ52="HABILITADO TEMPORALMENTE A COMPETENCIAS FEI","HABILITADO TEMPORALMENTE A COMPETENCIAS FEI",""),"ERROR") -> 
A53: =IF('V C JUV'!A53="","",'V C JUV'!A53) ->  | B53: =IF('V C JUV'!B53="","",'V C JUV'!B53) -> J | C53: =IF('V C JUV'!C53="","",'V C JUV'!C53) -> JACOME ESPINOZA MARCO | D53: =IF(OR('V C JUV'!AV144+'V C JUV'!AW144>=2,AND('V C JUV'!AV144+'V C JUV'!AW144>=1,'V L JUV'!AW144>=40),'V C JUV'!AX144>1),"CLASIFICADO A 80 Km NOVICIOS","") ->  | E53: =IF(C53='V C JUV'!C53,IF(OR('V C JUV'!AZ53="",'V C JUV'!AZ53="HABILITADO TEMPORALMENTE A COMPETENCIAS FEI"),"",+'V C JUV'!AZ53),"ERROR") -> NO INICIA SU CLASIFICACIÓN | F53: =IF(B53='V C JUV'!B53,IF(+'V C JUV'!AZ53="HABILITADO TEMPORALMENTE A COMPETENCIAS FEI","HABILITADO TEMPORALMENTE A COMPETENCIAS FEI",""),"ERROR") -> 
A54: =IF('V C JUV'!A54="","",'V C JUV'!A54) ->  | B54: =IF('V C JUV'!B54="","",'V C JUV'!B54) -> M013 | C54: =IF('V C JUV'!C54="","",'V C JUV'!C54) -> JARAMILLO BENITO | D54: =IF(OR('V C JUV'!AV145+'V C JUV'!AW145>=2,AND('V C JUV'!AV145+'V C JUV'!AW145>=1,'V L JUV'!AW145>=40),'V C JUV'!AX145>1),"CLASIFICADO A 80 Km NOVICIOS","") ->  | E54: =IF(C54='V C JUV'!C54,IF(OR('V C JUV'!AZ54="",'V C JUV'!AZ54="HABILITADO TEMPORALMENTE A COMPETENCIAS FEI"),"",+'V C JUV'!AZ54),"ERROR") -> HABILITADO A 80KM VELOCIDAD CONTROLADA | F54: =IF(B54='V C JUV'!B54,IF(+'V C JUV'!AZ54="HABILITADO TEMPORALMENTE A COMPETENCIAS FEI","HABILITADO TEMPORALMENTE A COMPETENCIAS FEI",""),"ERROR") -> 
A55: =IF('V C JUV'!A55="","",'V C JUV'!A55) ->  | B55: =IF('V C JUV'!B55="","",'V C JUV'!B55) -> J079 | C55: =IF('V C JUV'!C55="","",'V C JUV'!C55) -> JARAMILLO MANUELA | D55: =IF(OR('V C JUV'!AV146+'V C JUV'!AW146>=2,AND('V C JUV'!AV146+'V C JUV'!AW146>=1,'V L JUV'!AW146>=40),'V C JUV'!AX146>1),"CLASIFICADO A 80 Km NOVICIOS","") ->  | E55: =IF(C55='V C JUV'!C55,IF(OR('V C JUV'!AZ55="",'V C JUV'!AZ55="HABILITADO TEMPORALMENTE A COMPETENCIAS FEI"),"",+'V C JUV'!AZ55),"ERROR") ->  | F55: =IF(B55='V C JUV'!B55,IF(+'V C JUV'!AZ55="HABILITADO TEMPORALMENTE A COMPETENCIAS FEI","HABILITADO TEMPORALMENTE A COMPETENCIAS FEI",""),"ERROR") -> HABILITADO TEMPORALMENTE A COMPETENCIAS FEI
A56: =IF('V C JUV'!A56="","",'V C JUV'!A56) ->  | B56: =IF('V C JUV'!B56="","",'V C JUV'!B56) -> J030 | C56: =IF('V C JUV'!C56="","",'V C JUV'!C56) -> JARAMILLO MARTIN | D56: =IF(OR('V C JUV'!AV147+'V C JUV'!AW147>=2,AND('V C JUV'!AV147+'V C JUV'!AW147>=1,'V L JUV'!AW147>=40),'V C JUV'!AX147>1),"CLASIFICADO A 80 Km NOVICIOS","") ->  | E56: =IF(C56='V C JUV'!C56,IF(OR('V C JUV'!AZ56="",'V C JUV'!AZ56="HABILITADO TEMPORALMENTE A COMPETENCIAS FEI"),"",+'V C JUV'!AZ56),"ERROR") -> HABILITADO A 80KM VELOCIDAD CONTROLADA | F56: =IF(B56='V C JUV'!B56,IF(+'V C JUV'!AZ56="HABILITADO TEMPORALMENTE A COMPETENCIAS FEI","HABILITADO TEMPORALMENTE A COMPETENCIAS FEI",""),"ERROR") -> 
A57: =IF('V C JUV'!A57="","",'V C JUV'!A57) ->  | B57: =IF('V C JUV'!B57="","",'V C JUV'!B57) -> J096 | C57: =IF('V C JUV'!C57="","",'V C JUV'!C57) -> JIJON ANA FRANCISCA | D57: =IF(OR('V C JUV'!AV148+'V C JUV'!AW148>=2,AND('V C JUV'!AV148+'V C JUV'!AW148>=1,'V L JUV'!AW148>=40),'V C JUV'!AX148>1),"CLASIFICADO A 80 Km NOVICIOS","") ->  | E57: =IF(C57='V C JUV'!C57,IF(OR('V C JUV'!AZ57="",'V C JUV'!AZ57="HABILITADO TEMPORALMENTE A COMPETENCIAS FEI"),"",+'V C JUV'!AZ57),"ERROR") -> INICIO SU CLASIFICACIÓN | F57: =IF(B57='V C JUV'!B57,IF(+'V C JUV'!AZ57="HABILITADO TEMPORALMENTE A COMPETENCIAS FEI","HABILITADO TEMPORALMENTE A COMPETENCIAS FEI",""),"ERROR") -> 
A58: =IF('V C JUV'!A58="","",'V C JUV'!A58) -> J049 | B58: =IF('V C JUV'!B58="","",'V C JUV'!B58) -> J022 | C58: =IF('V C JUV'!C58="","",'V C JUV'!C58) -> JIJON JUAN ESTEBAN | D58: =IF(OR('V C JUV'!AV149+'V C JUV'!AW149>=2,AND('V C JUV'!AV149+'V C JUV'!AW149>=1,'V L JUV'!AW149>=40),'V C JUV'!AX149>1),"CLASIFICADO A 80 Km NOVICIOS","") ->  | E58: =IF(C58='V C JUV'!C58,IF(OR('V C JUV'!AZ58="",'V C JUV'!AZ58="HABILITADO TEMPORALMENTE A COMPETENCIAS FEI"),"",+'V C JUV'!AZ58),"ERROR") -> LE FALTA UNA DE 80 A 90 CONTROLADA | F58: =IF(B58='V C JUV'!B58,IF(+'V C JUV'!AZ58="HABILITADO TEMPORALMENTE A COMPETENCIAS FEI","HABILITADO TEMPORALMENTE A COMPETENCIAS FEI",""),"ERROR") -> 
A59: =IF('V C JUV'!A59="","",'V C JUV'!A59) ->  | B59: =IF('V C JUV'!B59="","",'V C JUV'!B59) -> J005 | C59: =IF('V C JUV'!C59="","",'V C JUV'!C59) -> JIJON MARÍA PAULA | D59: =IF(OR('V C JUV'!AV150+'V C JUV'!AW150>=2,AND('V C JUV'!AV150+'V C JUV'!AW150>=1,'V L JUV'!AW150>=40),'V C JUV'!AX150>1),"CLASIFICADO A 80 Km NOVICIOS","") ->  | E59: =IF(C59='V C JUV'!C59,IF(OR('V C JUV'!AZ59="",'V C JUV'!AZ59="HABILITADO TEMPORALMENTE A COMPETENCIAS FEI"),"",+'V C JUV'!AZ59),"ERROR") -> HABILITADO A 80KM VELOCIDAD CONTROLADA | F59: =IF(B59='V C JUV'!B59,IF(+'V C JUV'!AZ59="HABILITADO TEMPORALMENTE A COMPETENCIAS FEI","HABILITADO TEMPORALMENTE A COMPETENCIAS FEI",""),"ERROR") -> 
A60: =IF('V C JUV'!A60="","",'V C JUV'!A60) ->  | B60: =IF('V C JUV'!B60="","",'V C JUV'!B60) -> J017 | C60: =IF('V C JUV'!C60="","",'V C JUV'!C60) -> KAKABADSE MANUEL | D60: =IF(OR('V C JUV'!AV151+'V C JUV'!AW151>=2,AND('V C JUV'!AV151+'V C JUV'!AW151>=1,'V L JUV'!AW151>=40),'V C JUV'!AX151>1),"CLASIFICADO A 80 Km NOVICIOS","") ->  | E60: =IF(C60='V C JUV'!C60,IF(OR('V C JUV'!AZ60="",'V C JUV'!AZ60="HABILITADO TEMPORALMENTE A COMPETENCIAS FEI"),"",+'V C JUV'!AZ60),"ERROR") -> HABILITADO A 80KM VELOCIDAD CONTROLADA | F60: =IF(B60='V C JUV'!B60,IF(+'V C JUV'!AZ60="HABILITADO TEMPORALMENTE A COMPETENCIAS FEI","HABILITADO TEMPORALMENTE A COMPETENCIAS FEI",""),"ERROR") -> 
A61: =IF('V C JUV'!A61="","",'V C JUV'!A61) -> C | B61: =IF('V C JUV'!B61="","",'V C JUV'!B61) -> C | C61: =IF('V C JUV'!C61="","",'V C JUV'!C61) -> LARRIVA JUAN FRANCISCO | D61: =IF(OR('V C JUV'!AV152+'V C JUV'!AW152>=2,AND('V C JUV'!AV152+'V C JUV'!AW152>=1,'V L JUV'!AW152>=40),'V C JUV'!AX152>1),"CLASIFICADO A 80 Km NOVICIOS","") ->  | E61: =IF(C61='V C JUV'!C61,IF(OR('V C JUV'!AZ61="",'V C JUV'!AZ61="HABILITADO TEMPORALMENTE A COMPETENCIAS FEI"),"",+'V C JUV'!AZ61),"ERROR") -> NO INICIA SU CLASIFICACIÓN | F61: =IF(B61='V C JUV'!B61,IF(+'V C JUV'!AZ61="HABILITADO TEMPORALMENTE A COMPETENCIAS FEI","HABILITADO TEMPORALMENTE A COMPETENCIAS FEI",""),"ERROR") -> 
A62: =IF('V C JUV'!A62="","",'V C JUV'!A62) -> C | B62: =IF('V C JUV'!B62="","",'V C JUV'!B62) -> J071 | C62: =IF('V C JUV'!C62="","",'V C JUV'!C62) -> LARRIVA LOYOLA CAROLINA | D62: =IF(OR('V C JUV'!AV153+'V C JUV'!AW153>=2,AND('V C JUV'!AV153+'V C JUV'!AW153>=1,'V L JUV'!AW153>=40),'V C JUV'!AX153>1),"CLASIFICADO A 80 Km NOVICIOS","") ->  | E62: =IF(C62='V C JUV'!C62,IF(OR('V C JUV'!AZ62="",'V C JUV'!AZ62="HABILITADO TEMPORALMENTE A COMPETENCIAS FEI"),"",+'V C JUV'!AZ62),"ERROR") -> HABILITADO A 80KM VELOCIDAD CONTROLADA | F62: =IF(B62='V C JUV'!B62,IF(+'V C JUV'!AZ62="HABILITADO TEMPORALMENTE A COMPETENCIAS FEI","HABILITADO TEMPORALMENTE A COMPETENCIAS FEI",""),"ERROR") -> 
A63: =IF('V C JUV'!A63="","",'V C JUV'!A63) -> J037 | B63: =IF('V C JUV'!B63="","",'V C JUV'!B63) -> J001 | C63: =IF('V C JUV'!C63="","",'V C JUV'!C63) -> LEON ARAUJO CESAR ANDRES | D63: =IF(OR('V C JUV'!AV154+'V C JUV'!AW154>=2,AND('V C JUV'!AV154+'V C JUV'!AW154>=1,'V L JUV'!AW154>=40),'V C JUV'!AX154>1),"CLASIFICADO A 80 Km NOVICIOS","") ->  | E63: =IF(C63='V C JUV'!C63,IF(OR('V C JUV'!AZ63="",'V C JUV'!AZ63="HABILITADO TEMPORALMENTE A COMPETENCIAS FEI"),"",+'V C JUV'!AZ63),"ERROR") -> NO INICIA SU CLASIFICACIÓN | F63: =IF(B63='V C JUV'!B63,IF(+'V C JUV'!AZ63="HABILITADO TEMPORALMENTE A COMPETENCIAS FEI","HABILITADO TEMPORALMENTE A COMPETENCIAS FEI",""),"ERROR") -> 
A64: =IF('V C JUV'!A64="","",'V C JUV'!A64) -> J039 | B64: =IF('V C JUV'!B64="","",'V C JUV'!B64) -> J011 | C64: =IF('V C JUV'!C64="","",'V C JUV'!C64) -> LETORT DUEÑAS BERNARDA | D64: =IF(OR('V C JUV'!AV155+'V C JUV'!AW155>=2,AND('V C JUV'!AV155+'V C JUV'!AW155>=1,'V L JUV'!AW155>=40),'V C JUV'!AX155>1),"CLASIFICADO A 80 Km NOVICIOS","") ->  | E64: =IF(C64='V C JUV'!C64,IF(OR('V C JUV'!AZ64="",'V C JUV'!AZ64="HABILITADO TEMPORALMENTE A COMPETENCIAS FEI"),"",+'V C JUV'!AZ64),"ERROR") ->  | F64: =IF(B64='V C JUV'!B64,IF(+'V C JUV'!AZ64="HABILITADO TEMPORALMENTE A COMPETENCIAS FEI","HABILITADO TEMPORALMENTE A COMPETENCIAS FEI",""),"ERROR") -> HABILITADO TEMPORALMENTE A COMPETENCIAS FEI
A65: =IF('V C JUV'!A65="","",'V C JUV'!A65) -> J034 | B65: =IF('V C JUV'!B65="","",'V C JUV'!B65) -> J047 | C65: =IF('V C JUV'!C65="","",'V C JUV'!C65) -> LETORT DUEÑAS JOSE | D65: =IF(OR('V C JUV'!AV156+'V C JUV'!AW156>=2,AND('V C JUV'!AV156+'V C JUV'!AW156>=1,'V L JUV'!AW156>=40),'V C JUV'!AX156>1),"CLASIFICADO A 80 Km NOVICIOS","") ->  | E65: =IF(C65='V C JUV'!C65,IF(OR('V C JUV'!AZ65="",'V C JUV'!AZ65="HABILITADO TEMPORALMENTE A COMPETENCIAS FEI"),"",+'V C JUV'!AZ65),"ERROR") ->  | F65: =IF(B65='V C JUV'!B65,IF(+'V C JUV'!AZ65="HABILITADO TEMPORALMENTE A COMPETENCIAS FEI","HABILITADO TEMPORALMENTE A COMPETENCIAS FEI",""),"ERROR") -> HABILITADO TEMPORALMENTE A COMPETENCIAS FEI
A66: =IF('V C JUV'!A66="","",'V C JUV'!A66) ->  | B66: =IF('V C JUV'!B66="","",'V C JUV'!B66) -> J010 | C66: =IF('V C JUV'!C66="","",'V C JUV'!C66) -> LLUMIQUINGA JONATHAN | D66: =IF(OR('V C JUV'!AV157+'V C JUV'!AW157>=2,AND('V C JUV'!AV157+'V C JUV'!AW157>=1,'V L JUV'!AW157>=40),'V C JUV'!AX157>1),"CLASIFICADO A 80 Km NOVICIOS","") ->  | E66: =IF(C66='V C JUV'!C66,IF(OR('V C JUV'!AZ66="",'V C JUV'!AZ66="HABILITADO TEMPORALMENTE A COMPETENCIAS FEI"),"",+'V C JUV'!AZ66),"ERROR") -> NO INICIA SU CLASIFICACIÓN | F66: =IF(B66='V C JUV'!B66,IF(+'V C JUV'!AZ66="HABILITADO TEMPORALMENTE A COMPETENCIAS FEI","HABILITADO TEMPORALMENTE A COMPETENCIAS FEI",""),"ERROR") -> 
A67: =IF('V C JUV'!A67="","",'V C JUV'!A67) ->  | B67: =IF('V C JUV'!B67="","",'V C JUV'!B67) -> J | C67: =IF('V C JUV'!C67="","",'V C JUV'!C67) -> LÓPEZ CORDERO JOAQUIN | D67: =IF(OR('V C JUV'!AV158+'V C JUV'!AW158>=2,AND('V C JUV'!AV158+'V C JUV'!AW158>=1,'V L JUV'!AW158>=40),'V C JUV'!AX158>1),"CLASIFICADO A 80 Km NOVICIOS","") ->  | E67: =IF(C67='V C JUV'!C67,IF(OR('V C JUV'!AZ67="",'V C JUV'!AZ67="HABILITADO TEMPORALMENTE A COMPETENCIAS FEI"),"",+'V C JUV'!AZ67),"ERROR") -> NO INICIA SU CLASIFICACIÓN | F67: =IF(B67='V C JUV'!B67,IF(+'V C JUV'!AZ67="HABILITADO TEMPORALMENTE A COMPETENCIAS FEI","HABILITADO TEMPORALMENTE A COMPETENCIAS FEI",""),"ERROR") -> 
A68: =IF('V C JUV'!A68="","",'V C JUV'!A68) ->  | B68: =IF('V C JUV'!B68="","",'V C JUV'!B68) -> J093 | C68: =IF('V C JUV'!C68="","",'V C JUV'!C68) -> LOPEZ EMILIA | D68: =IF(OR('V C JUV'!AV159+'V C JUV'!AW159>=2,AND('V C JUV'!AV159+'V C JUV'!AW159>=1,'V L JUV'!AW159>=40),'V C JUV'!AX159>1),"CLASIFICADO A 80 Km NOVICIOS","") ->  | E68: =IF(C68='V C JUV'!C68,IF(OR('V C JUV'!AZ68="",'V C JUV'!AZ68="HABILITADO TEMPORALMENTE A COMPETENCIAS FEI"),"",+'V C JUV'!AZ68),"ERROR") -> HABILITADO A 80KM VELOCIDAD CONTROLADA | F68: =IF(B68='V C JUV'!B68,IF(+'V C JUV'!AZ68="HABILITADO TEMPORALMENTE A COMPETENCIAS FEI","HABILITADO TEMPORALMENTE A COMPETENCIAS FEI",""),"ERROR") -> 
A69: =IF('V C JUV'!A69="","",'V C JUV'!A69) ->  | B69: =IF('V C JUV'!B69="","",'V C JUV'!B69) -> J094 | C69: =IF('V C JUV'!C69="","",'V C JUV'!C69) -> LOPEZ MIRANDA | D69: =IF(OR('V C JUV'!AV160+'V C JUV'!AW160>=2,AND('V C JUV'!AV160+'V C JUV'!AW160>=1,'V L JUV'!AW160>=40),'V C JUV'!AX160>1),"CLASIFICADO A 80 Km NOVICIOS","") ->  | E69: =IF(C69='V C JUV'!C69,IF(OR('V C JUV'!AZ69="",'V C JUV'!AZ69="HABILITADO TEMPORALMENTE A COMPETENCIAS FEI"),"",+'V C JUV'!AZ69),"ERROR") -> INICIO SU CLASIFICACIÓN | F69: =IF(B69='V C JUV'!B69,IF(+'V C JUV'!AZ69="HABILITADO TEMPORALMENTE A COMPETENCIAS FEI","HABILITADO TEMPORALMENTE A COMPETENCIAS FEI",""),"ERROR") -> 
A70: =IF('V C JUV'!A70="","",'V C JUV'!A70) ->  | B70: =IF('V C JUV'!B70="","",'V C JUV'!B70) -> J055 | C70: =IF('V C JUV'!C70="","",'V C JUV'!C70) -> LOYOLA VINTIMILLA MARIA CLAUDIA | D70: =IF(OR('V C JUV'!AV161+'V C JUV'!AW161>=2,AND('V C JUV'!AV161+'V C JUV'!AW161>=1,'V L JUV'!AW161>=40),'V C JUV'!AX161>1),"CLASIFICADO A 80 Km NOVICIOS","") ->  | E70: =IF(C70='V C JUV'!C70,IF(OR('V C JUV'!AZ70="",'V C JUV'!AZ70="HABILITADO TEMPORALMENTE A COMPETENCIAS FEI"),"",+'V C JUV'!AZ70),"ERROR") ->  | F70: =IF(B70='V C JUV'!B70,IF(+'V C JUV'!AZ70="HABILITADO TEMPORALMENTE A COMPETENCIAS FEI","HABILITADO TEMPORALMENTE A COMPETENCIAS FEI",""),"ERROR") -> HABILITADO TEMPORALMENTE A COMPETENCIAS FEI
A71: =IF('V C JUV'!A71="","",'V C JUV'!A71) ->  | B71: =IF('V C JUV'!B71="","",'V C JUV'!B71) -> J090 | C71: =IF('V C JUV'!C71="","",'V C JUV'!C71) -> LOYOLA VINTIMILLA TEODORO ANDRES | D71: =IF(OR('V C JUV'!AV162+'V C JUV'!AW162>=2,AND('V C JUV'!AV162+'V C JUV'!AW162>=1,'V L JUV'!AW162>=40),'V C JUV'!AX162>1),"CLASIFICADO A 80 Km NOVICIOS","") ->  | E71: =IF(C71='V C JUV'!C71,IF(OR('V C JUV'!AZ71="",'V C JUV'!AZ71="HABILITADO TEMPORALMENTE A COMPETENCIAS FEI"),"",+'V C JUV'!AZ71),"ERROR") -> HABILITADO A 80KM VELOCIDAD CONTROLADA | F71: =IF(B71='V C JUV'!B71,IF(+'V C JUV'!AZ71="HABILITADO TEMPORALMENTE A COMPETENCIAS FEI","HABILITADO TEMPORALMENTE A COMPETENCIAS FEI",""),"ERROR") -> 
A72: =IF('V C JUV'!A72="","",'V C JUV'!A72) ->  | B72: =IF('V C JUV'!B72="","",'V C JUV'!B72) -> J085 | C72: =IF('V C JUV'!C72="","",'V C JUV'!C72) -> MALO GONZALEZ JOSE | D72: =IF(OR('V C JUV'!AV163+'V C JUV'!AW163>=2,AND('V C JUV'!AV163+'V C JUV'!AW163>=1,'V L JUV'!AW163>=40),'V C JUV'!AX163>1),"CLASIFICADO A 80 Km NOVICIOS","") ->  | E72: =IF(C72='V C JUV'!C72,IF(OR('V C JUV'!AZ72="",'V C JUV'!AZ72="HABILITADO TEMPORALMENTE A COMPETENCIAS FEI"),"",+'V C JUV'!AZ72),"ERROR") -> INICIO SU CLASIFICACIÓN | F72: =IF(B72='V C JUV'!B72,IF(+'V C JUV'!AZ72="HABILITADO TEMPORALMENTE A COMPETENCIAS FEI","HABILITADO TEMPORALMENTE A COMPETENCIAS FEI",""),"ERROR") -> 
A73: =IF('V C JUV'!A73="","",'V C JUV'!A73) -> C | B73: =IF('V C JUV'!B73="","",'V C JUV'!B73) -> J072 | C73: =IF('V C JUV'!C73="","",'V C JUV'!C73) -> MALO MALO MARIA JOSE | D73: =IF(OR('V C JUV'!AV164+'V C JUV'!AW164>=2,AND('V C JUV'!AV164+'V C JUV'!AW164>=1,'V L JUV'!AW164>=40),'V C JUV'!AX164>1),"CLASIFICADO A 80 Km NOVICIOS","") ->  | E73: =IF(C73='V C JUV'!C73,IF(OR('V C JUV'!AZ73="",'V C JUV'!AZ73="HABILITADO TEMPORALMENTE A COMPETENCIAS FEI"),"",+'V C JUV'!AZ73),"ERROR") -> HABILITADO A 80KM VELOCIDAD CONTROLADA | F73: =IF(B73='V C JUV'!B73,IF(+'V C JUV'!AZ73="HABILITADO TEMPORALMENTE A COMPETENCIAS FEI","HABILITADO TEMPORALMENTE A COMPETENCIAS FEI",""),"ERROR") -> 
A74: =IF('V C JUV'!A74="","",'V C JUV'!A74) ->  | B74: =IF('V C JUV'!B74="","",'V C JUV'!B74) -> J087 | C74: =IF('V C JUV'!C74="","",'V C JUV'!C74) -> MALO TORAL DAVID | D74: =IF(OR('V C JUV'!AV165+'V C JUV'!AW165>=2,AND('V C JUV'!AV165+'V C JUV'!AW165>=1,'V L JUV'!AW165>=40),'V C JUV'!AX165>1),"CLASIFICADO A 80 Km NOVICIOS","") ->  | E74: =IF(C74='V C JUV'!C74,IF(OR('V C JUV'!AZ74="",'V C JUV'!AZ74="HABILITADO TEMPORALMENTE A COMPETENCIAS FEI"),"",+'V C JUV'!AZ74),"ERROR") ->  | F74: =IF(B74='V C JUV'!B74,IF(+'V C JUV'!AZ74="HABILITADO TEMPORALMENTE A COMPETENCIAS FEI","HABILITADO TEMPORALMENTE A COMPETENCIAS FEI",""),"ERROR") -> HABILITADO TEMPORALMENTE A COMPETENCIAS FEI
A75: =IF('V C JUV'!A75="","",'V C JUV'!A75) ->  | B75: =IF('V C JUV'!B75="","",'V C JUV'!B75) -> J056 | C75: =IF('V C JUV'!C75="","",'V C JUV'!C75) -> MATUTE PEDRO FERMIN | D75: =IF(OR('V C JUV'!AV166+'V C JUV'!AW166>=2,AND('V C JUV'!AV166+'V C JUV'!AW166>=1,'V L JUV'!AW166>=40),'V C JUV'!AX166>1),"CLASIFICADO A 80 Km NOVICIOS","") ->  | E75: =IF(C75='V C JUV'!C75,IF(OR('V C JUV'!AZ75="",'V C JUV'!AZ75="HABILITADO TEMPORALMENTE A COMPETENCIAS FEI"),"",+'V C JUV'!AZ75),"ERROR") -> LE FALTA UNA DE 80 A 90 CONTROLADA | F75: =IF(B75='V C JUV'!B75,IF(+'V C JUV'!AZ75="HABILITADO TEMPORALMENTE A COMPETENCIAS FEI","HABILITADO TEMPORALMENTE A COMPETENCIAS FEI",""),"ERROR") -> 
A76: =IF('V C JUV'!A76="","",'V C JUV'!A76) ->  | B76: =IF('V C JUV'!B76="","",'V C JUV'!B76) -> M012 | C76: =IF('V C JUV'!C76="","",'V C JUV'!C76) -> MAZAPANTA KEVIN | D76: =IF(OR('V C JUV'!AV167+'V C JUV'!AW167>=2,AND('V C JUV'!AV167+'V C JUV'!AW167>=1,'V L JUV'!AW167>=40),'V C JUV'!AX167>1),"CLASIFICADO A 80 Km NOVICIOS","") ->  | E76: =IF(C76='V C JUV'!C76,IF(OR('V C JUV'!AZ76="",'V C JUV'!AZ76="HABILITADO TEMPORALMENTE A COMPETENCIAS FEI"),"",+'V C JUV'!AZ76),"ERROR") -> HABILITADO A 80KM VELOCIDAD CONTROLADA | F76: =IF(B76='V C JUV'!B76,IF(+'V C JUV'!AZ76="HABILITADO TEMPORALMENTE A COMPETENCIAS FEI","HABILITADO TEMPORALMENTE A COMPETENCIAS FEI",""),"ERROR") -> 
A77: =IF('V C JUV'!A77="","",'V C JUV'!A77) ->  | B77: =IF('V C JUV'!B77="","",'V C JUV'!B77) -> J081 | C77: =IF('V C JUV'!C77="","",'V C JUV'!C77) -> MEDINA DAVALOS JORGE | D77: =IF(OR('V C JUV'!AV168+'V C JUV'!AW168>=2,AND('V C JUV'!AV168+'V C JUV'!AW168>=1,'V L JUV'!AW168>=40),'V C JUV'!AX168>1),"CLASIFICADO A 80 Km NOVICIOS","") ->  | E77: =IF(C77='V C JUV'!C77,IF(OR('V C JUV'!AZ77="",'V C JUV'!AZ77="HABILITADO TEMPORALMENTE A COMPETENCIAS FEI"),"",+'V C JUV'!AZ77),"ERROR") -> HABILITADO A 80KM VELOCIDAD CONTROLADA | F77: =IF(B77='V C JUV'!B77,IF(+'V C JUV'!AZ77="HABILITADO TEMPORALMENTE A COMPETENCIAS FEI","HABILITADO TEMPORALMENTE A COMPETENCIAS FEI",""),"ERROR") -> 
A78: =IF('V C JUV'!A78="","",'V C JUV'!A78) ->  | B78: =IF('V C JUV'!B78="","",'V C JUV'!B78) -> J | C78: =IF('V C JUV'!C78="","",'V C JUV'!C78) -> MIÑO CHIRIBOGA JOSÉ | D78: =IF(OR('V C JUV'!AV169+'V C JUV'!AW169>=2,AND('V C JUV'!AV169+'V C JUV'!AW169>=1,'V L JUV'!AW169>=40),'V C JUV'!AX169>1),"CLASIFICADO A 80 Km NOVICIOS","") ->  | E78: =IF(C78='V C JUV'!C78,IF(OR('V C JUV'!AZ78="",'V C JUV'!AZ78="HABILITADO TEMPORALMENTE A COMPETENCIAS FEI"),"",+'V C JUV'!AZ78),"ERROR") -> INICIO SU CLASIFICACIÓN | F78: =IF(B78='V C JUV'!B78,IF(+'V C JUV'!AZ78="HABILITADO TEMPORALMENTE A COMPETENCIAS FEI","HABILITADO TEMPORALMENTE A COMPETENCIAS FEI",""),"ERROR") -> 
A79: =IF('V C JUV'!A79="","",'V C JUV'!A79) -> J036 | B79: =IF('V C JUV'!B79="","",'V C JUV'!B79) -> J027 | C79: =IF('V C JUV'!C79="","",'V C JUV'!C79) -> MIÑO JOSE IGNACIO | D79: =IF(OR('V C JUV'!AV170+'V C JUV'!AW170>=2,AND('V C JUV'!AV170+'V C JUV'!AW170>=1,'V L JUV'!AW170>=40),'V C JUV'!AX170>1),"CLASIFICADO A 80 Km NOVICIOS","") ->  | E79: =IF(C79='V C JUV'!C79,IF(OR('V C JUV'!AZ79="",'V C JUV'!AZ79="HABILITADO TEMPORALMENTE A COMPETENCIAS FEI"),"",+'V C JUV'!AZ79),"ERROR") ->  | F79: =IF(B79='V C JUV'!B79,IF(+'V C JUV'!AZ79="HABILITADO TEMPORALMENTE A COMPETENCIAS FEI","HABILITADO TEMPORALMENTE A COMPETENCIAS FEI",""),"ERROR") -> HABILITADO TEMPORALMENTE A COMPETENCIAS FEI
A80: =IF('V C JUV'!A80="","",'V C JUV'!A80) ->  | B80: =IF('V C JUV'!B80="","",'V C JUV'!B80) -> J016 | C80: =IF('V C JUV'!C80="","",'V C JUV'!C80) -> MIÑO JOSE RICARDO | D80: =IF(OR('V C JUV'!AV171+'V C JUV'!AW171>=2,AND('V C JUV'!AV171+'V C JUV'!AW171>=1,'V L JUV'!AW171>=40),'V C JUV'!AX171>1),"CLASIFICADO A 80 Km NOVICIOS","") ->  | E80: =IF(C80='V C JUV'!C80,IF(OR('V C JUV'!AZ80="",'V C JUV'!AZ80="HABILITADO TEMPORALMENTE A COMPETENCIAS FEI"),"",+'V C JUV'!AZ80),"ERROR") -> HABILITADO A 80KM VELOCIDAD CONTROLADA | F80: =IF(B80='V C JUV'!B80,IF(+'V C JUV'!AZ80="HABILITADO TEMPORALMENTE A COMPETENCIAS FEI","HABILITADO TEMPORALMENTE A COMPETENCIAS FEI",""),"ERROR") -> 
A81: =IF('V C JUV'!A81="","",'V C JUV'!A81) -> J004 | B81: =IF('V C JUV'!B81="","",'V C JUV'!B81) -> J012 | C81: =IF('V C JUV'!C81="","",'V C JUV'!C81) -> MIÑO SANTIAGO | D81: =IF(OR('V C JUV'!AV172+'V C JUV'!AW172>=2,AND('V C JUV'!AV172+'V C JUV'!AW172>=1,'V L JUV'!AW172>=40),'V C JUV'!AX172>1),"CLASIFICADO A 80 Km NOVICIOS","") ->  | E81: =IF(C81='V C JUV'!C81,IF(OR('V C JUV'!AZ81="",'V C JUV'!AZ81="HABILITADO TEMPORALMENTE A COMPETENCIAS FEI"),"",+'V C JUV'!AZ81),"ERROR") -> INICIO SU CLASIFICACIÓN | F81: =IF(B81='V C JUV'!B81,IF(+'V C JUV'!AZ81="HABILITADO TEMPORALMENTE A COMPETENCIAS FEI","HABILITADO TEMPORALMENTE A COMPETENCIAS FEI",""),"ERROR") -> 
A82: =IF('V C JUV'!A82="","",'V C JUV'!A82) -> J018 | B82: =IF('V C JUV'!B82="","",'V C JUV'!B82) -> J | C82: =IF('V C JUV'!C82="","",'V C JUV'!C82) -> MOLESTINA FRANCISCO | D82: =IF(OR('V C JUV'!AV173+'V C JUV'!AW173>=2,AND('V C JUV'!AV173+'V C JUV'!AW173>=1,'V L JUV'!AW173>=40),'V C JUV'!AX173>1),"CLASIFICADO A 80 Km NOVICIOS","") ->  | E82: =IF(C82='V C JUV'!C82,IF(OR('V C JUV'!AZ82="",'V C JUV'!AZ82="HABILITADO TEMPORALMENTE A COMPETENCIAS FEI"),"",+'V C JUV'!AZ82),"ERROR") -> NO INICIA SU CLASIFICACIÓN | F82: =IF(B82='V C JUV'!B82,IF(+'V C JUV'!AZ82="HABILITADO TEMPORALMENTE A COMPETENCIAS FEI","HABILITADO TEMPORALMENTE A COMPETENCIAS FEI",""),"ERROR") -> 
A83: =IF('V C JUV'!A83="","",'V C JUV'!A83) -> J012 | B83: =IF('V C JUV'!B83="","",'V C JUV'!B83) -> J023 | C83: =IF('V C JUV'!C83="","",'V C JUV'!C83) -> MOLESTINA NICOLAS | D83: =IF(OR('V C JUV'!AV174+'V C JUV'!AW174>=2,AND('V C JUV'!AV174+'V C JUV'!AW174>=1,'V L JUV'!AW174>=40),'V C JUV'!AX174>1),"CLASIFICADO A 80 Km NOVICIOS","") ->  | E83: =IF(C83='V C JUV'!C83,IF(OR('V C JUV'!AZ83="",'V C JUV'!AZ83="HABILITADO TEMPORALMENTE A COMPETENCIAS FEI"),"",+'V C JUV'!AZ83),"ERROR") ->  | F83: =IF(B83='V C JUV'!B83,IF(+'V C JUV'!AZ83="HABILITADO TEMPORALMENTE A COMPETENCIAS FEI","HABILITADO TEMPORALMENTE A COMPETENCIAS FEI",""),"ERROR") -> HABILITADO TEMPORALMENTE A COMPETENCIAS FEI
A84: =IF('V C JUV'!A84="","",'V C JUV'!A84) -> A119 | B84: =IF('V C JUV'!B84="","",'V C JUV'!B84) -> JO33 | C84: =IF('V C JUV'!C84="","",'V C JUV'!C84) -> MONROY BAROJA MARIA | D84: =IF(OR('V C JUV'!AV175+'V C JUV'!AW175>=2,AND('V C JUV'!AV175+'V C JUV'!AW175>=1,'V L JUV'!AW175>=40),'V C JUV'!AX175>1),"CLASIFICADO A 80 Km NOVICIOS","") ->  | E84: =IF(C84='V C JUV'!C84,IF(OR('V C JUV'!AZ84="",'V C JUV'!AZ84="HABILITADO TEMPORALMENTE A COMPETENCIAS FEI"),"",+'V C JUV'!AZ84),"ERROR") ->  | F84: =IF(B84='V C JUV'!B84,IF(+'V C JUV'!AZ84="HABILITADO TEMPORALMENTE A COMPETENCIAS FEI","HABILITADO TEMPORALMENTE A COMPETENCIAS FEI",""),"ERROR") -> HABILITADO TEMPORALMENTE A COMPETENCIAS FEI
A85: =IF('V C JUV'!A85="","",'V C JUV'!A85) ->  | B85: =IF('V C JUV'!B85="","",'V C JUV'!B85) -> JO36 | C85: =IF('V C JUV'!C85="","",'V C JUV'!C85) -> MORAN KEVIN GUILLERMO | D85: =IF(OR('V C JUV'!AV176+'V C JUV'!AW176>=2,AND('V C JUV'!AV176+'V C JUV'!AW176>=1,'V L JUV'!AW176>=40),'V C JUV'!AX176>1),"CLASIFICADO A 80 Km NOVICIOS","") ->  | E85: =IF(C85='V C JUV'!C85,IF(OR('V C JUV'!AZ85="",'V C JUV'!AZ85="HABILITADO TEMPORALMENTE A COMPETENCIAS FEI"),"",+'V C JUV'!AZ85),"ERROR") -> INICIO SU CLASIFICACIÓN | F85: =IF(B85='V C JUV'!B85,IF(+'V C JUV'!AZ85="HABILITADO TEMPORALMENTE A COMPETENCIAS FEI","HABILITADO TEMPORALMENTE A COMPETENCIAS FEI",""),"ERROR") -> 
A86: =IF('V C JUV'!A86="","",'V C JUV'!A86) -> J002 | B86: =IF('V C JUV'!B86="","",'V C JUV'!B86) -> J025 | C86: =IF('V C JUV'!C86="","",'V C JUV'!C86) -> MORENO CORDOVEZ DANIELA | D86: =IF(OR('V C JUV'!AV177+'V C JUV'!AW177>=2,AND('V C JUV'!AV177+'V C JUV'!AW177>=1,'V L JUV'!AW177>=40),'V C JUV'!AX177>1),"CLASIFICADO A 80 Km NOVICIOS","") ->  | E86: =IF(C86='V C JUV'!C86,IF(OR('V C JUV'!AZ86="",'V C JUV'!AZ86="HABILITADO TEMPORALMENTE A COMPETENCIAS FEI"),"",+'V C JUV'!AZ86),"ERROR") ->  | F86: =IF(B86='V C JUV'!B86,IF(+'V C JUV'!AZ86="HABILITADO TEMPORALMENTE A COMPETENCIAS FEI","HABILITADO TEMPORALMENTE A COMPETENCIAS FEI",""),"ERROR") -> HABILITADO TEMPORALMENTE A COMPETENCIAS FEI
A87: =IF('V C JUV'!A87="","",'V C JUV'!A87) ->  | B87: =IF('V C JUV'!B87="","",'V C JUV'!B87) -> J043 | C87: =IF('V C JUV'!C87="","",'V C JUV'!C87) -> MORENO DANIEL | D87: =IF(OR('V C JUV'!AV178+'V C JUV'!AW178>=2,AND('V C JUV'!AV178+'V C JUV'!AW178>=1,'V L JUV'!AW178>=40),'V C JUV'!AX178>1),"CLASIFICADO A 80 Km NOVICIOS","") ->  | E87: =IF(C87='V C JUV'!C87,IF(OR('V C JUV'!AZ87="",'V C JUV'!AZ87="HABILITADO TEMPORALMENTE A COMPETENCIAS FEI"),"",+'V C JUV'!AZ87),"ERROR") ->  | F87: =IF(B87='V C JUV'!B87,IF(+'V C JUV'!AZ87="HABILITADO TEMPORALMENTE A COMPETENCIAS FEI","HABILITADO TEMPORALMENTE A COMPETENCIAS FEI",""),"ERROR") -> HABILITADO TEMPORALMENTE A COMPETENCIAS FEI
A88: =IF('V C JUV'!A88="","",'V C JUV'!A88) -> J041 | B88: =IF('V C JUV'!B88="","",'V C JUV'!B88) -> J026 | C88: =IF('V C JUV'!C88="","",'V C JUV'!C88) -> MORENO NICOLAS JUAN | D88: =IF(OR('V C JUV'!AV179+'V C JUV'!AW179>=2,AND('V C JUV'!AV179+'V C JUV'!AW179>=1,'V L JUV'!AW179>=40),'V C JUV'!AX179>1),"CLASIFICADO A 80 Km NOVICIOS","") ->  | E88: =IF(C88='V C JUV'!C88,IF(OR('V C JUV'!AZ88="",'V C JUV'!AZ88="HABILITADO TEMPORALMENTE A COMPETENCIAS FEI"),"",+'V C JUV'!AZ88),"ERROR") ->  | F88: =IF(B88='V C JUV'!B88,IF(+'V C JUV'!AZ88="HABILITADO TEMPORALMENTE A COMPETENCIAS FEI","HABILITADO TEMPORALMENTE A COMPETENCIAS FEI",""),"ERROR") -> HABILITADO TEMPORALMENTE A COMPETENCIAS FEI
A89: =IF('V C JUV'!A89="","",'V C JUV'!A89) -> J046 | B89: =IF('V C JUV'!B89="","",'V C JUV'!B89) -> J013 | C89: =IF('V C JUV'!C89="","",'V C JUV'!C89) -> MORILLO SERGIO | D89: =IF(OR('V C JUV'!AV180+'V C JUV'!AW180>=2,AND('V C JUV'!AV180+'V C JUV'!AW180>=1,'V L JUV'!AW180>=40),'V C JUV'!AX180>1),"CLASIFICADO A 80 Km NOVICIOS","") ->  | E89: =IF(C89='V C JUV'!C89,IF(OR('V C JUV'!AZ89="",'V C JUV'!AZ89="HABILITADO TEMPORALMENTE A COMPETENCIAS FEI"),"",+'V C JUV'!AZ89),"ERROR") ->  | F89: =IF(B89='V C JUV'!B89,IF(+'V C JUV'!AZ89="HABILITADO TEMPORALMENTE A COMPETENCIAS FEI","HABILITADO TEMPORALMENTE A COMPETENCIAS FEI",""),"ERROR") -> HABILITADO TEMPORALMENTE A COMPETENCIAS FEI
A90: =IF('V C JUV'!A90="","",'V C JUV'!A90) -> C | B90: =IF('V C JUV'!B90="","",'V C JUV'!B90) -> J073 | C90: =IF('V C JUV'!C90="","",'V C JUV'!C90) -> MUÑOZ LOAIZA PAUL ESTEBAN | D90: =IF(OR('V C JUV'!AV181+'V C JUV'!AW181>=2,AND('V C JUV'!AV181+'V C JUV'!AW181>=1,'V L JUV'!AW181>=40),'V C JUV'!AX181>1),"CLASIFICADO A 80 Km NOVICIOS","") ->  | E90: =IF(C90='V C JUV'!C90,IF(OR('V C JUV'!AZ90="",'V C JUV'!AZ90="HABILITADO TEMPORALMENTE A COMPETENCIAS FEI"),"",+'V C JUV'!AZ90),"ERROR") -> HABILITADO A 80KM VELOCIDAD CONTROLADA | F90: =IF(B90='V C JUV'!B90,IF(+'V C JUV'!AZ90="HABILITADO TEMPORALMENTE A COMPETENCIAS FEI","HABILITADO TEMPORALMENTE A COMPETENCIAS FEI",""),"ERROR") -> 
A91: =IF('V C JUV'!A91="","",'V C JUV'!A91) ->  | B91: =IF('V C JUV'!B91="","",'V C JUV'!B91) -> J086 | C91: =IF('V C JUV'!C91="","",'V C JUV'!C91) -> NICOLE WILLIAMS | D91: =IF(OR('V C JUV'!AV182+'V C JUV'!AW182>=2,AND('V C JUV'!AV182+'V C JUV'!AW182>=1,'V L JUV'!AW182>=40),'V C JUV'!AX182>1),"CLASIFICADO A 80 Km NOVICIOS","") ->  | E91: =IF(C91='V C JUV'!C91,IF(OR('V C JUV'!AZ91="",'V C JUV'!AZ91="HABILITADO TEMPORALMENTE A COMPETENCIAS FEI"),"",+'V C JUV'!AZ91),"ERROR") -> INICIO SU CLASIFICACIÓN | F91: =IF(B91='V C JUV'!B91,IF(+'V C JUV'!AZ91="HABILITADO TEMPORALMENTE A COMPETENCIAS FEI","HABILITADO TEMPORALMENTE A COMPETENCIAS FEI",""),"ERROR") -> 
A92: =IF('V C JUV'!A92="","",'V C JUV'!A92) -> J045 | B92: =IF('V C JUV'!B92="","",'V C JUV'!B92) -> J | C92: =IF('V C JUV'!C92="","",'V C JUV'!C92) -> NIETO JOSE LUIS | D92: =IF(OR('V C JUV'!AV183+'V C JUV'!AW183>=2,AND('V C JUV'!AV183+'V C JUV'!AW183>=1,'V L JUV'!AW183>=40),'V C JUV'!AX183>1),"CLASIFICADO A 80 Km NOVICIOS","") ->  | E92: =IF(C92='V C JUV'!C92,IF(OR('V C JUV'!AZ92="",'V C JUV'!AZ92="HABILITADO TEMPORALMENTE A COMPETENCIAS FEI"),"",+'V C JUV'!AZ92),"ERROR") -> NO INICIA SU CLASIFICACIÓN | F92: =IF(B92='V C JUV'!B92,IF(+'V C JUV'!AZ92="HABILITADO TEMPORALMENTE A COMPETENCIAS FEI","HABILITADO TEMPORALMENTE A COMPETENCIAS FEI",""),"ERROR") -> 
A93: =IF('V C JUV'!A93="","",'V C JUV'!A93) -> J015 | B93: =IF('V C JUV'!B93="","",'V C JUV'!B93) -> J | C93: =IF('V C JUV'!C93="","",'V C JUV'!C93) -> ORTIZ JOSE FRANCISCO | D93: =IF(OR('V C JUV'!AV184+'V C JUV'!AW184>=2,AND('V C JUV'!AV184+'V C JUV'!AW184>=1,'V L JUV'!AW184>=40),'V C JUV'!AX184>1),"CLASIFICADO A 80 Km NOVICIOS","") ->  | E93: =IF(C93='V C JUV'!C93,IF(OR('V C JUV'!AZ93="",'V C JUV'!AZ93="HABILITADO TEMPORALMENTE A COMPETENCIAS FEI"),"",+'V C JUV'!AZ93),"ERROR") -> NO INICIA SU CLASIFICACIÓN | F93: =IF(B93='V C JUV'!B93,IF(+'V C JUV'!AZ93="HABILITADO TEMPORALMENTE A COMPETENCIAS FEI","HABILITADO TEMPORALMENTE A COMPETENCIAS FEI",""),"ERROR") -> 
A94: =IF('V C JUV'!A94="","",'V C JUV'!A94) -> C | B94: =IF('V C JUV'!B94="","",'V C JUV'!B94) -> J074 | C94: =IF('V C JUV'!C94="","",'V C JUV'!C94) -> PEÑA CORDERO SOFIA CAROLINA | D94: =IF(OR('V C JUV'!AV185+'V C JUV'!AW185>=2,AND('V C JUV'!AV185+'V C JUV'!AW185>=1,'V L JUV'!AW185>=40),'V C JUV'!AX185>1),"CLASIFICADO A 80 Km NOVICIOS","") ->  | E94: =IF(C94='V C JUV'!C94,IF(OR('V C JUV'!AZ94="",'V C JUV'!AZ94="HABILITADO TEMPORALMENTE A COMPETENCIAS FEI"),"",+'V C JUV'!AZ94),"ERROR") -> NO INICIA SU CLASIFICACIÓN | F94: =IF(B94='V C JUV'!B94,IF(+'V C JUV'!AZ94="HABILITADO TEMPORALMENTE A COMPETENCIAS FEI","HABILITADO TEMPORALMENTE A COMPETENCIAS FEI",""),"ERROR") -> 
A95: =IF('V C JUV'!A95="","",'V C JUV'!A95) ->  | B95: =IF('V C JUV'!B95="","",'V C JUV'!B95) -> J051 | C95: =IF('V C JUV'!C95="","",'V C JUV'!C95) -> POLIT JULIA | D95: =IF(OR('V C JUV'!AV186+'V C JUV'!AW186>=2,AND('V C JUV'!AV186+'V C JUV'!AW186>=1,'V L JUV'!AW186>=40),'V C JUV'!AX186>1),"CLASIFICADO A 80 Km NOVICIOS","") ->  | E95: =IF(C95='V C JUV'!C95,IF(OR('V C JUV'!AZ95="",'V C JUV'!AZ95="HABILITADO TEMPORALMENTE A COMPETENCIAS FEI"),"",+'V C JUV'!AZ95),"ERROR") -> INICIO SU CLASIFICACIÓN | F95: =IF(B95='V C JUV'!B95,IF(+'V C JUV'!AZ95="HABILITADO TEMPORALMENTE A COMPETENCIAS FEI","HABILITADO TEMPORALMENTE A COMPETENCIAS FEI",""),"ERROR") -> 
A96: =IF('V C JUV'!A96="","",'V C JUV'!A96) -> J006 | B96: =IF('V C JUV'!B96="","",'V C JUV'!B96) -> J | C96: =IF('V C JUV'!C96="","",'V C JUV'!C96) -> RIBADENEIRA EMILIA | D96: =IF(OR('V C JUV'!AV187+'V C JUV'!AW187>=2,AND('V C JUV'!AV187+'V C JUV'!AW187>=1,'V L JUV'!AW187>=40),'V C JUV'!AX187>1),"CLASIFICADO A 80 Km NOVICIOS","") ->  | E96: =IF(C96='V C JUV'!C96,IF(OR('V C JUV'!AZ96="",'V C JUV'!AZ96="HABILITADO TEMPORALMENTE A COMPETENCIAS FEI"),"",+'V C JUV'!AZ96),"ERROR") -> NO INICIA SU CLASIFICACIÓN | F96: =IF(B96='V C JUV'!B96,IF(+'V C JUV'!AZ96="HABILITADO TEMPORALMENTE A COMPETENCIAS FEI","HABILITADO TEMPORALMENTE A COMPETENCIAS FEI",""),"ERROR") -> 
A97: =IF('V C JUV'!A97="","",'V C JUV'!A97) -> J001 | B97: =IF('V C JUV'!B97="","",'V C JUV'!B97) -> J031 | C97: =IF('V C JUV'!C97="","",'V C JUV'!C97) -> RIBADENEIRA SOFIA | D97: =IF(OR('V C JUV'!AV188+'V C JUV'!AW188>=2,AND('V C JUV'!AV188+'V C JUV'!AW188>=1,'V L JUV'!AW188>=40),'V C JUV'!AX188>1),"CLASIFICADO A 80 Km NOVICIOS","") ->  | E97: =IF(C97='V C JUV'!C97,IF(OR('V C JUV'!AZ97="",'V C JUV'!AZ97="HABILITADO TEMPORALMENTE A COMPETENCIAS FEI"),"",+'V C JUV'!AZ97),"ERROR") ->  | F97: =IF(B97='V C JUV'!B97,IF(+'V C JUV'!AZ97="HABILITADO TEMPORALMENTE A COMPETENCIAS FEI","HABILITADO TEMPORALMENTE A COMPETENCIAS FEI",""),"ERROR") -> HABILITADO TEMPORALMENTE A COMPETENCIAS FEI
A98: =IF('V C JUV'!A98="","",'V C JUV'!A98) -> C | B98: =IF('V C JUV'!B98="","",'V C JUV'!B98) -> C | C98: =IF('V C JUV'!C98="","",'V C JUV'!C98) -> RIOS LARRIVA JUAN BERNARDO | D98: =IF(OR('V C JUV'!AV189+'V C JUV'!AW189>=2,AND('V C JUV'!AV189+'V C JUV'!AW189>=1,'V L JUV'!AW189>=40),'V C JUV'!AX189>1),"CLASIFICADO A 80 Km NOVICIOS","") ->  | E98: =IF(C98='V C JUV'!C98,IF(OR('V C JUV'!AZ98="",'V C JUV'!AZ98="HABILITADO TEMPORALMENTE A COMPETENCIAS FEI"),"",+'V C JUV'!AZ98),"ERROR") -> NO INICIA SU CLASIFICACIÓN | F98: =IF(B98='V C JUV'!B98,IF(+'V C JUV'!AZ98="HABILITADO TEMPORALMENTE A COMPETENCIAS FEI","HABILITADO TEMPORALMENTE A COMPETENCIAS FEI",""),"ERROR") -> 
A99: =IF('V C JUV'!A99="","",'V C JUV'!A99) ->  | B99: =IF('V C JUV'!B99="","",'V C JUV'!B99) -> J099 | C99: =IF('V C JUV'!C99="","",'V C JUV'!C99) -> RODITTI CARVAJAL CRISTORO | D99: =IF(OR('V C JUV'!AV190+'V C JUV'!AW190>=2,AND('V C JUV'!AV190+'V C JUV'!AW190>=1,'V L JUV'!AW190>=40),'V C JUV'!AX190>1),"CLASIFICADO A 80 Km NOVICIOS","") ->  | E99: =IF(C99='V C JUV'!C99,IF(OR('V C JUV'!AZ99="",'V C JUV'!AZ99="HABILITADO TEMPORALMENTE A COMPETENCIAS FEI"),"",+'V C JUV'!AZ99),"ERROR") -> HABILITADO A 80KM VELOCIDAD CONTROLADA | F99: =IF(B99='V C JUV'!B99,IF(+'V C JUV'!AZ99="HABILITADO TEMPORALMENTE A COMPETENCIAS FEI","HABILITADO TEMPORALMENTE A COMPETENCIAS FEI",""),"ERROR") -> 
A100: =IF('V C JUV'!A100="","",'V C JUV'!A100) ->  | B100: =IF('V C JUV'!B100="","",'V C JUV'!B100) -> J004 | C100: =IF('V C JUV'!C100="","",'V C JUV'!C100) -> SALAZAR EMILIA | D100: =IF(OR('V C JUV'!AV191+'V C JUV'!AW191>=2,AND('V C JUV'!AV191+'V C JUV'!AW191>=1,'V L JUV'!AW191>=40),'V C JUV'!AX191>1),"CLASIFICADO A 80 Km NOVICIOS","") ->  | E100: =IF(C100='V C JUV'!C100,IF(OR('V C JUV'!AZ100="",'V C JUV'!AZ100="HABILITADO TEMPORALMENTE A COMPETENCIAS FEI"),"",+'V C JUV'!AZ100),"ERROR") -> NO INICIA SU CLASIFICACIÓN | F100: =IF(B100='V C JUV'!B100,IF(+'V C JUV'!AZ100="HABILITADO TEMPORALMENTE A COMPETENCIAS FEI","HABILITADO TEMPORALMENTE A COMPETENCIAS FEI",""),"ERROR") -> 
A101: =IF('V C JUV'!A101="","",'V C JUV'!A101) -> J032 | B101: =IF('V C JUV'!B101="","",'V C JUV'!B101) -> J020 | C101: =IF('V C JUV'!C101="","",'V C JUV'!C101) -> SERRANO VALLEJO FELIPE | D101: =IF(OR('V C JUV'!AV192+'V C JUV'!AW192>=2,AND('V C JUV'!AV192+'V C JUV'!AW192>=1,'V L JUV'!AW192>=40),'V C JUV'!AX192>1),"CLASIFICADO A 80 Km NOVICIOS","") ->  | E101: =IF(C101='V C JUV'!C101,IF(OR('V C JUV'!AZ101="",'V C JUV'!AZ101="HABILITADO TEMPORALMENTE A COMPETENCIAS FEI"),"",+'V C JUV'!AZ101),"ERROR") ->  | F101: =IF(B101='V C JUV'!B101,IF(+'V C JUV'!AZ101="HABILITADO TEMPORALMENTE A COMPETENCIAS FEI","HABILITADO TEMPORALMENTE A COMPETENCIAS FEI",""),"ERROR") -> HABILITADO TEMPORALMENTE A COMPETENCIAS FEI
A102: =IF('V C JUV'!A102="","",'V C JUV'!A102) ->  | B102: =IF('V C JUV'!B102="","",'V C JUV'!B102) -> J088 | C102: =IF('V C JUV'!C102="","",'V C JUV'!C102) -> SIMON NICOLAS | D102: =IF(OR('V C JUV'!AV193+'V C JUV'!AW193>=2,AND('V C JUV'!AV193+'V C JUV'!AW193>=1,'V L JUV'!AW193>=40),'V C JUV'!AX193>1),"CLASIFICADO A 80 Km NOVICIOS","") ->  | E102: =IF(C102='V C JUV'!C102,IF(OR('V C JUV'!AZ102="",'V C JUV'!AZ102="HABILITADO TEMPORALMENTE A COMPETENCIAS FEI"),"",+'V C JUV'!AZ102),"ERROR") -> HABILITADO A 80KM VELOCIDAD CONTROLADA | F102: =IF(B102='V C JUV'!B102,IF(+'V C JUV'!AZ102="HABILITADO TEMPORALMENTE A COMPETENCIAS FEI","HABILITADO TEMPORALMENTE A COMPETENCIAS FEI",""),"ERROR") -> 
A103: =IF('V C JUV'!A103="","",'V C JUV'!A103) -> C | B103: =IF('V C JUV'!B103="","",'V C JUV'!B103) -> J075 | C103: =IF('V C JUV'!C103="","",'V C JUV'!C103) -> SORIA VASQUEZ JUAN MANUEL | D103: =IF(OR('V C JUV'!AV194+'V C JUV'!AW194>=2,AND('V C JUV'!AV194+'V C JUV'!AW194>=1,'V L JUV'!AW194>=40),'V C JUV'!AX194>1),"CLASIFICADO A 80 Km NOVICIOS","") ->  | E103: =IF(C103='V C JUV'!C103,IF(OR('V C JUV'!AZ103="",'V C JUV'!AZ103="HABILITADO TEMPORALMENTE A COMPETENCIAS FEI"),"",+'V C JUV'!AZ103),"ERROR") -> HABILITADO A 80KM VELOCIDAD CONTROLADA | F103: =IF(B103='V C JUV'!B103,IF(+'V C JUV'!AZ103="HABILITADO TEMPORALMENTE A COMPETENCIAS FEI","HABILITADO TEMPORALMENTE A COMPETENCIAS FEI",""),"ERROR") -> 
A104: =IF('V C JUV'!A104="","",'V C JUV'!A104) -> C | B104: =IF('V C JUV'!B104="","",'V C JUV'!B104) -> J076 | C104: =IF('V C JUV'!C104="","",'V C JUV'!C104) -> SORIA VAZQUEZ MARIA DANIELA | D104: =IF(OR('V C JUV'!AV195+'V C JUV'!AW195>=2,AND('V C JUV'!AV195+'V C JUV'!AW195>=1,'V L JUV'!AW195>=40),'V C JUV'!AX195>1),"CLASIFICADO A 80 Km NOVICIOS","") ->  | E104: =IF(C104='V C JUV'!C104,IF(OR('V C JUV'!AZ104="",'V C JUV'!AZ104="HABILITADO TEMPORALMENTE A COMPETENCIAS FEI"),"",+'V C JUV'!AZ104),"ERROR") -> HABILITADO A 80KM VELOCIDAD CONTROLADA | F104: =IF(B104='V C JUV'!B104,IF(+'V C JUV'!AZ104="HABILITADO TEMPORALMENTE A COMPETENCIAS FEI","HABILITADO TEMPORALMENTE A COMPETENCIAS FEI",""),"ERROR") -> 
A105: =IF('V C JUV'!A105="","",'V C JUV'!A105) -> C | B105: =IF('V C JUV'!B105="","",'V C JUV'!B105) -> J077 | C105: =IF('V C JUV'!C105="","",'V C JUV'!C105) -> TAMARIZ MALO SANTIAGO | D105: =IF(OR('V C JUV'!AV196+'V C JUV'!AW196>=2,AND('V C JUV'!AV196+'V C JUV'!AW196>=1,'V L JUV'!AW196>=40),'V C JUV'!AX196>1),"CLASIFICADO A 80 Km NOVICIOS","") ->  | E105: =IF(C105='V C JUV'!C105,IF(OR('V C JUV'!AZ105="",'V C JUV'!AZ105="HABILITADO TEMPORALMENTE A COMPETENCIAS FEI"),"",+'V C JUV'!AZ105),"ERROR") -> HABILITADO A 80KM VELOCIDAD CONTROLADA | F105: =IF(B105='V C JUV'!B105,IF(+'V C JUV'!AZ105="HABILITADO TEMPORALMENTE A COMPETENCIAS FEI","HABILITADO TEMPORALMENTE A COMPETENCIAS FEI",""),"ERROR") -> 
A106: =IF('V C JUV'!A106="","",'V C JUV'!A106) ->  | B106: =IF('V C JUV'!B106="","",'V C JUV'!B106) -> J060 | C106: =IF('V C JUV'!C106="","",'V C JUV'!C106) -> TRUEBA VICTORIA | D106: =IF(OR('V C JUV'!AV197+'V C JUV'!AW197>=2,AND('V C JUV'!AV197+'V C JUV'!AW197>=1,'V L JUV'!AW197>=40),'V C JUV'!AX197>1),"CLASIFICADO A 80 Km NOVICIOS","") ->  | E106: =IF(C106='V C JUV'!C106,IF(OR('V C JUV'!AZ106="",'V C JUV'!AZ106="HABILITADO TEMPORALMENTE A COMPETENCIAS FEI"),"",+'V C JUV'!AZ106),"ERROR") -> INICIO SU CLASIFICACIÓN | F106: =IF(B106='V C JUV'!B106,IF(+'V C JUV'!AZ106="HABILITADO TEMPORALMENTE A COMPETENCIAS FEI","HABILITADO TEMPORALMENTE A COMPETENCIAS FEI",""),"ERROR") -> 
A107: =IF('V C JUV'!A107="","",'V C JUV'!A107) -> C | B107: =IF('V C JUV'!B107="","",'V C JUV'!B107) -> J078 | C107: =IF('V C JUV'!C107="","",'V C JUV'!C107) -> UGALDE ANDRADE CARLOS ESTEBAN | D107: =IF(OR('V C JUV'!AV198+'V C JUV'!AW198>=2,AND('V C JUV'!AV198+'V C JUV'!AW198>=1,'V L JUV'!AW198>=40),'V C JUV'!AX198>1),"CLASIFICADO A 80 Km NOVICIOS","") ->  | E107: =IF(C107='V C JUV'!C107,IF(OR('V C JUV'!AZ107="",'V C JUV'!AZ107="HABILITADO TEMPORALMENTE A COMPETENCIAS FEI"),"",+'V C JUV'!AZ107),"ERROR") -> INICIO SU CLASIFICACIÓN | F107: =IF(B107='V C JUV'!B107,IF(+'V C JUV'!AZ107="HABILITADO TEMPORALMENTE A COMPETENCIAS FEI","HABILITADO TEMPORALMENTE A COMPETENCIAS FEI",""),"ERROR") -> 
A108: =IF('V C JUV'!A108="","",'V C JUV'!A108) ->  | B108: =IF('V C JUV'!B108="","",'V C JUV'!B108) -> M027 | C108: =IF('V C JUV'!C108="","",'V C JUV'!C108) -> VAZCONEZ CAMILA | D108: =IF(OR('V C JUV'!AV199+'V C JUV'!AW199>=2,AND('V C JUV'!AV199+'V C JUV'!AW199>=1,'V L JUV'!AW199>=40),'V C JUV'!AX199>1),"CLASIFICADO A 80 Km NOVICIOS","") ->  | E108: =IF(C108='V C JUV'!C108,IF(OR('V C JUV'!AZ108="",'V C JUV'!AZ108="HABILITADO TEMPORALMENTE A COMPETENCIAS FEI"),"",+'V C JUV'!AZ108),"ERROR") -> INICIO SU CLASIFICACIÓN | F108: =IF(B108='V C JUV'!B108,IF(+'V C JUV'!AZ108="HABILITADO TEMPORALMENTE A COMPETENCIAS FEI","HABILITADO TEMPORALMENTE A COMPETENCIAS FEI",""),"ERROR") -> 
A109: =IF('V C JUV'!A109="","",'V C JUV'!A109) ->  | B109: =IF('V C JUV'!B109="","",'V C JUV'!B109) -> J | C109: =IF('V C JUV'!C109="","",'V C JUV'!C109) -> VERA ZAMBRANO DAYANA | D109: =IF(OR('V C JUV'!AV200+'V C JUV'!AW200>=2,AND('V C JUV'!AV200+'V C JUV'!AW200>=1,'V L JUV'!AW200>=40),'V C JUV'!AX200>1),"CLASIFICADO A 80 Km NOVICIOS","") ->  | E109: =IF(C109='V C JUV'!C109,IF(OR('V C JUV'!AZ109="",'V C JUV'!AZ109="HABILITADO TEMPORALMENTE A COMPETENCIAS FEI"),"",+'V C JUV'!AZ109),"ERROR") -> NO INICIA SU CLASIFICACIÓN | F109: =IF(B109='V C JUV'!B109,IF(+'V C JUV'!AZ109="HABILITADO TEMPORALMENTE A COMPETENCIAS FEI","HABILITADO TEMPORALMENTE A COMPETENCIAS FEI",""),"ERROR") -> 
A110: =IF('V C JUV'!A110="","",'V C JUV'!A110) -> J029 | B110: =IF('V C JUV'!B110="","",'V C JUV'!B110) -> J | C110: =IF('V C JUV'!C110="","",'V C JUV'!C110) -> VERGARA MARIE CLAUDE | D110: =IF(OR('V C JUV'!AV201+'V C JUV'!AW201>=2,AND('V C JUV'!AV201+'V C JUV'!AW201>=1,'V L JUV'!AW201>=40),'V C JUV'!AX201>1),"CLASIFICADO A 80 Km NOVICIOS","") ->  | E110: =IF(C110='V C JUV'!C110,IF(OR('V C JUV'!AZ110="",'V C JUV'!AZ110="HABILITADO TEMPORALMENTE A COMPETENCIAS FEI"),"",+'V C JUV'!AZ110),"ERROR") -> NO INICIA SU CLASIFICACIÓN | F110: =IF(B110='V C JUV'!B110,IF(+'V C JUV'!AZ110="HABILITADO TEMPORALMENTE A COMPETENCIAS FEI","HABILITADO TEMPORALMENTE A COMPETENCIAS FEI",""),"ERROR") -> 
A111: =IF('V C JUV'!A111="","",'V C JUV'!A111) -> J030 | B111: =IF('V C JUV'!B111="","",'V C JUV'!B111) -> J | C111: =IF('V C JUV'!C111="","",'V C JUV'!C111) -> VERGARA MURIEL | D111: =IF(OR('V C JUV'!AV201+'V C JUV'!AW201>=2,AND('V C JUV'!AV201+'V C JUV'!AW201>=1,'V L JUV'!AW201>=40),'V C JUV'!AX201>1),"CLASIFICADO A 80 Km NOVICIOS","") ->  | E111: =IF(C111='V C JUV'!C111,IF(OR('V C JUV'!AZ111="",'V C JUV'!AZ111="HABILITADO TEMPORALMENTE A COMPETENCIAS FEI"),"",+'V C JUV'!AZ111),"ERROR") -> NO INICIA SU CLASIFICACIÓN | F111: =IF(B111='V C JUV'!B111,IF(+'V C JUV'!AZ111="HABILITADO TEMPORALMENTE A COMPETENCIAS FEI","HABILITADO TEMPORALMENTE A COMPETENCIAS FEI",""),"ERROR") -> 
A112: =IF('V C JUV'!A112="","",'V C JUV'!A112) -> J052 | B112: =IF('V C JUV'!B112="","",'V C JUV'!B112) -> J054 | C112: =IF('V C JUV'!C112="","",'V C JUV'!C112) -> VINTIMILLA CORDERO PABLO | D112: =IF(OR('V C JUV'!AV201+'V C JUV'!AW201>=2,AND('V C JUV'!AV201+'V C JUV'!AW201>=1,'V L JUV'!AW201>=40),'V C JUV'!AX201>1),"CLASIFICADO A 80 Km NOVICIOS","") ->  | E112: =IF(C112='V C JUV'!C112,IF(OR('V C JUV'!AZ112="",'V C JUV'!AZ112="HABILITADO TEMPORALMENTE A COMPETENCIAS FEI"),"",+'V C JUV'!AZ112),"ERROR") ->  | F112: =IF(B112='V C JUV'!B112,IF(+'V C JUV'!AZ112="HABILITADO TEMPORALMENTE A COMPETENCIAS FEI","HABILITADO TEMPORALMENTE A COMPETENCIAS FEI",""),"ERROR") -> HABILITADO TEMPORALMENTE A COMPETENCIAS FEI
A113: =IF('V C JUV'!A113="","",'V C JUV'!A113) -> J | B113: =IF('V C JUV'!B113="","",'V C JUV'!B113) -> J | C113: =IF('V C JUV'!C113="","",'V C JUV'!C113) -> WILLIAMS NICOLE | D113: =IF(OR('V C JUV'!AV201+'V C JUV'!AW201>=2,AND('V C JUV'!AV201+'V C JUV'!AW201>=1,'V L JUV'!AW201>=40),'V C JUV'!AX201>1),"CLASIFICADO A 80 Km NOVICIOS","") ->  | E113: =IF(C113='V C JUV'!C113,IF(OR('V C JUV'!AZ113="",'V C JUV'!AZ113="HABILITADO TEMPORALMENTE A COMPETENCIAS FEI"),"",+'V C JUV'!AZ113),"ERROR") -> INICIO SU CLASIFICACIÓN | F113: =IF(B113='V C JUV'!B113,IF(+'V C JUV'!AZ113="HABILITADO TEMPORALMENTE A COMPETENCIAS FEI","HABILITADO TEMPORALMENTE A COMPETENCIAS FEI",""),"ERROR") -> 
A114: =IF('V C JUV'!A114="","",'V C JUV'!A114) -> J040 | B114: =IF('V C JUV'!B114="","",'V C JUV'!B114) -> J028 | C114: =IF('V C JUV'!C114="","",'V C JUV'!C114) -> WRAY VINUEZA MATEO | D114: =IF(OR('V C JUV'!AV201+'V C JUV'!AW201>=2,AND('V C JUV'!AV201+'V C JUV'!AW201>=1,'V L JUV'!AW201>=40),'V C JUV'!AX201>1),"CLASIFICADO A 80 Km NOVICIOS","") ->  | E114: =IF(C114='V C JUV'!C114,IF(OR('V C JUV'!AZ114="",'V C JUV'!AZ114="HABILITADO TEMPORALMENTE A COMPETENCIAS FEI"),"",+'V C JUV'!AZ114),"ERROR") -> LE FALTA UNA DE 80 A 90 CONTROLADA | F114: =IF(B114='V C JUV'!B114,IF(+'V C JUV'!AZ114="HABILITADO TEMPORALMENTE A COMPETENCIAS FEI","HABILITADO TEMPORALMENTE A COMPETENCIAS FEI",""),"ERROR") -> 
A115: =IF('V C JUV'!A115="","",'V C JUV'!A115) -> I057 | B115: =IF('V C JUV'!B115="","",'V C JUV'!B115) -> J035 | C115: =IF('V C JUV'!C115="","",'V C JUV'!C115) -> WRAY VINUEZA THOMAS | D115: =IF(OR('V C JUV'!AV201+'V C JUV'!AW201>=2,AND('V C JUV'!AV201+'V C JUV'!AW201>=1,'V L JUV'!AW201>=40),'V C JUV'!AX201>1),"CLASIFICADO A 80 Km NOVICIOS","") ->  | E115: =IF(C115='V C JUV'!C115,IF(OR('V C JUV'!AZ115="",'V C JUV'!AZ115="HABILITADO TEMPORALMENTE A COMPETENCIAS FEI"),"",+'V C JUV'!AZ115),"ERROR") -> HABILITADO A 80KM VELOCIDAD CONTROLADA | F115: =IF(B115='V C JUV'!B115,IF(+'V C JUV'!AZ115="HABILITADO TEMPORALMENTE A COMPETENCIAS FEI","HABILITADO TEMPORALMENTE A COMPETENCIAS FEI",""),"ERROR") -> 
A116: =IF('V C JUV'!A116="","",'V C JUV'!A116) -> J008 | B116: =IF('V C JUV'!B116="","",'V C JUV'!B116) -> J | C116: =IF('V C JUV'!C116="","",'V C JUV'!C116) -> ZAMBRANO KAREN | D116: =IF(OR('V C JUV'!AV202+'V C JUV'!AW202>=2,AND('V C JUV'!AV202+'V C JUV'!AW202>=1,'V L JUV'!AW202>=40),'V C JUV'!AX202>1),"CLASIFICADO A 80 Km NOVICIOS","") ->  | E116: =IF(C116='V C JUV'!C116,IF(OR('V C JUV'!AZ116="",'V C JUV'!AZ116="HABILITADO TEMPORALMENTE A COMPETENCIAS FEI"),"",+'V C JUV'!AZ116),"ERROR") -> NO INICIA SU CLASIFICACIÓN | F116: =IF(B116='V C JUV'!B116,IF(+'V C JUV'!AZ116="HABILITADO TEMPORALMENTE A COMPETENCIAS FEI","HABILITADO TEMPORALMENTE A COMPETENCIAS FEI",""),"ERROR") -> 
A117: =IF('V C JUV'!A117="","",'V C JUV'!A117) -> 1000 | B117: =IF('V C JUV'!B117="","",'V C JUV'!B117) -> 1000 | C117: =IF('V C JUV'!C117="","",'V C JUV'!C117) -> ZZZZZZZ | D117: =IF(OR('V C JUV'!AV203+'V C JUV'!AW203>=2,AND('V C JUV'!AV203+'V C JUV'!AW203>=1,'V L JUV'!AW203>=40),'V C JUV'!AX203>1),"CLASIFICADO A 80 Km NOVICIOS","") ->  | E117: =IF(C117='V C JUV'!C117,IF(OR('V C JUV'!AZ117="",'V C JUV'!AZ117="HABILITADO TEMPORALMENTE A COMPETENCIAS FEI"),"",+'V C JUV'!AZ117),"ERROR") -> NO INICIA SU CLASIFICACIÓN | F117: =IF(B117='V C JUV'!B117,IF(+'V C JUV'!AZ117="HABILITADO TEMPORALMENTE A COMPETENCIAS FEI","HABILITADO TEMPORALMENTE A COMPETENCIAS FEI",""),"ERROR") -> 

Sheet CLAS AB
B1: DERECHO ADQUIRIDO
D2: NOVICIOS | E2: COPETENCIAS FEI
C4: ABIERTA | D4: =IF(OR('V C AB'!AV4+'V C AB'!AW4+'V C AB'!AW4>=2,AND('V C AB'!AV4+'V C AB'!AW4+'V C AB'!AW4>=2,'V L AB'!AW4>=40),'V C AB'!AX4>=1),"CLASIFICADO A 80 Km NOVICIOS","") ->  | E4: ESTADO DE CLASIFICIÓN | F4: HABILITADO 24 MESES
A5: CODIGO
A6: ANTERIOR | B6: NUEVO | C6: JINETE
A7: =IF(+'V C AB'!A7="","",'V C AB'!A7) -> A081 | B7: =IF(+'V C AB'!B7="","",'V C AB'!B7) -> A | C7: =IF(+'V C AB'!C7="","",'V C AB'!C7) -> ABAD ANDRE | D7: =IF(OR('V C AB'!AV7+'V C AB'!AW7>=2,AND('V C AB'!AV7+'V C AB'!AW7>=1,'V L AB'!AW7>=40),'V C AB'!AX7>=1),"CLASIFICADO A 80 Km NOVICIOS","") ->  | E7: =IF(C7='V C AB'!C7,IF(OR('V C AB'!AZ7="",'V C AB'!AZ7="HABILITADO TEMPORALMENTE A COMPETENCIAS FEI"),"",+'V C AB'!AZ7),"ERROR") -> NO INICIA SU CLASIFICACIÓN | F7: =IF(B7='V C AB'!B7,IF(+'V C AB'!AZ7="HABILITADO TEMPORALMENTE A COMPETENCIAS FEI","HABILITADO TEMPORALMENTE A COMPETENCIAS FEI",""),"ERROR") -> 
A8: =IF(+'V C AB'!A8="","",'V C AB'!A8) -> A080 | B8: =IF(+'V C AB'!B8="","",'V C AB'!B8) -> A | C8: =IF(+'V C AB'!C8="","",'V C AB'!C8) -> ABAD FRANCIS | D8: =IF(OR('V C AB'!AV8+'V C AB'!AW8>=2,AND('V C AB'!AV8+'V C AB'!AW8>=1,'V L AB'!AW8>=40),'V C AB'!AX8>=1),"CLASIFICADO A 80 Km NOVICIOS","") ->  | E8: =IF(C8='V C AB'!C8,IF(OR('V C AB'!AZ8="",'V C AB'!AZ8="HABILITADO TEMPORALMENTE A COMPETENCIAS FEI"),"",+'V C AB'!AZ8),"ERROR") -> NO INICIA SU CLASIFICACIÓN | F8: =IF(B8='V C AB'!B8,IF(+'V C AB'!AZ8="HABILITADO TEMPORALMENTE A COMPETENCIAS FEI","HABILITADO TEMPORALMENTE A COMPETENCIAS FEI",""),"ERROR") -> 
A9: =IF(+'V C AB'!A9="","",'V C AB'!A9) -> A014 | B9: =IF(+'V C AB'!B9="","",'V C AB'!B9) -> A | C9: =IF(+'V C AB'!C9="","",'V C AB'!C9) -> ACHANCE SEGUNDO | D9: =IF(OR('V C AB'!AV9+'V C AB'!AW9>=2,AND('V C AB'!AV9+'V C AB'!AW9>=1,'V L AB'!AW9>=40),'V C AB'!AX9>=1),"CLASIFICADO A 80 Km NOVICIOS","") ->  | E9: =IF(C9='V C AB'!C9,IF(OR('V C AB'!AZ9="",'V C AB'!AZ9="HABILITADO TEMPORALMENTE A COMPETENCIAS FEI"),"",+'V C AB'!AZ9),"ERROR") -> NO INICIA SU CLASIFICACIÓN | F9: =IF(B9='V C AB'!B9,IF(+'V C AB'!AZ9="HABILITADO TEMPORALMENTE A COMPETENCIAS FEI","HABILITADO TEMPORALMENTE A COMPETENCIAS FEI",""),"ERROR") -> 
A10: =IF(+'V C AB'!A10="","",'V C AB'!A10) ->  | B10: =IF(+'V C AB'!B10="","",'V C AB'!B10) -> A | C10: =IF(+'V C AB'!C10="","",'V C AB'!C10) -> ALARCON VERGARA ESTEBAN | D10: =IF(OR('V C AB'!AV10+'V C AB'!AW10>=2,AND('V C AB'!AV10+'V C AB'!AW10>=1,'V L AB'!AW10>=40),'V C AB'!AX10>=1),"CLASIFICADO A 80 Km NOVICIOS","") ->  | E10: =IF(C10='V C AB'!C10,IF(OR('V C AB'!AZ10="",'V C AB'!AZ10="HABILITADO TEMPORALMENTE A COMPETENCIAS FEI"),"",+'V C AB'!AZ10),"ERROR") -> NO INICIA SU CLASIFICACIÓN | F10: =IF(B10='V C AB'!B10,IF(+'V C AB'!AZ10="HABILITADO TEMPORALMENTE A COMPETENCIAS FEI","HABILITADO TEMPORALMENTE A COMPETENCIAS FEI",""),"ERROR") -> 
A11: =IF(+'V C AB'!A11="","",'V C AB'!A11) -> A120 | B11: =IF(+'V C AB'!B11="","",'V C AB'!B11) -> A | C11: =IF(+'V C AB'!C11="","",'V C AB'!C11) -> ALBUJA FUENTES PATRICIO | D11: =IF(OR('V C AB'!AV11+'V C AB'!AW11>=2,AND('V C AB'!AV11+'V C AB'!AW11>=1,'V L AB'!AW11>=40),'V C AB'!AX11>=1),"CLASIFICADO A 80 Km NOVICIOS","") ->  | E11: =IF(C11='V C AB'!C11,IF(OR('V C AB'!AZ11="",'V C AB'!AZ11="HABILITADO TEMPORALMENTE A COMPETENCIAS FEI"),"",+'V C AB'!AZ11),"ERROR") -> INICIO SU CLASIFICACIÓN | F11: =IF(B11='V C AB'!B11,IF(+'V C AB'!AZ11="HABILITADO TEMPORALMENTE A COMPETENCIAS FEI","HABILITADO TEMPORALMENTE A COMPETENCIAS FEI",""),"ERROR") -> 
A12: =IF(+'V C AB'!A12="","",'V C AB'!A12) -> C | B12: =IF(+'V C AB'!B12="","",'V C AB'!B12) -> C | C12: =IF(+'V C AB'!C12="","",'V C AB'!C12) -> ALDAZ RAUL | D12: =IF(OR('V C AB'!AV12+'V C AB'!AW12>=2,AND('V C AB'!AV12+'V C AB'!AW12>=1,'V L AB'!AW12>=40),'V C AB'!AX12>=1),"CLASIFICADO A 80 Km NOVICIOS","") ->  | E12: =IF(C12='V C AB'!C12,IF(OR('V C AB'!AZ12="",'V C AB'!AZ12="HABILITADO TEMPORALMENTE A COMPETENCIAS FEI"),"",+'V C AB'!AZ12),"ERROR") -> NO INICIA SU CLASIFICACIÓN | F12: =IF(B12='V C AB'!B12,IF(+'V C AB'!AZ12="HABILITADO TEMPORALMENTE A COMPETENCIAS FEI","HABILITADO TEMPORALMENTE A COMPETENCIAS FEI",""),"ERROR") -> 
A13: =IF(+'V C AB'!A13="","",'V C AB'!A13) ->  | B13: =IF(+'V C AB'!B13="","",'V C AB'!B13) -> A181 | C13: =IF(+'V C AB'!C13="","",'V C AB'!C13) -> ALLAICO CHIMBORAZO JOSE EMILIO | D13: =IF(OR('V C AB'!AV13+'V C AB'!AW13>=2,AND('V C AB'!AV13+'V C AB'!AW13>=1,'V L AB'!AW13>=40),'V C AB'!AX13>=1),"CLASIFICADO A 80 Km NOVICIOS","") -> CLASIFICADO A 80 Km NOVICIOS | E13: =IF(C13='V C AB'!C13,IF(OR('V C AB'!AZ13="",'V C AB'!AZ13="HABILITADO TEMPORALMENTE A COMPETENCIAS FEI"),"",+'V C AB'!AZ13),"ERROR") -> HABILITADO A 80KM VELOCIDAD CONTROLADA | F13: =IF(B13='V C AB'!B13,IF(+'V C AB'!AZ13="HABILITADO TEMPORALMENTE A COMPETENCIAS FEI","HABILITADO TEMPORALMENTE A COMPETENCIAS FEI",""),"ERROR") -> 
A14: =IF(+'V C AB'!A14="","",'V C AB'!A14) -> A037 | B14: =IF(+'V C AB'!B14="","",'V C AB'!B14) -> A059 | C14: =IF(+'V C AB'!C14="","",'V C AB'!C14) -> ALMEIDA AYALA HECTOR | D14: =IF(OR('V C AB'!AV14+'V C AB'!AW14>=2,AND('V C AB'!AV14+'V C AB'!AW14>=1,'V L AB'!AW14>=40),'V C AB'!AX14>=1),"CLASIFICADO A 80 Km NOVICIOS","") -> CLASIFICADO A 80 Km NOVICIOS | E14: =IF(C14='V C AB'!C14,IF(OR('V C AB'!AZ14="",'V C AB'!AZ14="HABILITADO TEMPORALMENTE A COMPETENCIAS FEI"),"",+'V C AB'!AZ14),"ERROR") ->  | F14: =IF(B14='V C AB'!B14,IF(+'V C AB'!AZ14="HABILITADO TEMPORALMENTE A COMPETENCIAS FEI","HABILITADO TEMPORALMENTE A COMPETENCIAS FEI",""),"ERROR") -> HABILITADO TEMPORALMENTE A COMPETENCIAS FEI
A15: =IF(+'V C AB'!A15="","",'V C AB'!A15) ->  | B15: =IF(+'V C AB'!B15="","",'V C AB'!B15) -> A011 | C15: =IF(+'V C AB'!C15="","",'V C AB'!C15) -> ALMEIDA PARDO DAVID | D15: =IF(OR('V C AB'!AV15+'V C AB'!AW15>=2,AND('V C AB'!AV15+'V C AB'!AW15>=1,'V L AB'!AW15>=40),'V C AB'!AX15>=1),"CLASIFICADO A 80 Km NOVICIOS","") ->  | E15: =IF(C15='V C AB'!C15,IF(OR('V C AB'!AZ15="",'V C AB'!AZ15="HABILITADO TEMPORALMENTE A COMPETENCIAS FEI"),"",+'V C AB'!AZ15),"ERROR") -> INICIO SU CLASIFICACIÓN | F15: =IF(B15='V C AB'!B15,IF(+'V C AB'!AZ15="HABILITADO TEMPORALMENTE A COMPETENCIAS FEI","HABILITADO TEMPORALMENTE A COMPETENCIAS FEI",""),"ERROR") -> 
A16: =IF(+'V C AB'!A16="","",'V C AB'!A16) ->  | B16: =IF(+'V C AB'!B16="","",'V C AB'!B16) -> A012 | C16: =IF(+'V C AB'!C16="","",'V C AB'!C16) -> ALMEIDA PARDO HECTOR | D16: =IF(OR('V C AB'!AV16+'V C AB'!AW16>=2,AND('V C AB'!AV16+'V C AB'!AW16>=1,'V L AB'!AW16>=40),'V C AB'!AX16>=1),"CLASIFICADO A 80 Km NOVICIOS","") ->  | E16: =IF(C16='V C AB'!C16,IF(OR('V C AB'!AZ16="",'V C AB'!AZ16="HABILITADO TEMPORALMENTE A COMPETENCIAS FEI"),"",+'V C AB'!AZ16),"ERROR") -> NO INICIA SU CLASIFICACIÓN | F16: =IF(B16='V C AB'!B16,IF(+'V C AB'!AZ16="HABILITADO TEMPORALMENTE A COMPETENCIAS FEI","HABILITADO TEMPORALMENTE A COMPETENCIAS FEI",""),"ERROR") -> 
A17: =IF(+'V C AB'!A17="","",'V C AB'!A17) -> M004 | B17: =IF(+'V C AB'!B17="","",'V C AB'!B17) -> A021 | C17: =IF(+'V C AB'!C17="","",'V C AB'!C17) -> ALVEAR JUAN CARLOS | D17: =IF(OR('V C AB'!AV17+'V C AB'!AW17>=2,AND('V C AB'!AV17+'V C AB'!AW17>=1,'V L AB'!AW17>=40),'V C AB'!AX17>=1),"CLASIFICADO A 80 Km NOVICIOS","") -> CLASIFICADO A 80 Km NOVICIOS | E17: =IF(C17='V C AB'!C17,IF(OR('V C AB'!AZ17="",'V C AB'!AZ17="HABILITADO TEMPORALMENTE A COMPETENCIAS FEI"),"",+'V C AB'!AZ17),"ERROR") -> HABILITADO A 80KM VELOCIDAD CONTROLADA | F17: =IF(B17='V C AB'!B17,IF(+'V C AB'!AZ17="HABILITADO TEMPORALMENTE A COMPETENCIAS FEI","HABILITADO TEMPORALMENTE A COMPETENCIAS FEI",""),"ERROR") -> 
A18: =IF(+'V C AB'!A18="","",'V C AB'!A18) -> A020 | B18: =IF(+'V C AB'!B18="","",'V C AB'!B18) -> A088 | C18: =IF(+'V C AB'!C18="","",'V C AB'!C18) -> ALZAMORA GUERRERO ESTEBAN | D18: =IF(OR('V C AB'!AV18+'V C AB'!AW18>=2,AND('V C AB'!AV18+'V C AB'!AW18>=1,'V L AB'!AW18>=40),'V C AB'!AX18>=1),"CLASIFICADO A 80 Km NOVICIOS","") ->  | E18: =IF(C18='V C AB'!C18,IF(OR('V C AB'!AZ18="",'V C AB'!AZ18="HABILITADO TEMPORALMENTE A COMPETENCIAS FEI"),"",+'V C AB'!AZ18),"ERROR") -> INICIO SU CLASIFICACIÓN | F18: =IF(B18='V C AB'!B18,IF(+'V C AB'!AZ18="HABILITADO TEMPORALMENTE A COMPETENCIAS FEI","HABILITADO TEMPORALMENTE A COMPETENCIAS FEI",""),"ERROR") -> 
A19: =IF(+'V C AB'!A19="","",'V C AB'!A19) -> A070 | B19: =IF(+'V C AB'!B19="","",'V C AB'!B19) -> A050 | C19: =IF(+'V C AB'!C19="","",'V C AB'!C19) -> ALZAMORA MARIA CECILIA | D19: =IF(OR('V C AB'!AV19+'V C AB'!AW19>=2,AND('V C AB'!AV19+'V C AB'!AW19>=1,'V L AB'!AW19>=40),'V C AB'!AX19>=1),"CLASIFICADO A 80 Km NOVICIOS","") -> CLASIFICADO A 80 Km NOVICIOS | E19: =IF(C19='V C AB'!C19,IF(OR('V C AB'!AZ19="",'V C AB'!AZ19="HABILITADO TEMPORALMENTE A COMPETENCIAS FEI"),"",+'V C AB'!AZ19),"ERROR") ->  | F19: =IF(B19='V C AB'!B19,IF(+'V C AB'!AZ19="HABILITADO TEMPORALMENTE A COMPETENCIAS FEI","HABILITADO TEMPORALMENTE A COMPETENCIAS FEI",""),"ERROR") -> HABILITADO TEMPORALMENTE A COMPETENCIAS FEI
A20: =IF(+'V C AB'!A20="","",'V C AB'!A20) ->  | B20: =IF(+'V C AB'!B20="","",'V C AB'!B20) -> A178 | C20: =IF(+'V C AB'!C20="","",'V C AB'!C20) -> ANDRADE JUAN CARLOS | D20: =IF(OR('V C AB'!AV20+'V C AB'!AW20>=2,AND('V C AB'!AV20+'V C AB'!AW20>=1,'V L AB'!AW20>=40),'V C AB'!AX20>=1),"CLASIFICADO A 80 Km NOVICIOS","") ->  | E20: =IF(C20='V C AB'!C20,IF(OR('V C AB'!AZ20="",'V C AB'!AZ20="HABILITADO TEMPORALMENTE A COMPETENCIAS FEI"),"",+'V C AB'!AZ20),"ERROR") -> INICIO SU CLASIFICACIÓN | F20: =IF(B20='V C AB'!B20,IF(+'V C AB'!AZ20="HABILITADO TEMPORALMENTE A COMPETENCIAS FEI","HABILITADO TEMPORALMENTE A COMPETENCIAS FEI",""),"ERROR") -> 
A21: =IF(+'V C AB'!A21="","",'V C AB'!A21) -> J008 | B21: =IF(+'V C AB'!B21="","",'V C AB'!B21) -> A | C21: =IF(+'V C AB'!C21="","",'V C AB'!C21) -> ASTUDILLO ESTALIN | D21: =IF(OR('V C AB'!AV21+'V C AB'!AW21>=2,AND('V C AB'!AV21+'V C AB'!AW21>=1,'V L AB'!AW21>=40),'V C AB'!AX21>=1),"CLASIFICADO A 80 Km NOVICIOS","") ->  | E21: =IF(C21='V C AB'!C21,IF(OR('V C AB'!AZ21="",'V C AB'!AZ21="HABILITADO TEMPORALMENTE A COMPETENCIAS FEI"),"",+'V C AB'!AZ21),"ERROR") -> NO INICIA SU CLASIFICACIÓN | F21: =IF(B21='V C AB'!B21,IF(+'V C AB'!AZ21="HABILITADO TEMPORALMENTE A COMPETENCIAS FEI","HABILITADO TEMPORALMENTE A COMPETENCIAS FEI",""),"ERROR") -> 
A22: =IF(+'V C AB'!A22="","",'V C AB'!A22) ->  | B22: =IF(+'V C AB'!B22="","",'V C AB'!B22) -> A095 | C22: =IF(+'V C AB'!C22="","",'V C AB'!C22) -> AULES LUIS RAUL | D22: =IF(OR('V C AB'!AV22+'V C AB'!AW22>=2,AND('V C AB'!AV22+'V C AB'!AW22>=1,'V L AB'!AW22>=40),'V C AB'!AX22>=1),"CLASIFICADO A 80 Km NOVICIOS","") ->  | E22: =IF(C22='V C AB'!C22,IF(OR('V C AB'!AZ22="",'V C AB'!AZ22="HABILITADO TEMPORALMENTE A COMPETENCIAS FEI"),"",+'V C AB'!AZ22),"ERROR") -> INICIO SU CLASIFICACIÓN | F22: =IF(B22='V C AB'!B22,IF(+'V C AB'!AZ22="HABILITADO TEMPORALMENTE A COMPETENCIAS FEI","HABILITADO TEMPORALMENTE A COMPETENCIAS FEI",""),"ERROR") -> 
A23: =IF(+'V C AB'!A23="","",'V C AB'!A23) ->  | B23: =IF(+'V C AB'!B23="","",'V C AB'!B23) -> A | C23: =IF(+'V C AB'!C23="","",'V C AB'!C23) -> AYALA ANDREA | D23: =IF(OR('V C AB'!AV23+'V C AB'!AW23>=2,AND('V C AB'!AV23+'V C AB'!AW23>=1,'V L AB'!AW23>=40),'V C AB'!AX23>=1),"CLASIFICADO A 80 Km NOVICIOS","") ->  | E23: =IF(C23='V C AB'!C23,IF(OR('V C AB'!AZ23="",'V C AB'!AZ23="HABILITADO TEMPORALMENTE A COMPETENCIAS FEI"),"",+'V C AB'!AZ23),"ERROR") -> NO INICIA SU CLASIFICACIÓN | F23: =IF(B23='V C AB'!B23,IF(+'V C AB'!AZ23="HABILITADO TEMPORALMENTE A COMPETENCIAS FEI","HABILITADO TEMPORALMENTE A COMPETENCIAS FEI",""),"ERROR") -> 
A24: =IF(+'V C AB'!A24="","",'V C AB'!A24) -> A049 | B24: =IF(+'V C AB'!B24="","",'V C AB'!B24) -> A | C24: =IF(+'V C AB'!C24="","",'V C AB'!C24) -> AYALA DANIEL | D24: =IF(OR('V C AB'!AV24+'V C AB'!AW24>=2,AND('V C AB'!AV24+'V C AB'!AW24>=1,'V L AB'!AW24>=40),'V C AB'!AX24>=1),"CLASIFICADO A 80 Km NOVICIOS","") ->  | E24: =IF(C24='V C AB'!C24,IF(OR('V C AB'!AZ24="",'V C AB'!AZ24="HABILITADO TEMPORALMENTE A COMPETENCIAS FEI"),"",+'V C AB'!AZ24),"ERROR") -> NO INICIA SU CLASIFICACIÓN | F24: =IF(B24='V C AB'!B24,IF(+'V C AB'!AZ24="HABILITADO TEMPORALMENTE A COMPETENCIAS FEI","HABILITADO TEMPORALMENTE A COMPETENCIAS FEI",""),"ERROR") -> 
A25: =IF(+'V C AB'!A25="","",'V C AB'!A25) -> A028 | B25: =IF(+'V C AB'!B25="","",'V C AB'!B25) -> A048 | C25: =IF(+'V C AB'!C25="","",'V C AB'!C25) -> BARAHONA ANDRES | D25: =IF(OR('V C AB'!AV25+'V C AB'!AW25>=2,AND('V C AB'!AV25+'V C AB'!AW25>=1,'V L AB'!AW25>=40),'V C AB'!AX25>=1),"CLASIFICADO A 80 Km NOVICIOS","") -> CLASIFICADO A 80 Km NOVICIOS | E25: =IF(C25='V C AB'!C25,IF(OR('V C AB'!AZ25="",'V C AB'!AZ25="HABILITADO TEMPORALMENTE A COMPETENCIAS FEI"),"",+'V C AB'!AZ25),"ERROR") ->  | F25: =IF(B25='V C AB'!B25,IF(+'V C AB'!AZ25="HABILITADO TEMPORALMENTE A COMPETENCIAS FEI","HABILITADO TEMPORALMENTE A COMPETENCIAS FEI",""),"ERROR") -> HABILITADO TEMPORALMENTE A COMPETENCIAS FEI
A26: =IF(+'V C AB'!A26="","",'V C AB'!A26) -> A112 | B26: =IF(+'V C AB'!B26="","",'V C AB'!B26) -> A | C26: =IF(+'V C AB'!C26="","",'V C AB'!C26) -> BERMEO JUAN BERNARDO | D26: =IF(OR('V C AB'!AV26+'V C AB'!AW26>=2,AND('V C AB'!AV26+'V C AB'!AW26>=1,'V L AB'!AW26>=40),'V C AB'!AX26>=1),"CLASIFICADO A 80 Km NOVICIOS","") ->  | E26: =IF(C26='V C AB'!C26,IF(OR('V C AB'!AZ26="",'V C AB'!AZ26="HABILITADO TEMPORALMENTE A COMPETENCIAS FEI"),"",+'V C AB'!AZ26),"ERROR") -> INICIO SU CLASIFICACIÓN | F26: =IF(B26='V C AB'!B26,IF(+'V C AB'!AZ26="HABILITADO TEMPORALMENTE A COMPETENCIAS FEI","HABILITADO TEMPORALMENTE A COMPETENCIAS FEI",""),"ERROR") -> 
A27: =IF(+'V C AB'!A27="","",'V C AB'!A27) -> A0159 | B27: =IF(+'V C AB'!B27="","",'V C AB'!B27) -> A049 | C27: =IF(+'V C AB'!C27="","",'V C AB'!C27) -> BRAUER MARIA FERNANDA | D27: =IF(OR('V C AB'!AV27+'V C AB'!AW27>=2,AND('V C AB'!AV27+'V C AB'!AW27>=1,'V L AB'!AW27>=40),'V C AB'!AX27>=1),"CLASIFICADO A 80 Km NOVICIOS","") -> CLASIFICADO A 80 Km NOVICIOS | E27: =IF(C27='V C AB'!C27,IF(OR('V C AB'!AZ27="",'V C AB'!AZ27="HABILITADO TEMPORALMENTE A COMPETENCIAS FEI"),"",+'V C AB'!AZ27),"ERROR") ->  | F27: =IF(B27='V C AB'!B27,IF(+'V C AB'!AZ27="HABILITADO TEMPORALMENTE A COMPETENCIAS FEI","HABILITADO TEMPORALMENTE A COMPETENCIAS FEI",""),"ERROR") -> HABILITADO TEMPORALMENTE A COMPETENCIAS FEI
A28: =IF(+'V C AB'!A28="","",'V C AB'!A28) -> A101 | B28: =IF(+'V C AB'!B28="","",'V C AB'!B28) -> A | C28: =IF(+'V C AB'!C28="","",'V C AB'!C28) -> BRAVO LUIS GUSTAVO | D28: =IF(OR('V C AB'!AV28+'V C AB'!AW28>=2,AND('V C AB'!AV28+'V C AB'!AW28>=1,'V L AB'!AW28>=40),'V C AB'!AX28>=1),"CLASIFICADO A 80 Km NOVICIOS","") ->  | E28: =IF(C28='V C AB'!C28,IF(OR('V C AB'!AZ28="",'V C AB'!AZ28="HABILITADO TEMPORALMENTE A COMPETENCIAS FEI"),"",+'V C AB'!AZ28),"ERROR") -> NO INICIA SU CLASIFICACIÓN | F28: =IF(B28='V C AB'!B28,IF(+'V C AB'!AZ28="HABILITADO TEMPORALMENTE A COMPETENCIAS FEI","HABILITADO TEMPORALMENTE A COMPETENCIAS FEI",""),"ERROR") -> 
A29: =IF(+'V C AB'!A29="","",'V C AB'!A29) ->  | B29: =IF(+'V C AB'!B29="","",'V C AB'!B29) -> A185 | C29: =IF(+'V C AB'!C29="","",'V C AB'!C29) -> BURBANO SERRANO JAIME ROLANDO | D29: =IF(OR('V C AB'!AV29+'V C AB'!AW29>=2,AND('V C AB'!AV29+'V C AB'!AW29>=1,'V L AB'!AW29>=40),'V C AB'!AX29>=1),"CLASIFICADO A 80 Km NOVICIOS","") -> CLASIFICADO A 80 Km NOVICIOS | E29: =IF(C29='V C AB'!C29,IF(OR('V C AB'!AZ29="",'V C AB'!AZ29="HABILITADO TEMPORALMENTE A COMPETENCIAS FEI"),"",+'V C AB'!AZ29),"ERROR") -> INICIO SU CLASIFICACIÓN | F29: =IF(B29='V C AB'!B29,IF(+'V C AB'!AZ29="HABILITADO TEMPORALMENTE A COMPETENCIAS FEI","HABILITADO TEMPORALMENTE A COMPETENCIAS FEI",""),"ERROR") -> 
A30: =IF(+'V C AB'!A30="","",'V C AB'!A30) -> C | B30: =IF(+'V C AB'!B30="","",'V C AB'!B30) -> A133 | C30: =IF(+'V C AB'!C30="","",'V C AB'!C30) -> BURBANO SERRANO JUAN JOSE | D30: =IF(OR('V C AB'!AV30+'V C AB'!AW30>=2,AND('V C AB'!AV30+'V C AB'!AW30>=1,'V L AB'!AW30>=40),'V C AB'!AX30>=1),"CLASIFICADO A 80 Km NOVICIOS","") ->  | E30: =IF(C30='V C AB'!C30,IF(OR('V C AB'!AZ30="",'V C AB'!AZ30="HABILITADO TEMPORALMENTE A COMPETENCIAS FEI"),"",+'V C AB'!AZ30),"ERROR") -> INICIO SU CLASIFICACIÓN | F30: =IF(B30='V C AB'!B30,IF(+'V C AB'!AZ30="HABILITADO TEMPORALMENTE A COMPETENCIAS FEI","HABILITADO TEMPORALMENTE A COMPETENCIAS FEI",""),"ERROR") -> 
A31: =IF(+'V C AB'!A31="","",'V C AB'!A31) ->  | B31: =IF(+'V C AB'!B31="","",'V C AB'!B31) -> A172 | C31: =IF(+'V C AB'!C31="","",'V C AB'!C31) -> BURBANO VILLAVICENCIO JAIME SEBASTIAN | D31: =IF(OR('V C AB'!AV31+'V C AB'!AW31>=2,AND('V C AB'!AV31+'V C AB'!AW31>=1,'V L AB'!AW31>=40),'V C AB'!AX31>=1),"CLASIFICADO A 80 Km NOVICIOS","") -> CLASIFICADO A 80 Km NOVICIOS | E31: =IF(C31='V C AB'!C31,IF(OR('V C AB'!AZ31="",'V C AB'!AZ31="HABILITADO TEMPORALMENTE A COMPETENCIAS FEI"),"",+'V C AB'!AZ31),"ERROR") -> LE FALTA UNA DE 80 A 90 CONTROLADA | F31: =IF(B31='V C AB'!B31,IF(+'V C AB'!AZ31="HABILITADO TEMPORALMENTE A COMPETENCIAS FEI","HABILITADO TEMPORALMENTE A COMPETENCIAS FEI",""),"ERROR") -> 
A32: =IF(+'V C AB'!A32="","",'V C AB'!A32) ->  | B32: =IF(+'V C AB'!B32="","",'V C AB'!B32) -> A | C32: =IF(+'V C AB'!C32="","",'V C AB'!C32) -> BUSTAMENTE RODRIGO | D32: =IF(OR('V C AB'!AV32+'V C AB'!AW32>=2,AND('V C AB'!AV32+'V C AB'!AW32>=1,'V L AB'!AW32>=40),'V C AB'!AX32>=1),"CLASIFICADO A 80 Km NOVICIOS","") ->  | E32: =IF(C32='V C AB'!C32,IF(OR('V C AB'!AZ32="",'V C AB'!AZ32="HABILITADO TEMPORALMENTE A COMPETENCIAS FEI"),"",+'V C AB'!AZ32),"ERROR") -> NO INICIA SU CLASIFICACIÓN | F32: =IF(B32='V C AB'!B32,IF(+'V C AB'!AZ32="HABILITADO TEMPORALMENTE A COMPETENCIAS FEI","HABILITADO TEMPORALMENTE A COMPETENCIAS FEI",""),"ERROR") -> 
A33: =IF(+'V C AB'!A33="","",'V C AB'!A33) -> C | B33: =IF(+'V C AB'!B33="","",'V C AB'!B33) -> C | C33: =IF(+'V C AB'!C33="","",'V C AB'!C33) -> CAMACHO VINTIMILLA JUAN | D33: =IF(OR('V C AB'!AV33+'V C AB'!AW33>=2,AND('V C AB'!AV33+'V C AB'!AW33>=1,'V L AB'!AW33>=40),'V C AB'!AX33>=1),"CLASIFICADO A 80 Km NOVICIOS","") ->  | E33: =IF(C33='V C AB'!C33,IF(OR('V C AB'!AZ33="",'V C AB'!AZ33="HABILITADO TEMPORALMENTE A COMPETENCIAS FEI"),"",+'V C AB'!AZ33),"ERROR") -> NO INICIA SU CLASIFICACIÓN | F33: =IF(B33='V C AB'!B33,IF(+'V C AB'!AZ33="HABILITADO TEMPORALMENTE A COMPETENCIAS FEI","HABILITADO TEMPORALMENTE A COMPETENCIAS FEI",""),"ERROR") -> 
A34: =IF(+'V C AB'!A34="","",'V C AB'!A34) -> A151 | B34: =IF(+'V C AB'!B34="","",'V C AB'!B34) -> A103 | C34: =IF(+'V C AB'!C34="","",'V C AB'!C34) -> CANDELEJO NELSON | D34: =IF(OR('V C AB'!AV34+'V C AB'!AW34>=2,AND('V C AB'!AV34+'V C AB'!AW34>=1,'V L AB'!AW34>=40),'V C AB'!AX34>=1),"CLASIFICADO A 80 Km NOVICIOS","") -> CLASIFICADO A 80 Km NOVICIOS | E34: =IF(C34='V C AB'!C34,IF(OR('V C AB'!AZ34="",'V C AB'!AZ34="HABILITADO TEMPORALMENTE A COMPETENCIAS FEI"),"",+'V C AB'!AZ34),"ERROR") -> HABILITADO A 80KM VELOCIDAD CONTROLADA | F34: =IF(B34='V C AB'!B34,IF(+'V C AB'!AZ34="HABILITADO TEMPORALMENTE A COMPETENCIAS FEI","HABILITADO TEMPORALMENTE A COMPETENCIAS FEI",""),"ERROR") -> 
A35: =IF(+'V C AB'!A35="","",'V C AB'!A35) -> A046 | B35: =IF(+'V C AB'!B35="","",'V C AB'!B35) -> A067 | C35: =IF(+'V C AB'!C35="","",'V C AB'!C35) -> CANDO MARIO | D35: =IF(OR('V C AB'!AV35+'V C AB'!AW35>=2,AND('V C AB'!AV35+'V C AB'!AW35>=1,'V L AB'!AW35>=40),'V C AB'!AX35>=1),"CLASIFICADO A 80 Km NOVICIOS","") -> CLASIFICADO A 80 Km NOVICIOS | E35: =IF(C35='V C AB'!C35,IF(OR('V C AB'!AZ35="",'V C AB'!AZ35="HABILITADO TEMPORALMENTE A COMPETENCIAS FEI"),"",+'V C AB'!AZ35),"ERROR") ->  | F35: =IF(B35='V C AB'!B35,IF(+'V C AB'!AZ35="HABILITADO TEMPORALMENTE A COMPETENCIAS FEI","HABILITADO TEMPORALMENTE A COMPETENCIAS FEI",""),"ERROR") -> HABILITADO TEMPORALMENTE A COMPETENCIAS FEI
A36: =IF(+'V C AB'!A36="","",'V C AB'!A36) -> A068 | B36: =IF(+'V C AB'!B36="","",'V C AB'!B36) -> A015 | C36: =IF(+'V C AB'!C36="","",'V C AB'!C36) -> CARDENAS DANIEL | D36: =IF(OR('V C AB'!AV36+'V C AB'!AW36>=2,AND('V C AB'!AV36+'V C AB'!AW36>=1,'V L AB'!AW36>=40),'V C AB'!AX36>=1),"CLASIFICADO A 80 Km NOVICIOS","") ->  | E36: =IF(C36='V C AB'!C36,IF(OR('V C AB'!AZ36="",'V C AB'!AZ36="HABILITADO TEMPORALMENTE A COMPETENCIAS FEI"),"",+'V C AB'!AZ36),"ERROR") -> INICIO SU CLASIFICACIÓN | F36: =IF(B36='V C AB'!B36,IF(+'V C AB'!AZ36="HABILITADO TEMPORALMENTE A COMPETENCIAS FEI","HABILITADO TEMPORALMENTE A COMPETENCIAS FEI",""),"ERROR") -> 
A37: =IF(+'V C AB'!A37="","",'V C AB'!A37) -> C | B37: =IF(+'V C AB'!B37="","",'V C AB'!B37) -> A134 | C37: =IF(+'V C AB'!C37="","",'V C AB'!C37) -> CARRASCO AUGUSTO | D37: =IF(OR('V C AB'!AV37+'V C AB'!AW37>=2,AND('V C AB'!AV37+'V C AB'!AW37>=1,'V L AB'!AW37>=40),'V C AB'!AX37>=1),"CLASIFICADO A 80 Km NOVICIOS","") ->  | E37: =IF(C37='V C AB'!C37,IF(OR('V C AB'!AZ37="",'V C AB'!AZ37="HABILITADO TEMPORALMENTE A COMPETENCIAS FEI"),"",+'V C AB'!AZ37),"ERROR") -> NO INICIA SU CLASIFICACIÓN | F37: =IF(B37='V C AB'!B37,IF(+'V C AB'!AZ37="HABILITADO TEMPORALMENTE A COMPETENCIAS FEI","HABILITADO TEMPORALMENTE A COMPETENCIAS FEI",""),"ERROR") -> 
A38: =IF(+'V C AB'!A38="","",'V C AB'!A38) -> A059 | B38: =IF(+'V C AB'!B38="","",'V C AB'!B38) -> A064 | C38: =IF(+'V C AB'!C38="","",'V C AB'!C38) -> CASTILLO DIEGO | D38: =IF(OR('V C AB'!AV38+'V C AB'!AW38>=2,AND('V C AB'!AV38+'V C AB'!AW38>=1,'V L AB'!AW38>=40),'V C AB'!AX38>=1),"CLASIFICADO A 80 Km NOVICIOS","") -> CLASIFICADO A 80 Km NOVICIOS | E38: =IF(C38='V C AB'!C38,IF(OR('V C AB'!AZ38="",'V C AB'!AZ38="HABILITADO TEMPORALMENTE A COMPETENCIAS FEI"),"",+'V C AB'!AZ38),"ERROR") -> HABILITADO A 80KM VELOCIDAD CONTROLADA | F38: =IF(B38='V C AB'!B38,IF(+'V C AB'!AZ38="HABILITADO TEMPORALMENTE A COMPETENCIAS FEI","HABILITADO TEMPORALMENTE A COMPETENCIAS FEI",""),"ERROR") -> 
A39: =IF(+'V C AB'!A39="","",'V C AB'!A39) -> A069 | B39: =IF(+'V C AB'!B39="","",'V C AB'!B39) -> A | C39: =IF(+'V C AB'!C39="","",'V C AB'!C39) -> CASTILLO MIGUEL | D39: =IF(OR('V C AB'!AV39+'V C AB'!AW39>=2,AND('V C AB'!AV39+'V C AB'!AW39>=1,'V L AB'!AW39>=40),'V C AB'!AX39>=1),"CLASIFICADO A 80 Km NOVICIOS","") ->  | E39: =IF(C39='V C AB'!C39,IF(OR('V C AB'!AZ39="",'V C AB'!AZ39="HABILITADO TEMPORALMENTE A COMPETENCIAS FEI"),"",+'V C AB'!AZ39),"ERROR") -> NO INICIA SU CLASIFICACIÓN | F39: =IF(B39='V C AB'!B39,IF(+'V C AB'!AZ39="HABILITADO TEMPORALMENTE A COMPETENCIAS FEI","HABILITADO TEMPORALMENTE A COMPETENCIAS FEI",""),"ERROR") -> 
A40: =IF(+'V C AB'!A40="","",'V C AB'!A40) -> A020 | B40: =IF(+'V C AB'!B40="","",'V C AB'!B40) -> A004 | C40: =IF(+'V C AB'!C40="","",'V C AB'!C40) -> CATUCUAMBA WILLIAM MEDARDO | D40: =IF(OR('V C AB'!AV40+'V C AB'!AW40>=2,AND('V C AB'!AV40+'V C AB'!AW40>=1,'V L AB'!AW40>=40),'V C AB'!AX40>=1),"CLASIFICADO A 80 Km NOVICIOS","") ->  | E40: =IF(C40='V C AB'!C40,IF(OR('V C AB'!AZ40="",'V C AB'!AZ40="HABILITADO TEMPORALMENTE A COMPETENCIAS FEI"),"",+'V C AB'!AZ40),"ERROR") -> NO INICIA SU CLASIFICACIÓN | F40: =IF(B40='V C AB'!B40,IF(+'V C AB'!AZ40="HABILITADO TEMPORALMENTE A COMPETENCIAS FEI","HABILITADO TEMPORALMENTE A COMPETENCIAS FEI",""),"ERROR") -> 
A41: =IF(+'V C AB'!A41="","",'V C AB'!A41) -> C | B41: =IF(+'V C AB'!B41="","",'V C AB'!B41) -> A160 | C41: =IF(+'V C AB'!C41="","",'V C AB'!C41) -> CEDILLO RAMIRO | D41: =IF(OR('V C AB'!AV41+'V C AB'!AW41>=2,AND('V C AB'!AV41+'V C AB'!AW41>=1,'V L AB'!AW41>=40),'V C AB'!AX41>=1),"CLASIFICADO A 80 Km NOVICIOS","") ->  | E41: =IF(C41='V C AB'!C41,IF(OR('V C AB'!AZ41="",'V C AB'!AZ41="HABILITADO TEMPORALMENTE A COMPETENCIAS FEI"),"",+'V C AB'!AZ41),"ERROR") -> NO INICIA SU CLASIFICACIÓN | F41: =IF(B41='V C AB'!B41,IF(+'V C AB'!AZ41="HABILITADO TEMPORALMENTE A COMPETENCIAS FEI","HABILITADO TEMPORALMENTE A COMPETENCIAS FEI",""),"ERROR") -> 
A42: =IF(+'V C AB'!A42="","",'V C AB'!A42) ->  | B42: =IF(+'V C AB'!B42="","",'V C AB'!B42) -> A078 | C42: =IF(+'V C AB'!C42="","",'V C AB'!C42) -> CHANGO ESTEFANIA | D42: =IF(OR('V C AB'!AV42+'V C AB'!AW42>=2,AND('V C AB'!AV42+'V C AB'!AW42>=1,'V L AB'!AW42>=40),'V C AB'!AX42>=1),"CLASIFICADO A 80 Km NOVICIOS","") -> CLASIFICADO A 80 Km NOVICIOS | E42: =IF(C42='V C AB'!C42,IF(OR('V C AB'!AZ42="",'V C AB'!AZ42="HABILITADO TEMPORALMENTE A COMPETENCIAS FEI"),"",+'V C AB'!AZ42),"ERROR") -> LE FALTA UNA DE 80 A 90 CONTROLADA | F42: =IF(B42='V C AB'!B42,IF(+'V C AB'!AZ42="HABILITADO TEMPORALMENTE A COMPETENCIAS FEI","HABILITADO TEMPORALMENTE A COMPETENCIAS FEI",""),"ERROR") -> 
A43: =IF(+'V C AB'!A43="","",'V C AB'!A43) -> A029 | B43: =IF(+'V C AB'!B43="","",'V C AB'!B43) -> A | C43: =IF(+'V C AB'!C43="","",'V C AB'!C43) -> CHIRIBOGA ALLUT ESTEBAN | D43: =IF(OR('V C AB'!AV43+'V C AB'!AW43>=2,AND('V C AB'!AV43+'V C AB'!AW43>=1,'V L AB'!AW43>=40),'V C AB'!AX43>=1),"CLASIFICADO A 80 Km NOVICIOS","") ->  | E43: =IF(C43='V C AB'!C43,IF(OR('V C AB'!AZ43="",'V C AB'!AZ43="HABILITADO TEMPORALMENTE A COMPETENCIAS FEI"),"",+'V C AB'!AZ43),"ERROR") -> INICIO SU CLASIFICACIÓN | F43: =IF(B43='V C AB'!B43,IF(+'V C AB'!AZ43="HABILITADO TEMPORALMENTE A COMPETENCIAS FEI","HABILITADO TEMPORALMENTE A COMPETENCIAS FEI",""),"ERROR") -> 
A44: =IF(+'V C AB'!A44="","",'V C AB'!A44) -> M140 | B44: =IF(+'V C AB'!B44="","",'V C AB'!B44) -> A054 | C44: =IF(+'V C AB'!C44="","",'V C AB'!C44) -> CHIRIBOGA AUGUSTO | D44: =IF(OR('V C AB'!AV44+'V C AB'!AW44>=2,AND('V C AB'!AV44+'V C AB'!AW44>=1,'V L AB'!AW44>=40),'V C AB'!AX44>=1),"CLASIFICADO A 80 Km NOVICIOS","") -> CLASIFICADO A 80 Km NOVICIOS | E44: =IF(C44='V C AB'!C44,IF(OR('V C AB'!AZ44="",'V C AB'!AZ44="HABILITADO TEMPORALMENTE A COMPETENCIAS FEI"),"",+'V C AB'!AZ44),"ERROR") -> LE FALTA UNA DE 80 A 90 CONTROLADA | F44: =IF(B44='V C AB'!B44,IF(+'V C AB'!AZ44="HABILITADO TEMPORALMENTE A COMPETENCIAS FEI","HABILITADO TEMPORALMENTE A COMPETENCIAS FEI",""),"ERROR") -> 
A45: =IF(+'V C AB'!A45="","",'V C AB'!A45) ->  | B45: =IF(+'V C AB'!B45="","",'V C AB'!B45) -> A | C45: =IF(+'V C AB'!C45="","",'V C AB'!C45) -> CHIRIBOGA RICARDO | D45: =IF(OR('V C AB'!AV45+'V C AB'!AW45>=2,AND('V C AB'!AV45+'V C AB'!AW45>=1,'V L AB'!AW45>=40),'V C AB'!AX45>=1),"CLASIFICADO A 80 Km NOVICIOS","") ->  | E45: =IF(C45='V C AB'!C45,IF(OR('V C AB'!AZ45="",'V C AB'!AZ45="HABILITADO TEMPORALMENTE A COMPETENCIAS FEI"),"",+'V C AB'!AZ45),"ERROR") -> NO INICIA SU CLASIFICACIÓN | F45: =IF(B45='V C AB'!B45,IF(+'V C AB'!AZ45="HABILITADO TEMPORALMENTE A COMPETENCIAS FEI","HABILITADO TEMPORALMENTE A COMPETENCIAS FEI",""),"ERROR") -> 
A46: =IF(+'V C AB'!A46="","",'V C AB'!A46) -> C | B46: =IF(+'V C AB'!B46="","",'V C AB'!B46) -> C | C46: =IF(+'V C AB'!C46="","",'V C AB'!C46) -> CORDERO FERNANDO | D46: =IF(OR('V C AB'!AV46+'V C AB'!AW46>=2,AND('V C AB'!AV46+'V C AB'!AW46>=1,'V L AB'!AW46>=40),'V C AB'!AX46>=1),"CLASIFICADO A 80 Km NOVICIOS","") ->  | E46: =IF(C46='V C AB'!C46,IF(OR('V C AB'!AZ46="",'V C AB'!AZ46="HABILITADO TEMPORALMENTE A COMPETENCIAS FEI"),"",+'V C AB'!AZ46),"ERROR") -> NO INICIA SU CLASIFICACIÓN | F46: =IF(B46='V C AB'!B46,IF(+'V C AB'!AZ46="HABILITADO TEMPORALMENTE A COMPETENCIAS FEI","HABILITADO TEMPORALMENTE A COMPETENCIAS FEI",""),"ERROR") -> 
A47: =IF(+'V C AB'!A47="","",'V C AB'!A47) -> J026 | B47: =IF(+'V C AB'!B47="","",'V C AB'!B47) -> A | C47: =IF(+'V C AB'!C47="","",'V C AB'!C47) -> CORNEJO MANUEL | D47: =IF(OR('V C AB'!AV47+'V C AB'!AW47>=2,AND('V C AB'!AV47+'V C AB'!AW47>=1,'V L AB'!AW47>=40),'V C AB'!AX47>=1),"CLASIFICADO A 80 Km NOVICIOS","") ->  | E47: =IF(C47='V C AB'!C47,IF(OR('V C AB'!AZ47="",'V C AB'!AZ47="HABILITADO TEMPORALMENTE A COMPETENCIAS FEI"),"",+'V C AB'!AZ47),"ERROR") -> NO INICIA SU CLASIFICACIÓN | F47: =IF(B47='V C AB'!B47,IF(+'V C AB'!AZ47="HABILITADO TEMPORALMENTE A COMPETENCIAS FEI","HABILITADO TEMPORALMENTE A COMPETENCIAS FEI",""),"ERROR") -> 
A48: =IF(+'V C AB'!A48="","",'V C AB'!A48) -> A070 | B48: =IF(+'V C AB'!B48="","",'V C AB'!B48) -> A | C48: =IF(+'V C AB'!C48="","",'V C AB'!C48) -> CUICHAN CARLOS | D48: =IF(OR('V C AB'!AV48+'V C AB'!AW48>=2,AND('V C AB'!AV48+'V C AB'!AW48>=1,'V L AB'!AW48>=40),'V C AB'!AX48>=1),"CLASIFICADO A 80 Km NOVICIOS","") ->  | E48: =IF(C48='V C AB'!C48,IF(OR('V C AB'!AZ48="",'V C AB'!AZ48="HABILITADO TEMPORALMENTE A COMPETENCIAS FEI"),"",+'V C AB'!AZ48),"ERROR") -> NO INICIA SU CLASIFICACIÓN | F48: =IF(B48='V C AB'!B48,IF(+'V C AB'!AZ48="HABILITADO TEMPORALMENTE A COMPETENCIAS FEI","HABILITADO TEMPORALMENTE A COMPETENCIAS FEI",""),"ERROR") -> 
A49: =IF(+'V C AB'!A49="","",'V C AB'!A49) -> A010 | B49: =IF(+'V C AB'!B49="","",'V C AB'!B49) -> A052 | C49: =IF(+'V C AB'!C49="","",'V C AB'!C49) -> DARQUEA BERNARDO | D49: =IF(OR('V C AB'!AV49+'V C AB'!AW49>=2,AND('V C AB'!AV49+'V C AB'!AW49>=1,'V L AB'!AW49>=40),'V C AB'!AX49>=1),"CLASIFICADO A 80 Km NOVICIOS","") -> CLASIFICADO A 80 Km NOVICIOS | E49: =IF(C49='V C AB'!C49,IF(OR('V C AB'!AZ49="",'V C AB'!AZ49="HABILITADO TEMPORALMENTE A COMPETENCIAS FEI"),"",+'V C AB'!AZ49),"ERROR") ->  | F49: =IF(B49='V C AB'!B49,IF(+'V C AB'!AZ49="HABILITADO TEMPORALMENTE A COMPETENCIAS FEI","HABILITADO TEMPORALMENTE A COMPETENCIAS FEI",""),"ERROR") -> HABILITADO TEMPORALMENTE A COMPETENCIAS FEI
A50: =IF(+'V C AB'!A50="","",'V C AB'!A50) -> A104 | B50: =IF(+'V C AB'!B50="","",'V C AB'!B50) -> A057 | C50: =IF(+'V C AB'!C50="","",'V C AB'!C50) -> DAVILA GORDILLO JUAN DIEGO | D50: =IF(OR('V C AB'!AV50+'V C AB'!AW50>=2,AND('V C AB'!AV50+'V C AB'!AW50>=1,'V L AB'!AW50>=40),'V C AB'!AX50>=1),"CLASIFICADO A 80 Km NOVICIOS","") -> CLASIFICADO A 80 Km NOVICIOS | E50: =IF(C50='V C AB'!C50,IF(OR('V C AB'!AZ50="",'V C AB'!AZ50="HABILITADO TEMPORALMENTE A COMPETENCIAS FEI"),"",+'V C AB'!AZ50),"ERROR") ->  | F50: =IF(B50='V C AB'!B50,IF(+'V C AB'!AZ50="HABILITADO TEMPORALMENTE A COMPETENCIAS FEI","HABILITADO TEMPORALMENTE A COMPETENCIAS FEI",""),"ERROR") -> HABILITADO TEMPORALMENTE A COMPETENCIAS FEI
A51: =IF(+'V C AB'!A51="","",'V C AB'!A51) ->  | B51: =IF(+'V C AB'!B51="","",'V C AB'!B51) -> A016 | C51: =IF(+'V C AB'!C51="","",'V C AB'!C51) -> DEL POZO JUAN | D51: =IF(OR('V C AB'!AV51+'V C AB'!AW51>=2,AND('V C AB'!AV51+'V C AB'!AW51>=1,'V L AB'!AW51>=40),'V C AB'!AX51>=1),"CLASIFICADO A 80 Km NOVICIOS","") ->  | E51: =IF(C51='V C AB'!C51,IF(OR('V C AB'!AZ51="",'V C AB'!AZ51="HABILITADO TEMPORALMENTE A COMPETENCIAS FEI"),"",+'V C AB'!AZ51),"ERROR") -> NO INICIA SU CLASIFICACIÓN | F51: =IF(B51='V C AB'!B51,IF(+'V C AB'!AZ51="HABILITADO TEMPORALMENTE A COMPETENCIAS FEI","HABILITADO TEMPORALMENTE A COMPETENCIAS FEI",""),"ERROR") -> 
A52: =IF(+'V C AB'!A52="","",'V C AB'!A52) -> C | B52: =IF(+'V C AB'!B52="","",'V C AB'!B52) -> A135 | C52: =IF(+'V C AB'!C52="","",'V C AB'!C52) -> DONOSO LOYOLA SEBASTIAN FERNANDO | D52: =IF(OR('V C AB'!AV52+'V C AB'!AW52>=2,AND('V C AB'!AV52+'V C AB'!AW52>=1,'V L AB'!AW52>=40),'V C AB'!AX52>=1),"CLASIFICADO A 80 Km NOVICIOS","") -> CLASIFICADO A 80 Km NOVICIOS | E52: =IF(C52='V C AB'!C52,IF(OR('V C AB'!AZ52="",'V C AB'!AZ52="HABILITADO TEMPORALMENTE A COMPETENCIAS FEI"),"",+'V C AB'!AZ52),"ERROR") ->  | F52: =IF(B52='V C AB'!B52,IF(+'V C AB'!AZ52="HABILITADO TEMPORALMENTE A COMPETENCIAS FEI","HABILITADO TEMPORALMENTE A COMPETENCIAS FEI",""),"ERROR") -> HABILITADO TEMPORALMENTE A COMPETENCIAS FEI
A53: =IF(+'V C AB'!A53="","",'V C AB'!A53) ->  | B53: =IF(+'V C AB'!B53="","",'V C AB'!B53) -> A062 | C53: =IF(+'V C AB'!C53="","",'V C AB'!C53) -> DUEÑAS RICARDO | D53: =IF(OR('V C AB'!AV53+'V C AB'!AW53>=2,AND('V C AB'!AV53+'V C AB'!AW53>=1,'V L AB'!AW53>=40),'V C AB'!AX53>=1),"CLASIFICADO A 80 Km NOVICIOS","") -> CLASIFICADO A 80 Km NOVICIOS | E53: =IF(C53='V C AB'!C53,IF(OR('V C AB'!AZ53="",'V C AB'!AZ53="HABILITADO TEMPORALMENTE A COMPETENCIAS FEI"),"",+'V C AB'!AZ53),"ERROR") -> HABILITADO A 80KM VELOCIDAD CONTROLADA | F53: =IF(B53='V C AB'!B53,IF(+'V C AB'!AZ53="HABILITADO TEMPORALMENTE A COMPETENCIAS FEI","HABILITADO TEMPORALMENTE A COMPETENCIAS FEI",""),"ERROR") -> 
A54: =IF(+'V C AB'!A54="","",'V C AB'!A54) ->  | B54: =IF(+'V C AB'!B54="","",'V C AB'!B54) -> A176 | C54: =IF(+'V C AB'!C54="","",'V C AB'!C54) -> ESCOBAR LUIS | D54: =IF(OR('V C AB'!AV54+'V C AB'!AW54>=2,AND('V C AB'!AV54+'V C AB'!AW54>=1,'V L AB'!AW54>=40),'V C AB'!AX54>=1),"CLASIFICADO A 80 Km NOVICIOS","") ->  | E54: =IF(C54='V C AB'!C54,IF(OR('V C AB'!AZ54="",'V C AB'!AZ54="HABILITADO TEMPORALMENTE A COMPETENCIAS FEI"),"",+'V C AB'!AZ54),"ERROR") -> INICIO SU CLASIFICACIÓN | F54: =IF(B54='V C AB'!B54,IF(+'V C AB'!AZ54="HABILITADO TEMPORALMENTE A COMPETENCIAS FEI","HABILITADO TEMPORALMENTE A COMPETENCIAS FEI",""),"ERROR") -> 
A55: =IF(+'V C AB'!A55="","",'V C AB'!A55) ->  | B55: =IF(+'V C AB'!B55="","",'V C AB'!B55) -> A002 | C55: =IF(+'V C AB'!C55="","",'V C AB'!C55) -> ESPINDOLA FERNANDO | D55: =IF(OR('V C AB'!AV55+'V C AB'!AW55>=2,AND('V C AB'!AV55+'V C AB'!AW55>=1,'V L AB'!AW55>=40),'V C AB'!AX55>=1),"CLASIFICADO A 80 Km NOVICIOS","") ->  | E55: =IF(C55='V C AB'!C55,IF(OR('V C AB'!AZ55="",'V C AB'!AZ55="HABILITADO TEMPORALMENTE A COMPETENCIAS FEI"),"",+'V C AB'!AZ55),"ERROR") -> NO INICIA SU CLASIFICACIÓN | F55: =IF(B55='V C AB'!B55,IF(+'V C AB'!AZ55="HABILITADO TEMPORALMENTE A COMPETENCIAS FEI","HABILITADO TEMPORALMENTE A COMPETENCIAS FEI",""),"ERROR") -> 
A56: =IF(+'V C AB'!A56="","",'V C AB'!A56) -> C | B56: =IF(+'V C AB'!B56="","",'V C AB'!B56) -> C | C56: =IF(+'V C AB'!C56="","",'V C AB'!C56) -> ESPINOZA ALVARADO JUAN SEBASTIAN | D56: =IF(OR('V C AB'!AV56+'V C AB'!AW56>=2,AND('V C AB'!AV56+'V C AB'!AW56>=1,'V L AB'!AW56>=40),'V C AB'!AX56>=1),"CLASIFICADO A 80 Km NOVICIOS","") -> CLASIFICADO A 80 Km NOVICIOS | E56: =IF(C56='V C AB'!C56,IF(OR('V C AB'!AZ56="",'V C AB'!AZ56="HABILITADO TEMPORALMENTE A COMPETENCIAS FEI"),"",+'V C AB'!AZ56),"ERROR") -> LE FALTA UNA DE 80 A 90 CONTROLADA | F56: =IF(B56='V C AB'!B56,IF(+'V C AB'!AZ56="HABILITADO TEMPORALMENTE A COMPETENCIAS FEI","HABILITADO TEMPORALMENTE A COMPETENCIAS FEI",""),"ERROR") -> 
A57: =IF(+'V C AB'!A57="","",'V C AB'!A57) -> A010 | B57: =IF(+'V C AB'!B57="","",'V C AB'!B57) -> A036 | C57: =IF(+'V C AB'!C57="","",'V C AB'!C57) -> ESPINOZA ALVARO | D57: =IF(OR('V C AB'!AV57+'V C AB'!AW57>=2,AND('V C AB'!AV57+'V C AB'!AW57>=1,'V L AB'!AW57>=40),'V C AB'!AX57>=1),"CLASIFICADO A 80 Km NOVICIOS","") -> CLASIFICADO A 80 Km NOVICIOS | E57: =IF(C57='V C AB'!C57,IF(OR('V C AB'!AZ57="",'V C AB'!AZ57="HABILITADO TEMPORALMENTE A COMPETENCIAS FEI"),"",+'V C AB'!AZ57),"ERROR") -> HABILITADO A 80KM VELOCIDAD CONTROLADA | F57: =IF(B57='V C AB'!B57,IF(+'V C AB'!AZ57="HABILITADO TEMPORALMENTE A COMPETENCIAS FEI","HABILITADO TEMPORALMENTE A COMPETENCIAS FEI",""),"ERROR") -> 
A58: =IF(+'V C AB'!A58="","",'V C AB'!A58) -> C | B58: =IF(+'V C AB'!B58="","",'V C AB'!B58) -> A136 | C58: =IF(+'V C AB'!C58="","",'V C AB'!C58) -> ESPINOZA IZQUIERDO PEDRO JOSE | D58: =IF(OR('V C AB'!AV58+'V C AB'!AW58>=2,AND('V C AB'!AV58+'V C AB'!AW58>=1,'V L AB'!AW58>=40),'V C AB'!AX58>=1),"CLASIFICADO A 80 Km NOVICIOS","") -> CLASIFICADO A 80 Km NOVICIOS | E58: =IF(C58='V C AB'!C58,IF(OR('V C AB'!AZ58="",'V C AB'!AZ58="HABILITADO TEMPORALMENTE A COMPETENCIAS FEI"),"",+'V C AB'!AZ58),"ERROR") -> HABILITADO A 80KM VELOCIDAD CONTROLADA | F58: =IF(B58='V C AB'!B58,IF(+'V C AB'!AZ58="HABILITADO TEMPORALMENTE A COMPETENCIAS FEI","HABILITADO TEMPORALMENTE A COMPETENCIAS FEI",""),"ERROR") -> 
A59: =IF(+'V C AB'!A59="","",'V C AB'!A59) ->  | B59: =IF(+'V C AB'!B59="","",'V C AB'!B59) -> A | C59: =IF(+'V C AB'!C59="","",'V C AB'!C59) -> ESPINOZA JAIME FERNANDO | D59: =IF(OR('V C AB'!AV59+'V C AB'!AW59>=2,AND('V C AB'!AV59+'V C AB'!AW59>=1,'V L AB'!AW59>=40),'V C AB'!AX59>=1),"CLASIFICADO A 80 Km NOVICIOS","") ->  | E59: =IF(C59='V C AB'!C59,IF(OR('V C AB'!AZ59="",'V C AB'!AZ59="HABILITADO TEMPORALMENTE A COMPETENCIAS FEI"),"",+'V C AB'!AZ59),"ERROR") -> NO INICIA SU CLASIFICACIÓN | F59: =IF(B59='V C AB'!B59,IF(+'V C AB'!AZ59="HABILITADO TEMPORALMENTE A COMPETENCIAS FEI","HABILITADO TEMPORALMENTE A COMPETENCIAS FEI",""),"ERROR") -> 
A60: =IF(+'V C AB'!A60="","",'V C AB'!A60) -> C | B60: =IF(+'V C AB'!B60="","",'V C AB'!B60) -> A137 | C60: =IF(+'V C AB'!C60="","",'V C AB'!C60) -> ESPINOZA JUAN SEBASTIAN | D60: =IF(OR('V C AB'!AV60+'V C AB'!AW60>=2,AND('V C AB'!AV60+'V C AB'!AW60>=1,'V L AB'!AW60>=40),'V C AB'!AX60>=1),"CLASIFICADO A 80 Km NOVICIOS","") -> CLASIFICADO A 80 Km NOVICIOS | E60: =IF(C60='V C AB'!C60,IF(OR('V C AB'!AZ60="",'V C AB'!AZ60="HABILITADO TEMPORALMENTE A COMPETENCIAS FEI"),"",+'V C AB'!AZ60),"ERROR") -> HABILITADO A 80KM VELOCIDAD CONTROLADA | F60: =IF(B60='V C AB'!B60,IF(+'V C AB'!AZ60="HABILITADO TEMPORALMENTE A COMPETENCIAS FEI","HABILITADO TEMPORALMENTE A COMPETENCIAS FEI",""),"ERROR") -> 
A61: =IF(+'V C AB'!A61="","",'V C AB'!A61) -> C | B61: =IF(+'V C AB'!B61="","",'V C AB'!B61) -> A138 | C61: =IF(+'V C AB'!C61="","",'V C AB'!C61) -> FEICAN ANDRES | D61: =IF(OR('V C AB'!AV61+'V C AB'!AW61>=2,AND('V C AB'!AV61+'V C AB'!AW61>=1,'V L AB'!AW61>=40),'V C AB'!AX61>=1),"CLASIFICADO A 80 Km NOVICIOS","") ->  | E61: =IF(C61='V C AB'!C61,IF(OR('V C AB'!AZ61="",'V C AB'!AZ61="HABILITADO TEMPORALMENTE A COMPETENCIAS FEI"),"",+'V C AB'!AZ61),"ERROR") -> NO INICIA SU CLASIFICACIÓN | F61: =IF(B61='V C AB'!B61,IF(+'V C AB'!AZ61="HABILITADO TEMPORALMENTE A COMPETENCIAS FEI","HABILITADO TEMPORALMENTE A COMPETENCIAS FEI",""),"ERROR") -> 
A62: =IF(+'V C AB'!A62="","",'V C AB'!A62) ->  | B62: =IF(+'V C AB'!B62="","",'V C AB'!B62) -> A | C62: =IF(+'V C AB'!C62="","",'V C AB'!C62) -> GALEAS ADOLFO | D62: =IF(OR('V C AB'!AV62+'V C AB'!AW62>=2,AND('V C AB'!AV62+'V C AB'!AW62>=1,'V L AB'!AW62>=40),'V C AB'!AX62>=1),"CLASIFICADO A 80 Km NOVICIOS","") ->  | E62: =IF(C62='V C AB'!C62,IF(OR('V C AB'!AZ62="",'V C AB'!AZ62="HABILITADO TEMPORALMENTE A COMPETENCIAS FEI"),"",+'V C AB'!AZ62),"ERROR") -> NO INICIA SU CLASIFICACIÓN | F62: =IF(B62='V C AB'!B62,IF(+'V C AB'!AZ62="HABILITADO TEMPORALMENTE A COMPETENCIAS FEI","HABILITADO TEMPORALMENTE A COMPETENCIAS FEI",""),"ERROR") -> 
A63: =IF(+'V C AB'!A63="","",'V C AB'!A63) -> A025 | B63: =IF(+'V C AB'!B63="","",'V C AB'!B63) -> A | C63: =IF(+'V C AB'!C63="","",'V C AB'!C63) -> GARCES LEON PATRICIO | D63: =IF(OR('V C AB'!AV63+'V C AB'!AW63>=2,AND('V C AB'!AV63+'V C AB'!AW63>=1,'V L AB'!AW63>=40),'V C AB'!AX63>=1),"CLASIFICADO A 80 Km NOVICIOS","") ->  | E63: =IF(C63='V C AB'!C63,IF(OR('V C AB'!AZ63="",'V C AB'!AZ63="HABILITADO TEMPORALMENTE A COMPETENCIAS FEI"),"",+'V C AB'!AZ63),"ERROR") -> NO INICIA SU CLASIFICACIÓN | F63: =IF(B63='V C AB'!B63,IF(+'V C AB'!AZ63="HABILITADO TEMPORALMENTE A COMPETENCIAS FEI","HABILITADO TEMPORALMENTE A COMPETENCIAS FEI",""),"ERROR") -> 
A64: =IF(+'V C AB'!A64="","",'V C AB'!A64) ->  | B64: =IF(+'V C AB'!B64="","",'V C AB'!B64) -> A082 | C64: =IF(+'V C AB'!C64="","",'V C AB'!C64) -> GARZÓN JOSÉ RICARDO | D64: =IF(OR('V C AB'!AV64+'V C AB'!AW64>=2,AND('V C AB'!AV64+'V C AB'!AW64>=1,'V L AB'!AW64>=40),'V C AB'!AX64>=1),"CLASIFICADO A 80 Km NOVICIOS","") ->  | E64: =IF(C64='V C AB'!C64,IF(OR('V C AB'!AZ64="",'V C AB'!AZ64="HABILITADO TEMPORALMENTE A COMPETENCIAS FEI"),"",+'V C AB'!AZ64),"ERROR") -> INICIO SU CLASIFICACIÓN | F64: =IF(B64='V C AB'!B64,IF(+'V C AB'!AZ64="HABILITADO TEMPORALMENTE A COMPETENCIAS FEI","HABILITADO TEMPORALMENTE A COMPETENCIAS FEI",""),"ERROR") -> 
A65: =IF(+'V C AB'!A65="","",'V C AB'!A65) ->  | B65: =IF(+'V C AB'!B65="","",'V C AB'!B65) -> A119 | C65: =IF(+'V C AB'!C65="","",'V C AB'!C65) -> GÓMEZ DE LA TORRE JOSÉ | D65: =IF(OR('V C AB'!AV65+'V C AB'!AW65>=2,AND('V C AB'!AV65+'V C AB'!AW65>=1,'V L AB'!AW65>=40),'V C AB'!AX65>=1),"CLASIFICADO A 80 Km NOVICIOS","") ->  | E65: =IF(C65='V C AB'!C65,IF(OR('V C AB'!AZ65="",'V C AB'!AZ65="HABILITADO TEMPORALMENTE A COMPETENCIAS FEI"),"",+'V C AB'!AZ65),"ERROR") -> NO INICIA SU CLASIFICACIÓN | F65: =IF(B65='V C AB'!B65,IF(+'V C AB'!AZ65="HABILITADO TEMPORALMENTE A COMPETENCIAS FEI","HABILITADO TEMPORALMENTE A COMPETENCIAS FEI",""),"ERROR") -> 
A66: =IF(+'V C AB'!A66="","",'V C AB'!A66) -> A050 | B66: =IF(+'V C AB'!B66="","",'V C AB'!B66) -> A080 | C66: =IF(+'V C AB'!C66="","",'V C AB'!C66) -> GÓMEZ JUAN MARTIN | D66: =IF(OR('V C AB'!AV66+'V C AB'!AW66>=2,AND('V C AB'!AV66+'V C AB'!AW66>=1,'V L AB'!AW66>=40),'V C AB'!AX66>=1),"CLASIFICADO A 80 Km NOVICIOS","") -> CLASIFICADO A 80 Km NOVICIOS | E66: =IF(C66='V C AB'!C66,IF(OR('V C AB'!AZ66="",'V C AB'!AZ66="HABILITADO TEMPORALMENTE A COMPETENCIAS FEI"),"",+'V C AB'!AZ66),"ERROR") -> INICIO SU CLASIFICACIÓN | F66: =IF(B66='V C AB'!B66,IF(+'V C AB'!AZ66="HABILITADO TEMPORALMENTE A COMPETENCIAS FEI","HABILITADO TEMPORALMENTE A COMPETENCIAS FEI",""),"ERROR") -> 
A67: =IF(+'V C AB'!A67="","",'V C AB'!A67) -> C | B67: =IF(+'V C AB'!B67="","",'V C AB'!B67) -> A139 | C67: =IF(+'V C AB'!C67="","",'V C AB'!C67) -> GONZALEZ ANA MARIA | D67: =IF(OR('V C AB'!AV67+'V C AB'!AW67>=2,AND('V C AB'!AV67+'V C AB'!AW67>=1,'V L AB'!AW67>=40),'V C AB'!AX67>=1),"CLASIFICADO A 80 Km NOVICIOS","") -> CLASIFICADO A 80 Km NOVICIOS | E67: =IF(C67='V C AB'!C67,IF(OR('V C AB'!AZ67="",'V C AB'!AZ67="HABILITADO TEMPORALMENTE A COMPETENCIAS FEI"),"",+'V C AB'!AZ67),"ERROR") -> INICIO SU CLASIFICACIÓN | F67: =IF(B67='V C AB'!B67,IF(+'V C AB'!AZ67="HABILITADO TEMPORALMENTE A COMPETENCIAS FEI","HABILITADO TEMPORALMENTE A COMPETENCIAS FEI",""),"ERROR") -> 
A68: =IF(+'V C AB'!A68="","",'V C AB'!A68) -> C | B68: =IF(+'V C AB'!B68="","",'V C AB'!B68) -> A140 | C68: =IF(+'V C AB'!C68="","",'V C AB'!C68) -> GONZALEZ GONZALEZ RENATO | D68: =IF(OR('V C AB'!AV68+'V C AB'!AW68>=2,AND('V C AB'!AV68+'V C AB'!AW68>=1,'V L AB'!AW68>=40),'V C AB'!AX68>=1),"CLASIFICADO A 80 Km NOVICIOS","") -> CLASIFICADO A 80 Km NOVICIOS | E68: =IF(C68='V C AB'!C68,IF(OR('V C AB'!AZ68="",'V C AB'!AZ68="HABILITADO TEMPORALMENTE A COMPETENCIAS FEI"),"",+'V C AB'!AZ68),"ERROR") ->  | F68: =IF(B68='V C AB'!B68,IF(+'V C AB'!AZ68="HABILITADO TEMPORALMENTE A COMPETENCIAS FEI","HABILITADO TEMPORALMENTE A COMPETENCIAS FEI",""),"ERROR") -> HABILITADO TEMPORALMENTE A COMPETENCIAS FEI
A69: =IF(+'V C AB'!A69="","",'V C AB'!A69) -> C | B69: =IF(+'V C AB'!B69="","",'V C AB'!B69) -> A141 | C69: =IF(+'V C AB'!C69="","",'V C AB'!C69) -> GONZALEZ JARAMILLO CRISTIAN HUMBERTO | D69: =IF(OR('V C AB'!AV69+'V C AB'!AW69>=2,AND('V C AB'!AV69+'V C AB'!AW69>=1,'V L AB'!AW69>=40),'V C AB'!AX69>=1),"CLASIFICADO A 80 Km NOVICIOS","") -> CLASIFICADO A 80 Km NOVICIOS | E69: =IF(C69='V C AB'!C69,IF(OR('V C AB'!AZ69="",'V C AB'!AZ69="HABILITADO TEMPORALMENTE A COMPETENCIAS FEI"),"",+'V C AB'!AZ69),"ERROR") -> HABILITADO A 80KM VELOCIDAD CONTROLADA | F69: =IF(B69='V C AB'!B69,IF(+'V C AB'!AZ69="HABILITADO TEMPORALMENTE A COMPETENCIAS FEI","HABILITADO TEMPORALMENTE A COMPETENCIAS FEI",""),"ERROR") -> 
A70: =IF(+'V C AB'!A70="","",'V C AB'!A70) -> C | B70: =IF(+'V C AB'!B70="","",'V C AB'!B70) -> C | C70: =IF(+'V C AB'!C70="","",'V C AB'!C70) -> GONZALEZ JERVES XIMENA | D70: =IF(OR('V C AB'!AV70+'V C AB'!AW70>=2,AND('V C AB'!AV70+'V C AB'!AW70>=1,'V L AB'!AW70>=40),'V C AB'!AX70>=1),"CLASIFICADO A 80 Km NOVICIOS","") -> CLASIFICADO A 80 Km NOVICIOS | E70: =IF(C70='V C AB'!C70,IF(OR('V C AB'!AZ70="",'V C AB'!AZ70="HABILITADO TEMPORALMENTE A COMPETENCIAS FEI"),"",+'V C AB'!AZ70),"ERROR") -> HABILITADO A 80KM VELOCIDAD CONTROLADA | F70: =IF(B70='V C AB'!B70,IF(+'V C AB'!AZ70="HABILITADO TEMPORALMENTE A COMPETENCIAS FEI","HABILITADO TEMPORALMENTE A COMPETENCIAS FEI",""),"ERROR") -> 
A71: =IF(+'V C AB'!A71="","",'V C AB'!A71) ->  | B71: =IF(+'V C AB'!B71="","",'V C AB'!B71) -> A072 | C71: =IF(+'V C AB'!C71="","",'V C AB'!C71) -> GONZALEZ JOSE MIGUEL | D71: =IF(OR('V C AB'!AV71+'V C AB'!AW71>=2,AND('V C AB'!AV71+'V C AB'!AW71>=1,'V L AB'!AW71>=40),'V C AB'!AX71>=1),"CLASIFICADO A 80 Km NOVICIOS","") ->  | E71: =IF(C71='V C AB'!C71,IF(OR('V C AB'!AZ71="",'V C AB'!AZ71="HABILITADO TEMPORALMENTE A COMPETENCIAS FEI"),"",+'V C AB'!AZ71),"ERROR") -> INICIO SU CLASIFICACIÓN | F71: =IF(B71='V C AB'!B71,IF(+'V C AB'!AZ71="HABILITADO TEMPORALMENTE A COMPETENCIAS FEI","HABILITADO TEMPORALMENTE A COMPETENCIAS FEI",""),"ERROR") -> 
A72: =IF(+'V C AB'!A72="","",'V C AB'!A72) -> A164 | B72: =IF(+'V C AB'!B72="","",'V C AB'!B72) -> A124 | C72: =IF(+'V C AB'!C72="","",'V C AB'!C72) -> GONZÁLEZ JUAN SEBASTIÁN | D72: =IF(OR('V C AB'!AV72+'V C AB'!AW72>=2,AND('V C AB'!AV72+'V C AB'!AW72>=1,'V L AB'!AW72>=40),'V C AB'!AX72>=1),"CLASIFICADO A 80 Km NOVICIOS","") -> CLASIFICADO A 80 Km NOVICIOS | E72: =IF(C72='V C AB'!C72,IF(OR('V C AB'!AZ72="",'V C AB'!AZ72="HABILITADO TEMPORALMENTE A COMPETENCIAS FEI"),"",+'V C AB'!AZ72),"ERROR") ->  | F72: =IF(B72='V C AB'!B72,IF(+'V C AB'!AZ72="HABILITADO TEMPORALMENTE A COMPETENCIAS FEI","HABILITADO TEMPORALMENTE A COMPETENCIAS FEI",""),"ERROR") -> HABILITADO TEMPORALMENTE A COMPETENCIAS FEI
A73: =IF(+'V C AB'!A73="","",'V C AB'!A73) -> C | B73: =IF(+'V C AB'!B73="","",'V C AB'!B73) -> A142 | C73: =IF(+'V C AB'!C73="","",'V C AB'!C73) -> GONZALEZ SEBASTIAN | D73: =IF(OR('V C AB'!AV73+'V C AB'!AW73>=2,AND('V C AB'!AV73+'V C AB'!AW73>=1,'V L AB'!AW73>=40),'V C AB'!AX73>=1),"CLASIFICADO A 80 Km NOVICIOS","") ->  | E73: =IF(C73='V C AB'!C73,IF(OR('V C AB'!AZ73="",'V C AB'!AZ73="HABILITADO TEMPORALMENTE A COMPETENCIAS FEI"),"",+'V C AB'!AZ73),"ERROR") -> INICIO SU CLASIFICACIÓN | F73: =IF(B73='V C AB'!B73,IF(+'V C AB'!AZ73="HABILITADO TEMPORALMENTE A COMPETENCIAS FEI","HABILITADO TEMPORALMENTE A COMPETENCIAS FEI",""),"ERROR") -> 
A74: =IF(+'V C AB'!A74="","",'V C AB'!A74) ->  | B74: =IF(+'V C AB'!B74="","",'V C AB'!B74) -> A | C74: =IF(+'V C AB'!C74="","",'V C AB'!C74) -> GORDILLO BARAHONA LEONOR | D74: =IF(OR('V C AB'!AV74+'V C AB'!AW74>=2,AND('V C AB'!AV74+'V C AB'!AW74>=1,'V L AB'!AW74>=40),'V C AB'!AX74>=1),"CLASIFICADO A 80 Km NOVICIOS","") ->  | E74: =IF(C74='V C AB'!C74,IF(OR('V C AB'!AZ74="",'V C AB'!AZ74="HABILITADO TEMPORALMENTE A COMPETENCIAS FEI"),"",+'V C AB'!AZ74),"ERROR") -> NO INICIA SU CLASIFICACIÓN | F74: =IF(B74='V C AB'!B74,IF(+'V C AB'!AZ74="HABILITADO TEMPORALMENTE A COMPETENCIAS FEI","HABILITADO TEMPORALMENTE A COMPETENCIAS FEI",""),"ERROR") -> 
A75: =IF(+'V C AB'!A75="","",'V C AB'!A75) -> A103 | B75: =IF(+'V C AB'!B75="","",'V C AB'!B75) -> A | C75: =IF(+'V C AB'!C75="","",'V C AB'!C75) -> GORDILLO BARAHONA VARINIA | D75: =IF(OR('V C AB'!AV75+'V C AB'!AW75>=2,AND('V C AB'!AV75+'V C AB'!AW75>=1,'V L AB'!AW75>=40),'V C AB'!AX75>=1),"CLASIFICADO A 80 Km NOVICIOS","") ->  | E75: =IF(C75='V C AB'!C75,IF(OR('V C AB'!AZ75="",'V C AB'!AZ75="HABILITADO TEMPORALMENTE A COMPETENCIAS FEI"),"",+'V C AB'!AZ75),"ERROR") -> INICIO SU CLASIFICACIÓN | F75: =IF(B75='V C AB'!B75,IF(+'V C AB'!AZ75="HABILITADO TEMPORALMENTE A COMPETENCIAS FEI","HABILITADO TEMPORALMENTE A COMPETENCIAS FEI",""),"ERROR") -> 
A76: =IF(+'V C AB'!A76="","",'V C AB'!A76) -> A061 | B76: =IF(+'V C AB'!B76="","",'V C AB'!B76) -> A034 | C76: =IF(+'V C AB'!C76="","",'V C AB'!C76) -> GUARDERAS ARTETA PEDRO JOSE | D76: =IF(OR('V C AB'!AV76+'V C AB'!AW76>=2,AND('V C AB'!AV76+'V C AB'!AW76>=1,'V L AB'!AW76>=40),'V C AB'!AX76>=1),"CLASIFICADO A 80 Km NOVICIOS","") -> CLASIFICADO A 80 Km NOVICIOS | E76: =IF(C76='V C AB'!C76,IF(OR('V C AB'!AZ76="",'V C AB'!AZ76="HABILITADO TEMPORALMENTE A COMPETENCIAS FEI"),"",+'V C AB'!AZ76),"ERROR") -> HABILITADO A 80KM VELOCIDAD CONTROLADA | F76: =IF(B76='V C AB'!B76,IF(+'V C AB'!AZ76="HABILITADO TEMPORALMENTE A COMPETENCIAS FEI","HABILITADO TEMPORALMENTE A COMPETENCIAS FEI",""),"ERROR") -> 
A77: =IF(+'V C AB'!A77="","",'V C AB'!A77) -> A017 | B77: =IF(+'V C AB'!B77="","",'V C AB'!B77) -> A051 | C77: =IF(+'V C AB'!C77="","",'V C AB'!C77) -> GUARDERAS BARAHONA SEBASTIAN | D77: =IF(OR('V C AB'!AV77+'V C AB'!AW77>=2,AND('V C AB'!AV77+'V C AB'!AW77>=1,'V L AB'!AW77>=40),'V C AB'!AX77>=1),"CLASIFICADO A 80 Km NOVICIOS","") -> CLASIFICADO A 80 Km NOVICIOS | E77: =IF(C77='V C AB'!C77,IF(OR('V C AB'!AZ77="",'V C AB'!AZ77="HABILITADO TEMPORALMENTE A COMPETENCIAS FEI"),"",+'V C AB'!AZ77),"ERROR") ->  | F77: =IF(B77='V C AB'!B77,IF(+'V C AB'!AZ77="HABILITADO TEMPORALMENTE A COMPETENCIAS FEI","HABILITADO TEMPORALMENTE A COMPETENCIAS FEI",""),"ERROR") -> HABILITADO TEMPORALMENTE A COMPETENCIAS FEI
A78: =IF(+'V C AB'!A78="","",'V C AB'!A78) -> A049 | B78: =IF(+'V C AB'!B78="","",'V C AB'!B78) -> A | C78: =IF(+'V C AB'!C78="","",'V C AB'!C78) -> HAYOUN ERAN | D78: =IF(OR('V C AB'!AV78+'V C AB'!AW78>=2,AND('V C AB'!AV78+'V C AB'!AW78>=1,'V L AB'!AW78>=40),'V C AB'!AX78>=1),"CLASIFICADO A 80 Km NOVICIOS","") ->  | E78: =IF(C78='V C AB'!C78,IF(OR('V C AB'!AZ78="",'V C AB'!AZ78="HABILITADO TEMPORALMENTE A COMPETENCIAS FEI"),"",+'V C AB'!AZ78),"ERROR") -> NO INICIA SU CLASIFICACIÓN | F78: =IF(B78='V C AB'!B78,IF(+'V C AB'!AZ78="HABILITADO TEMPORALMENTE A COMPETENCIAS FEI","HABILITADO TEMPORALMENTE A COMPETENCIAS FEI",""),"ERROR") -> 
A79: =IF(+'V C AB'!A79="","",'V C AB'!A79) -> A062 | B79: =IF(+'V C AB'!B79="","",'V C AB'!B79) -> A | C79: =IF(+'V C AB'!C79="","",'V C AB'!C79) -> HERRERA DIEGO | D79: =IF(OR('V C AB'!AV79+'V C AB'!AW79>=2,AND('V C AB'!AV79+'V C AB'!AW79>=1,'V L AB'!AW79>=40),'V C AB'!AX79>=1),"CLASIFICADO A 80 Km NOVICIOS","") -> CLASIFICADO A 80 Km NOVICIOS | E79: =IF(C79='V C AB'!C79,IF(OR('V C AB'!AZ79="",'V C AB'!AZ79="HABILITADO TEMPORALMENTE A COMPETENCIAS FEI"),"",+'V C AB'!AZ79),"ERROR") -> HABILITADO A 80KM VELOCIDAD CONTROLADA | F79: =IF(B79='V C AB'!B79,IF(+'V C AB'!AZ79="HABILITADO TEMPORALMENTE A COMPETENCIAS FEI","HABILITADO TEMPORALMENTE A COMPETENCIAS FEI",""),"ERROR") -> 
A80: =IF(+'V C AB'!A80="","",'V C AB'!A80) -> M006 | B80: =IF(+'V C AB'!B80="","",'V C AB'!B80) -> A010 | C80: =IF(+'V C AB'!C80="","",'V C AB'!C80) -> HIDALGO GUSTAVO | D80: =IF(OR('V C AB'!AV80+'V C AB'!AW80>=2,AND('V C AB'!AV80+'V C AB'!AW80>=1,'V L AB'!AW80>=40),'V C AB'!AX80>=1),"CLASIFICADO A 80 Km NOVICIOS","") -> CLASIFICADO A 80 Km NOVICIOS | E80: =IF(C80='V C AB'!C80,IF(OR('V C AB'!AZ80="",'V C AB'!AZ80="HABILITADO TEMPORALMENTE A COMPETENCIAS FEI"),"",+'V C AB'!AZ80),"ERROR") -> HABILITADO A 80KM VELOCIDAD CONTROLADA | F80: =IF(B80='V C AB'!B80,IF(+'V C AB'!AZ80="HABILITADO TEMPORALMENTE A COMPETENCIAS FEI","HABILITADO TEMPORALMENTE A COMPETENCIAS FEI",""),"ERROR") -> 
A81: =IF(+'V C AB'!A81="","",'V C AB'!A81) -> A043 | B81: =IF(+'V C AB'!B81="","",'V C AB'!B81) -> A068 | C81: =IF(+'V C AB'!C81="","",'V C AB'!C81) -> HIDALGO MARIA JOSE | D81: =IF(OR('V C AB'!AV81+'V C AB'!AW81>=2,AND('V C AB'!AV81+'V C AB'!AW81>=1,'V L AB'!AW81>=40),'V C AB'!AX81>=1),"CLASIFICADO A 80 Km NOVICIOS","") -> CLASIFICADO A 80 Km NOVICIOS | E81: =IF(C81='V C AB'!C81,IF(OR('V C AB'!AZ81="",'V C AB'!AZ81="HABILITADO TEMPORALMENTE A COMPETENCIAS FEI"),"",+'V C AB'!AZ81),"ERROR") -> HABILITADO A 80KM VELOCIDAD CONTROLADA | F81: =IF(B81='V C AB'!B81,IF(+'V C AB'!AZ81="HABILITADO TEMPORALMENTE A COMPETENCIAS FEI","HABILITADO TEMPORALMENTE A COMPETENCIAS FEI",""),"ERROR") -> 
A82: =IF(+'V C AB'!A82="","",'V C AB'!A82) ->  | B82: =IF(+'V C AB'!B82="","",'V C AB'!B82) -> A071 | C82: =IF(+'V C AB'!C82="","",'V C AB'!C82) -> HOLGUIN ENRIQUE | D82: =IF(OR('V C AB'!AV82+'V C AB'!AW82>=2,AND('V C AB'!AV82+'V C AB'!AW82>=1,'V L AB'!AW82>=40),'V C AB'!AX82>=1),"CLASIFICADO A 80 Km NOVICIOS","") ->  | E82: =IF(C82='V C AB'!C82,IF(OR('V C AB'!AZ82="",'V C AB'!AZ82="HABILITADO TEMPORALMENTE A COMPETENCIAS FEI"),"",+'V C AB'!AZ82),"ERROR") -> NO INICIA SU CLASIFICACIÓN | F82: =IF(B82='V C AB'!B82,IF(+'V C AB'!AZ82="HABILITADO TEMPORALMENTE A COMPETENCIAS FEI","HABILITADO TEMPORALMENTE A COMPETENCIAS FEI",""),"ERROR") -> 
A83: =IF(+'V C AB'!A83="","",'V C AB'!A83) -> A026 | B83: =IF(+'V C AB'!B83="","",'V C AB'!B83) -> A132 | C83: =IF(+'V C AB'!C83="","",'V C AB'!C83) -> JARA CHECA HUGO FERNANDO | D83: =IF(OR('V C AB'!AV83+'V C AB'!AW83>=2,AND('V C AB'!AV83+'V C AB'!AW83>=1,'V L AB'!AW83>=40),'V C AB'!AX83>=1),"CLASIFICADO A 80 Km NOVICIOS","") -> CLASIFICADO A 80 Km NOVICIOS | E83: =IF(C83='V C AB'!C83,IF(OR('V C AB'!AZ83="",'V C AB'!AZ83="HABILITADO TEMPORALMENTE A COMPETENCIAS FEI"),"",+'V C AB'!AZ83),"ERROR") -> HABILITADO A 80KM VELOCIDAD CONTROLADA | F83: =IF(B83='V C AB'!B83,IF(+'V C AB'!AZ83="HABILITADO TEMPORALMENTE A COMPETENCIAS FEI","HABILITADO TEMPORALMENTE A COMPETENCIAS FEI",""),"ERROR") -> 
A84: =IF(+'V C AB'!A84="","",'V C AB'!A84) ->  | B84: =IF(+'V C AB'!B84="","",'V C AB'!B84) -> A025 | C84: =IF(+'V C AB'!C84="","",'V C AB'!C84) -> JARAMILLO BENITO | D84: =IF(OR('V C AB'!AV84+'V C AB'!AW84>=2,AND('V C AB'!AV84+'V C AB'!AW84>=1,'V L AB'!AW84>=40),'V C AB'!AX84>=1),"CLASIFICADO A 80 Km NOVICIOS","") -> CLASIFICADO A 80 Km NOVICIOS | E84: =IF(C84='V C AB'!C84,IF(OR('V C AB'!AZ84="",'V C AB'!AZ84="HABILITADO TEMPORALMENTE A COMPETENCIAS FEI"),"",+'V C AB'!AZ84),"ERROR") -> HABILITADO A 80KM VELOCIDAD CONTROLADA | F84: =IF(B84='V C AB'!B84,IF(+'V C AB'!AZ84="HABILITADO TEMPORALMENTE A COMPETENCIAS FEI","HABILITADO TEMPORALMENTE A COMPETENCIAS FEI",""),"ERROR") -> 
A85: =IF(+'V C AB'!A85="","",'V C AB'!A85) ->  | B85: =IF(+'V C AB'!B85="","",'V C AB'!B85) -> A007 | C85: =IF(+'V C AB'!C85="","",'V C AB'!C85) -> JIJON ANDRADE ALEGRÍA | D85: =IF(OR('V C AB'!AV85+'V C AB'!AW85>=2,AND('V C AB'!AV85+'V C AB'!AW85>=1,'V L AB'!AW85>=40),'V C AB'!AX85>=1),"CLASIFICADO A 80 Km NOVICIOS","") ->  | E85: =IF(C85='V C AB'!C85,IF(OR('V C AB'!AZ85="",'V C AB'!AZ85="HABILITADO TEMPORALMENTE A COMPETENCIAS FEI"),"",+'V C AB'!AZ85),"ERROR") -> NO INICIA SU CLASIFICACIÓN | F85: =IF(B85='V C AB'!B85,IF(+'V C AB'!AZ85="HABILITADO TEMPORALMENTE A COMPETENCIAS FEI","HABILITADO TEMPORALMENTE A COMPETENCIAS FEI",""),"ERROR") -> 
A86: =IF(+'V C AB'!A86="","",'V C AB'!A86) -> A042 | B86: =IF(+'V C AB'!B86="","",'V C AB'!B86) -> A006 | C86: =IF(+'V C AB'!C86="","",'V C AB'!C86) -> JIJON LETORT RODRIGO | D86: =IF(OR('V C AB'!AV86+'V C AB'!AW86>=2,AND('V C AB'!AV86+'V C AB'!AW86>=1,'V L AB'!AW86>=40),'V C AB'!AX86>=1),"CLASIFICADO A 80 Km NOVICIOS","") -> CLASIFICADO A 80 Km NOVICIOS | E86: =IF(C86='V C AB'!C86,IF(OR('V C AB'!AZ86="",'V C AB'!AZ86="HABILITADO TEMPORALMENTE A COMPETENCIAS FEI"),"",+'V C AB'!AZ86),"ERROR") -> HABILITADO A 80KM VELOCIDAD CONTROLADA | F86: =IF(B86='V C AB'!B86,IF(+'V C AB'!AZ86="HABILITADO TEMPORALMENTE A COMPETENCIAS FEI","HABILITADO TEMPORALMENTE A COMPETENCIAS FEI",""),"ERROR") -> 
A87: =IF(+'V C AB'!A87="","",'V C AB'!A87) -> A064 | B87: =IF(+'V C AB'!B87="","",'V C AB'!B87) -> A131 | C87: =IF(+'V C AB'!C87="","",'V C AB'!C87) -> JIJON MARIA CLARA | D87: =IF(OR('V C AB'!AV87+'V C AB'!AW87>=2,AND('V C AB'!AV87+'V C AB'!AW87>=1,'V L AB'!AW87>=40),'V C AB'!AX87>=1),"CLASIFICADO A 80 Km NOVICIOS","") -> CLASIFICADO A 80 Km NOVICIOS | E87: =IF(C87='V C AB'!C87,IF(OR('V C AB'!AZ87="",'V C AB'!AZ87="HABILITADO TEMPORALMENTE A COMPETENCIAS FEI"),"",+'V C AB'!AZ87),"ERROR") -> HABILITADO A 80KM VELOCIDAD CONTROLADA | F87: =IF(B87='V C AB'!B87,IF(+'V C AB'!AZ87="HABILITADO TEMPORALMENTE A COMPETENCIAS FEI","HABILITADO TEMPORALMENTE A COMPETENCIAS FEI",""),"ERROR") -> 
A88: =IF(+'V C AB'!A88="","",'V C AB'!A88) -> A091 | B88: =IF(+'V C AB'!B88="","",'V C AB'!B88) -> A | C88: =IF(+'V C AB'!C88="","",'V C AB'!C88) -> JIMENEZ BEGOÑA | D88: =IF(OR('V C AB'!AV88+'V C AB'!AW88>=2,AND('V C AB'!AV88+'V C AB'!AW88>=1,'V L AB'!AW88>=40),'V C AB'!AX88>=1),"CLASIFICADO A 80 Km NOVICIOS","") ->  | E88: =IF(C88='V C AB'!C88,IF(OR('V C AB'!AZ88="",'V C AB'!AZ88="HABILITADO TEMPORALMENTE A COMPETENCIAS FEI"),"",+'V C AB'!AZ88),"ERROR") -> INICIO SU CLASIFICACIÓN | F88: =IF(B88='V C AB'!B88,IF(+'V C AB'!AZ88="HABILITADO TEMPORALMENTE A COMPETENCIAS FEI","HABILITADO TEMPORALMENTE A COMPETENCIAS FEI",""),"ERROR") -> 
A89: =IF(+'V C AB'!A6="","",'V C AB'!A6) -> ANTERIOR | B89: =IF(+'V C AB'!B6="","",'V C AB'!B6) -> NUEVO | C89: =IF(+'V C AB'!C6="","",'V C AB'!C6) -> JINETE | D89: =IF(OR('V C AB'!AV230+'V C AB'!AW230>=2,AND('V C AB'!AV230+'V C AB'!AW230>=1,'V L AB'!AW230>=40),'V C AB'!AX230>=1),"CLASIFICADO A 80 Km NOVICIOS","") ->  | E89: =IF(C89='V C AB'!C230,IF(OR('V C AB'!AZ230="",'V C AB'!AZ230="HABILITADO TEMPORALMENTE A COMPETENCIAS FEI"),"",+'V C AB'!AZ230),"ERROR") -> ERROR | F89: =IF(B89='V C AB'!B230,IF(+'V C AB'!AZ230="HABILITADO TEMPORALMENTE A COMPETENCIAS FEI","HABILITADO TEMPORALMENTE A COMPETENCIAS FEI",""),"ERROR") -> ERROR
A90: =IF(+'V C AB'!A89="","",'V C AB'!A89) -> C | B90: =IF(+'V C AB'!B89="","",'V C AB'!B89) -> A159 | C90: =IF(+'V C AB'!C89="","",'V C AB'!C89) -> JUNIOR PLUAS | D90: =IF(OR('V C AB'!AV89+'V C AB'!AW89>=2,AND('V C AB'!AV89+'V C AB'!AW89>=1,'V L AB'!AW89>=40),'V C AB'!AX89>=1),"CLASIFICADO A 80 Km NOVICIOS","") ->  | E90: =IF(C90='V C AB'!C89,IF(OR('V C AB'!AZ89="",'V C AB'!AZ89="HABILITADO TEMPORALMENTE A COMPETENCIAS FEI"),"",+'V C AB'!AZ89),"ERROR") -> NO INICIA SU CLASIFICACIÓN | F90: =IF(B90='V C AB'!B89,IF(+'V C AB'!AZ89="HABILITADO TEMPORALMENTE A COMPETENCIAS FEI","HABILITADO TEMPORALMENTE A COMPETENCIAS FEI",""),"ERROR") -> 
A91: =IF(+'V C AB'!A90="","",'V C AB'!A90) ->  | B91: =IF(+'V C AB'!B90="","",'V C AB'!B90) -> A081 | C91: =IF(+'V C AB'!C90="","",'V C AB'!C90) -> KOPPEL OSWALDO | D91: =IF(OR('V C AB'!AV90+'V C AB'!AW90>=2,AND('V C AB'!AV90+'V C AB'!AW90>=1,'V L AB'!AW90>=40),'V C AB'!AX90>=1),"CLASIFICADO A 80 Km NOVICIOS","") -> CLASIFICADO A 80 Km NOVICIOS | E91: =IF(C91='V C AB'!C90,IF(OR('V C AB'!AZ90="",'V C AB'!AZ90="HABILITADO TEMPORALMENTE A COMPETENCIAS FEI"),"",+'V C AB'!AZ90),"ERROR") ->  | F91: =IF(B91='V C AB'!B90,IF(+'V C AB'!AZ90="HABILITADO TEMPORALMENTE A COMPETENCIAS FEI","HABILITADO TEMPORALMENTE A COMPETENCIAS FEI",""),"ERROR") -> HABILITADO TEMPORALMENTE A COMPETENCIAS FEI
A92: =IF(+'V C AB'!A91="","",'V C AB'!A91) ->  | B92: =IF(+'V C AB'!B91="","",'V C AB'!B91) -> A112 | C92: =IF(+'V C AB'!C91="","",'V C AB'!C91) -> KUZME EDISON | D92: =IF(OR('V C AB'!AV91+'V C AB'!AW91>=2,AND('V C AB'!AV91+'V C AB'!AW91>=1,'V L AB'!AW91>=40),'V C AB'!AX91>=1),"CLASIFICADO A 80 Km NOVICIOS","") ->  | E92: =IF(C92='V C AB'!C91,IF(OR('V C AB'!AZ91="",'V C AB'!AZ91="HABILITADO TEMPORALMENTE A COMPETENCIAS FEI"),"",+'V C AB'!AZ91),"ERROR") -> INICIO SU CLASIFICACIÓN | F92: =IF(B92='V C AB'!B91,IF(+'V C AB'!AZ91="HABILITADO TEMPORALMENTE A COMPETENCIAS FEI","HABILITADO TEMPORALMENTE A COMPETENCIAS FEI",""),"ERROR") -> 
A93: =IF(+'V C AB'!A92="","",'V C AB'!A92) -> A023 | B93: =IF(+'V C AB'!B92="","",'V C AB'!B92) -> A113 | C93: =IF(+'V C AB'!C92="","",'V C AB'!C92) -> LANDAZURI MORA LUIS ENRIQUE | D93: =IF(OR('V C AB'!AV92+'V C AB'!AW92>=2,AND('V C AB'!AV92+'V C AB'!AW92>=1,'V L AB'!AW92>=40),'V C AB'!AX92>=1),"CLASIFICADO A 80 Km NOVICIOS","") -> CLASIFICADO A 80 Km NOVICIOS | E93: =IF(C93='V C AB'!C92,IF(OR('V C AB'!AZ92="",'V C AB'!AZ92="HABILITADO TEMPORALMENTE A COMPETENCIAS FEI"),"",+'V C AB'!AZ92),"ERROR") ->  | F93: =IF(B93='V C AB'!B92,IF(+'V C AB'!AZ92="HABILITADO TEMPORALMENTE A COMPETENCIAS FEI","HABILITADO TEMPORALMENTE A COMPETENCIAS FEI",""),"ERROR") -> HABILITADO TEMPORALMENTE A COMPETENCIAS FEI
A94: =IF(+'V C AB'!A93="","",'V C AB'!A93) -> A111 | B94: =IF(+'V C AB'!B93="","",'V C AB'!B93) -> A | C94: =IF(+'V C AB'!C93="","",'V C AB'!C93) -> LANDAZURI WITT LUIS | D94: =IF(OR('V C AB'!AV93+'V C AB'!AW93>=2,AND('V C AB'!AV93+'V C AB'!AW93>=1,'V L AB'!AW93>=40),'V C AB'!AX93>=1),"CLASIFICADO A 80 Km NOVICIOS","") ->  | E94: =IF(C94='V C AB'!C93,IF(OR('V C AB'!AZ93="",'V C AB'!AZ93="HABILITADO TEMPORALMENTE A COMPETENCIAS FEI"),"",+'V C AB'!AZ93),"ERROR") -> NO INICIA SU CLASIFICACIÓN | F94: =IF(B94='V C AB'!B93,IF(+'V C AB'!AZ93="HABILITADO TEMPORALMENTE A COMPETENCIAS FEI","HABILITADO TEMPORALMENTE A COMPETENCIAS FEI",""),"ERROR") -> 
A95: =IF(+'V C AB'!A94="","",'V C AB'!A94) -> C | B95: =IF(+'V C AB'!B94="","",'V C AB'!B94) -> C | C95: =IF(+'V C AB'!C94="","",'V C AB'!C94) -> LANDIVAR ALEXANDRA | D95: =IF(OR('V C AB'!AV94+'V C AB'!AW94>=2,AND('V C AB'!AV94+'V C AB'!AW94>=1,'V L AB'!AW94>=40),'V C AB'!AX94>=1),"CLASIFICADO A 80 Km NOVICIOS","") ->  | E95: =IF(C95='V C AB'!C94,IF(OR('V C AB'!AZ94="",'V C AB'!AZ94="HABILITADO TEMPORALMENTE A COMPETENCIAS FEI"),"",+'V C AB'!AZ94),"ERROR") -> NO INICIA SU CLASIFICACIÓN | F95: =IF(B95='V C AB'!B94,IF(+'V C AB'!AZ94="HABILITADO TEMPORALMENTE A COMPETENCIAS FEI","HABILITADO TEMPORALMENTE A COMPETENCIAS FEI",""),"ERROR") -> 
A96: =IF(+'V C AB'!A95="","",'V C AB'!A95) ->  | B96: =IF(+'V C AB'!B95="","",'V C AB'!B95) -> A | C96: =IF(+'V C AB'!C95="","",'V C AB'!C95) -> LARA LAUREANO | D96: =IF(OR('V C AB'!AV95+'V C AB'!AW95>=2,AND('V C AB'!AV95+'V C AB'!AW95>=1,'V L AB'!AW95>=40),'V C AB'!AX95>=1),"CLASIFICADO A 80 Km NOVICIOS","") ->  | E96: =IF(C96='V C AB'!C95,IF(OR('V C AB'!AZ95="",'V C AB'!AZ95="HABILITADO TEMPORALMENTE A COMPETENCIAS FEI"),"",+'V C AB'!AZ95),"ERROR") -> NO INICIA SU CLASIFICACIÓN | F96: =IF(B96='V C AB'!B95,IF(+'V C AB'!AZ95="HABILITADO TEMPORALMENTE A COMPETENCIAS FEI","HABILITADO TEMPORALMENTE A COMPETENCIAS FEI",""),"ERROR") -> 
A97: =IF(+'V C AB'!A96="","",'V C AB'!A96) -> A145 | B97: A174 | C97: =IF(+'V C AB'!C96="","",'V C AB'!C96) -> LARREA BYRON | D97: =IF(OR('V C AB'!AV96+'V C AB'!AW96>=2,AND('V C AB'!AV96+'V C AB'!AW96>=1,'V L AB'!AW96>=40),'V C AB'!AX96>=1),"CLASIFICADO A 80 Km NOVICIOS","") ->  | E97: =IF(C97='V C AB'!C96,IF(OR('V C AB'!AZ96="",'V C AB'!AZ96="HABILITADO TEMPORALMENTE A COMPETENCIAS FEI"),"",+'V C AB'!AZ96),"ERROR") -> INICIO SU CLASIFICACIÓN | F97: =IF(B97='V C AB'!B96,IF(+'V C AB'!AZ96="HABILITADO TEMPORALMENTE A COMPETENCIAS FEI","HABILITADO TEMPORALMENTE A COMPETENCIAS FEI",""),"ERROR") -> ERROR
A98: =IF(+'V C AB'!A97="","",'V C AB'!A97) -> C | B98: =IF(+'V C AB'!B97="","",'V C AB'!B97) -> A174 | C98: =IF(+'V C AB'!C97="","",'V C AB'!C97) -> LARRIVA LOYOLA CAROLINA | D98: =IF(OR('V C AB'!AV97+'V C AB'!AW97>=2,AND('V C AB'!AV97+'V C AB'!AW97>=1,'V L AB'!AW97>=40),'V C AB'!AX97>=1),"CLASIFICADO A 80 Km NOVICIOS","") -> CLASIFICADO A 80 Km NOVICIOS | E98: =IF(C98='V C AB'!C97,IF(OR('V C AB'!AZ97="",'V C AB'!AZ97="HABILITADO TEMPORALMENTE A COMPETENCIAS FEI"),"",+'V C AB'!AZ97),"ERROR") -> NO INICIA SU CLASIFICACIÓN | F98: =IF(B98='V C AB'!B97,IF(+'V C AB'!AZ97="HABILITADO TEMPORALMENTE A COMPETENCIAS FEI","HABILITADO TEMPORALMENTE A COMPETENCIAS FEI",""),"ERROR") -> 
A99: =IF(+'V C AB'!A98="","",'V C AB'!A98) -> C | B99: =IF(+'V C AB'!B98="","",'V C AB'!B98) -> C | C99: =IF(+'V C AB'!C98="","",'V C AB'!C98) -> LARRIVA LOYOLA JAIME ALEJANDRO | D99: =IF(OR('V C AB'!AV98+'V C AB'!AW98>=2,AND('V C AB'!AV98+'V C AB'!AW98>=1,'V L AB'!AW98>=40),'V C AB'!AX98>=1),"CLASIFICADO A 80 Km NOVICIOS","") ->  | E99: =IF(C99='V C AB'!C98,IF(OR('V C AB'!AZ98="",'V C AB'!AZ98="HABILITADO TEMPORALMENTE A COMPETENCIAS FEI"),"",+'V C AB'!AZ98),"ERROR") -> NO INICIA SU CLASIFICACIÓN | F99: =IF(B99='V C AB'!B98,IF(+'V C AB'!AZ98="HABILITADO TEMPORALMENTE A COMPETENCIAS FEI","HABILITADO TEMPORALMENTE A COMPETENCIAS FEI",""),"ERROR") -> 
A100: =IF(+'V C AB'!A99="","",'V C AB'!A99) -> A045 | B100: =IF(+'V C AB'!B99="","",'V C AB'!B99) -> A038 | C100: =IF(+'V C AB'!C99="","",'V C AB'!C99) -> LEON CESAR IGNACIO | D100: =IF(OR('V C AB'!AV99+'V C AB'!AW99>=2,AND('V C AB'!AV99+'V C AB'!AW99>=1,'V L AB'!AW99>=40),'V C AB'!AX99>=1),"CLASIFICADO A 80 Km NOVICIOS","") ->  | E100: =IF(C100='V C AB'!C99,IF(OR('V C AB'!AZ99="",'V C AB'!AZ99="HABILITADO TEMPORALMENTE A COMPETENCIAS FEI"),"",+'V C AB'!AZ99),"ERROR") -> NO INICIA SU CLASIFICACIÓN | F100: =IF(B100='V C AB'!B99,IF(+'V C AB'!AZ99="HABILITADO TEMPORALMENTE A COMPETENCIAS FEI","HABILITADO TEMPORALMENTE A COMPETENCIAS FEI",""),"ERROR") -> 
A101: =IF(+'V C AB'!A100="","",'V C AB'!A100) -> A114 | B101: =IF(+'V C AB'!B100="","",'V C AB'!B100) -> A | C101: =IF(+'V C AB'!C100="","",'V C AB'!C100) -> LEON FERNANDO IVAN | D101: =IF(OR('V C AB'!AV100+'V C AB'!AW100>=2,AND('V C AB'!AV100+'V C AB'!AW100>=1,'V L AB'!AW100>=40),'V C AB'!AX100>=1),"CLASIFICADO A 80 Km NOVICIOS","") ->  | E101: =IF(C101='V C AB'!C100,IF(OR('V C AB'!AZ100="",'V C AB'!AZ100="HABILITADO TEMPORALMENTE A COMPETENCIAS FEI"),"",+'V C AB'!AZ100),"ERROR") -> NO INICIA SU CLASIFICACIÓN | F101: =IF(B101='V C AB'!B100,IF(+'V C AB'!AZ100="HABILITADO TEMPORALMENTE A COMPETENCIAS FEI","HABILITADO TEMPORALMENTE A COMPETENCIAS FEI",""),"ERROR") -> 
A102: =IF(+'V C AB'!A101="","",'V C AB'!A101) -> A044 | B102: =IF(+'V C AB'!B101="","",'V C AB'!B101) -> A | C102: =IF(+'V C AB'!C101="","",'V C AB'!C101) -> LEON IGNACIO | D102: =IF(OR('V C AB'!AV101+'V C AB'!AW101>=2,AND('V C AB'!AV101+'V C AB'!AW101>=1,'V L AB'!AW101>=40),'V C AB'!AX101>=1),"CLASIFICADO A 80 Km NOVICIOS","") ->  | E102: =IF(C102='V C AB'!C101,IF(OR('V C AB'!AZ101="",'V C AB'!AZ101="HABILITADO TEMPORALMENTE A COMPETENCIAS FEI"),"",+'V C AB'!AZ101),"ERROR") -> NO INICIA SU CLASIFICACIÓN | F102: =IF(B102='V C AB'!B101,IF(+'V C AB'!AZ101="HABILITADO TEMPORALMENTE A COMPETENCIAS FEI","HABILITADO TEMPORALMENTE A COMPETENCIAS FEI",""),"ERROR") -> 
A103: =IF(+'V C AB'!A102="","",'V C AB'!A102) -> A024 | B103: =IF(+'V C AB'!B102="","",'V C AB'!B102) -> A | C103: =IF(+'V C AB'!C102="","",'V C AB'!C102) -> LEPPERT MICHELLE | D103: =IF(OR('V C AB'!AV102+'V C AB'!AW102>=2,AND('V C AB'!AV102+'V C AB'!AW102>=1,'V L AB'!AW102>=40),'V C AB'!AX102>=1),"CLASIFICADO A 80 Km NOVICIOS","") ->  | E103: =IF(C103='V C AB'!C102,IF(OR('V C AB'!AZ102="",'V C AB'!AZ102="HABILITADO TEMPORALMENTE A COMPETENCIAS FEI"),"",+'V C AB'!AZ102),"ERROR") -> INICIO SU CLASIFICACIÓN | F103: =IF(B103='V C AB'!B102,IF(+'V C AB'!AZ102="HABILITADO TEMPORALMENTE A COMPETENCIAS FEI","HABILITADO TEMPORALMENTE A COMPETENCIAS FEI",""),"ERROR") -> 
A104: =IF(+'V C AB'!A103="","",'V C AB'!A103) -> A092 | B104: =IF(+'V C AB'!B103="","",'V C AB'!B103) -> A | C104: =IF(+'V C AB'!C103="","",'V C AB'!C103) -> LETORT EDUARDO | D104: =IF(OR('V C AB'!AV103+'V C AB'!AW103>=2,AND('V C AB'!AV103+'V C AB'!AW103>=1,'V L AB'!AW103>=40),'V C AB'!AX103>=1),"CLASIFICADO A 80 Km NOVICIOS","") ->  | E104: =IF(C104='V C AB'!C103,IF(OR('V C AB'!AZ103="",'V C AB'!AZ103="HABILITADO TEMPORALMENTE A COMPETENCIAS FEI"),"",+'V C AB'!AZ103),"ERROR") -> INICIO SU CLASIFICACIÓN | F104: =IF(B104='V C AB'!B103,IF(+'V C AB'!AZ103="HABILITADO TEMPORALMENTE A COMPETENCIAS FEI","HABILITADO TEMPORALMENTE A COMPETENCIAS FEI",""),"ERROR") -> 
A105: =IF(+'V C AB'!A104="","",'V C AB'!A104) -> A110 | B105: =IF(+'V C AB'!B104="","",'V C AB'!B104) -> A026 | C105: =IF(+'V C AB'!C104="","",'V C AB'!C104) -> LETORT MENA JOSÉ | D105: =IF(OR('V C AB'!AV104+'V C AB'!AW104>=2,AND('V C AB'!AV104+'V C AB'!AW104>=1,'V L AB'!AW104>=40),'V C AB'!AX104>=1),"CLASIFICADO A 80 Km NOVICIOS","") -> CLASIFICADO A 80 Km NOVICIOS | E105: =IF(C105='V C AB'!C104,IF(OR('V C AB'!AZ104="",'V C AB'!AZ104="HABILITADO TEMPORALMENTE A COMPETENCIAS FEI"),"",+'V C AB'!AZ104),"ERROR") ->  | F105: =IF(B105='V C AB'!B104,IF(+'V C AB'!AZ104="HABILITADO TEMPORALMENTE A COMPETENCIAS FEI","HABILITADO TEMPORALMENTE A COMPETENCIAS FEI",""),"ERROR") -> HABILITADO TEMPORALMENTE A COMPETENCIAS FEI
A106: =IF(+'V C AB'!A105="","",'V C AB'!A105) -> A071 | B106: =IF(+'V C AB'!B105="","",'V C AB'!B105) -> A | C106: =IF(+'V C AB'!C105="","",'V C AB'!C105) -> LLANEZ CRISTIAN DANIEL | D106: =IF(OR('V C AB'!AV105+'V C AB'!AW105>=2,AND('V C AB'!AV105+'V C AB'!AW105>=1,'V L AB'!AW105>=40),'V C AB'!AX105>=1),"CLASIFICADO A 80 Km NOVICIOS","") ->  | E106: =IF(C106='V C AB'!C105,IF(OR('V C AB'!AZ105="",'V C AB'!AZ105="HABILITADO TEMPORALMENTE A COMPETENCIAS FEI"),"",+'V C AB'!AZ105),"ERROR") -> NO INICIA SU CLASIFICACIÓN | F106: =IF(B106='V C AB'!B105,IF(+'V C AB'!AZ105="HABILITADO TEMPORALMENTE A COMPETENCIAS FEI","HABILITADO TEMPORALMENTE A COMPETENCIAS FEI",""),"ERROR") -> 
A107: =IF(+'V C AB'!A106="","",'V C AB'!A106) ->  | B107: =IF(+'V C AB'!B106="","",'V C AB'!B106) -> A | C107: =IF(+'V C AB'!C106="","",'V C AB'!C106) -> LÓPEZ JUAN DIEGO | D107: =IF(OR('V C AB'!AV106+'V C AB'!AW106>=2,AND('V C AB'!AV106+'V C AB'!AW106>=1,'V L AB'!AW106>=40),'V C AB'!AX106>=1),"CLASIFICADO A 80 Km NOVICIOS","") ->  | E107: =IF(C107='V C AB'!C106,IF(OR('V C AB'!AZ106="",'V C AB'!AZ106="HABILITADO TEMPORALMENTE A COMPETENCIAS FEI"),"",+'V C AB'!AZ106),"ERROR") -> NO INICIA SU CLASIFICACIÓN | F107: =IF(B107='V C AB'!B106,IF(+'V C AB'!AZ106="HABILITADO TEMPORALMENTE A COMPETENCIAS FEI","HABILITADO TEMPORALMENTE A COMPETENCIAS FEI",""),"ERROR") -> 
B108: A 168 | C108: LOZADA ARMANDO
A109: =IF(+'V C AB'!A107="","",'V C AB'!A107) ->  | B109: =IF(+'V C AB'!B107="","",'V C AB'!B107) -> A190 | C109: =IF(+'V C AB'!C107="","",'V C AB'!C107) -> LOZADA ARMANDO | D109: =IF(OR('V C AB'!AV107+'V C AB'!AW107>=2,AND('V C AB'!AV107+'V C AB'!AW107>=1,'V L AB'!AW107>=40),'V C AB'!AX107>=1),"CLASIFICADO A 80 Km NOVICIOS","") -> CLASIFICADO A 80 Km NOVICIOS | E109: =IF(C109='V C AB'!C107,IF(OR('V C AB'!AZ107="",'V C AB'!AZ107="HABILITADO TEMPORALMENTE A COMPETENCIAS FEI"),"",+'V C AB'!AZ107),"ERROR") -> HABILITADO A 80KM VELOCIDAD CONTROLADA | F109: =IF(B109='V C AB'!B107,IF(+'V C AB'!AZ107="HABILITADO TEMPORALMENTE A COMPETENCIAS FEI","HABILITADO TEMPORALMENTE A COMPETENCIAS FEI",""),"ERROR") -> 
A110: =IF(+'V C AB'!A108="","",'V C AB'!A108) -> C | B110: =IF(+'V C AB'!B108="","",'V C AB'!B108) -> A143 | C110: =IF(+'V C AB'!C108="","",'V C AB'!C108) -> LUGMAÑA JUAN CARLOS | D110: =IF(OR('V C AB'!AV108+'V C AB'!AW108>=2,AND('V C AB'!AV108+'V C AB'!AW108>=1,'V L AB'!AW108>=40),'V C AB'!AX108>=1),"CLASIFICADO A 80 Km NOVICIOS","") ->  | E110: =IF(C110='V C AB'!C108,IF(OR('V C AB'!AZ108="",'V C AB'!AZ108="HABILITADO TEMPORALMENTE A COMPETENCIAS FEI"),"",+'V C AB'!AZ108),"ERROR") -> NO INICIA SU CLASIFICACIÓN | F110: =IF(B110='V C AB'!B108,IF(+'V C AB'!AZ108="HABILITADO TEMPORALMENTE A COMPETENCIAS FEI","HABILITADO TEMPORALMENTE A COMPETENCIAS FEI",""),"ERROR") -> 
A111: =IF(+'V C AB'!A109="","",'V C AB'!A109) -> A134 | B111: =IF(+'V C AB'!B109="","",'V C AB'!B109) -> A020 | C111: =IF(+'V C AB'!C109="","",'V C AB'!C109) -> LUNA ARMANDO | D111: =IF(OR('V C AB'!AV109+'V C AB'!AW109>=2,AND('V C AB'!AV109+'V C AB'!AW109>=1,'V L AB'!AW109>=40),'V C AB'!AX109>=1),"CLASIFICADO A 80 Km NOVICIOS","") ->  | E111: =IF(C111='V C AB'!C109,IF(OR('V C AB'!AZ109="",'V C AB'!AZ109="HABILITADO TEMPORALMENTE A COMPETENCIAS FEI"),"",+'V C AB'!AZ109),"ERROR") -> NO INICIA SU CLASIFICACIÓN | F111: =IF(B111='V C AB'!B109,IF(+'V C AB'!AZ109="HABILITADO TEMPORALMENTE A COMPETENCIAS FEI","HABILITADO TEMPORALMENTE A COMPETENCIAS FEI",""),"ERROR") -> 
A112: =IF(+'V C AB'!A110="","",'V C AB'!A110) -> A012 | B112: =IF(+'V C AB'!B110="","",'V C AB'!B110) -> A005 | C112: =IF(+'V C AB'!C110="","",'V C AB'!C110) -> MALDONADO JOSE | D112: =IF(OR('V C AB'!AV110+'V C AB'!AW110>=2,AND('V C AB'!AV110+'V C AB'!AW110>=1,'V L AB'!AW110>=40),'V C AB'!AX110>=1),"CLASIFICADO A 80 Km NOVICIOS","") -> CLASIFICADO A 80 Km NOVICIOS | E112: =IF(C112='V C AB'!C110,IF(OR('V C AB'!AZ110="",'V C AB'!AZ110="HABILITADO TEMPORALMENTE A COMPETENCIAS FEI"),"",+'V C AB'!AZ110),"ERROR") -> HABILITADO A 80KM VELOCIDAD CONTROLADA | F112: =IF(B112='V C AB'!B110,IF(+'V C AB'!AZ110="HABILITADO TEMPORALMENTE A COMPETENCIAS FEI","HABILITADO TEMPORALMENTE A COMPETENCIAS FEI",""),"ERROR") -> 
A113: =IF(+'V C AB'!A111="","",'V C AB'!A111) -> C | B113: =IF(+'V C AB'!B111="","",'V C AB'!B111) -> A144 | C113: =IF(+'V C AB'!C111="","",'V C AB'!C111) -> MALO ANDREA | D113: =IF(OR('V C AB'!AV111+'V C AB'!AW111>=2,AND('V C AB'!AV111+'V C AB'!AW111>=1,'V L AB'!AW111>=40),'V C AB'!AX111>=1),"CLASIFICADO A 80 Km NOVICIOS","") -> CLASIFICADO A 80 Km NOVICIOS | E113: =IF(C113='V C AB'!C111,IF(OR('V C AB'!AZ111="",'V C AB'!AZ111="HABILITADO TEMPORALMENTE A COMPETENCIAS FEI"),"",+'V C AB'!AZ111),"ERROR") -> HABILITADO A 80KM VELOCIDAD CONTROLADA | F113: =IF(B113='V C AB'!B111,IF(+'V C AB'!AZ111="HABILITADO TEMPORALMENTE A COMPETENCIAS FEI","HABILITADO TEMPORALMENTE A COMPETENCIAS FEI",""),"ERROR") -> 
A114: =IF(+'V C AB'!A112="","",'V C AB'!A112) ->  | B114: =IF(+'V C AB'!B112="","",'V C AB'!B112) -> A014 | C114: =IF(+'V C AB'!C112="","",'V C AB'!C112) -> MALO DIANA | D114: =IF(OR('V C AB'!AV112+'V C AB'!AW112>=2,AND('V C AB'!AV112+'V C AB'!AW112>=1,'V L AB'!AW112>=40),'V C AB'!AX112>=1),"CLASIFICADO A 80 Km NOVICIOS","") -> CLASIFICADO A 80 Km NOVICIOS | E114: =IF(C114='V C AB'!C112,IF(OR('V C AB'!AZ112="",'V C AB'!AZ112="HABILITADO TEMPORALMENTE A COMPETENCIAS FEI"),"",+'V C AB'!AZ112),"ERROR") -> LE FALTA UNA DE 80 A 90 CONTROLADA | F114: =IF(B114='V C AB'!B112,IF(+'V C AB'!AZ112="HABILITADO TEMPORALMENTE A COMPETENCIAS FEI","HABILITADO TEMPORALMENTE A COMPETENCIAS FEI",""),"ERROR") -> 
A115: =IF(+'V C AB'!A113="","",'V C AB'!A113) -> C | B115: =IF(+'V C AB'!B113="","",'V C AB'!B113) -> A145 | C115: =IF(+'V C AB'!C113="","",'V C AB'!C113) -> MALO GELLIBERT ANDREA NATALY | D115: =IF(OR('V C AB'!AV113+'V C AB'!AW113>=2,AND('V C AB'!AV113+'V C AB'!AW113>=1,'V L AB'!AW113>=40),'V C AB'!AX113>=1),"CLASIFICADO A 80 Km NOVICIOS","") -> CLASIFICADO A 80 Km NOVICIOS | E115: =IF(C115='V C AB'!C113,IF(OR('V C AB'!AZ113="",'V C AB'!AZ113="HABILITADO TEMPORALMENTE A COMPETENCIAS FEI"),"",+'V C AB'!AZ113),"ERROR") -> HABILITADO A 80KM VELOCIDAD CONTROLADA | F115: =IF(B115='V C AB'!B113,IF(+'V C AB'!AZ113="HABILITADO TEMPORALMENTE A COMPETENCIAS FEI","HABILITADO TEMPORALMENTE A COMPETENCIAS FEI",""),"ERROR") -> 
A116: =IF(+'V C AB'!A114="","",'V C AB'!A114) ->  | B116: =IF(+'V C AB'!B114="","",'V C AB'!B114) -> A130 | C116: =IF(+'V C AB'!C114="","",'V C AB'!C114) -> MALO JAIME | D116: =IF(OR('V C AB'!AV114+'V C AB'!AW114>=2,AND('V C AB'!AV114+'V C AB'!AW114>=1,'V L AB'!AW114>=40),'V C AB'!AX114>=1),"CLASIFICADO A 80 Km NOVICIOS","") -> CLASIFICADO A 80 Km NOVICIOS | E116: =IF(C116='V C AB'!C114,IF(OR('V C AB'!AZ114="",'V C AB'!AZ114="HABILITADO TEMPORALMENTE A COMPETENCIAS FEI"),"",+'V C AB'!AZ114),"ERROR") ->  | F116: =IF(B116='V C AB'!B114,IF(+'V C AB'!AZ114="HABILITADO TEMPORALMENTE A COMPETENCIAS FEI","HABILITADO TEMPORALMENTE A COMPETENCIAS FEI",""),"ERROR") -> HABILITADO TEMPORALMENTE A COMPETENCIAS FEI
A117: =IF(+'V C AB'!A115="","",'V C AB'!A115) -> C | B117: =IF(+'V C AB'!B115="","",'V C AB'!B115) -> A146 | C117: =IF(+'V C AB'!C115="","",'V C AB'!C115) -> MALO MARIBEL | D117: =IF(OR('V C AB'!AV115+'V C AB'!AW115>=2,AND('V C AB'!AV115+'V C AB'!AW115>=1,'V L AB'!AW115>=40),'V C AB'!AX115>=1),"CLASIFICADO A 80 Km NOVICIOS","") -> CLASIFICADO A 80 Km NOVICIOS | E117: =IF(C117='V C AB'!C115,IF(OR('V C AB'!AZ115="",'V C AB'!AZ115="HABILITADO TEMPORALMENTE A COMPETENCIAS FEI"),"",+'V C AB'!AZ115),"ERROR") -> HABILITADO A 80KM VELOCIDAD CONTROLADA | F117: =IF(B117='V C AB'!B115,IF(+'V C AB'!AZ115="HABILITADO TEMPORALMENTE A COMPETENCIAS FEI","HABILITADO TEMPORALMENTE A COMPETENCIAS FEI",""),"ERROR") -> 
A118: =IF(+'V C AB'!A116="","",'V C AB'!A116) -> C | B118: =IF(+'V C AB'!B116="","",'V C AB'!B116) -> A118 | C118: =IF(+'V C AB'!C116="","",'V C AB'!C116) -> MALO SEBASTIAN | D118: =IF(OR('V C AB'!AV116+'V C AB'!AW116>=2,AND('V C AB'!AV116+'V C AB'!AW116>=1,'V L AB'!AW116>=40),'V C AB'!AX116>=1),"CLASIFICADO A 80 Km NOVICIOS","") -> CLASIFICADO A 80 Km NOVICIOS | E118: =IF(C118='V C AB'!C116,IF(OR('V C AB'!AZ116="",'V C AB'!AZ116="HABILITADO TEMPORALMENTE A COMPETENCIAS FEI"),"",+'V C AB'!AZ116),"ERROR") -> LE FALTA UNA DE 80 A 90 CONTROLADA | F118: =IF(B118='V C AB'!B116,IF(+'V C AB'!AZ116="HABILITADO TEMPORALMENTE A COMPETENCIAS FEI","HABILITADO TEMPORALMENTE A COMPETENCIAS FEI",""),"ERROR") -> 
A119: =IF(+'V C AB'!A117="","",'V C AB'!A117) -> C | B119: =IF(+'V C AB'!B117="","",'V C AB'!B117) -> C | C119: =IF(+'V C AB'!C117="","",'V C AB'!C117) -> MALO TORAL SANTIAGO | D119: =IF(OR('V C AB'!AV117+'V C AB'!AW117>=2,AND('V C AB'!AV117+'V C AB'!AW117>=1,'V L AB'!AW117>=40),'V C AB'!AX117>=1),"CLASIFICADO A 80 Km NOVICIOS","") ->  | E119: =IF(C119='V C AB'!C117,IF(OR('V C AB'!AZ117="",'V C AB'!AZ117="HABILITADO TEMPORALMENTE A COMPETENCIAS FEI"),"",+'V C AB'!AZ117),"ERROR") -> NO INICIA SU CLASIFICACIÓN | F119: =IF(B119='V C AB'!B117,IF(+'V C AB'!AZ117="HABILITADO TEMPORALMENTE A COMPETENCIAS FEI","HABILITADO TEMPORALMENTE A COMPETENCIAS FEI",""),"ERROR") -> 
A120: =IF(+'V C AB'!A118="","",'V C AB'!A118) ->  | B120: =IF(+'V C AB'!B118="","",'V C AB'!B118) -> A200 | C120: =IF(+'V C AB'!C118="","",'V C AB'!C118) -> MANCHENO GALO PATRICIO | D120: =IF(OR('V C AB'!AV118+'V C AB'!AW118>=2,AND('V C AB'!AV118+'V C AB'!AW118>=1,'V L AB'!AW118>=40),'V C AB'!AX118>=1),"CLASIFICADO A 80 Km NOVICIOS","") ->  | E120: =IF(C120='V C AB'!C118,IF(OR('V C AB'!AZ118="",'V C AB'!AZ118="HABILITADO TEMPORALMENTE A COMPETENCIAS FEI"),"",+'V C AB'!AZ118),"ERROR") -> INICIO SU CLASIFICACIÓN | F120: =IF(B120='V C AB'!B118,IF(+'V C AB'!AZ118="HABILITADO TEMPORALMENTE A COMPETENCIAS FEI","HABILITADO TEMPORALMENTE A COMPETENCIAS FEI",""),"ERROR") -> 
A121: =IF(+'V C AB'!A119="","",'V C AB'!A119) -> A041 | B121: =IF(+'V C AB'!B119="","",'V C AB'!B119) -> A053 | C121: =IF(+'V C AB'!C119="","",'V C AB'!C119) -> MARCEL ROBERTO | D121: =IF(OR('V C AB'!AV119+'V C AB'!AW119>=2,AND('V C AB'!AV119+'V C AB'!AW119>=1,'V L AB'!AW119>=40),'V C AB'!AX119>=1),"CLASIFICADO A 80 Km NOVICIOS","") -> CLASIFICADO A 80 Km NOVICIOS | E121: =IF(C121='V C AB'!C119,IF(OR('V C AB'!AZ119="",'V C AB'!AZ119="HABILITADO TEMPORALMENTE A COMPETENCIAS FEI"),"",+'V C AB'!AZ119),"ERROR") ->  | F121: =IF(B121='V C AB'!B119,IF(+'V C AB'!AZ119="HABILITADO TEMPORALMENTE A COMPETENCIAS FEI","HABILITADO TEMPORALMENTE A COMPETENCIAS FEI",""),"ERROR") -> HABILITADO TEMPORALMENTE A COMPETENCIAS FEI
A122: =IF(+'V C AB'!A120="","",'V C AB'!A120) ->  | B122: =IF(+'V C AB'!B120="","",'V C AB'!B120) -> A | C122: =IF(+'V C AB'!C120="","",'V C AB'!C120) -> MARTÍNEZ EDWIN GABRIEL | D122: =IF(OR('V C AB'!AV120+'V C AB'!AW120>=2,AND('V C AB'!AV120+'V C AB'!AW120>=1,'V L AB'!AW120>=40),'V C AB'!AX120>=1),"CLASIFICADO A 80 Km NOVICIOS","") ->  | E122: =IF(C122='V C AB'!C120,IF(OR('V C AB'!AZ120="",'V C AB'!AZ120="HABILITADO TEMPORALMENTE A COMPETENCIAS FEI"),"",+'V C AB'!AZ120),"ERROR") -> NO INICIA SU CLASIFICACIÓN | F122: =IF(B122='V C AB'!B120,IF(+'V C AB'!AZ120="HABILITADO TEMPORALMENTE A COMPETENCIAS FEI","HABILITADO TEMPORALMENTE A COMPETENCIAS FEI",""),"ERROR") -> 
A123: =IF(+'V C AB'!A121="","",'V C AB'!A121) -> A116 | B123: =IF(+'V C AB'!B121="","",'V C AB'!B121) -> A | C123: =IF(+'V C AB'!C121="","",'V C AB'!C121) -> MARTÍNEZ JOSÉ ELOY | D123: =IF(OR('V C AB'!AV121+'V C AB'!AW121>=2,AND('V C AB'!AV121+'V C AB'!AW121>=1,'V L AB'!AW121>=40),'V C AB'!AX121>=1),"CLASIFICADO A 80 Km NOVICIOS","") ->  | E123: =IF(C123='V C AB'!C121,IF(OR('V C AB'!AZ121="",'V C AB'!AZ121="HABILITADO TEMPORALMENTE A COMPETENCIAS FEI"),"",+'V C AB'!AZ121),"ERROR") -> NO INICIA SU CLASIFICACIÓN | F123: =IF(B123='V C AB'!B121,IF(+'V C AB'!AZ121="HABILITADO TEMPORALMENTE A COMPETENCIAS FEI","HABILITADO TEMPORALMENTE A COMPETENCIAS FEI",""),"ERROR") -> 
A124: =IF(+'V C AB'!A122="","",'V C AB'!A122) ->  | B124: =IF(+'V C AB'!B122="","",'V C AB'!B122) -> A | C124: =IF(+'V C AB'!C122="","",'V C AB'!C122) -> MARTINEZ PAOLA | D124: =IF(OR('V C AB'!AV122+'V C AB'!AW122>=2,AND('V C AB'!AV122+'V C AB'!AW122>=1,'V L AB'!AW122>=40),'V C AB'!AX122>=1),"CLASIFICADO A 80 Km NOVICIOS","") ->  | E124: =IF(C124='V C AB'!C122,IF(OR('V C AB'!AZ122="",'V C AB'!AZ122="HABILITADO TEMPORALMENTE A COMPETENCIAS FEI"),"",+'V C AB'!AZ122),"ERROR") -> NO INICIA SU CLASIFICACIÓN | F124: =IF(B124='V C AB'!B122,IF(+'V C AB'!AZ122="HABILITADO TEMPORALMENTE A COMPETENCIAS FEI","HABILITADO TEMPORALMENTE A COMPETENCIAS FEI",""),"ERROR") -> 
A125: =IF(+'V C AB'!A123="","",'V C AB'!A123) ->  | B125: =IF(+'V C AB'!B123="","",'V C AB'!B123) -> A | C125: =IF(+'V C AB'!C123="","",'V C AB'!C123) -> MEJIA MIGUEL | D125: =IF(OR('V C AB'!AV123+'V C AB'!AW123>=2,AND('V C AB'!AV123+'V C AB'!AW123>=1,'V L AB'!AW123>=40),'V C AB'!AX123>=1),"CLASIFICADO A 80 Km NOVICIOS","") ->  | E125: =IF(C125='V C AB'!C123,IF(OR('V C AB'!AZ123="",'V C AB'!AZ123="HABILITADO TEMPORALMENTE A COMPETENCIAS FEI"),"",+'V C AB'!AZ123),"ERROR") -> NO INICIA SU CLASIFICACIÓN | F125: =IF(B125='V C AB'!B123,IF(+'V C AB'!AZ123="HABILITADO TEMPORALMENTE A COMPETENCIAS FEI","HABILITADO TEMPORALMENTE A COMPETENCIAS FEI",""),"ERROR") -> 
A126: =IF(+'V C AB'!A124="","",'V C AB'!A124) ->  | B126: =IF(+'V C AB'!B124="","",'V C AB'!B124) -> A065 | C126: =IF(+'V C AB'!C124="","",'V C AB'!C124) -> MENESES FELIPE | D126: =IF(OR('V C AB'!AV124+'V C AB'!AW124>=2,AND('V C AB'!AV124+'V C AB'!AW124>=1,'V L AB'!AW124>=40),'V C AB'!AX124>=1),"CLASIFICADO A 80 Km NOVICIOS","") ->  | E126: =IF(C126='V C AB'!C124,IF(OR('V C AB'!AZ124="",'V C AB'!AZ124="HABILITADO TEMPORALMENTE A COMPETENCIAS FEI"),"",+'V C AB'!AZ124),"ERROR") -> INICIO SU CLASIFICACIÓN | F126: =IF(B126='V C AB'!B124,IF(+'V C AB'!AZ124="HABILITADO TEMPORALMENTE A COMPETENCIAS FEI","HABILITADO TEMPORALMENTE A COMPETENCIAS FEI",""),"ERROR") -> 
A127: =IF(+'V C AB'!A125="","",'V C AB'!A125) -> C | B127: =IF(+'V C AB'!B125="","",'V C AB'!B125) -> C | C127: =IF(+'V C AB'!C125="","",'V C AB'!C125) -> MERISALDE SANTIAGO | D127: =IF(OR('V C AB'!AV125+'V C AB'!AW125>=2,AND('V C AB'!AV125+'V C AB'!AW125>=1,'V L AB'!AW125>=40),'V C AB'!AX125>=1),"CLASIFICADO A 80 Km NOVICIOS","") ->  | E127: =IF(C127='V C AB'!C125,IF(OR('V C AB'!AZ125="",'V C AB'!AZ125="HABILITADO TEMPORALMENTE A COMPETENCIAS FEI"),"",+'V C AB'!AZ125),"ERROR") -> NO INICIA SU CLASIFICACIÓN | F127: =IF(B127='V C AB'!B125,IF(+'V C AB'!AZ125="HABILITADO TEMPORALMENTE A COMPETENCIAS FEI","HABILITADO TEMPORALMENTE A COMPETENCIAS FEI",""),"ERROR") -> 
A128: =IF(+'V C AB'!A126="","",'V C AB'!A126) -> C | B128: =IF(+'V C AB'!B126="","",'V C AB'!B126) -> C | C128: =IF(+'V C AB'!C126="","",'V C AB'!C126) -> MERIZALDE ANGELA | D128: =IF(OR('V C AB'!AV126+'V C AB'!AW126>=2,AND('V C AB'!AV126+'V C AB'!AW126>=1,'V L AB'!AW126>=40),'V C AB'!AX126>=1),"CLASIFICADO A 80 Km NOVICIOS","") ->  | E128: =IF(C128='V C AB'!C126,IF(OR('V C AB'!AZ126="",'V C AB'!AZ126="HABILITADO TEMPORALMENTE A COMPETENCIAS FEI"),"",+'V C AB'!AZ126),"ERROR") -> INICIO SU CLASIFICACIÓN | F128: =IF(B128='V C AB'!B126,IF(+'V C AB'!AZ126="HABILITADO TEMPORALMENTE A COMPETENCIAS FEI","HABILITADO TEMPORALMENTE A COMPETENCIAS FEI",""),"ERROR") -> 
A129: =IF(+'V C AB'!A127="","",'V C AB'!A127) -> A117 | B129: =IF(+'V C AB'!B127="","",'V C AB'!B127) -> A061 | C129: =IF(+'V C AB'!C127="","",'V C AB'!C127) -> MIÑO BENALCAZAR ROBERTO | D129: =IF(OR('V C AB'!AV127+'V C AB'!AW127>=2,AND('V C AB'!AV127+'V C AB'!AW127>=1,'V L AB'!AW127>=40),'V C AB'!AX127>=1),"CLASIFICADO A 80 Km NOVICIOS","") -> CLASIFICADO A 80 Km NOVICIOS | E129: =IF(C129='V C AB'!C127,IF(OR('V C AB'!AZ127="",'V C AB'!AZ127="HABILITADO TEMPORALMENTE A COMPETENCIAS FEI"),"",+'V C AB'!AZ127),"ERROR") ->  | F129: =IF(B129='V C AB'!B127,IF(+'V C AB'!AZ127="HABILITADO TEMPORALMENTE A COMPETENCIAS FEI","HABILITADO TEMPORALMENTE A COMPETENCIAS FEI",""),"ERROR") -> HABILITADO TEMPORALMENTE A COMPETENCIAS FEI
A130: =IF(+'V C AB'!A128="","",'V C AB'!A128) -> J012 | B130: =IF(+'V C AB'!B128="","",'V C AB'!B128) -> A | C130: =IF(+'V C AB'!C128="","",'V C AB'!C128) -> MOLESTINA NICOLAS | D130: =IF(OR('V C AB'!AV128+'V C AB'!AW128>=2,AND('V C AB'!AV128+'V C AB'!AW128>=1,'V L AB'!AW128>=40),'V C AB'!AX128>=1),"CLASIFICADO A 80 Km NOVICIOS","") ->  | E130: =IF(C130='V C AB'!C128,IF(OR('V C AB'!AZ128="",'V C AB'!AZ128="HABILITADO TEMPORALMENTE A COMPETENCIAS FEI"),"",+'V C AB'!AZ128),"ERROR") -> NO INICIA SU CLASIFICACIÓN | F130: =IF(B130='V C AB'!B128,IF(+'V C AB'!AZ128="HABILITADO TEMPORALMENTE A COMPETENCIAS FEI","HABILITADO TEMPORALMENTE A COMPETENCIAS FEI",""),"ERROR") -> 
A131: =IF(+'V C AB'!A129="","",'V C AB'!A129) ->  | B131: =IF(+'V C AB'!B129="","",'V C AB'!B129) -> A030 | C131: =IF(+'V C AB'!C129="","",'V C AB'!C129) -> MONCAYO DANILO | D131: =IF(OR('V C AB'!AV129+'V C AB'!AW129>=2,AND('V C AB'!AV129+'V C AB'!AW129>=1,'V L AB'!AW129>=40),'V C AB'!AX129>=1),"CLASIFICADO A 80 Km NOVICIOS","") ->  | E131: =IF(C131='V C AB'!C129,IF(OR('V C AB'!AZ129="",'V C AB'!AZ129="HABILITADO TEMPORALMENTE A COMPETENCIAS FEI"),"",+'V C AB'!AZ129),"ERROR") -> INICIO SU CLASIFICACIÓN | F131: =IF(B131='V C AB'!B129,IF(+'V C AB'!AZ129="HABILITADO TEMPORALMENTE A COMPETENCIAS FEI","HABILITADO TEMPORALMENTE A COMPETENCIAS FEI",""),"ERROR") -> 
A132: =IF(+'V C AB'!A130="","",'V C AB'!A130) ->  | B132: =IF(+'V C AB'!B130="","",'V C AB'!B130) -> A032 | C132: =IF(+'V C AB'!C130="","",'V C AB'!C130) -> MONCAYO JOSÉ MARTÍN | D132: =IF(OR('V C AB'!AV130+'V C AB'!AW130>=2,AND('V C AB'!AV130+'V C AB'!AW130>=1,'V L AB'!AW130>=40),'V C AB'!AX130>=1),"CLASIFICADO A 80 Km NOVICIOS","") ->  | E132: =IF(C132='V C AB'!C130,IF(OR('V C AB'!AZ130="",'V C AB'!AZ130="HABILITADO TEMPORALMENTE A COMPETENCIAS FEI"),"",+'V C AB'!AZ130),"ERROR") -> INICIO SU CLASIFICACIÓN | F132: =IF(B132='V C AB'!B130,IF(+'V C AB'!AZ130="HABILITADO TEMPORALMENTE A COMPETENCIAS FEI","HABILITADO TEMPORALMENTE A COMPETENCIAS FEI",""),"ERROR") -> 
A133: =IF(+'V C AB'!A131="","",'V C AB'!A131) -> A119 | B133: =IF(+'V C AB'!B131="","",'V C AB'!B131) -> A068 | C133: =IF(+'V C AB'!C131="","",'V C AB'!C131) -> MONROY BAROJA MARIA FERNANDA | D133: =IF(OR('V C AB'!AV131+'V C AB'!AW131>=2,AND('V C AB'!AV131+'V C AB'!AW131>=1,'V L AB'!AW131>=40),'V C AB'!AX131>=1),"CLASIFICADO A 80 Km NOVICIOS","") -> CLASIFICADO A 80 Km NOVICIOS | E133: =IF(C133='V C AB'!C131,IF(OR('V C AB'!AZ131="",'V C AB'!AZ131="HABILITADO TEMPORALMENTE A COMPETENCIAS FEI"),"",+'V C AB'!AZ131),"ERROR") ->  | F133: =IF(B133='V C AB'!B131,IF(+'V C AB'!AZ131="HABILITADO TEMPORALMENTE A COMPETENCIAS FEI","HABILITADO TEMPORALMENTE A COMPETENCIAS FEI",""),"ERROR") -> HABILITADO TEMPORALMENTE A COMPETENCIAS FEI
A134: =IF(+'V C AB'!A132="","",'V C AB'!A132) -> A113 | B134: =IF(+'V C AB'!B132="","",'V C AB'!B132) -> A066 | C134: =IF(+'V C AB'!C132="","",'V C AB'!C132) -> MONROY BUITRON LUIS EDUARDO | D134: =IF(OR('V C AB'!AV132+'V C AB'!AW132>=2,AND('V C AB'!AV132+'V C AB'!AW132>=1,'V L AB'!AW132>=40),'V C AB'!AX132>=1),"CLASIFICADO A 80 Km NOVICIOS","") -> CLASIFICADO A 80 Km NOVICIOS | E134: =IF(C134='V C AB'!C132,IF(OR('V C AB'!AZ132="",'V C AB'!AZ132="HABILITADO TEMPORALMENTE A COMPETENCIAS FEI"),"",+'V C AB'!AZ132),"ERROR") ->  | F134: =IF(B134='V C AB'!B132,IF(+'V C AB'!AZ132="HABILITADO TEMPORALMENTE A COMPETENCIAS FEI","HABILITADO TEMPORALMENTE A COMPETENCIAS FEI",""),"ERROR") -> HABILITADO TEMPORALMENTE A COMPETENCIAS FEI
A135: =IF(+'V C AB'!A133="","",'V C AB'!A133) -> A021 | B135: =IF(+'V C AB'!B133="","",'V C AB'!B133) -> A045 | C135: =IF(+'V C AB'!C133="","",'V C AB'!C133) -> MORABOWEN CESAR | D135: =IF(OR('V C AB'!AV133+'V C AB'!AW133>=2,AND('V C AB'!AV133+'V C AB'!AW133>=1,'V L AB'!AW133>=40),'V C AB'!AX133>=1),"CLASIFICADO A 80 Km NOVICIOS","") -> CLASIFICADO A 80 Km NOVICIOS | E135: =IF(C135='V C AB'!C133,IF(OR('V C AB'!AZ133="",'V C AB'!AZ133="HABILITADO TEMPORALMENTE A COMPETENCIAS FEI"),"",+'V C AB'!AZ133),"ERROR") ->  | F135: =IF(B135='V C AB'!B133,IF(+'V C AB'!AZ133="HABILITADO TEMPORALMENTE A COMPETENCIAS FEI","HABILITADO TEMPORALMENTE A COMPETENCIAS FEI",""),"ERROR") -> HABILITADO TEMPORALMENTE A COMPETENCIAS FEI
A136: =IF(+'V C AB'!A134="","",'V C AB'!A134) ->  | B136: =IF(+'V C AB'!B134="","",'V C AB'!B134) -> A165 | C136: =IF(+'V C AB'!C134="","",'V C AB'!C134) -> MORALES ANDRES | D136: =IF(OR('V C AB'!AV134+'V C AB'!AW134>=2,AND('V C AB'!AV134+'V C AB'!AW134>=1,'V L AB'!AW134>=40),'V C AB'!AX134>=1),"CLASIFICADO A 80 Km NOVICIOS","") -> CLASIFICADO A 80 Km NOVICIOS | E136: =IF(C136='V C AB'!C134,IF(OR('V C AB'!AZ134="",'V C AB'!AZ134="HABILITADO TEMPORALMENTE A COMPETENCIAS FEI"),"",+'V C AB'!AZ134),"ERROR") -> HABILITADO A 80KM VELOCIDAD CONTROLADA | F136: =IF(B136='V C AB'!B134,IF(+'V C AB'!AZ134="HABILITADO TEMPORALMENTE A COMPETENCIAS FEI","HABILITADO TEMPORALMENTE A COMPETENCIAS FEI",""),"ERROR") -> 
